Workbook

Sheet ProjectInformation
A1: CPN DATA
A2: INFORMATION ADDED BY DESIGNER
A3: Section Engineer | B3: Flattery
A4: Design Team | B4: Bell
B5: Hain
A6: County | B6: WAPELLO
A7: Project Number | B7: NHSX-063-2(155)--3H-90
A8: English or Metric | B8: English
A9: Revised
A10: Project Path
A11: Bridge Block
A12: File No. | B12: 29590

Sheet DataInput
B1: Cut and Fill | T1: Topsoil Stripping | V1: Existing Pavement Cut | X1: Plowing and Shaping | AL1: ="Topsoil Placement"&CHAR(10)&"Undercut" -> Topsoil Placement Undercut | AO1: ="Subgrade Treatment"&CHAR(10)&"Undercut " -> Subgrade Treatment Undercut
B2: Column 1 | C2: Column 2 | D2: Column 3 | E2: Column 4 | F2: Column 5 | G2: Column 6 | H2: Column 7 | I2: Column 8 | J2: Column 9 | K2: Column 10 | L2: Column 11 | M2: Column 12 | N2: Column 13 | O2: Column 14 | P2: Column 15 | Q2: Column 16 | R2: Column 17 | S2: Column 18 | T2: Column 1 | U2: Column 2 | V2: Column 1 | W2: Column 2 | X2: Column 1 | Y2: Column 2 | Z2: Column 3 | AA2: Column 4 | AB2: Column 5 | AC2: Column 6 | AD2: Column 7 | AE2: Column 8 | AF2: Column 9 | AG2: Column 10 | AH2: Column 11 | AI2: Column 12 | AJ2: Column 13 | AK2: Column 14 | AL2: Column 1 | AM2: Column 2 | AN2: Column 3 | AO2: Column 1 | AP2: Column 2 | AQ2: Column 3
A3: ="Station" -> Station | B3: ="Total Cut"&CHAR(10)&"End Area" -> Total Cut End Area | C3: ="Template Cut"&CHAR(10)&"Volume" -> Template Cut Volume | D3: ="Template"&CHAR(10)&"Class 10"&CHAR(10)&"Volume" -> Template Class 10 Volume | E3: ="Template"&CHAR(10)&"Topsoil Cut"&CHAR(10)&"Volume" -> Template Topsoil Cut Volume | F3: ="Template"&CHAR(10)&"Unsuitable"&CHAR(10)&"Type A"&CHAR(10)&"Volume" -> Template Unsuitable Type A Volume | G3: ="Template"&CHAR(10)&"Unsuitable"&CHAR(10)&"Type B"&CHAR(10)&"Volume" -> Template Unsuitable Type B Volume | H3: ="Template"&CHAR(10)&"Unsuitable"&CHAR(10)&"Type C"&CHAR(10)&"Volume" -> Template Unsuitable Type C Volume | I3: ="Template"&CHAR(10)&"Pavement"&CHAR(10)&"Removal"&CHAR(10)&"Volume" -> Template Pavement Removal Volume | J3: ="Template"&CHAR(10)&"Select Loam"&CHAR(10)&"Volume" -> Template Select Loam Volume | K3: ="Template"&CHAR(10)&"Select Sand"&CHAR(10)&"Volume" -> Template Select Sand Volume | L3: ="Template"&CHAR(10)&"Rock"&CHAR(10)&"Volume" -> Template Rock Volume | M3: ="Template"&CHAR(10)&"B & W"&CHAR(10)&"Rock"&CHAR(10)&"Volume" -> Template B & W Rock Volume | N3: ="Template"&CHAR(10)&"Waste"&CHAR(10)&"Volume" -> Template Waste Volume | O3: ="Template"&CHAR(10)&"Shale"&CHAR(10)&"Volume" -> Template Shale Volume | P3: ="Template"&CHAR(10)&"Rock Undercut"&CHAR(10)&"Volume" -> Template Rock Undercut Volume | Q3: ="Template Fill"&CHAR(10)&"End Area" -> Template Fill End Area | R3: ="Total Fill"&CHAR(10)&"Unadjusted"&CHAR(10)&CHAR(10)&"Volume" -> Total Fill Unadjusted Volume | S3: ="Topsoil"&CHAR(10)&"Placement"&CHAR(10)&"Undercut"&CHAR(10)&"Volume" -> Topsoil Placement Undercut Volume | T3: ="Topsoil"&CHAR(10)&"Stripping Undercut" -> Topsoil Stripping Undercut | V3: ="Total Existing"&CHAR(10)&"Pavement Cut" -> Total Existing Pavement Cut | X3: ="Plowing &"&CHAR(10)&"Shaping"&CHAR(10)&"End Area" -> Plowing & Shaping End Area | Y3: ="Plowing &"&CHAR(10)&"Shaping"&CHAR(10)&"Undercut"&CHAR(10)&"(+ Fill)" -> Plowing & Shaping Undercut (+ Fill) | Z3: ="Plowing &"&CHAR(10)&"Shaping"&CHAR(10)&"Class 10"&CHAR(10)&"Volume" -> Plowing & Shaping Class 10 Volume | AA3: ="Template"&CHAR(10)&"Topsoil Cut"&CHAR(10)&"Volume" -> Template Topsoil Cut Volume | AB3: ="Plowing &"&CHAR(10)&"Shaping"&CHAR(10)&"Unsuitable"&CHAR(10)&"Type A"&CHAR(10)&"Volume" -> Plowing & Shaping Unsuitable Type A Volume | AC3: ="Plowing &"&CHAR(10)&"Shaping"&CHAR(10)&"Unsuitable"&CHAR(10)&"Type B"&CHAR(10)&"Volume" -> Plowing & Shaping Unsuitable Type B Volume | AD3: ="Plowing &"&CHAR(10)&"Shaping"&CHAR(10)&"Unsuitable"&CHAR(10)&"Type C"&CHAR(10)&"Volume" -> Plowing & Shaping Unsuitable Type C Volume | AE3: ="Plowing &"&CHAR(10)&"Shaping"&CHAR(10)&"Existing"&CHAR(10)&"Pavement"&CHAR(10)&"Volume" -> Plowing & Shaping Existing Pavement Volume | AF3: ="Plowing &"&CHAR(10)&"Shaping"&CHAR(10)&"Select Loam"&CHAR(10)&"Volume" -> Plowing & Shaping Select Loam Volume | AG3: ="Plowing &"&CHAR(10)&"Shaping"&CHAR(10)&"Select Sand"&CHAR(10)&"Volume" -> Plowing & Shaping Select Sand Volume | AH3: ="Plowing &"&CHAR(10)&"Shaping"&CHAR(10)&"Rock"&CHAR(10)&"Volume" -> Plowing & Shaping Rock Volume | AI3: ="Plowing &"&CHAR(10)&"Shaping"&CHAR(10)&"Broken &"&CHAR(10)&"Weathered"&CHAR(10)&"Rock"&CHAR(10)&"Volume" -> Plowing & Shaping Broken & Weathered Rock Volume | AJ3: ="Plowing &"&CHAR(10)&"Shaping"&CHAR(10)&"Waste"&CHAR(10)&"Volume" -> Plowing & Shaping Waste Volume | AK3: ="Plowing &"&CHAR(10)&"Shaping"&CHAR(10)&"Shale"&CHAR(10)&"Volume" -> Plowing & Shaping Shale Volume | AL3: ="Topsoil Placement"&CHAR(10)&"Undercut" -> Topsoil Placement Undercut | AO3: ="Subgrade Treatment"&CHAR(10)&"Undercut" -> Subgrade Treatment Undercut
AL9: End Area | AM9: ="+C"&CHAR(10)&"Volume" -> +C Volume | AN9: ="-F"&CHAR(10)&"Volume" -> -F Volume | AO9: End Area | AP9: ="+C"&CHAR(10)&"Volume" -> +C Volume | AQ9: ="-F"&CHAR(10)&"Volume" -> -F Volume
T10: ="End Area" -> End Area | U10: Volume | V10: ="End Area" -> End Area | W10: Volume
A11: Stage 1
A13: Rabbit_Run
A14: 882038.5 | B14: 0 | C14: 0 | D14: 0 | E14: 0 | F14: 0 | G14: 0 | H14: 0 | I14: 0 | J14: 0 | K14: 0 | L14: 0 | M14: 0 | N14: 0 | O14: 0 | P14: 0 | Q14: 3160 | R14: 1461 | S14: 0 | T14: 248 | U14: 106 | AL14: 0 | AM14: 0 | AN14: 0
A15: 882050 | B15: 0 | C15: 0 | D15: 0 | E15: 0 | F15: 0 | G15: 0 | H15: 0 | I15: 0 | J15: 0 | K15: 0 | L15: 0 | M15: 0 | N15: 0 | O15: 0 | P15: 0 | Q15: 3700 | R15: 3195 | S15: 41 | T15: 249 | U15: 237 | AL15: 0 | AM15: 0 | AN15: 41
A16: 882075 | B16: 0 | C16: 3 | D16: 0 | E16: 2 | F16: 0 | G16: 0 | H16: 0 | I16: 0 | J16: 0 | K16: 0 | L16: 0 | M16: 0 | N16: 0 | O16: 0 | P16: 0 | Q16: 3201 | R16: 2646 | S16: 95 | T16: 263 | U16: 244 | AL16: 89 | AM16: 2 | AN16: 93
A17: 882100 | B17: 6 | C17: 22 | D17: 10 | E17: 12 | F17: 0 | G17: 0 | H17: 0 | I17: 0 | J17: 0 | K17: 0 | L17: 0 | M17: 0 | N17: 0 | O17: 0 | P17: 0 | Q17: 2514 | R17: 2017 | S17: 115 | T17: 265 | U17: 246 | AL17: 116 | AM17: 9 | AN17: 107
A18: 882125 | B18: 41 | C18: 100 | D18: 47 | E18: 53 | F18: 0 | G18: 0 | H18: 0 | I18: 0 | J18: 0 | K18: 0 | L18: 0 | M18: 0 | N18: 0 | O18: 0 | P18: 0 | Q18: 1841 | R18: 1493 | S18: 124 | T18: 266 | U18: 245 | AL18: 132 | AM18: 37 | AN18: 88
A19: 882150 | B19: 175 | C19: 320 | D19: 218 | E19: 102 | F19: 0 | G19: 0 | H19: 0 | I19: 0 | J19: 0 | K19: 0 | L19: 0 | M19: 0 | N19: 0 | O19: 0 | P19: 0 | Q19: 1384 | R19: 1192 | S19: 127 | T19: 263 | U19: 244 | AL19: 136 | AM19: 70 | AN19: 58
A20: 882175 | B20: 517 | C20: 500 | D20: 379 | E20: 121 | F20: 0 | G20: 0 | H20: 0 | I20: 0 | J20: 0 | K20: 0 | L20: 0 | M20: 0 | N20: 0 | O20: 0 | P20: 0 | Q20: 1190 | R20: 1021 | S20: 129 | T20: 263 | U20: 241 | AL20: 139 | AM20: 82 | AN20: 47
A21: 882200 | B21: 562 | C21: 447 | D21: 333 | E21: 114 | F21: 0 | G21: 0 | H21: 0 | I21: 0 | J21: 0 | K21: 0 | L21: 0 | M21: 0 | N21: 0 | O21: 0 | P21: 0 | Q21: 1015 | R21: 860 | S21: 120 | T21: 258 | U21: 225 | AL21: 139 | AM21: 78 | AN21: 42
A22: 882225 | B22: 404 | C22: 343 | D22: 248 | E22: 94 | F22: 0 | G22: 0 | H22: 0 | I22: 0 | J22: 0 | K22: 0 | L22: 0 | M22: 0 | N22: 0 | O22: 0 | P22: 0 | Q22: 843 | R22: 702 | S22: 101 | T22: 228 | U22: 196 | AL22: 119 | AM22: 64 | AN22: 37
A23: 882250 | B23: 336 | C23: 315 | D23: 234 | E23: 81 | F23: 0 | G23: 0 | H23: 0 | I23: 0 | J23: 0 | K23: 0 | L23: 0 | M23: 0 | N23: 0 | O23: 0 | P23: 0 | Q23: 672 | R23: 561 | S23: 87 | T23: 196 | U23: 175 | AL23: 98 | AM23: 55 | AN23: 32
A24: 882275 | B24: 344 | C24: 312 | D24: 235 | E24: 77 | F24: 0 | G24: 0 | H24: 0 | I24: 0 | J24: 0 | K24: 0 | L24: 0 | M24: 0 | N24: 0 | O24: 0 | P24: 0 | Q24: 539 | R24: 468 | S24: 80 | T24: 182 | U24: 165 | AL24: 89 | AM24: 52 | AN24: 28
A25: 882300 | B25: 329 | C25: 288 | D25: 215 | E25: 73 | F25: 0 | G25: 0 | H25: 0 | I25: 0 | J25: 0 | K25: 0 | L25: 0 | M25: 0 | N25: 0 | O25: 0 | P25: 0 | Q25: 472 | R25: 415 | S25: 75 | T25: 174 | U25: 156 | AL25: 84 | AM25: 49 | AN25: 26
A26: 882325 | B26: 292 | C26: 240 | D26: 175 | E26: 66 | F26: 0 | G26: 0 | H26: 0 | I26: 0 | J26: 0 | K26: 0 | L26: 0 | M26: 0 | N26: 0 | O26: 0 | P26: 0 | Q26: 425 | R26: 386 | S26: 70 | T26: 163 | U26: 146 | AL26: 79 | AM26: 45 | AN26: 25
A27: 882350 | B27: 227 | C27: 184 | D27: 127 | E27: 57 | F27: 0 | G27: 0 | H27: 0 | I27: 0 | J27: 0 | K27: 0 | L27: 0 | M27: 0 | N27: 0 | O27: 0 | P27: 0 | Q27: 408 | R27: 366 | S27: 63 | T27: 151 | U27: 135 | AL27: 71 | AM27: 39 | AN27: 24
A28: 882375 | B28: 171 | C28: 136 | D28: 87 | E28: 49 | F28: 0 | G28: 0 | H28: 0 | I28: 0 | J28: 0 | K28: 0 | L28: 0 | M28: 0 | N28: 0 | O28: 0 | P28: 0 | Q28: 383 | R28: 346 | S28: 56 | T28: 140 | U28: 125 | AL28: 64 | AM28: 33 | AN28: 23
A29: 882400 | B29: 122 | C29: 92 | D29: 52 | E29: 40 | F29: 0 | G29: 0 | H29: 0 | I29: 0 | J29: 0 | K29: 0 | L29: 0 | M29: 0 | N29: 0 | O29: 0 | P29: 0 | Q29: 365 | R29: 329 | S29: 49 | T29: 130 | U29: 115 | AL29: 57 | AM29: 28 | AN29: 22
A30: 882425 | B30: 76 | C30: 58 | D30: 26 | E30: 33 | F30: 0 | G30: 0 | H30: 0 | I30: 0 | J30: 0 | K30: 0 | L30: 0 | M30: 0 | N30: 0 | O30: 0 | P30: 0 | Q30: 345 | R30: 297 | S30: 43 | T30: 119 | U30: 105 | AL30: 50 | AM30: 23 | AN30: 20
A31: 882450 | B31: 50 | C31: 44 | D31: 14 | E31: 29 | F31: 0 | G31: 0 | H31: 0 | I31: 0 | J31: 0 | K31: 0 | L31: 0 | M31: 0 | N31: 0 | O31: 0 | P31: 0 | Q31: 296 | R31: 233 | S31: 37 | T31: 109 | U31: 97 | AL31: 43 | AM31: 21 | AN31: 17
A32: 882475 | B32: 45 | C32: 42 | D32: 13 | E32: 29 | F32: 0 | G32: 0 | H32: 0 | I32: 0 | J32: 0 | K32: 0 | L32: 0 | M32: 0 | N32: 0 | O32: 0 | P32: 0 | Q32: 207 | R32: 150 | S32: 32 | T32: 101 | U32: 89 | AL32: 37 | AM32: 20 | AN32: 11
A33: 882500 | B33: 47 | C33: 37 | D33: 11 | E33: 26 | F33: 0 | G33: 0 | H33: 0 | I33: 0 | J33: 0 | K33: 0 | L33: 0 | M33: 0 | N33: 0 | O33: 0 | P33: 0 | Q33: 117 | R33: 74 | S33: 24 | T33: 91 | U33: 78 | AL33: 31 | AM33: 18 | AN33: 6
A34: 882525 | B34: 34 | C34: 32 | D34: 7 | E34: 24 | F34: 0 | G34: 0 | H34: 0 | I34: 0 | J34: 0 | K34: 0 | L34: 0 | M34: 0 | N34: 0 | O34: 0 | P34: 0 | Q34: 42 | R34: 20 | S34: 15 | T34: 77 | U34: 66 | AL34: 21 | AM34: 14 | AN34: 2
A35: 882550 | B35: 35 | C35: 63 | D35: 13 | E35: 50 | F35: 0 | G35: 0 | H35: 0 | I35: 0 | J35: 0 | K35: 0 | L35: 0 | M35: 0 | N35: 0 | O35: 0 | P35: 0 | Q35: 0 | R35: 0 | S35: 12 | T35: 66 | U35: 69 | AL35: 12 | AM35: 12 | AN35: 0
A36: 882575 | B36: 102 | C36: 137 | D36: 43 | E36: 95 | F36: 0 | G36: 0 | H36: 0 | I36: 0 | J36: 0 | K36: 0 | L36: 0 | M36: 0 | N36: 0 | O36: 0 | P36: 0 | Q36: 0 | R36: 0 | S36: 7 | T36: 83 | U36: 96 | AL36: 15 | AM36: 7 | AN36: 0
A37: 882600 | B37: 194 | C37: 43 | D37: 30 | E37: 13 | F37: 0 | G37: 0 | H37: 0 | I37: 0 | J37: 0 | K37: 0 | L37: 0 | M37: 0 | N37: 0 | O37: 0 | P37: 0 | Q37: 0 | R37: 0 | S37: 0 | T37: 124 | AL37: 0 | AM37: 0 | AN37: 0
A38: 882605.5 | B38: 226 | Q38: 0 | AL38: 0
A40: STG1_Trail
A41: 880150 | B41: 16 | C41: 16 | D41: 10 | E41: 6 | F41: 0 | G41: 0 | H41: 0 | I41: 5 | J41: 0 | K41: 0 | L41: 0 | M41: 0 | N41: 0 | O41: 0 | P41: 0 | Q41: 0 | R41: 0 | S41: 3 | T41: 9 | U41: 10 | V41: 6 | W41: 5 | AL41: 2 | AM41: 3 | AN41: 0
A42: 880175 | B42: 18 | C42: 19 | D42: 9 | E42: 10 | F42: 0 | G42: 0 | H42: 0 | I42: 5 | J42: 0 | K42: 0 | L42: 0 | M42: 0 | N42: 0 | O42: 0 | P42: 0 | Q42: 0 | R42: 0 | S42: 5 | T42: 13 | U42: 14 | V42: 6 | W42: 6 | AL42: 4 | AM42: 5 | AN42: 0
A43: 880200 | B43: 22 | C43: 26 | D43: 10 | E43: 17 | F43: 0 | G43: 0 | H43: 0 | I43: 4 | J43: 0 | K43: 0 | L43: 0 | M43: 0 | N43: 0 | O43: 0 | P43: 0 | Q43: 0 | R43: 0 | S43: 9 | T43: 17 | U43: 23 | V43: 6 | W43: 6 | AL43: 6 | AM43: 8 | AN43: 0
A44: 880225 | B44: 35 | C44: 32 | D44: 11 | E44: 21 | F44: 0 | G44: 0 | H44: 0 | I44: 2 | J44: 0 | K44: 0 | L44: 0 | M44: 0 | N44: 0 | O44: 0 | P44: 0 | Q44: 0 | R44: 1 | S44: 11 | T44: 33 | U44: 32 | V44: 7 | W44: 8 | AL44: 12 | AM44: 11 | AN44: 0
A45: 880250 | B45: 33 | C45: 32 | D45: 9 | E45: 23 | F45: 0 | G45: 0 | H45: 0 | I45: 0 | J45: 0 | K45: 0 | L45: 0 | M45: 0 | N45: 0 | O45: 0 | P45: 0 | Q45: 1 | R45: 1 | S45: 11 | T45: 35 | U45: 33 | AL45: 12 | AM45: 11 | AN45: 0
A46: 880275 | B46: 35 | C46: 37 | D46: 10 | E46: 27 | F46: 0 | G46: 0 | H46: 0 | I46: 0 | J46: 0 | K46: 0 | L46: 0 | M46: 0 | N46: 0 | O46: 0 | P46: 0 | Q46: 1 | R46: 1 | S46: 12 | T46: 36 | U46: 34 | AL46: 12 | AM46: 12 | AN46: 0
A47: 880300 | B47: 44 | C47: 39 | D47: 25 | E47: 14 | F47: 0 | G47: 0 | H47: 0 | I47: 0 | J47: 0 | K47: 0 | L47: 0 | M47: 0 | N47: 0 | O47: 0 | P47: 0 | Q47: 1 | R47: 1 | S47: 13 | T47: 37 | U47: 48 | AL47: 13 | AM47: 13 | AN47: 0
A48: 880325 | B48: 40 | C48: 32 | D48: 32 | E48: 0 | F48: 0 | G48: 0 | H48: 0 | I48: 0 | J48: 0 | K48: 0 | L48: 0 | M48: 0 | N48: 0 | O48: 0 | P48: 0 | Q48: 1 | R48: 2 | S48: 13 | AL48: 14 | AM48: 12 | AN48: 1
A49: 880350 | B49: 30 | C49: 24 | D49: 24 | E49: 0 | F49: 0 | G49: 0 | H49: 0 | I49: 0 | J49: 0 | K49: 0 | L49: 0 | M49: 0 | N49: 0 | O49: 0 | P49: 0 | Q49: 4 | R49: 6 | S49: 13 | AL49: 14 | AM49: 11 | AN49: 2
A50: 880375 | B50: 22 | C50: 11 | D50: 11 | E50: 0 | F50: 0 | G50: 0 | H50: 0 | I50: 0 | J50: 0 | K50: 0 | L50: 0 | M50: 0 | N50: 0 | O50: 0 | P50: 0 | Q50: 9 | R50: 23 | S50: 11 | AL50: 14 | AM50: 6 | AN50: 5
A51: 880400 | B51: 1 | C51: 3 | D51: 3 | E51: 0 | F51: 0 | G51: 0 | H51: 0 | I51: 0 | J51: 0 | K51: 0 | L51: 0 | M51: 0 | N51: 0 | O51: 0 | P51: 0 | Q51: 41 | R51: 8 | S51: 2 | AL51: 10 | AM51: 0 | AN51: 2
A52: 880410 | B52: 15 | C52: 71 | D52: 71 | E52: 0 | F52: 0 | G52: 0 | H52: 0 | I52: 0 | J52: 0 | K52: 0 | L52: 0 | M52: 0 | N52: 0 | O52: 0 | P52: 0 | Q52: 0 | R52: 398 | S52: 90 | AL52: 0 | AM52: 1 | AN52: 6
A53: 880625 | B53: 3 | C53: 147 | D53: 116 | E53: 30 | F53: 0 | G53: 0 | H53: 0 | I53: 0 | J53: 0 | K53: 0 | L53: 0 | M53: 0 | N53: 0 | O53: 0 | P53: 0 | Q53: 100 | R53: 46 | S53: 31 | AL53: 23 | AM53: 22 | AN53: 9
A54: 880650 | B54: 314 | C54: 279 | D54: 209 | E54: 69 | F54: 0 | G54: 0 | H54: 0 | I54: 0 | J54: 0 | K54: 0 | L54: 0 | M54: 0 | N54: 0 | O54: 0 | P54: 0 | Q54: 0 | R54: 0 | S54: 41 | T54: 65 | U54: 69 | AL54: 45 | AM54: 41 | AN54: 0
A55: 880675 | B55: 288 | C55: 232 | D55: 158 | E55: 74 | F55: 0 | G55: 0 | H55: 0 | I55: 0 | J55: 0 | K55: 0 | L55: 0 | M55: 0 | N55: 0 | O55: 0 | P55: 0 | Q55: 0 | R55: 0 | S55: 36 | T55: 85 | U55: 74 | AL55: 42 | AM55: 36 | AN55: 0
A56: 880700 | B56: 213 | C56: 161 | D56: 97 | E56: 63 | F56: 0 | G56: 0 | H56: 0 | I56: 0 | J56: 0 | K56: 0 | L56: 0 | M56: 0 | N56: 0 | O56: 0 | P56: 0 | Q56: 0 | R56: 0 | S56: 30 | T56: 75 | U56: 65 | AL56: 36 | AM56: 30 | AN56: 0
A57: 880725 | B57: 134 | C57: 103 | D57: 51 | E57: 52 | F57: 0 | G57: 0 | H57: 0 | I57: 0 | J57: 0 | K57: 0 | L57: 0 | M57: 0 | N57: 0 | O57: 0 | P57: 0 | Q57: 0 | R57: 0 | S57: 25 | T57: 65 | U57: 57 | AL57: 29 | AM57: 25 | AN57: 0
A58: 880750 | B58: 88 | C58: 65 | D58: 29 | E58: 36 | F58: 0 | G58: 0 | H58: 0 | I58: 0 | J58: 0 | K58: 0 | L58: 0 | M58: 0 | N58: 0 | O58: 0 | P58: 0 | Q58: 1 | R58: 4 | S58: 22 | T58: 58 | U58: 52 | AL58: 24 | AM58: 19 | AN58: 3
A59: 880775 | B59: 52 | C59: 45 | D59: 21 | E59: 24 | F59: 0 | G59: 0 | H59: 0 | I59: 0 | J59: 0 | K59: 0 | L59: 0 | M59: 0 | N59: 0 | O59: 0 | P59: 0 | Q59: 8 | R59: 12 | S59: 23 | T59: 55 | U59: 55 | AL59: 22 | AM59: 16 | AN59: 7
A60: 880800 | B60: 45 | C60: 37 | D60: 16 | E60: 20 | F60: 0 | G60: 0 | H60: 0 | I60: 0 | J60: 0 | K60: 0 | L60: 0 | M60: 0 | N60: 0 | O60: 0 | P60: 0 | Q60: 19 | R60: 12 | S60: 19 | T60: 63 | U60: 46 | AL60: 28 | AM60: 14 | AN60: 5
A61: 880825 | B61: 34 | C61: 32 | D61: 14 | E61: 18 | F61: 0 | G61: 0 | H61: 0 | I61: 0 | J61: 0 | K61: 0 | L61: 0 | M61: 0 | N61: 0 | O61: 0 | P61: 0 | Q61: 6 | R61: 13 | S61: 15 | T61: 37 | U61: 41 | AL61: 14 | AM61: 13 | AN61: 3
A62: 880850 | B62: 36 | C62: 36 | D62: 17 | E62: 19 | F62: 0 | G62: 0 | H62: 0 | I62: 0 | J62: 0 | K62: 0 | L62: 0 | M62: 0 | N62: 0 | O62: 0 | P62: 0 | Q62: 21 | R62: 24 | S62: 20 | T62: 51 | U62: 50 | AL62: 19 | AM62: 13 | AN62: 7
A63: 880875 | B63: 42 | C63: 40 | D63: 20 | E63: 20 | F63: 0 | G63: 0 | H63: 0 | I63: 0 | J63: 0 | K63: 0 | L63: 0 | M63: 0 | N63: 0 | O63: 0 | P63: 0 | Q63: 30 | R63: 29 | S63: 24 | T63: 57 | U63: 55 | AL63: 24 | AM63: 14 | AN63: 10
A64: 880900 | B64: 44 | C64: 44 | D64: 22 | E64: 22 | F64: 0 | G64: 0 | H64: 0 | I64: 0 | J64: 0 | K64: 0 | L64: 0 | M64: 0 | N64: 0 | O64: 0 | P64: 0 | Q64: 32 | R64: 21 | S64: 25 | T64: 62 | U64: 55 | AL64: 28 | AM64: 16 | AN64: 9
A65: 880925 | B65: 51 | C65: 49 | D65: 31 | E65: 17 | F65: 0 | G65: 0 | H65: 0 | I65: 0 | J65: 0 | K65: 0 | L65: 0 | M65: 0 | N65: 0 | O65: 0 | P65: 0 | Q65: 12 | R65: 11 | S65: 23 | T65: 56 | U65: 45 | AL65: 25 | AM65: 17 | AN65: 5
A66: 880950 | B66: 54 | C66: 57 | D66: 32 | E66: 25 | F66: 0 | G66: 0 | H66: 0 | I66: 0 | J66: 0 | K66: 0 | L66: 0 | M66: 0 | N66: 0 | O66: 0 | P66: 0 | Q66: 11 | R66: 6 | S66: 22 | T66: 42 | U66: 46 | AL66: 24 | AM66: 20 | AN66: 3
A67: 880975 | B67: 69 | C67: 65 | D67: 43 | E67: 22 | F67: 0 | G67: 0 | H67: 0 | I67: 0 | J67: 0 | K67: 0 | L67: 0 | M67: 0 | N67: 0 | O67: 0 | P67: 0 | Q67: 3 | R67: 2 | S67: 23 | T67: 58 | U67: 29 | AL67: 25 | AM67: 23 | AN67: 0
A68: 881000 | B68: 71 | C68: 56 | D68: 42 | E68: 13 | F68: 0 | G68: 0 | H68: 0 | I68: 0 | J68: 0 | K68: 0 | L68: 0 | M68: 0 | N68: 0 | O68: 0 | P68: 0 | Q68: 2 | R68: 4 | S68: 21 | T68: 6 | U68: 24 | AL68: 26 | AM68: 20 | AN68: 1
A69: 881025 | B69: 49 | C69: 41 | D69: 23 | E69: 18 | F69: 0 | G69: 0 | H69: 0 | I69: 0 | J69: 0 | K69: 0 | L69: 0 | M69: 0 | N69: 0 | O69: 0 | P69: 0 | Q69: 7 | R69: 7 | S69: 19 | T69: 47 | U69: 42 | AL69: 21 | AM69: 15 | AN69: 3
A70: 881050 | B70: 39 | C70: 34 | D70: 23 | E70: 11 | F70: 0 | G70: 0 | H70: 0 | I70: 0 | J70: 0 | K70: 0 | L70: 0 | M70: 0 | N70: 0 | O70: 0 | P70: 0 | Q70: 8 | R70: 9 | S70: 20 | T70: 44 | U70: 40 | AL70: 20 | AM70: 14 | AN70: 5
A71: 881075 | B71: 35 | C71: 26 | D71: 16 | E71: 10 | F71: 0 | G71: 0 | H71: 0 | I71: 0 | J71: 0 | K71: 0 | L71: 0 | M71: 0 | N71: 0 | O71: 0 | P71: 0 | Q71: 11 | R71: 17 | S71: 21 | T71: 42 | U71: 40 | AL71: 23 | AM71: 12 | AN71: 9
A72: 881100 | B72: 21 | C72: 18 | D72: 7 | E72: 11 | F72: 0 | G72: 0 | H72: 0 | I72: 0 | J72: 0 | K72: 0 | L72: 0 | M72: 0 | N72: 0 | O72: 0 | P72: 0 | Q72: 26 | R72: 27 | S72: 19 | T72: 44 | U72: 35 | AL72: 23 | AM72: 9 | AN72: 10
A73: 881125 | B73: 18 | C73: 20 | D73: 7 | E73: 13 | F73: 0 | G73: 0 | H73: 0 | I73: 0 | J73: 0 | K73: 0 | L73: 0 | M73: 0 | N73: 0 | O73: 0 | P73: 0 | Q73: 32 | R73: 17 | S73: 15 | T73: 32 | U73: 33 | AL73: 19 | AM73: 9 | AN73: 6
A74: 881150 | B74: 25 | C74: 21 | D74: 5 | E74: 15 | F74: 0 | G74: 0 | H74: 0 | I74: 0 | J74: 0 | K74: 0 | L74: 0 | M74: 0 | N74: 0 | O74: 0 | P74: 0 | Q74: 5 | R74: 4 | S74: 13 | T74: 38 | U74: 35 | AL74: 14 | AM74: 9 | AN74: 3
A75: 881175 | B75: 20 | C75: 15 | D75: 2 | E75: 13 | F75: 0 | G75: 0 | H75: 0 | I75: 0 | J75: 0 | K75: 0 | L75: 0 | M75: 0 | N75: 0 | O75: 0 | P75: 0 | Q75: 5 | R75: 8 | S75: 13 | T75: 38 | U75: 36 | AL75: 13 | AM75: 7 | AN75: 6
A76: 881200 | B76: 13 | C76: 8 | D76: 1 | E76: 8 | F76: 0 | G76: 0 | H76: 0 | I76: 0 | J76: 0 | K76: 0 | L76: 0 | M76: 0 | N76: 0 | O76: 0 | P76: 0 | Q76: 12 | R76: 16 | S76: 13 | T76: 39 | U76: 35 | AL76: 15 | AM76: 5 | AN76: 8
A77: 881225 | B77: 5 | C77: 3 | D77: 0 | E77: 3 | F77: 0 | G77: 0 | H77: 0 | I77: 0 | J77: 0 | K77: 0 | L77: 0 | M77: 0 | N77: 0 | O77: 0 | P77: 0 | Q77: 23 | R77: 25 | S77: 10 | T77: 36 | U77: 32 | AL77: 12 | AM77: 2 | AN77: 8
A78: 881250 | B78: 1 | C78: 0 | D78: 0 | E78: 0 | F78: 0 | G78: 0 | H78: 0 | I78: 0 | J78: 0 | K78: 0 | L78: 0 | M78: 0 | N78: 0 | O78: 0 | P78: 0 | Q78: 32 | R78: 27 | S78: 9 | T78: 32 | U78: 29 | AL78: 10 | AM78: 0 | AN78: 8
A79: 881275 | B79: 1 | C79: 2 | D79: 0 | E79: 2 | F79: 0 | G79: 0 | H79: 0 | I79: 0 | J79: 0 | K79: 0 | L79: 0 | M79: 0 | N79: 0 | O79: 0 | P79: 0 | Q79: 25 | R79: 23 | S79: 9 | T79: 30 | U79: 29 | AL79: 9 | AM79: 2 | AN79: 7
A80: 881300 | B80: 4 | C80: 4 | D80: 0 | E80: 4 | F80: 0 | G80: 0 | H80: 0 | I80: 0 | J80: 0 | K80: 0 | L80: 0 | M80: 0 | N80: 0 | O80: 0 | P80: 0 | Q80: 24 | R80: 26 | S80: 9 | T80: 32 | U80: 29 | AL80: 10 | AM80: 3 | AN80: 6
A81: 881325 | B81: 5 | C81: 4 | D81: 0 | E81: 3 | F81: 0 | G81: 0 | H81: 0 | I81: 0 | J81: 0 | K81: 0 | L81: 0 | M81: 0 | N81: 0 | O81: 0 | P81: 0 | Q81: 33 | R81: 34 | S81: 8 | T81: 30 | U81: 26 | V81: 1 | W81: 2 | AL81: 10 | AM81: 3 | AN81: 6
A82: 881350 | B82: 3 | C82: 2 | D82: 0 | E82: 2 | F82: 0 | G82: 0 | H82: 0 | I82: 0 | J82: 0 | K82: 0 | L82: 0 | M82: 0 | N82: 0 | O82: 0 | P82: 0 | Q82: 40 | R82: 42 | S82: 7 | T82: 26 | U82: 21 | V82: 2 | W82: 3 | AL82: 8 | AM82: 1 | AN82: 5
A83: 881375 | B83: 0 | C83: 3 | D83: 1 | E83: 3 | F83: 0 | G83: 0 | H83: 0 | I83: 0 | J83: 0 | K83: 0 | L83: 0 | M83: 0 | N83: 0 | O83: 0 | P83: 0 | Q83: 50 | R83: 48 | S83: 7 | T83: 20 | U83: 20 | V83: 3 | W83: 4 | AL83: 6 | AM83: 2 | AN83: 5
A84: 881400 | B84: 7 | Q84: 54 | T84: 24 | V84: 4 | AL84: 9
A86: PARKING
A87: 311 | B87: 13 | C87: 1 | D87: 1 | E87: 0 | F87: 0 | G87: 0 | H87: 0 | I87: 0 | J87: 0 | K87: 0 | L87: 0 | M87: 0 | N87: 0 | O87: 0 | P87: 0 | Q87: 0 | R87: 0 | S87: 0 | AL87: 0 | AM87: 0 | AN87: 0
A88: 313 | B88: 16 | C88: 1 | D88: 1 | E88: 1 | F88: 0 | G88: 0 | H88: 0 | I88: 0 | J88: 0 | K88: 0 | L88: 0 | M88: 0 | N88: 0 | O88: 0 | P88: 0 | Q88: 0 | R88: 0 | S88: 0 | T88: 34 | U88: 2 | AL88: 0 | AM88: 0 | AN88: 0
A89: 315 | B89: 17 | C89: 3 | D89: 1 | E89: 2 | F89: 0 | G89: 0 | H89: 0 | I89: 0 | J89: 0 | K89: 0 | L89: 0 | M89: 0 | N89: 0 | O89: 0 | P89: 0 | Q89: 0 | R89: 0 | S89: 1 | T89: 25 | U89: 5 | AL89: 0 | AM89: 0 | AN89: 0
A90: 320 | B90: 15 | C90: 3 | D90: 1 | E90: 2 | F90: 0 | G90: 0 | H90: 0 | I90: 0 | J90: 0 | K90: 0 | L90: 0 | M90: 0 | N90: 0 | O90: 0 | P90: 0 | Q90: 1 | R90: 0 | S90: 3 | T90: 27 | U90: 7 | AL90: 6 | AM90: 2 | AN90: 1
A91: 325 | B91: 20 | C91: 3 | D91: 0 | E91: 3 | F91: 0 | G91: 0 | H91: 0 | I91: 0 | J91: 0 | K91: 0 | L91: 0 | M91: 0 | N91: 0 | O91: 0 | P91: 0 | Q91: 2 | R91: 0 | S91: 5 | T91: 48 | U91: 10 | AL91: 23 | AM91: 2 | AN91: 2
A92: 330 | B92: 13 | C92: 2 | D92: 0 | E92: 2 | F92: 0 | G92: 0 | H92: 0 | I92: 0 | J92: 0 | K92: 0 | L92: 0 | M92: 0 | N92: 0 | O92: 0 | P92: 0 | Q92: 2 | R92: 1 | S92: 5 | T92: 58 | U92: 11 | AL92: 29 | AM92: 2 | AN92: 3
A93: 335 | B93: 13 | C93: 3 | D93: 1 | E93: 3 | F93: 0 | G93: 0 | H93: 0 | I93: 0 | J93: 0 | K93: 0 | L93: 0 | M93: 0 | N93: 0 | O93: 0 | P93: 0 | Q93: 9 | R93: 3 | S93: 4 | T93: 64 | U93: 12 | AL93: 30 | AM93: 2 | AN93: 2
A94: 340 | B94: 24 | C94: 6 | D94: 2 | E94: 4 | F94: 0 | G94: 0 | H94: 0 | I94: 0 | J94: 0 | K94: 0 | L94: 0 | M94: 0 | N94: 0 | O94: 0 | P94: 0 | Q94: 25 | R94: 5 | S94: 3 | T94: 71 | U94: 14 | AL94: 11 | AM94: 2 | AN94: 1
A95: 345 | B95: 45 | C95: 11 | D95: 5 | E95: 5 | F95: 0 | G95: 0 | H95: 0 | I95: 0 | J95: 0 | K95: 0 | L95: 0 | M95: 0 | N95: 0 | O95: 0 | P95: 0 | Q95: 28 | R95: 5 | S95: 3 | T95: 78 | U95: 15 | AL95: 16 | AM95: 3 | AN95: 1
A96: 350 | B96: 68 | C96: 14 | D96: 8 | E96: 6 | F96: 0 | G96: 0 | H96: 0 | I96: 0 | J96: 0 | K96: 0 | L96: 0 | M96: 0 | N96: 0 | O96: 0 | P96: 0 | Q96: 30 | R96: 6 | S96: 4 | T96: 84 | U96: 16 | AL96: 19 | AM96: 3 | AN96: 1
A97: 355 | B97: 84 | C97: 17 | D97: 10 | E97: 7 | F97: 0 | G97: 0 | H97: 0 | I97: 0 | J97: 0 | K97: 0 | L97: 0 | M97: 0 | N97: 0 | O97: 0 | P97: 0 | Q97: 30 | R97: 6 | S97: 4 | T97: 86 | U97: 16 | AL97: 21 | AM97: 3 | AN97: 1
A98: 360 | B98: 98 | C98: 19 | D98: 12 | E98: 8 | F98: 0 | G98: 0 | H98: 0 | I98: 0 | J98: 0 | K98: 0 | L98: 0 | M98: 0 | N98: 0 | O98: 0 | P98: 0 | Q98: 34 | R98: 7 | S98: 4 | T98: 89 | U98: 17 | AL98: 22 | AM98: 3 | AN98: 1
A99: 365 | B99: 109 | C99: 23 | D99: 15 | E99: 8 | F99: 0 | G99: 0 | H99: 0 | I99: 0 | J99: 0 | K99: 0 | L99: 0 | M99: 0 | N99: 0 | O99: 0 | P99: 0 | Q99: 41 | R99: 6 | S99: 6 | T99: 91 | U99: 17 | AL99: 24 | AM99: 5 | AN99: 2
A100: 370 | B100: 137 | C100: 20 | D100: 13 | E100: 7 | F100: 0 | G100: 0 | H100: 0 | I100: 0 | J100: 0 | K100: 0 | L100: 0 | M100: 0 | N100: 0 | O100: 0 | P100: 0 | Q100: 23 | R100: 3 | S100: 6 | T100: 89 | U100: 13 | AL100: 46 | AM100: 5 | AN100: 2
A101: 374 | B101: 131 | C101: 5 | D101: 3 | E101: 2 | F101: 0 | G101: 0 | H101: 0 | I101: 0 | J101: 0 | K101: 0 | L101: 0 | M101: 0 | N101: 0 | O101: 0 | P101: 0 | Q101: 23 | R101: 1 | S101: 1 | T101: 82 | U101: 3 | AL101: 41 | AM101: 1 | AN101: 0
A102: 375 | B102: 119 | C102: 19 | D102: 11 | E102: 8 | F102: 0 | G102: 0 | H102: 0 | I102: 0 | J102: 0 | K102: 0 | L102: 0 | M102: 0 | N102: 0 | O102: 0 | P102: 0 | Q102: 21 | R102: 2 | S102: 6 | T102: 72 | U102: 13 | AL102: 35 | AM102: 5 | AN102: 1
A103: 380 | B103: 83 | C103: 12 | D103: 6 | E103: 6 | F103: 0 | G103: 0 | H103: 0 | I103: 0 | J103: 0 | K103: 0 | L103: 0 | M103: 0 | N103: 0 | O103: 0 | P103: 0 | Q103: 0 | R103: 0 | S103: 5 | T103: 65 | U103: 9 | AL103: 28 | AM103: 5 | AN103: 0
A104: 385 | B104: 44 | C104: 4 | D104: 2 | E104: 2 | F104: 0 | G104: 0 | H104: 0 | I104: 0 | J104: 0 | K104: 0 | L104: 0 | M104: 0 | N104: 0 | O104: 0 | P104: 0 | Q104: 0 | R104: 0 | S104: 2 | T104: 31 | AL104: 23 | AM104: 2 | AN104: 0
A105: 390 | B105: 3 | Q105: 0 | AL105: 3
A107: SIDEWALK
A108: 830 | B108: 0 | C108: 0 | D108: 0 | E108: 0 | F108: 0 | G108: 0 | H108: 0 | I108: 0 | J108: 0 | K108: 0 | L108: 0 | M108: 0 | N108: 0 | O108: 0 | P108: 0 | Q108: 7 | R108: 7 | S108: 0 | T108: 22 | U108: 9 | AL108: 0 | AM108: 0 | AN108: 0
A109: 840 | B109: 0 | C109: 0 | D109: 0 | E109: 0 | F109: 0 | G109: 0 | H109: 0 | I109: 0 | J109: 0 | K109: 0 | L109: 0 | M109: 0 | N109: 0 | O109: 0 | P109: 0 | Q109: 30 | R109: 16 | S109: 3 | T109: 29 | U109: 15 | AL109: 0 | AM109: 0 | AN109: 3
A110: 850 | B110: 2 | C110: 1 | D110: 0 | E110: 1 | F110: 0 | G110: 0 | H110: 0 | I110: 0 | J110: 0 | K110: 0 | L110: 0 | M110: 0 | N110: 0 | O110: 0 | P110: 0 | Q110: 54 | R110: 18 | S110: 6 | T110: 51 | U110: 18 | AL110: 16 | AM110: 1 | AN110: 5
A111: 860 | B111: 2 | C111: 1 | D111: 0 | E111: 1 | F111: 0 | G111: 0 | H111: 0 | I111: 0 | J111: 0 | K111: 0 | L111: 0 | M111: 0 | N111: 0 | O111: 0 | P111: 0 | Q111: 44 | R111: 15 | S111: 6 | T111: 49 | U111: 17 | AL111: 16 | AM111: 1 | AN111: 5
A112: 870 | B112: 2 | C112: 1 | D112: 0 | E112: 1 | F112: 0 | G112: 0 | H112: 0 | I112: 0 | J112: 0 | K112: 0 | L112: 0 | M112: 0 | N112: 0 | O112: 0 | P112: 0 | Q112: 34 | R112: 11 | S112: 5 | T112: 46 | U112: 17 | AL112: 14 | AM112: 1 | AN112: 4
A113: 880 | B113: 2 | C113: 1 | D113: 0 | E113: 1 | F113: 0 | G113: 0 | H113: 0 | I113: 0 | J113: 0 | K113: 0 | L113: 0 | M113: 0 | N113: 0 | O113: 0 | P113: 0 | Q113: 26 | R113: 9 | S113: 5 | T113: 43 | U113: 16 | AL113: 13 | AM113: 1 | AN113: 4
A114: 890 | B114: 4 | C114: 1 | D114: 0 | E114: 1 | F114: 0 | G114: 0 | H114: 0 | I114: 0 | J114: 0 | K114: 0 | L114: 0 | M114: 0 | N114: 0 | O114: 0 | P114: 0 | Q114: 21 | R114: 7 | S114: 4 | T114: 42 | U114: 15 | AL114: 12 | AM114: 1 | AN114: 3
A115: 900 | B115: 4 | C115: 2 | D115: 0 | E115: 2 | F115: 0 | G115: 0 | H115: 0 | I115: 0 | J115: 0 | K115: 0 | L115: 0 | M115: 0 | N115: 0 | O115: 0 | P115: 0 | Q115: 17 | R115: 6 | S115: 4 | T115: 40 | U115: 14 | AL115: 11 | AM115: 1 | AN115: 3
A116: 910 | B116: 5 | C116: 2 | D116: 0 | E116: 2 | F116: 0 | G116: 0 | H116: 0 | I116: 0 | J116: 0 | K116: 0 | L116: 0 | M116: 0 | N116: 0 | O116: 0 | P116: 0 | Q116: 14 | R116: 4 | S116: 3 | T116: 38 | U116: 13 | AL116: 9 | AM116: 1 | AN116: 2
A117: 920 | B117: 6 | C117: 2 | D117: 0 | E117: 2 | F117: 0 | G117: 0 | H117: 0 | I117: 0 | J117: 0 | K117: 0 | L117: 0 | M117: 0 | N117: 0 | O117: 0 | P117: 0 | Q117: 10 | R117: 3 | S117: 2 | T117: 35 | U117: 10 | AL117: 8 | AM117: 0 | AN117: 1
A118: 930 | B118: 6 | C118: 6 | D118: 4 | E118: 3 | F118: 0 | G118: 0 | H118: 0 | I118: 0 | J118: 0 | K118: 0 | L118: 0 | M118: 0 | N118: 0 | O118: 0 | P118: 0 | Q118: 7 | R118: 3 | S118: 4 | T118: 18 | U118: 8 | AL118: 0 | AM118: 1 | AN118: 3
A119: 940 | B119: 28 | C119: 10 | D119: 8 | E119: 1 | F119: 0 | G119: 0 | H119: 0 | I119: 0 | J119: 0 | K119: 0 | L119: 0 | M119: 0 | N119: 0 | O119: 0 | P119: 0 | Q119: 8 | R119: 1 | S119: 3 | T119: 26 | AL119: 21 | AM119: 1 | AN119: 3
A120: 948.8 | B120: 31 | Q120: 1 | AL120: 0
A122: STG1_US_63
A123: 84155 | B123: 256 | C123: 194 | D123: 138 | E123: 56 | F123: 0 | G123: 0 | H123: 0 | I123: 45 | J123: 0 | K123: 0 | L123: 0 | M123: 0 | N123: 0 | O123: 0 | P123: 0 | Q123: 0 | R123: 0 | S123: 30 | T123: 93 | U123: 67 | V123: 61 | W123: 45 | AL123: 40 | AM123: 30 | AN123: 1 | AO123: 144 | AP123: 106 | AQ123: 0
A124: 84175 | B124: 269 | C124: 254 | D124: 181 | E124: 72 | F124: 0 | G124: 0 | H124: 0 | I124: 56 | J124: 0 | K124: 0 | L124: 0 | M124: 0 | N124: 0 | O124: 0 | P124: 0 | Q124: 0 | R124: 0 | S124: 40 | T124: 89 | U124: 81 | V124: 61 | W124: 56 | AL124: 42 | AM124: 40 | AN124: 0 | AO124: 143 | AP124: 132 | AQ124: 0
A125: 84200 | B125: 279 | C125: 253 | D125: 180 | E125: 73 | F125: 0 | G125: 0 | H125: 0 | I125: 56 | J125: 0 | K125: 0 | L125: 0 | M125: 0 | N125: 0 | O125: 0 | P125: 0 | Q125: 0 | R125: 0 | S125: 42 | T125: 86 | U125: 80 | V125: 61 | W125: 56 | AL125: 45 | AM125: 42 | AN125: 0 | AO125: 142 | AP125: 131 | AQ125: 0
A126: 84225 | B126: 267 | C126: 243 | D126: 170 | E126: 72 | F126: 0 | G126: 0 | H126: 0 | I126: 55 | J126: 0 | K126: 0 | L126: 0 | M126: 0 | N126: 0 | O126: 0 | P126: 0 | Q126: 0 | R126: 0 | S126: 44 | T126: 87 | U126: 81 | V126: 60 | W126: 55 | AL126: 47 | AM126: 43 | AN126: 1 | AO126: 141 | AP126: 130 | AQ126: 0
A127: 84250 | B127: 257 | C127: 235 | D127: 166 | E127: 69 | F127: 0 | G127: 0 | H127: 0 | I127: 52 | J127: 0 | K127: 0 | L127: 0 | M127: 0 | N127: 0 | O127: 0 | P127: 0 | Q127: 0 | R127: 0 | S127: 44 | T127: 89 | U127: 83 | V127: 58 | W127: 52 | AL127: 47 | AM127: 42 | AN127: 2 | AO127: 140 | AP127: 129 | AQ127: 0
A128: 84275 | B128: 250 | C128: 228 | D128: 164 | E128: 64 | F128: 0 | G128: 0 | H128: 0 | I128: 49 | J128: 0 | K128: 0 | L128: 0 | M128: 0 | N128: 0 | O128: 0 | P128: 0 | Q128: 0 | R128: 0 | S128: 44 | T128: 90 | U128: 85 | V128: 55 | W128: 49 | AL128: 47 | AM128: 38 | AN128: 6 | AO128: 139 | AP128: 128 | AQ128: 0
A129: 84300 | B129: 242 | C129: 221 | D129: 162 | E129: 59 | F129: 0 | G129: 0 | H129: 0 | I129: 45 | J129: 0 | K129: 0 | L129: 0 | M129: 0 | N129: 0 | O129: 0 | P129: 0 | Q129: 0 | R129: 1 | S129: 44 | T129: 93 | U129: 87 | V129: 50 | W129: 45 | AL129: 48 | AM129: 33 | AN129: 11 | AO129: 138 | AP129: 127 | AQ129: 0
A130: 84325 | B130: 235 | C130: 215 | D130: 160 | E130: 55 | F130: 0 | G130: 0 | H130: 0 | I130: 42 | J130: 0 | K130: 0 | L130: 0 | M130: 0 | N130: 0 | O130: 0 | P130: 0 | Q130: 3 | R130: 5 | S130: 45 | T130: 96 | U130: 90 | V130: 47 | W130: 42 | AL130: 48 | AM130: 29 | AN130: 16 | AO130: 137 | AP130: 126 | AQ130: 0
A131: 84350 | B131: 230 | C131: 212 | D131: 159 | E131: 52 | F131: 0 | G131: 0 | H131: 0 | I131: 41 | J131: 0 | K131: 0 | L131: 0 | M131: 0 | N131: 0 | O131: 0 | P131: 0 | Q131: 7 | R131: 10 | S131: 45 | T131: 98 | U131: 90 | V131: 45 | W131: 41 | AL131: 49 | AM131: 27 | AN131: 18 | AO131: 136 | AP131: 126 | AQ131: 0
A132: 84375 | B132: 226 | C132: 209 | D132: 153 | E132: 51 | F132: 0 | G132: 4 | H132: 0 | I132: 40 | J132: 0 | K132: 0 | L132: 0 | M132: 0 | N132: 0 | O132: 0 | P132: 0 | Q132: 13 | R132: 15 | S132: 45 | T132: 96 | U132: 91 | V132: 44 | W132: 41 | AL132: 49 | AM132: 26 | AN132: 19 | AO132: 136 | AP132: 126 | AQ132: 0
A133: 84400 | B133: 225 | C133: 207 | D133: 147 | E133: 52 | F133: 0 | G133: 8 | H133: 0 | I133: 40 | J133: 0 | K133: 0 | L133: 0 | M133: 0 | N133: 0 | O133: 0 | P133: 0 | Q133: 19 | R133: 18 | S133: 45 | T133: 100 | U133: 93 | V133: 43 | W133: 40 | AL133: 49 | AM133: 25 | AN133: 20 | AO133: 136 | AP133: 126 | AQ133: 0
A134: 84425 | B134: 223 | C134: 206 | D134: 147 | E134: 51 | F134: 0 | G134: 9 | H134: 0 | I134: 39 | J134: 0 | K134: 0 | L134: 0 | M134: 0 | N134: 0 | O134: 0 | P134: 0 | Q134: 21 | R134: 21 | S134: 45 | T134: 101 | U134: 94 | V134: 43 | W134: 39 | AL134: 48 | AM134: 25 | AN134: 20 | AO134: 136 | AP134: 126 | AQ134: 0
A135: 84450 | B135: 222 | C135: 206 | D135: 146 | E135: 51 | F135: 0 | G135: 9 | H135: 0 | I135: 38 | J135: 0 | K135: 0 | L135: 0 | M135: 0 | N135: 0 | O135: 0 | P135: 0 | Q135: 24 | R135: 23 | S135: 44 | T135: 102 | U135: 94 | V135: 42 | W135: 38 | AL135: 48 | AM135: 25 | AN135: 19 | AO135: 137 | AP135: 127 | AQ135: 0
A136: 84475 | B136: 223 | C136: 207 | D136: 145 | E136: 53 | F136: 0 | G136: 9 | H136: 0 | I136: 38 | J136: 0 | K136: 0 | L136: 0 | M136: 0 | N136: 0 | O136: 0 | P136: 0 | Q136: 25 | R136: 23 | S136: 44 | T136: 102 | U136: 94 | V136: 41 | W136: 38 | AL136: 48 | AM136: 25 | AN136: 19 | AO136: 137 | AP136: 127 | AQ136: 0
A137: 84500 | B137: 224 | C137: 207 | D137: 145 | E137: 53 | F137: 0 | G137: 9 | H137: 0 | I137: 37 | J137: 0 | K137: 0 | L137: 0 | M137: 0 | N137: 0 | O137: 0 | P137: 0 | Q137: 26 | R137: 24 | S137: 44 | T137: 102 | U137: 95 | V137: 40 | W137: 37 | AL137: 47 | AM137: 25 | AN137: 19 | AO137: 138 | AP137: 128 | AQ137: 0
A138: 84525 | B138: 223 | C138: 201 | D138: 145 | E138: 48 | F138: 0 | G138: 9 | H138: 0 | I138: 36 | J138: 0 | K138: 0 | L138: 0 | M138: 0 | N138: 0 | O138: 0 | P138: 0 | Q138: 26 | R138: 25 | S138: 43 | T138: 102 | U138: 95 | V138: 40 | W138: 36 | AL138: 47 | AM138: 22 | AN138: 21 | AO138: 139 | AP138: 129 | AQ138: 0
A139: 84550 | B139: 211 | C139: 193 | D139: 149 | E139: 40 | F139: 0 | G139: 4 | H139: 0 | I139: 35 | J139: 0 | K139: 0 | L139: 0 | M139: 0 | N139: 0 | O139: 0 | P139: 0 | Q139: 27 | R139: 27 | S139: 43 | T139: 102 | U139: 95 | V139: 39 | W139: 35 | AL139: 46 | AM139: 18 | AN139: 25 | AO139: 140 | AP139: 130 | AQ139: 0
A140: 84575 | B140: 206 | C140: 189 | D140: 153 | E140: 36 | F140: 0 | G140: 0 | H140: 0 | I140: 35 | J140: 0 | K140: 0 | L140: 0 | M140: 0 | N140: 0 | O140: 0 | P140: 0 | Q140: 30 | R140: 31 | S140: 42 | T140: 103 | U140: 96 | V140: 38 | W140: 35 | AL140: 46 | AM140: 15 | AN140: 28 | AO140: 141 | AP140: 131 | AQ140: 0
A141: 84600 | B141: 203 | C141: 187 | D141: 154 | E141: 34 | F141: 0 | G141: 0 | H141: 0 | I141: 34 | J141: 0 | K141: 0 | L141: 0 | M141: 0 | N141: 0 | O141: 0 | P141: 0 | Q141: 37 | R141: 37 | S141: 42 | T141: 104 | U141: 97 | V141: 37 | W141: 34 | AL141: 46 | AM141: 12 | AN141: 31 | AO141: 142 | AP141: 132 | AQ141: 0
A142: 84625 | B142: 201 | C142: 186 | D142: 154 | E142: 32 | F142: 0 | G142: 0 | H142: 0 | I142: 33 | J142: 0 | K142: 0 | L142: 0 | M142: 0 | N142: 0 | O142: 0 | P142: 0 | Q142: 42 | R142: 41 | S142: 42 | T142: 105 | U142: 97 | V142: 36 | W142: 33 | AL142: 45 | AM142: 9 | AN142: 33 | AO142: 143 | AP142: 133 | AQ142: 0
A143: 84650 | B143: 201 | C143: 186 | D143: 154 | E143: 32 | F143: 0 | G143: 0 | H143: 0 | I143: 32 | J143: 0 | K143: 0 | L143: 0 | M143: 0 | N143: 0 | O143: 0 | P143: 0 | Q143: 45 | R143: 44 | S143: 42 | T143: 105 | U143: 98 | V143: 35 | W143: 32 | AL143: 45 | AM143: 9 | AN143: 32 | AO143: 144 | AP143: 134 | AQ143: 0
A144: 84675 | B144: 201 | C144: 187 | D144: 154 | E144: 33 | F144: 0 | G144: 0 | H144: 0 | I144: 31 | J144: 0 | K144: 0 | L144: 0 | M144: 0 | N144: 0 | O144: 0 | P144: 0 | Q144: 51 | R144: 50 | S144: 41 | T144: 106 | U144: 98 | V144: 34 | W144: 31 | AL144: 45 | AM144: 9 | AN144: 32 | AO144: 145 | AP144: 135 | AQ144: 0
A145: 84700 | B145: 203 | C145: 189 | D145: 155 | E145: 34 | F145: 0 | G145: 0 | H145: 0 | I145: 31 | J145: 0 | K145: 0 | L145: 0 | M145: 0 | N145: 0 | O145: 0 | P145: 0 | Q145: 58 | R145: 54 | S145: 41 | T145: 106 | U145: 99 | V145: 33 | W145: 31 | AL145: 44 | AM145: 9 | AN145: 32 | AO145: 146 | AP145: 136 | AQ145: 0
A146: 84725 | B146: 205 | C146: 191 | D146: 156 | E146: 35 | F146: 0 | G146: 0 | H146: 0 | I146: 30 | J146: 0 | K146: 0 | L146: 0 | M146: 0 | N146: 0 | O146: 0 | P146: 0 | Q146: 59 | R146: 56 | S146: 40 | T146: 107 | U146: 99 | V146: 33 | W146: 30 | AL146: 44 | AM146: 9 | AN146: 31 | AO146: 147 | AP146: 136 | AQ146: 1
A147: 84750 | B147: 209 | C147: 194 | D147: 157 | E147: 37 | F147: 0 | G147: 0 | H147: 0 | I147: 29 | J147: 0 | K147: 0 | L147: 0 | M147: 0 | N147: 0 | O147: 0 | P147: 0 | Q147: 62 | R147: 59 | S147: 40 | T147: 107 | U147: 100 | V147: 32 | W147: 29 | AL147: 43 | AM147: 9 | AN147: 31 | AO147: 148 | AP147: 137 | AQ147: 1
A148: 84775 | B148: 211 | C148: 195 | D148: 156 | E148: 39 | F148: 0 | G148: 0 | H148: 0 | I148: 28 | J148: 0 | K148: 0 | L148: 0 | M148: 0 | N148: 0 | O148: 0 | P148: 0 | Q148: 64 | R148: 63 | S148: 40 | T148: 109 | U148: 101 | V148: 31 | W148: 28 | AL148: 43 | AM148: 10 | AN148: 31 | AO148: 150 | AP148: 136 | AQ148: 3
A149: 84800 | B149: 210 | C149: 193 | D149: 153 | E149: 40 | F149: 0 | G149: 0 | H149: 0 | I149: 27 | J149: 0 | K149: 0 | L149: 0 | M149: 0 | N149: 0 | O149: 0 | P149: 0 | Q149: 72 | R149: 72 | S149: 40 | T149: 110 | U149: 102 | V149: 30 | W149: 27 | AL149: 44 | AM149: 10 | AN149: 30 | AO149: 151 | AP149: 134 | AQ149: 6
A150: 84825 | B150: 206 | C150: 190 | D150: 150 | E150: 40 | F150: 0 | G150: 0 | H150: 0 | I150: 27 | J150: 0 | K150: 0 | L150: 0 | M150: 0 | N150: 0 | O150: 0 | P150: 0 | Q150: 85 | R150: 81 | S150: 40 | T150: 110 | U150: 103 | V150: 29 | W150: 27 | AL150: 43 | AM150: 11 | AN150: 30 | AO150: 152 | AP150: 131 | AQ150: 10
A151: 84850 | B151: 205 | C151: 185 | D151: 145 | E151: 40 | F151: 0 | G151: 0 | H151: 0 | I151: 26 | J151: 0 | K151: 0 | L151: 0 | M151: 0 | N151: 0 | O151: 0 | P151: 0 | Q151: 91 | R151: 89 | S151: 40 | T151: 113 | U151: 105 | V151: 29 | W151: 26 | AL151: 44 | AM151: 11 | AN151: 29 | AO151: 153 | AP151: 128 | AQ151: 14
A152: 84875 | B152: 196 | C152: 178 | D152: 140 | E152: 38 | F152: 0 | G152: 0 | H152: 0 | I152: 26 | J152: 0 | K152: 0 | L152: 0 | M152: 0 | N152: 0 | O152: 0 | P152: 0 | Q152: 101 | R152: 101 | S152: 40 | T152: 114 | U152: 107 | V152: 28 | W152: 26 | AL152: 43 | AM152: 11 | AN152: 29 | AO152: 154 | AP152: 120 | AQ152: 23
A153: 84900 | B153: 187 | C153: 171 | D153: 136 | E153: 35 | F153: 0 | G153: 0 | H153: 0 | I153: 25 | J153: 0 | K153: 0 | L153: 0 | M153: 0 | N153: 0 | O153: 0 | P153: 0 | Q153: 117 | R153: 113 | S153: 40 | T153: 116 | U153: 108 | V153: 27 | W153: 25 | AL153: 44 | AM153: 12 | AN153: 29 | AO153: 155 | AP153: 113 | AQ153: 31
A154: 84925 | B154: 182 | C154: 163 | D154: 130 | E154: 32 | F154: 0 | G154: 0 | H154: 0 | I154: 25 | J154: 0 | K154: 0 | L154: 0 | M154: 0 | N154: 0 | O154: 0 | P154: 0 | Q154: 127 | R154: 119 | S154: 41 | T154: 117 | U154: 108 | V154: 27 | W154: 25 | AL154: 44 | AM154: 12 | AN154: 29 | AO154: 156 | AP154: 109 | AQ154: 37
A155: 84950 | B155: 170 | C155: 152 | D155: 123 | E155: 28 | F155: 0 | G155: 0 | H155: 0 | I155: 26 | J155: 0 | K155: 0 | L155: 0 | M155: 0 | N155: 0 | O155: 0 | P155: 0 | Q155: 131 | R155: 120 | S155: 40 | T155: 117 | U155: 108 | V155: 28 | W155: 26 | AL155: 44 | AM155: 12 | AN155: 29 | AO155: 157 | AP155: 104 | AQ155: 43
A156: 84975 | B156: 158 | C156: 160 | D156: 118 | E156: 42 | F156: 0 | G156: 0 | H156: 0 | I156: 27 | J156: 0 | K156: 0 | L156: 0 | M156: 0 | N156: 0 | O156: 0 | P156: 0 | Q156: 129 | R156: 119 | S156: 57 | T156: 116 | U156: 132 | V156: 29 | W156: 27 | AL156: 44 | AM156: 27 | AN156: 30 | AO156: 159 | AP156: 100 | AQ156: 47
A157: 85000 | B157: 188 | C157: 202 | D157: 141 | E157: 61 | F157: 0 | G157: 0 | H157: 0 | I157: 27 | J157: 0 | K157: 0 | L157: 0 | M157: 0 | N157: 0 | O157: 0 | P157: 0 | Q157: 129 | R157: 104 | S157: 73 | T157: 170 | U157: 157 | V157: 29 | W157: 27 | AL157: 80 | AM157: 40 | AN157: 33 | AO157: 160 | AP157: 98 | AQ157: 50
A158: 85025 | B158: 249 | C158: 234 | D158: 170 | E158: 64 | F158: 0 | G158: 0 | H158: 0 | I158: 27 | J158: 0 | K158: 0 | L158: 0 | M158: 0 | N158: 0 | O158: 0 | P158: 0 | Q158: 97 | R158: 88 | S158: 72 | T158: 169 | U158: 156 | V158: 29 | W158: 27 | AL158: 78 | AM158: 38 | AN158: 34 | AO158: 161 | AP158: 98 | AQ158: 52
A159: 85050 | B159: 255 | C159: 232 | D159: 170 | E159: 63 | F159: 0 | G159: 0 | H159: 0 | I159: 27 | J159: 0 | K159: 0 | L159: 0 | M159: 0 | N159: 0 | O159: 0 | P159: 0 | Q159: 92 | R159: 85 | S159: 71 | T159: 168 | U159: 155 | V159: 29 | W159: 27 | AL159: 77 | AM159: 36 | AN159: 35 | AO159: 162 | AP159: 98 | AQ159: 52
A160: 85075 | B160: 247 | C160: 220 | D160: 161 | E160: 59 | F160: 0 | G160: 0 | H160: 0 | I160: 27 | J160: 0 | K160: 0 | L160: 0 | M160: 0 | N160: 0 | O160: 0 | P160: 0 | Q160: 91 | R160: 83 | S160: 69 | T160: 166 | U160: 153 | V160: 29 | W160: 27 | AL160: 76 | AM160: 32 | AN160: 37 | AO160: 163 | AP160: 99 | AQ160: 53
A161: 85100 | B161: 228 | C161: 212 | D161: 154 | E161: 58 | F161: 0 | G161: 0 | H161: 0 | I161: 27 | J161: 0 | K161: 0 | L161: 0 | M161: 0 | N161: 0 | O161: 0 | P161: 0 | Q161: 88 | R161: 77 | S161: 68 | T161: 165 | U161: 152 | V161: 29 | W161: 27 | AL161: 74 | AM161: 31 | AN161: 38 | AO161: 164 | AP161: 99 | AQ161: 53
A162: 85125 | B162: 231 | C162: 216 | D162: 156 | E162: 61 | F162: 0 | G162: 0 | H162: 0 | I162: 27 | J162: 0 | K162: 0 | L162: 0 | M162: 0 | N162: 0 | O162: 0 | P162: 0 | Q162: 79 | R162: 70 | S162: 67 | T162: 164 | U162: 151 | V162: 29 | W162: 27 | AL162: 73 | AM162: 31 | AN162: 37 | AO162: 165 | AP162: 101 | AQ162: 53
A163: 85150 | B163: 237 | C163: 220 | D163: 157 | E163: 63 | F163: 0 | G163: 0 | H163: 0 | I163: 27 | J163: 0 | K163: 0 | L163: 0 | M163: 0 | N163: 0 | O163: 0 | P163: 0 | Q163: 71 | R163: 63 | S163: 66 | T163: 163 | U163: 150 | V163: 29 | W163: 27 | AL163: 72 | AM163: 30 | AN163: 36 | AO163: 167 | AP163: 103 | AQ163: 52
A164: 85175 | B164: 238 | C164: 221 | D164: 157 | E164: 64 | F164: 0 | G164: 0 | H164: 0 | I164: 27 | J164: 0 | K164: 0 | L164: 0 | M164: 0 | N164: 0 | O164: 0 | P164: 0 | Q164: 66 | R164: 59 | S164: 65 | T164: 161 | U164: 149 | V164: 29 | W164: 27 | AL164: 71 | AM164: 30 | AN164: 35 | AO164: 168 | AP164: 104 | AQ164: 52
A165: 85200 | B165: 238 | C165: 222 | D165: 156 | E165: 66 | F165: 0 | G165: 0 | H165: 0 | I165: 27 | J165: 0 | K165: 0 | L165: 0 | M165: 0 | N165: 0 | O165: 0 | P165: 0 | Q165: 61 | R165: 54 | S165: 64 | T165: 160 | U165: 147 | V165: 29 | W165: 27 | AL165: 69 | AM165: 30 | AN165: 34 | AO165: 169 | AP165: 106 | AQ165: 51
A166: 85225 | B166: 242 | C166: 229 | D166: 157 | E166: 71 | F166: 0 | G166: 0 | H166: 0 | I166: 27 | J166: 0 | K166: 0 | L166: 0 | M166: 0 | N166: 0 | O166: 0 | P166: 0 | Q166: 56 | R166: 48 | S166: 62 | T166: 159 | U166: 146 | V166: 29 | W166: 27 | AL166: 68 | AM166: 30 | AN166: 32 | AO166: 170 | AP166: 110 | AQ166: 48
A167: 85250 | B167: 252 | C167: 235 | D167: 160 | E167: 75 | F167: 0 | G167: 0 | H167: 0 | I167: 27 | J167: 0 | K167: 0 | L167: 0 | M167: 0 | N167: 0 | O167: 0 | P167: 0 | Q167: 47 | R167: 40 | S167: 61 | T167: 157 | U167: 145 | V167: 29 | W167: 27 | AL167: 67 | AM167: 32 | AN167: 29 | AO167: 171 | AP167: 111 | AQ167: 47
A168: 85275 | B168: 256 | C168: 238 | D168: 162 | E168: 77 | F168: 0 | G168: 0 | H168: 0 | I168: 27 | J168: 0 | K168: 0 | L168: 0 | M168: 0 | N168: 0 | O168: 0 | P168: 0 | Q168: 40 | R168: 35 | S168: 60 | T168: 156 | U168: 144 | V168: 29 | W168: 27 | AL168: 66 | AM168: 33 | AN168: 27 | AO168: 172 | AP168: 112 | AQ168: 48
A169: 85300 | B169: 259 | C169: 240 | D169: 161 | E169: 79 | F169: 0 | G169: 0 | H169: 0 | I169: 27 | J169: 0 | K169: 0 | L169: 0 | M169: 0 | N169: 0 | O169: 0 | P169: 0 | Q169: 35 | R169: 29 | S169: 59 | T169: 155 | U169: 142 | V169: 29 | W169: 27 | AL169: 64 | AM169: 34 | AN169: 25 | AO169: 173 | AP169: 114 | AQ169: 47
A170: 85325 | B170: 260 | C170: 249 | D170: 166 | E170: 83 | F170: 0 | G170: 0 | H170: 0 | I170: 27 | J170: 0 | K170: 0 | L170: 0 | M170: 0 | N170: 0 | O170: 0 | P170: 0 | Q170: 27 | R170: 21 | S170: 58 | T170: 153 | U170: 141 | V170: 29 | W170: 27 | AL170: 63 | AM170: 36 | AN170: 22 | AO170: 174 | AP170: 117 | AQ170: 45
A171: 85350 | B171: 278 | C171: 267 | D171: 175 | E171: 91 | F171: 0 | G171: 0 | H171: 0 | I171: 27 | J171: 0 | K171: 0 | L171: 0 | M171: 0 | N171: 0 | O171: 0 | P171: 0 | Q171: 18 | R171: 13 | S171: 57 | T171: 151 | U171: 140 | V171: 29 | W171: 27 | AL171: 62 | AM171: 38 | AN171: 19 | AO171: 176 | AP171: 123 | AQ171: 40
A172: 85375 | B172: 299 | C172: 283 | D172: 184 | E172: 99 | F172: 0 | G172: 0 | H172: 0 | I172: 27 | J172: 0 | K172: 0 | L172: 0 | M172: 0 | N172: 0 | O172: 0 | P172: 0 | Q172: 11 | R172: 8 | S172: 56 | T172: 150 | U172: 138 | V172: 29 | W172: 27 | AL172: 61 | AM172: 41 | AN172: 14 | AO172: 177 | AP172: 129 | AQ172: 35
A173: 85400 | B173: 313 | C173: 298 | D173: 192 | E173: 105 | F173: 0 | G173: 2 | H173: 0 | I173: 27 | J173: 0 | K173: 0 | L173: 0 | M173: 0 | N173: 0 | O173: 0 | P173: 0 | Q173: 6 | R173: 4 | S173: 55 | T173: 149 | U173: 137 | V173: 29 | W173: 27 | AL173: 60 | AM173: 45 | AN173: 9 | AO173: 178 | AP173: 131 | AQ173: 34
A174: 85425 | B174: 331 | C174: 314 | D174: 201 | E174: 109 | F174: 0 | G174: 5 | H174: 0 | I174: 27 | J174: 0 | K174: 0 | L174: 0 | M174: 0 | N174: 0 | O174: 0 | P174: 0 | Q174: 3 | R174: 3 | S174: 54 | T174: 148 | U174: 136 | V174: 29 | W174: 27 | AL174: 58 | AM174: 48 | AN174: 5 | AO174: 179 | AP174: 133 | AQ174: 33
A175: 85450 | B175: 348 | C175: 327 | D175: 211 | E175: 111 | F175: 0 | G175: 4 | H175: 0 | I175: 27 | J175: 0 | K175: 0 | L175: 0 | M175: 0 | N175: 0 | O175: 0 | P175: 0 | Q175: 3 | R175: 3 | S175: 53 | T175: 147 | U175: 136 | V175: 29 | W175: 27 | AL175: 57 | AM175: 48 | AN175: 5 | AO175: 180 | AP175: 134 | AQ175: 33
A176: 85475 | B176: 358 | C176: 337 | D176: 222 | E176: 110 | F176: 0 | G176: 4 | H176: 0 | I176: 27 | J176: 0 | K176: 0 | L176: 0 | M176: 0 | N176: 0 | O176: 0 | P176: 0 | Q176: 3 | R176: 3 | S176: 52 | T176: 147 | U176: 136 | V176: 29 | W176: 27 | AL176: 57 | AM176: 46 | AN176: 7 | AO176: 181 | AP176: 134 | AQ176: 34
A177: 85500 | B177: 370 | C177: 349 | D177: 236 | E177: 108 | F177: 0 | G177: 4 | H177: 0 | I177: 27 | J177: 0 | K177: 0 | L177: 0 | M177: 0 | N177: 0 | O177: 0 | P177: 0 | Q177: 4 | R177: 4 | S177: 52 | T177: 147 | U177: 136 | V177: 29 | W177: 27 | AL177: 57 | AM177: 44 | AN177: 8 | AO177: 182 | AP177: 134 | AQ177: 35
A178: 85525 | B178: 384 | C178: 363 | D178: 252 | E178: 107 | F178: 0 | G178: 4 | H178: 0 | I178: 27 | J178: 0 | K178: 0 | L178: 0 | M178: 0 | N178: 0 | O178: 0 | P178: 0 | Q178: 5 | R178: 7 | S178: 52 | T178: 147 | U178: 136 | V178: 29 | W178: 27 | AL178: 56 | AM178: 42 | AN178: 11 | AO178: 182 | AP178: 134 | AQ178: 35
A179: 85550 | B179: 399 | C179: 381 | D179: 267 | E179: 107 | F179: 0 | G179: 7 | H179: 0 | I179: 27 | J179: 0 | K179: 0 | L179: 0 | M179: 0 | N179: 0 | O179: 0 | P179: 0 | Q179: 11 | R179: 11 | S179: 52 | T179: 147 | U179: 136 | V179: 29 | W179: 27 | AL179: 56 | AM179: 40 | AN179: 12 | AO179: 183 | AP179: 138 | AQ179: 32
A180: 85575 | B180: 424 | C180: 402 | D180: 283 | E180: 108 | F180: 0 | G180: 11 | H180: 0 | I180: 27 | J180: 0 | K180: 0 | L180: 0 | M180: 0 | N180: 0 | O180: 0 | P180: 0 | Q180: 14 | R180: 15 | S180: 52 | T180: 147 | U180: 136 | V180: 29 | W180: 27 | AL180: 56 | AM180: 40 | AN180: 12 | AO180: 183 | AP180: 143 | AQ180: 27
A181: 85600 | B181: 445 | C181: 422 | D181: 300 | E181: 108 | F181: 0 | G181: 13 | H181: 0 | I181: 27 | J181: 0 | K181: 0 | L181: 0 | M181: 0 | N181: 0 | O181: 0 | P181: 0 | Q181: 19 | R181: 19 | S181: 52 | T181: 147 | U181: 136 | V181: 29 | W181: 27 | AL181: 56 | AM181: 40 | AN181: 12 | AO181: 184 | AP181: 145 | AQ181: 25
A182: 85625 | B182: 466 | C182: 441 | D182: 319 | E182: 109 | F182: 0 | G182: 13 | H182: 0 | I182: 27 | J182: 0 | K182: 0 | L182: 0 | M182: 0 | N182: 0 | O182: 0 | P182: 0 | Q182: 23 | R182: 23 | S182: 52 | T182: 147 | U182: 136 | V182: 29 | W182: 27 | AL182: 56 | AM182: 40 | AN182: 12 | AO182: 184 | AP182: 145 | AQ182: 25
A183: 85650 | B183: 487 | C183: 458 | D183: 333 | E183: 114 | F183: 0 | G183: 11 | H183: 0 | I183: 27 | J183: 0 | K183: 0 | L183: 0 | M183: 0 | N183: 0 | O183: 0 | P183: 0 | Q183: 26 | R183: 26 | S183: 52 | T183: 147 | U183: 140 | V183: 29 | W183: 27 | AL183: 56 | AM183: 40 | AN183: 12 | AO183: 184 | AP183: 143 | AQ183: 27
A184: 85675 | B184: 503 | C184: 471 | D184: 347 | E184: 114 | F184: 0 | G184: 10 | H184: 0 | I184: 27 | J184: 0 | K184: 0 | L184: 0 | M184: 0 | N184: 0 | O184: 0 | P184: 0 | Q184: 30 | R184: 32 | S184: 52 | T184: 156 | U184: 140 | V184: 29 | W184: 27 | AL184: 56 | AM184: 40 | AN184: 12 | AO184: 184 | AP184: 142 | AQ184: 29
A185: 85700 | B185: 514 | C185: 486 | D185: 360 | E185: 111 | F185: 0 | G185: 15 | H185: 0 | I185: 27 | J185: 0 | K185: 0 | L185: 0 | M185: 0 | N185: 0 | O185: 0 | P185: 0 | Q185: 39 | R185: 33 | S185: 52 | T185: 147 | U185: 137 | V185: 29 | W185: 27 | AL185: 56 | AM185: 40 | AN185: 11 | AO185: 184 | AP185: 147 | AQ185: 23
A186: 85725 | B186: 536 | C186: 503 | D186: 371 | E186: 112 | F186: 0 | G186: 21 | H186: 0 | I186: 27 | J186: 0 | K186: 0 | L186: 0 | M186: 0 | N186: 0 | O186: 0 | P186: 0 | Q186: 33 | R186: 30 | S186: 52 | T186: 148 | U186: 137 | V186: 29 | W186: 27 | AL186: 56 | AM186: 41 | AN186: 11 | AO186: 184 | AP186: 152 | AQ186: 18
A187: 85750 | B187: 551 | C187: 518 | D187: 384 | E187: 112 | F187: 0 | G187: 22 | H187: 0 | I187: 27 | J187: 0 | K187: 0 | L187: 0 | M187: 0 | N187: 0 | O187: 0 | P187: 0 | Q187: 33 | R187: 30 | S187: 52 | T187: 149 | U187: 138 | V187: 29 | W187: 27 | AL187: 57 | AM187: 41 | AN187: 11 | AO187: 184 | AP187: 153 | AQ187: 17
A188: 85775 | B188: 568 | C188: 536 | D188: 398 | E188: 113 | F188: 0 | G188: 26 | H188: 0 | I188: 27 | J188: 0 | K188: 0 | L188: 0 | M188: 0 | N188: 0 | O188: 0 | P188: 0 | Q188: 32 | R188: 30 | S188: 52 | T188: 149 | U188: 138 | V188: 29 | W188: 27 | AL188: 57 | AM188: 41 | AN188: 11 | AO188: 184 | AP188: 157 | AQ188: 13
A189: 85800 | B189: 591 | C189: 558 | D189: 412 | E189: 113 | F189: 0 | G189: 33 | H189: 0 | I189: 27 | J189: 0 | K189: 0 | L189: 0 | M189: 0 | N189: 0 | O189: 0 | P189: 0 | Q189: 33 | R189: 31 | S189: 52 | T189: 149 | U189: 138 | V189: 29 | W189: 27 | AL189: 57 | AM189: 41 | AN189: 11 | AO189: 184 | AP189: 163 | AQ189: 7
A190: 85825 | B190: 614 | C190: 575 | D190: 426 | E190: 113 | F190: 0 | G190: 36 | H190: 0 | I190: 27 | J190: 0 | K190: 0 | L190: 0 | M190: 0 | N190: 0 | O190: 0 | P190: 0 | Q190: 34 | R190: 31 | S190: 52 | T190: 149 | U190: 138 | V190: 29 | W190: 27 | AL190: 57 | AM190: 42 | AN190: 11 | AO190: 184 | AP190: 166 | AQ190: 4
A191: 85850 | B191: 628 | C191: 590 | D191: 440 | E191: 114 | F191: 0 | G191: 36 | H191: 0 | I191: 27 | J191: 0 | K191: 0 | L191: 0 | M191: 0 | N191: 0 | O191: 0 | P191: 0 | Q191: 34 | R191: 31 | S191: 53 | T191: 150 | U191: 139 | V191: 29 | W191: 27 | AL191: 57 | AM191: 42 | AN191: 11 | AO191: 184 | AP191: 167 | AQ191: 3
A192: 85875 | B192: 647 | C192: 604 | D192: 453 | E192: 115 | F192: 0 | G192: 36 | H192: 0 | I192: 27 | J192: 0 | K192: 0 | L192: 0 | M192: 0 | N192: 0 | O192: 0 | P192: 0 | Q192: 33 | R192: 31 | S192: 53 | T192: 150 | U192: 139 | V192: 29 | W192: 27 | AL192: 57 | AM192: 42 | AN192: 10 | AO192: 184 | AP192: 167 | AQ192: 3
A193: 85900 | B193: 657 | C193: 615 | D193: 483 | E193: 115 | F193: 0 | G193: 18 | H193: 0 | I193: 27 | J193: 0 | K193: 0 | L193: 0 | M193: 0 | N193: 0 | O193: 0 | P193: 0 | Q193: 34 | R193: 32 | S193: 53 | T193: 150 | U193: 138 | V193: 29 | W193: 27 | AL193: 57 | AM193: 42 | AN193: 10 | AO193: 184 | AP193: 168 | AQ193: 2
A194: 85925 | B194: 672 | C194: 631 | D194: 516 | E194: 114 | F194: 0 | G194: 0 | H194: 0 | I194: 27 | J194: 0 | K194: 0 | L194: 0 | M194: 0 | N194: 0 | O194: 0 | P194: 0 | Q194: 35 | R194: 31 | S194: 53 | T194: 149 | U194: 138 | V194: 29 | W194: 27 | AL194: 57 | AM194: 42 | AN194: 10 | AO194: 184 | AP194: 169 | AQ194: 1
A195: 85950 | B195: 690 | C195: 642 | D195: 528 | E195: 114 | F195: 0 | G195: 0 | H195: 0 | I195: 27 | J195: 0 | K195: 0 | L195: 0 | M195: 0 | N195: 0 | O195: 0 | P195: 0 | Q195: 32 | R195: 29 | S195: 53 | T195: 149 | U195: 138 | V195: 29 | W195: 27 | AL195: 57 | AM195: 43 | AN195: 10 | AO195: 184 | AP195: 170 | AQ195: 0
A196: 85975 | B196: 697 | C196: 651 | D196: 537 | E196: 114 | F196: 0 | G196: 0 | H196: 0 | I196: 27 | J196: 0 | K196: 0 | L196: 0 | M196: 0 | N196: 0 | O196: 0 | P196: 0 | Q196: 31 | R196: 28 | S196: 53 | T196: 149 | U196: 138 | V196: 29 | W196: 27 | AL196: 57 | AM196: 43 | AN196: 10 | AO196: 184 | AP196: 170 | AQ196: 0
A197: 86000 | B197: 709 | C197: 657 | D197: 543 | E197: 114 | F197: 0 | G197: 0 | H197: 0 | I197: 27 | J197: 0 | K197: 0 | L197: 0 | M197: 0 | N197: 0 | O197: 0 | P197: 0 | Q197: 29 | R197: 30 | S197: 53 | T197: 149 | U197: 138 | V197: 29 | W197: 27 | AL197: 57 | AM197: 43 | AN197: 10 | AO197: 184 | AP197: 170 | AQ197: 0
A198: 86025 | B198: 710 | C198: 658 | D198: 544 | E198: 114 | F198: 0 | G198: 0 | H198: 0 | I198: 27 | J198: 0 | K198: 0 | L198: 0 | M198: 0 | N198: 0 | O198: 0 | P198: 0 | Q198: 34 | R198: 31 | S198: 53 | T198: 149 | U198: 138 | V198: 29 | W198: 27 | AL198: 57 | AM198: 43 | AN198: 10 | AO198: 184 | AP198: 170 | AQ198: 0
A199: 86050 | B199: 711 | C199: 667 | D199: 552 | E199: 115 | F199: 0 | G199: 0 | H199: 0 | I199: 27 | J199: 0 | K199: 0 | L199: 0 | M199: 0 | N199: 0 | O199: 0 | P199: 0 | Q199: 33 | R199: 29 | S199: 53 | T199: 149 | U199: 138 | V199: 29 | W199: 27 | AL199: 57 | AM199: 43 | AN199: 10 | AO199: 184 | AP199: 170 | AQ199: 0
A200: 86075 | B200: 729 | C200: 681 | D200: 565 | E200: 115 | F200: 0 | G200: 0 | H200: 0 | I200: 27 | J200: 0 | K200: 0 | L200: 0 | M200: 0 | N200: 0 | O200: 0 | P200: 0 | Q200: 30 | R200: 28 | S200: 53 | T200: 149 | U200: 138 | V200: 29 | W200: 27 | AL200: 57 | AM200: 43 | AN200: 10 | AO200: 184 | AP200: 170 | AQ200: 0
A201: 86100 | B201: 741 | C201: 692 | D201: 576 | E201: 116 | F201: 0 | G201: 0 | H201: 0 | I201: 27 | J201: 0 | K201: 0 | L201: 0 | M201: 0 | N201: 0 | O201: 0 | P201: 0 | Q201: 29 | R201: 27 | S201: 54 | T201: 150 | U201: 139 | V201: 29 | W201: 27 | AL201: 57 | AM201: 44 | AN201: 9 | AO201: 184 | AP201: 170 | AQ201: 0
A202: 86125 | B202: 754 | C202: 700 | D202: 582 | E202: 118 | F202: 0 | G202: 0 | H202: 0 | I202: 27 | J202: 0 | K202: 0 | L202: 0 | M202: 0 | N202: 0 | O202: 0 | P202: 0 | Q202: 30 | R202: 27 | S202: 55 | T202: 151 | U202: 141 | V202: 29 | W202: 27 | AL202: 58 | AM202: 45 | AN202: 9 | AO202: 184 | AP202: 170 | AQ202: 0
A203: 86150 | B203: 759 | C203: 702 | D203: 582 | E203: 119 | F203: 0 | G203: 0 | H203: 0 | I203: 27 | J203: 0 | K203: 0 | L203: 0 | M203: 0 | N203: 0 | O203: 0 | P203: 0 | Q203: 30 | R203: 29 | S203: 56 | T203: 153 | U203: 142 | V203: 29 | W203: 27 | AL203: 60 | AM203: 46 | AN203: 9 | AO203: 184 | AP203: 170 | AQ203: 0
A204: 86175 | B204: 756 | C204: 697 | D204: 578 | E204: 120 | F204: 0 | G204: 0 | H204: 0 | I204: 27 | J204: 0 | K204: 0 | L204: 0 | M204: 0 | N204: 0 | O204: 0 | P204: 0 | Q204: 33 | R204: 32 | S204: 56 | T204: 154 | U204: 142 | V204: 29 | W204: 27 | AL204: 60 | AM204: 47 | AN204: 9 | AO204: 184 | AP204: 170 | AQ204: 0
A205: 86200 | B205: 750 | C205: 691 | D205: 572 | E205: 120 | F205: 0 | G205: 0 | H205: 0 | I205: 27 | J205: 0 | K205: 0 | L205: 0 | M205: 0 | N205: 0 | O205: 0 | P205: 0 | Q205: 37 | R205: 35 | S205: 56 | T205: 154 | U205: 142 | V205: 29 | W205: 27 | AL205: 61 | AM205: 47 | AN205: 9 | AO205: 184 | AP205: 170 | AQ205: 0
A206: 86225 | B206: 743 | C206: 689 | D206: 568 | E206: 121 | F206: 0 | G206: 0 | H206: 0 | I206: 27 | J206: 0 | K206: 0 | L206: 0 | M206: 0 | N206: 0 | O206: 0 | P206: 0 | Q206: 40 | R206: 37 | S206: 57 | T206: 154 | U206: 143 | V206: 29 | W206: 27 | AL206: 61 | AM206: 47 | AN206: 9 | AO206: 184 | AP206: 170 | AQ206: 0
A207: 86250 | B207: 745 | C207: 686 | D207: 565 | E207: 121 | F207: 0 | G207: 0 | H207: 0 | I207: 27 | J207: 0 | K207: 0 | L207: 0 | M207: 0 | N207: 0 | O207: 0 | P207: 0 | Q207: 40 | R207: 38 | S207: 57 | T207: 155 | U207: 144 | V207: 29 | W207: 27 | AL207: 62 | AM207: 48 | AN207: 9 | AO207: 184 | AP207: 170 | AQ207: 0
A208: 86275 | B208: 737 | C208: 682 | D208: 559 | E208: 122 | F208: 0 | G208: 0 | H208: 0 | I208: 27 | J208: 0 | K208: 0 | L208: 0 | M208: 0 | N208: 0 | O208: 0 | P208: 0 | Q208: 41 | R208: 38 | S208: 58 | T208: 156 | U208: 144 | V208: 29 | W208: 27 | AL208: 62 | AM208: 49 | AN208: 9 | AO208: 184 | AP208: 169 | AQ208: 1
A209: 86300 | B209: 735 | C209: 680 | D209: 557 | E209: 123 | F209: 0 | G209: 0 | H209: 0 | I209: 27 | J209: 0 | K209: 0 | L209: 0 | M209: 0 | N209: 0 | O209: 0 | P209: 0 | Q209: 42 | R209: 39 | S209: 59 | T209: 156 | U209: 145 | V209: 29 | W209: 27 | AL209: 63 | AM209: 50 | AN209: 9 | AO209: 184 | AP209: 169 | AQ209: 1
A210: 86325 | B210: 734 | C210: 676 | D210: 551 | E210: 125 | F210: 0 | G210: 0 | H210: 0 | I210: 27 | J210: 0 | K210: 0 | L210: 0 | M210: 0 | N210: 0 | O210: 0 | P210: 0 | Q210: 43 | R210: 41 | S210: 59 | T210: 158 | U210: 147 | V210: 29 | W210: 27 | AL210: 64 | AM210: 50 | AN210: 9 | AO210: 184 | AP210: 169 | AQ210: 1
... 284 more rows

Sheet DataInformation
B1: Total Cut and Fill Adjustment | Z1: Unsuitable Placement Check | AE1: Topsoil
B2: Unadjusted Total Cut | P2: Add Quantity | Q2: Combined Material to be Placed as Fill | R2: Unadjusted Total Fill | V2: Add Quantity | X2: Weighted Average Shrink Factor | Z2: Refer to Standard Road Plan EW-102 | AE2: Typical thickness is 12" | AF2: Typical Thickness is 8" | AG2: Topsoil Replacement Shrink Factor
C3: Shrink Factor | D3: Shrink Factor | E3: Shrink Factor | F3: Shrink Factor | G3: Shrink Factor | I3: Shrink Factor | J3: Shrink Factor | K3: Swell Factor | L3: Swell Factor | O3: Swell Factor | P3: Shrink Factor
C4: 1.3 | D4: 1.4 | E4: 1.3 | F4: 1.3 | G4: 1.3 | I4: 1.3 | J4: 1.2 | K4: 1.1 | L4: 1 | O4: 1.1 | P4: 1.3
B5: User Def. Fill >>> | C5: =C6 -> 132461 | E5: =E6 -> 0 | F5: =F6 -> 392 | G5: 0 | I5: =I6 -> 0 | J5: =J6 -> 0 | K5: 0 | L5: 0 | O5: =O6 -> 0 | P5: =P6 -> 0 | X5: =IF(ISERROR(ROUNDUP(SUM((C5*C4),(E5*E4),(F5*F4),(G5*G4),(I5*I4),(J5*J4),(K5*(1/K4)),(L5*(1/L4)),(O5*(1/O4)),(P5*P4))/SUM(C5,E5,F5,G5,I5,J5,K5,L5,O5,P5),2)),"",ROUNDUP(SUM((C5*C4),(E5*E4),(F5*F4),(G5*G4),(I5*I4),(J5*J4),(K5*(1/K4)),(L5*(1/L4)),(O5*(1/O4)),(P5*P4))/SUM(C5,E5,F5,G5,I5,J5,K5,L5,O5,P5),2)) -> 1.3 | AG5: 1.4
B6: =SUM(B11:B499) -> 185223 | C6: 132461 | D6: 52340 | E6: 0 | F6: 392 | G6: 0 | H6: 10499 | I6: 0 | J6: 0 | K6: 0 | L6: 0 | M6: 0 | N6: 0 | O6: 0 | P6: 0 | Q6: 132853 | R6: 110293 | S6: 9072 | T6: 27135 | U6: 1520 | V6: 3205 | W6: 151225 | X6: 196592.5 | Y6: -63739.7 | Z6: ="5' Minimum"&CHAR(10)&"Class 10"&CHAR(10)&"End Area"&CHAR(10)&"Sq. Ft." -> 5' Minimum Class 10 End Area Sq. Ft. | AA6: ="20' Maximum"&CHAR(10)&"End Area"&CHAR(10)&CHAR(10)&"Sq. Ft." -> 20' Maximum End Area Sq. Ft. | AB6: =SUM(AB11:AB499) -> 71042.4 | AC6: ="3' Minimum"&CHAR(10)&"Class 10"&CHAR(10)&"End Area"&CHAR(10)&"Sq. Ft." -> 3' Minimum Class 10 End Area Sq. Ft. | AD6: =SUM(AD11:AD499) -> 129487.8 | AE6: =SUM(AE11:AE499) -> 52340 | AF6: =SUM(AF11:AF499) -> 23414 | AG6: =SUM(AG11:AG499) -> 32779.6 | AH6: =SUM(AH11:AH499) -> 19560.2
A7: Station | B7: ="Total Cut Unadjusted"&CHAR(10)&CHAR(10)&"Volume" -> Total Cut Unadjusted Volume | C7: Total Class 10 Unadjusted Volume | D7: Topsoil Cut Volume | E7: =DataInput!F3 -> Template Unsuitable Type A Volume | F7: =DataInput!G3 -> Template Unsuitable Type B Volume | G7: =DataInput!H3 -> Template Unsuitable Type C Volume | H7: =DataInput!I3 -> Template Pavement Removal Volume | I7: =DataInput!J3 -> Template Select Loam Volume | J7: =DataInput!K3 -> Template Select Sand Volume | K7: =DataInput!L3 -> Template Rock Volume | L7: =DataInput!M3 -> Template B & W Rock Volume | M7: =DataInput!N3 -> Template Waste Volume | N7: =DataInput!O3 -> Template Shale Volume | O7: =DataInput!P3 -> Template Rock Undercut Volume | P7: ="Manually"&CHAR(10)&"Calculated Cut"&CHAR(10)&"Adjustments"&CHAR(10)&"(+/- Cut)" -> Manually Calculated Cut Adjustments (+/- Cut) | Q7: ="Total"&CHAR(10)&"Cut"&CHAR(10)&"Adjusted" -> Total Cut Adjusted | R7: =DataInput!R3 -> Total Fill Unadjusted Volume | S7: =DataInput!Y3 -> Plowing & Shaping Undercut (+ Fill) | T7: ="Existing Topsoil"&CHAR(10)&"Stripping"&CHAR(10)&"Undercut"&CHAR(10)&"(+ Fill)" -> Existing Topsoil Stripping Undercut (+ Fill) | U7: ="Existing"&CHAR(10)&"Pavement"&CHAR(10)&"Undercut"&CHAR(10)&"(+Fill)" -> Existing Pavement Undercut (+Fill) | V7: ="Manually"&CHAR(10)&"Calculated Fill"&CHAR(10)&"Adjustments"&CHAR(10)&"(+/- Fill)" -> Manually Calculated Fill Adjustments (+/- Fill) | W7: ="Total"&CHAR(10)&"Fill"&CHAR(10)&"Adjusted" -> Total Fill Adjusted | X7: ="Total Fill"&CHAR(10)&" Adjusted w/"&CHAR(10)&"Weighted Average"&CHAR(10)&X5&" Shrink Factor" -> Total Fill Adjusted w/ Weighted Average 1.3 Shrink Factor | Y7: ="Total Cut Adjusted"&CHAR(10)&"Minus Fill w/ Shrink" -> Total Cut Adjusted Minus Fill w/ Shrink | AB7: ="Approx. Fill Vol."&CHAR(10)&"Below 5' & Above"&CHAR(10)&"20' w/ Shrink" -> Approx. Fill Vol. Below 5' & Above 20' w/ Shrink | AD7: ="Approx. Fill"&CHAR(10)&"Volume Below 3'"&CHAR(10)&"w/ Shrink" -> Approx. Fill Volume Below 3' w/ Shrink | AE7: =DataInput!T3&CHAR(10)&"Volume" -> Topsoil Stripping Undercut Volume | AF7: =DataInput!S3 -> Topsoil Placement Undercut Volume | AG7: ="Topsoil Placement"&CHAR(10)&"With "&$AG$5&" Shrink"&CHAR(10)&"Factor" -> Topsoil Placement With 1.4 Shrink Factor | AH7: ="Topsoil Stripping"&CHAR(10)&"Minus Topsoil"&CHAR(10)&"Placement"&CHAR(10)&"w/Shrink" -> Topsoil Stripping Minus Topsoil Placement w/Shrink
A11: Stage 1
A13: =IF(DataInput!A13<>"",DataInput!A13,"") -> Rabbit_Run
A14: =IF(DataInput!A14<>"",DataInput!A14,"") -> 882038.5 | B14: =SUM(DataInput!C14,DataInput!Y14)+(DataInput!U14-DataInput!E14) -> 106 | C14: =SUM(DataInput!D14,DataInput!Z14) -> 0 | D14: =DataInput!U14 -> 106 | E14: =SUM(DataInput!F14,DataInput!AB14) -> 0 | F14: =SUM(DataInput!G14,DataInput!AC14) -> 0 | G14: =SUM(DataInput!H14,DataInput!AD14) -> 0 | H14: =DataInput!I14 -> 0 | I14: =SUM(DataInput!J14,DataInput!AF14) -> 0 | J14: =SUM(DataInput!K14,DataInput!AG14) -> 0 | K14: =SUM(DataInput!L14,DataInput!AH14) -> 0 | L14: =SUM(DataInput!M14,DataInput!AI14) -> 0 | M14: =SUM(DataInput!N14,DataInput!AJ14) -> 0 | N14: =SUM(DataInput!O14,DataInput!AK14) -> 0 | O14: =DataInput!P14 -> 0 | Q14: =SUM(C14,E14:G14,I14:L14,O14:P14) -> 0 | R14: =DataInput!R14 -> 1461 | S14: =DataInput!Y14 -> 0 | T14: =IF(DataInput!U14-DataInput!E14>0,DataInput!U14-DataInput!E14,"") -> 106 | U14: =IF(DataInput!W14-DataInput!I14>0,DataInput!W14-DataInput!I14,"") ->  | W14: =SUM(R14:V14) -> 1567 | X14: =ROUNDUP(($W14*$X$5),1) -> 2037.1 | Y14: =ROUNDUP(SUM(Q14-X14),1) -> -2037.1 | Z14: 292 | AA14: 2130 | AB14: =ROUNDDOWN((IF(AA15>0,IFERROR(IF(AVERAGE(DataInput!Q14:Q15)>AVERAGE(AA15,AA14),ROUNDDOWN(((((AA14-Z14)+(AA15-Z15))/2)*(A15-A14))/27,0),IF(((((DataInput!Q15-Z15)+(DataInput!Q14-Z14))/2)*(A15-A14))/27+S14+T14>0,ROUNDDOWN(((((DataInput!Q15-Z15)+(DataInput!Q14-Z14))/2)*(A15-A14))/27+S14+T14,0),0)),0),0)*$X$5),1) -> 1016.6 | AC14: 155 | AD14: =ROUNDDOWN((IF(AC15>0,IFERROR(IF(((((DataInput!Q14-AC14)+(DataInput!Q15-AC15))/2)*(A15-A14))/27+S14+T14>0,ROUNDDOWN(((((DataInput!Q14-AC14)+(DataInput!Q15-AC15))/2)*(A15-A14))/27+S14+T14,0),0),0),0)*$X$5),1) -> 1950 | AE14: =DataInput!U14 -> 106 | AF14: =DataInput!S14 -> 0 | AG14: =ROUNDUP((AF14*$AG$5),1) -> 0 | AH14: =ROUNDUP((AE14-AG14),1) -> 106
A15: =IF(DataInput!A15<>"",DataInput!A15,"") -> 882050 | B15: =SUM(DataInput!C15,DataInput!Y15)+(DataInput!U15-DataInput!E15) -> 237 | C15: =SUM(DataInput!D15,DataInput!Z15) -> 0 | D15: =DataInput!U15 -> 237 | E15: =SUM(DataInput!F15,DataInput!AB15) -> 0 | F15: =SUM(DataInput!G15,DataInput!AC15) -> 0 | G15: =SUM(DataInput!H15,DataInput!AD15) -> 0 | H15: =DataInput!I15 -> 0 | I15: =SUM(DataInput!J15,DataInput!AF15) -> 0 | J15: =SUM(DataInput!K15,DataInput!AG15) -> 0 | K15: =SUM(DataInput!L15,DataInput!AH15) -> 0 | L15: =SUM(DataInput!M15,DataInput!AI15) -> 0 | M15: =SUM(DataInput!N15,DataInput!AJ15) -> 0 | N15: =SUM(DataInput!O15,DataInput!AK15) -> 0 | O15: =DataInput!P15 -> 0 | Q15: =SUM(C15,E15:G15,I15:L15,O15:P15) -> 0 | R15: =DataInput!R15 -> 3195 | S15: =DataInput!Y15 -> 0 | T15: =IF(DataInput!U15-DataInput!E15>0,DataInput!U15-DataInput!E15,"") -> 237 | U15: =IF(DataInput!W15-DataInput!I15>0,DataInput!W15-DataInput!I15,"") ->  | W15: =SUM(R15:V15) -> 3432 | X15: =ROUNDUP(($W15*$X$5),1) -> 4461.6 | Y15: =ROUNDUP(SUM(Q15-X15),1) -> -4461.6 | Z15: =Z14 -> 292 | AA15: =AA14 -> 2130 | AB15: =ROUNDDOWN((IF(AA16>0,IFERROR(IF(AVERAGE(DataInput!Q15:Q16)>AVERAGE(AA16,AA15),ROUNDDOWN(((((AA15-Z15)+(AA16-Z16))/2)*(A16-A15))/27,0),IF(((((DataInput!Q16-Z16)+(DataInput!Q15-Z15))/2)*(A16-A15))/27+S15+T15>0,ROUNDDOWN(((((DataInput!Q16-Z16)+(DataInput!Q15-Z15))/2)*(A16-A15))/27+S15+T15,0),0)),0),0)*$X$5),1) -> 2211.3 | AC15: =AC14 -> 155 | AD15: =ROUNDDOWN((IF(AC16>0,IFERROR(IF(((((DataInput!Q15-AC15)+(DataInput!Q16-AC16))/2)*(A16-A15))/27+S15+T15>0,ROUNDDOWN(((((DataInput!Q15-AC15)+(DataInput!Q16-AC16))/2)*(A16-A15))/27+S15+T15,0),0),0),0)*$X$5),1) -> 4274.4 | AE15: =DataInput!U15 -> 237 | AF15: =DataInput!S15 -> 41 | AG15: =ROUNDUP((AF15*$AG$5),1) -> 57.4 | AH15: =ROUNDUP((AE15-AG15),1) -> 179.6
A16: =IF(DataInput!A16<>"",DataInput!A16,"") -> 882075 | B16: =SUM(DataInput!C16,DataInput!Y16)+(DataInput!U16-DataInput!E16) -> 245 | C16: =SUM(DataInput!D16,DataInput!Z16) -> 0 | D16: =DataInput!U16 -> 244 | E16: =SUM(DataInput!F16,DataInput!AB16) -> 0 | F16: =SUM(DataInput!G16,DataInput!AC16) -> 0 | G16: =SUM(DataInput!H16,DataInput!AD16) -> 0 | H16: =DataInput!I16 -> 0 | I16: =SUM(DataInput!J16,DataInput!AF16) -> 0 | J16: =SUM(DataInput!K16,DataInput!AG16) -> 0 | K16: =SUM(DataInput!L16,DataInput!AH16) -> 0 | L16: =SUM(DataInput!M16,DataInput!AI16) -> 0 | M16: =SUM(DataInput!N16,DataInput!AJ16) -> 0 | N16: =SUM(DataInput!O16,DataInput!AK16) -> 0 | O16: =DataInput!P16 -> 0 | Q16: 0 | R16: =DataInput!R16 -> 2646 | S16: =DataInput!Y16 -> 0 | T16: =IF(DataInput!U16-DataInput!E16>0,DataInput!U16-DataInput!E16,"") -> 242 | U16: =IF(DataInput!W16-DataInput!I16>0,DataInput!W16-DataInput!I16,"") ->  | W16: 2888 | X16: 3754.4 | Y16: -3754.4 | Z16: =Z15 -> 292 | AA16: =AA15 -> 2130 | AB16: =ROUNDDOWN((IF(AA17>0,IFERROR(IF(AVERAGE(DataInput!Q16:Q17)>AVERAGE(AA17,AA16),ROUNDDOWN(((((AA16-Z16)+(AA17-Z17))/2)*(A17-A16))/27,0),IF(((((DataInput!Q17-Z17)+(DataInput!Q16-Z16))/2)*(A17-A16))/27+S16+T16>0,ROUNDDOWN(((((DataInput!Q17-Z17)+(DataInput!Q16-Z16))/2)*(A17-A16))/27+S16+T16,0),0)),0),0)*$X$5),1) -> 2211.3 | AC16: =AC15 -> 155 | AD16: =ROUNDDOWN((IF(AC17>0,IFERROR(IF(((((DataInput!Q16-AC16)+(DataInput!Q17-AC17))/2)*(A17-A16))/27+S16+T16>0,ROUNDDOWN(((((DataInput!Q16-AC16)+(DataInput!Q17-AC17))/2)*(A17-A16))/27+S16+T16,0),0),0),0)*$X$5),1) -> 3567.2 | AE16: =DataInput!U16 -> 244 | AF16: =DataInput!S16 -> 95 | AG16: 133 | AH16: 111
A17: =IF(DataInput!A17<>"",DataInput!A17,"") -> 882100 | B17: =SUM(DataInput!C17,DataInput!Y17)+(DataInput!U17-DataInput!E17) -> 256 | C17: =SUM(DataInput!D17,DataInput!Z17) -> 10 | D17: =DataInput!U17 -> 246 | E17: =SUM(DataInput!F17,DataInput!AB17) -> 0 | F17: =SUM(DataInput!G17,DataInput!AC17) -> 0 | G17: =SUM(DataInput!H17,DataInput!AD17) -> 0 | H17: =DataInput!I17 -> 0 | I17: =SUM(DataInput!J17,DataInput!AF17) -> 0 | J17: =SUM(DataInput!K17,DataInput!AG17) -> 0 | K17: =SUM(DataInput!L17,DataInput!AH17) -> 0 | L17: =SUM(DataInput!M17,DataInput!AI17) -> 0 | M17: =SUM(DataInput!N17,DataInput!AJ17) -> 0 | N17: =SUM(DataInput!O17,DataInput!AK17) -> 0 | O17: =DataInput!P17 -> 0 | Q17: 10 | R17: =DataInput!R17 -> 2017 | S17: =DataInput!Y17 -> 0 | T17: =IF(DataInput!U17-DataInput!E17>0,DataInput!U17-DataInput!E17,"") -> 234 | U17: =IF(DataInput!W17-DataInput!I17>0,DataInput!W17-DataInput!I17,"") ->  | W17: 2251 | X17: 2926.3 | Y17: -2916.3 | Z17: 292 | AA17: 2130 | AB17: =ROUNDDOWN((IF(AA18>0,IFERROR(IF(AVERAGE(DataInput!Q17:Q18)>AVERAGE(AA18,AA17),ROUNDDOWN(((((AA17-Z17)+(AA18-Z18))/2)*(A18-A17))/27,0),IF(((((DataInput!Q18-Z18)+(DataInput!Q17-Z17))/2)*(A18-A17))/27+S17+T17>0,ROUNDDOWN(((((DataInput!Q18-Z18)+(DataInput!Q17-Z17))/2)*(A18-A17))/27+S17+T17,0),0)),0),0)*$X$5),1) -> 2211.3 | AC17: 155 | AD17: =ROUNDDOWN((IF(AC18>0,IFERROR(IF(((((DataInput!Q17-AC17)+(DataInput!Q18-AC18))/2)*(A18-A17))/27+S17+T17>0,ROUNDDOWN(((((DataInput!Q17-AC17)+(DataInput!Q18-AC18))/2)*(A18-A17))/27+S17+T17,0),0),0),0)*$X$5),1) -> 2737.8 | AE17: =DataInput!U17 -> 246 | AF17: =DataInput!S17 -> 115 | AG17: 161 | AH17: 85
A18: =IF(DataInput!A18<>"",DataInput!A18,"") -> 882125 | B18: =SUM(DataInput!C18,DataInput!Y18)+(DataInput!U18-DataInput!E18) -> 292 | C18: =SUM(DataInput!D18,DataInput!Z18) -> 47 | D18: =DataInput!U18 -> 245 | E18: =SUM(DataInput!F18,DataInput!AB18) -> 0 | F18: =SUM(DataInput!G18,DataInput!AC18) -> 0 | G18: =SUM(DataInput!H18,DataInput!AD18) -> 0 | H18: =DataInput!I18 -> 0 | I18: =SUM(DataInput!J18,DataInput!AF18) -> 0 | J18: =SUM(DataInput!K18,DataInput!AG18) -> 0 | K18: =SUM(DataInput!L18,DataInput!AH18) -> 0 | L18: =SUM(DataInput!M18,DataInput!AI18) -> 0 | M18: =SUM(DataInput!N18,DataInput!AJ18) -> 0 | N18: =SUM(DataInput!O18,DataInput!AK18) -> 0 | O18: =DataInput!P18 -> 0 | Q18: 47 | R18: =DataInput!R18 -> 1493 | S18: =DataInput!Y18 -> 0 | T18: =IF(DataInput!U18-DataInput!E18>0,DataInput!U18-DataInput!E18,"") -> 192 | U18: =IF(DataInput!W18-DataInput!I18>0,DataInput!W18-DataInput!I18,"") ->  | W18: 1685 | X18: 2190.5 | Y18: -2143.5 | Z18: 292 | AA18: 2130 | AB18: =ROUNDDOWN((IF(AA19>0,IFERROR(IF(AVERAGE(DataInput!Q18:Q19)>AVERAGE(AA19,AA18),ROUNDDOWN(((((AA18-Z18)+(AA19-Z19))/2)*(A19-A18))/27,0),IF(((((DataInput!Q19-Z19)+(DataInput!Q18-Z18))/2)*(A19-A18))/27+S18+T18>0,ROUNDDOWN(((((DataInput!Q19-Z19)+(DataInput!Q18-Z18))/2)*(A19-A18))/27+S18+T18,0),0)),0),0)*$X$5),1) -> 1838.2 | AC18: 155 | AD18: =ROUNDDOWN((IF(AC19>0,IFERROR(IF(((((DataInput!Q18-AC18)+(DataInput!Q19-AC19))/2)*(A19-A18))/27+S18+T18>0,ROUNDDOWN(((((DataInput!Q18-AC18)+(DataInput!Q19-AC19))/2)*(A19-A18))/27+S18+T18,0),0),0),0)*$X$5),1) -> 2003.3 | AE18: =DataInput!U18 -> 245 | AF18: =DataInput!S18 -> 124 | AG18: 173.6 | AH18: 71.4
A19: =IF(DataInput!A19<>"",DataInput!A19,"") -> 882150 | B19: =SUM(DataInput!C19,DataInput!Y19)+(DataInput!U19-DataInput!E19) -> 462 | C19: =SUM(DataInput!D19,DataInput!Z19) -> 218 | D19: =DataInput!U19 -> 244 | E19: =SUM(DataInput!F19,DataInput!AB19) -> 0 | F19: =SUM(DataInput!G19,DataInput!AC19) -> 0 | G19: =SUM(DataInput!H19,DataInput!AD19) -> 0 | H19: =DataInput!I19 -> 0 | I19: =SUM(DataInput!J19,DataInput!AF19) -> 0 | J19: =SUM(DataInput!K19,DataInput!AG19) -> 0 | K19: =SUM(DataInput!L19,DataInput!AH19) -> 0 | L19: =SUM(DataInput!M19,DataInput!AI19) -> 0 | M19: =SUM(DataInput!N19,DataInput!AJ19) -> 0 | N19: =SUM(DataInput!O19,DataInput!AK19) -> 0 | O19: =DataInput!P19 -> 0 | Q19: 218 | R19: =DataInput!R19 -> 1192 | S19: =DataInput!Y19 -> 0 | T19: =IF(DataInput!U19-DataInput!E19>0,DataInput!U19-DataInput!E19,"") -> 142 | U19: =IF(DataInput!W19-DataInput!I19>0,DataInput!W19-DataInput!I19,"") ->  | W19: 1334 | X19: 1734.2 | Y19: -1516.2 | Z19: 292 | AA19: 2130 | AB19: =ROUNDDOWN((IF(AA20>0,IFERROR(IF(AVERAGE(DataInput!Q19:Q20)>AVERAGE(AA20,AA19),ROUNDDOWN(((((AA19-Z19)+(AA20-Z20))/2)*(A20-A19))/27,0),IF(((((DataInput!Q20-Z20)+(DataInput!Q19-Z19))/2)*(A20-A19))/27+S19+T19>0,ROUNDDOWN(((((DataInput!Q20-Z20)+(DataInput!Q19-Z19))/2)*(A20-A19))/27+S19+T19,0),0)),0),0)*$X$5),1) -> 1381.9 | AC19: 155 | AD19: =ROUNDDOWN((IF(AC20>0,IFERROR(IF(((((DataInput!Q19-AC19)+(DataInput!Q20-AC20))/2)*(A20-A19))/27+S19+T19>0,ROUNDDOWN(((((DataInput!Q19-AC19)+(DataInput!Q20-AC20))/2)*(A20-A19))/27+S19+T19,0),0),0),0)*$X$5),1) -> 1547 | AE19: =DataInput!U19 -> 244 | AF19: =DataInput!S19 -> 127 | AG19: 177.8 | AH19: 66.2
A20: =IF(DataInput!A20<>"",DataInput!A20,"") -> 882175 | B20: =SUM(DataInput!C20,DataInput!Y20)+(DataInput!U20-DataInput!E20) -> 620 | C20: =SUM(DataInput!D20,DataInput!Z20) -> 379 | D20: =DataInput!U20 -> 241 | E20: =SUM(DataInput!F20,DataInput!AB20) -> 0 | F20: =SUM(DataInput!G20,DataInput!AC20) -> 0 | G20: =SUM(DataInput!H20,DataInput!AD20) -> 0 | H20: =DataInput!I20 -> 0 | I20: =SUM(DataInput!J20,DataInput!AF20) -> 0 | J20: =SUM(DataInput!K20,DataInput!AG20) -> 0 | K20: =SUM(DataInput!L20,DataInput!AH20) -> 0 | L20: =SUM(DataInput!M20,DataInput!AI20) -> 0 | M20: =SUM(DataInput!N20,DataInput!AJ20) -> 0 | N20: =SUM(DataInput!O20,DataInput!AK20) -> 0 | O20: =DataInput!P20 -> 0 | Q20: 379 | R20: =DataInput!R20 -> 1021 | S20: =DataInput!Y20 -> 0 | T20: =IF(DataInput!U20-DataInput!E20>0,DataInput!U20-DataInput!E20,"") -> 120 | U20: =IF(DataInput!W20-DataInput!I20>0,DataInput!W20-DataInput!I20,"") ->  | W20: 1141 | X20: 1483.3 | Y20: -1104.3 | Z20: 292 | AA20: 2130 | AB20: =ROUNDDOWN((IF(AA21>0,IFERROR(IF(AVERAGE(DataInput!Q20:Q21)>AVERAGE(AA21,AA20),ROUNDDOWN(((((AA20-Z20)+(AA21-Z21))/2)*(A21-A20))/27,0),IF(((((DataInput!Q21-Z21)+(DataInput!Q20-Z20))/2)*(A21-A20))/27+S20+T20>0,ROUNDDOWN(((((DataInput!Q21-Z21)+(DataInput!Q20-Z20))/2)*(A21-A20))/27+S20+T20,0),0)),0),0)*$X$5),1) -> 1131 | AC20: 155 | AD20: =ROUNDDOWN((IF(AC21>0,IFERROR(IF(((((DataInput!Q20-AC20)+(DataInput!Q21-AC21))/2)*(A21-A20))/27+S20+T20>0,ROUNDDOWN(((((DataInput!Q20-AC20)+(DataInput!Q21-AC21))/2)*(A21-A20))/27+S20+T20,0),0),0),0)*$X$5),1) -> 1296.1 | AE20: =DataInput!U20 -> 241 | AF20: =DataInput!S20 -> 129 | AG20: 180.6 | AH20: 60.4
A21: =IF(DataInput!A21<>"",DataInput!A21,"") -> 882200 | B21: =SUM(DataInput!C21,DataInput!Y21)+(DataInput!U21-DataInput!E21) -> 558 | C21: =SUM(DataInput!D21,DataInput!Z21) -> 333 | D21: =DataInput!U21 -> 225 | E21: =SUM(DataInput!F21,DataInput!AB21) -> 0 | F21: =SUM(DataInput!G21,DataInput!AC21) -> 0 | G21: =SUM(DataInput!H21,DataInput!AD21) -> 0 | H21: =DataInput!I21 -> 0 | I21: =SUM(DataInput!J21,DataInput!AF21) -> 0 | J21: =SUM(DataInput!K21,DataInput!AG21) -> 0 | K21: =SUM(DataInput!L21,DataInput!AH21) -> 0 | L21: =SUM(DataInput!M21,DataInput!AI21) -> 0 | M21: =SUM(DataInput!N21,DataInput!AJ21) -> 0 | N21: =SUM(DataInput!O21,DataInput!AK21) -> 0 | O21: =DataInput!P21 -> 0 | Q21: 333 | R21: =DataInput!R21 -> 860 | S21: =DataInput!Y21 -> 0 | T21: =IF(DataInput!U21-DataInput!E21>0,DataInput!U21-DataInput!E21,"") -> 111 | U21: =IF(DataInput!W21-DataInput!I21>0,DataInput!W21-DataInput!I21,"") ->  | W21: 971 | X21: 1262.3 | Y21: -929.3 | Z21: 292 | AA21: 2130 | AB21: =ROUNDDOWN((IF(AA22>0,IFERROR(IF(AVERAGE(DataInput!Q21:Q22)>AVERAGE(AA22,AA21),ROUNDDOWN(((((AA21-Z21)+(AA22-Z22))/2)*(A22-A21))/27,0),IF(((((DataInput!Q22-Z22)+(DataInput!Q21-Z21))/2)*(A22-A21))/27+S21+T21>0,ROUNDDOWN(((((DataInput!Q22-Z22)+(DataInput!Q21-Z21))/2)*(A22-A21))/27+S21+T21,0),0)),0),0)*$X$5),1) -> 910 | AC21: 155 | AD21: =ROUNDDOWN((IF(AC22>0,IFERROR(IF(((((DataInput!Q21-AC21)+(DataInput!Q22-AC22))/2)*(A22-A21))/27+S21+T21>0,ROUNDDOWN(((((DataInput!Q21-AC21)+(DataInput!Q22-AC22))/2)*(A22-A21))/27+S21+T21,0),0),0),0)*$X$5),1) -> 1075.1 | AE21: =DataInput!U21 -> 225 | AF21: =DataInput!S21 -> 120 | AG21: 168 | AH21: 57
A22: =IF(DataInput!A22<>"",DataInput!A22,"") -> 882225 | B22: =SUM(DataInput!C22,DataInput!Y22)+(DataInput!U22-DataInput!E22) -> 445 | C22: =SUM(DataInput!D22,DataInput!Z22) -> 248 | D22: =DataInput!U22 -> 196 | E22: =SUM(DataInput!F22,DataInput!AB22) -> 0 | F22: =SUM(DataInput!G22,DataInput!AC22) -> 0 | G22: =SUM(DataInput!H22,DataInput!AD22) -> 0 | H22: =DataInput!I22 -> 0 | I22: =SUM(DataInput!J22,DataInput!AF22) -> 0 | J22: =SUM(DataInput!K22,DataInput!AG22) -> 0 | K22: =SUM(DataInput!L22,DataInput!AH22) -> 0 | L22: =SUM(DataInput!M22,DataInput!AI22) -> 0 | M22: =SUM(DataInput!N22,DataInput!AJ22) -> 0 | N22: =SUM(DataInput!O22,DataInput!AK22) -> 0 | O22: =DataInput!P22 -> 0 | Q22: 248 | R22: =DataInput!R22 -> 702 | S22: =DataInput!Y22 -> 0 | T22: =IF(DataInput!U22-DataInput!E22>0,DataInput!U22-DataInput!E22,"") -> 102 | U22: =IF(DataInput!W22-DataInput!I22>0,DataInput!W22-DataInput!I22,"") ->  | W22: 804 | X22: 1045.2 | Y22: -797.2 | Z22: 292 | AA22: 2130 | AB22: =ROUNDDOWN((IF(AA23>0,IFERROR(IF(AVERAGE(DataInput!Q22:Q23)>AVERAGE(AA23,AA22),ROUNDDOWN(((((AA22-Z22)+(AA23-Z23))/2)*(A23-A22))/27,0),IF(((((DataInput!Q23-Z23)+(DataInput!Q22-Z22))/2)*(A23-A22))/27+S22+T22>0,ROUNDDOWN(((((DataInput!Q23-Z23)+(DataInput!Q22-Z22))/2)*(A23-A22))/27+S22+T22,0),0)),0),0)*$X$5),1) -> 692.9 | AC22: 155 | AD22: =ROUNDDOWN((IF(AC23>0,IFERROR(IF(((((DataInput!Q22-AC22)+(DataInput!Q23-AC23))/2)*(A23-A22))/27+S22+T22>0,ROUNDDOWN(((((DataInput!Q22-AC22)+(DataInput!Q23-AC23))/2)*(A23-A22))/27+S22+T22,0),0),0),0)*$X$5),1) -> 856.7 | AE22: =DataInput!U22 -> 196 | AF22: =DataInput!S22 -> 101 | AG22: 141.4 | AH22: 54.6
A23: =IF(DataInput!A23<>"",DataInput!A23,"") -> 882250 | B23: =SUM(DataInput!C23,DataInput!Y23)+(DataInput!U23-DataInput!E23) -> 409 | C23: =SUM(DataInput!D23,DataInput!Z23) -> 234 | D23: =DataInput!U23 -> 175 | E23: =SUM(DataInput!F23,DataInput!AB23) -> 0 | F23: =SUM(DataInput!G23,DataInput!AC23) -> 0 | G23: =SUM(DataInput!H23,DataInput!AD23) -> 0 | H23: =DataInput!I23 -> 0 | I23: =SUM(DataInput!J23,DataInput!AF23) -> 0 | J23: =SUM(DataInput!K23,DataInput!AG23) -> 0 | K23: =SUM(DataInput!L23,DataInput!AH23) -> 0 | L23: =SUM(DataInput!M23,DataInput!AI23) -> 0 | M23: =SUM(DataInput!N23,DataInput!AJ23) -> 0 | N23: =SUM(DataInput!O23,DataInput!AK23) -> 0 | O23: =DataInput!P23 -> 0 | Q23: 234 | R23: =DataInput!R23 -> 561 | S23: =DataInput!Y23 -> 0 | T23: =IF(DataInput!U23-DataInput!E23>0,DataInput!U23-DataInput!E23,"") -> 94 | U23: =IF(DataInput!W23-DataInput!I23>0,DataInput!W23-DataInput!I23,"") ->  | W23: 655 | X23: 851.5 | Y23: -617.5 | Z23: 292 | AA23: 2130 | AB23: =ROUNDDOWN((IF(AA24>0,IFERROR(IF(AVERAGE(DataInput!Q23:Q24)>AVERAGE(AA24,AA23),ROUNDDOWN(((((AA23-Z23)+(AA24-Z24))/2)*(A24-A23))/27,0),IF(((((DataInput!Q24-Z24)+(DataInput!Q23-Z23))/2)*(A24-A23))/27+S23+T23>0,ROUNDDOWN(((((DataInput!Q24-Z24)+(DataInput!Q23-Z23))/2)*(A24-A23))/27+S23+T23,0),0)),0),0)*$X$5),1) -> 499.2 | AC23: 155 | AD23: =ROUNDDOWN((IF(AC24>0,IFERROR(IF(((((DataInput!Q23-AC23)+(DataInput!Q24-AC24))/2)*(A24-A23))/27+S23+T23>0,ROUNDDOWN(((((DataInput!Q23-AC23)+(DataInput!Q24-AC24))/2)*(A24-A23))/27+S23+T23,0),0),0),0)*$X$5),1) -> 664.3 | AE23: =DataInput!U23 -> 175 | AF23: =DataInput!S23 -> 87 | AG23: 121.8 | AH23: 53.2
A24: =IF(DataInput!A24<>"",DataInput!A24,"") -> 882275 | B24: =SUM(DataInput!C24,DataInput!Y24)+(DataInput!U24-DataInput!E24) -> 400 | C24: =SUM(DataInput!D24,DataInput!Z24) -> 235 | D24: =DataInput!U24 -> 165 | E24: =SUM(DataInput!F24,DataInput!AB24) -> 0 | F24: =SUM(DataInput!G24,DataInput!AC24) -> 0 | G24: =SUM(DataInput!H24,DataInput!AD24) -> 0 | H24: =DataInput!I24 -> 0 | I24: =SUM(DataInput!J24,DataInput!AF24) -> 0 | J24: =SUM(DataInput!K24,DataInput!AG24) -> 0 | K24: =SUM(DataInput!L24,DataInput!AH24) -> 0 | L24: =SUM(DataInput!M24,DataInput!AI24) -> 0 | M24: =SUM(DataInput!N24,DataInput!AJ24) -> 0 | N24: =SUM(DataInput!O24,DataInput!AK24) -> 0 | O24: =DataInput!P24 -> 0 | Q24: 235 | R24: =DataInput!R24 -> 468 | S24: =DataInput!Y24 -> 0 | T24: =IF(DataInput!U24-DataInput!E24>0,DataInput!U24-DataInput!E24,"") -> 88 | U24: =IF(DataInput!W24-DataInput!I24>0,DataInput!W24-DataInput!I24,"") ->  | W24: 556 | X24: 722.8 | Y24: -487.8 | Z24: 292 | AA24: 2130 | AB24: =ROUNDDOWN((IF(AA25>0,IFERROR(IF(AVERAGE(DataInput!Q24:Q25)>AVERAGE(AA25,AA24),ROUNDDOWN(((((AA24-Z24)+(AA25-Z25))/2)*(A25-A24))/27,0),IF(((((DataInput!Q25-Z25)+(DataInput!Q24-Z24))/2)*(A25-A24))/27+S24+T24>0,ROUNDDOWN(((((DataInput!Q25-Z25)+(DataInput!Q24-Z24))/2)*(A25-A24))/27+S24+T24,0),0)),0),0)*$X$5),1) -> 370.5 | AC24: 155 | AD24: =ROUNDDOWN((IF(AC25>0,IFERROR(IF(((((DataInput!Q24-AC24)+(DataInput!Q25-AC25))/2)*(A25-A24))/27+S24+T24>0,ROUNDDOWN(((((DataInput!Q24-AC24)+(DataInput!Q25-AC25))/2)*(A25-A24))/27+S24+T24,0),0),0),0)*$X$5),1) -> 535.6 | AE24: =DataInput!U24 -> 165 | AF24: =DataInput!S24 -> 80 | AG24: 112 | AH24: 53
A25: =IF(DataInput!A25<>"",DataInput!A25,"") -> 882300 | B25: =SUM(DataInput!C25,DataInput!Y25)+(DataInput!U25-DataInput!E25) -> 371 | C25: =SUM(DataInput!D25,DataInput!Z25) -> 215 | D25: =DataInput!U25 -> 156 | E25: =SUM(DataInput!F25,DataInput!AB25) -> 0 | F25: =SUM(DataInput!G25,DataInput!AC25) -> 0 | G25: =SUM(DataInput!H25,DataInput!AD25) -> 0 | H25: =DataInput!I25 -> 0 | I25: =SUM(DataInput!J25,DataInput!AF25) -> 0 | J25: =SUM(DataInput!K25,DataInput!AG25) -> 0 | K25: =SUM(DataInput!L25,DataInput!AH25) -> 0 | L25: =SUM(DataInput!M25,DataInput!AI25) -> 0 | M25: =SUM(DataInput!N25,DataInput!AJ25) -> 0 | N25: =SUM(DataInput!O25,DataInput!AK25) -> 0 | O25: =DataInput!P25 -> 0 | Q25: 215 | R25: =DataInput!R25 -> 415 | S25: =DataInput!Y25 -> 0 | T25: =IF(DataInput!U25-DataInput!E25>0,DataInput!U25-DataInput!E25,"") -> 83 | U25: =IF(DataInput!W25-DataInput!I25>0,DataInput!W25-DataInput!I25,"") ->  | W25: 498 | X25: 647.4 | Y25: -432.4 | Z25: 292 | AA25: 2130 | AB25: =ROUNDDOWN((IF(AA26>0,IFERROR(IF(AVERAGE(DataInput!Q25:Q26)>AVERAGE(AA26,AA25),ROUNDDOWN(((((AA25-Z25)+(AA26-Z26))/2)*(A26-A25))/27,0),IF(((((DataInput!Q26-Z26)+(DataInput!Q25-Z25))/2)*(A26-A25))/27+S25+T25>0,ROUNDDOWN(((((DataInput!Q26-Z26)+(DataInput!Q25-Z25))/2)*(A26-A25))/27+S25+T25,0),0)),0),0)*$X$5),1) -> 295.1 | AC25: 155 | AD25: =ROUNDDOWN((IF(AC26>0,IFERROR(IF(((((DataInput!Q25-AC25)+(DataInput!Q26-AC26))/2)*(A26-A25))/27+S25+T25>0,ROUNDDOWN(((((DataInput!Q25-AC25)+(DataInput!Q26-AC26))/2)*(A26-A25))/27+S25+T25,0),0),0),0)*$X$5),1) -> 460.2 | AE25: =DataInput!U25 -> 156 | AF25: =DataInput!S25 -> 75 | AG25: 105 | AH25: 51
A26: =IF(DataInput!A26<>"",DataInput!A26,"") -> 882325 | B26: =SUM(DataInput!C26,DataInput!Y26)+(DataInput!U26-DataInput!E26) -> 320 | C26: =SUM(DataInput!D26,DataInput!Z26) -> 175 | D26: =DataInput!U26 -> 146 | E26: =SUM(DataInput!F26,DataInput!AB26) -> 0 | F26: =SUM(DataInput!G26,DataInput!AC26) -> 0 | G26: =SUM(DataInput!H26,DataInput!AD26) -> 0 | H26: =DataInput!I26 -> 0 | I26: =SUM(DataInput!J26,DataInput!AF26) -> 0 | J26: =SUM(DataInput!K26,DataInput!AG26) -> 0 | K26: =SUM(DataInput!L26,DataInput!AH26) -> 0 | L26: =SUM(DataInput!M26,DataInput!AI26) -> 0 | M26: =SUM(DataInput!N26,DataInput!AJ26) -> 0 | N26: =SUM(DataInput!O26,DataInput!AK26) -> 0 | O26: =DataInput!P26 -> 0 | Q26: 175 | R26: =DataInput!R26 -> 386 | S26: =DataInput!Y26 -> 0 | T26: =IF(DataInput!U26-DataInput!E26>0,DataInput!U26-DataInput!E26,"") -> 80 | U26: =IF(DataInput!W26-DataInput!I26>0,DataInput!W26-DataInput!I26,"") ->  | W26: 466 | X26: 605.8 | Y26: -430.8 | Z26: 292 | AA26: 2130 | AB26: =ROUNDDOWN((IF(AA27>0,IFERROR(IF(AVERAGE(DataInput!Q26:Q27)>AVERAGE(AA27,AA26),ROUNDDOWN(((((AA26-Z26)+(AA27-Z27))/2)*(A27-A26))/27,0),IF(((((DataInput!Q27-Z27)+(DataInput!Q26-Z26))/2)*(A27-A26))/27+S26+T26>0,ROUNDDOWN(((((DataInput!Q27-Z27)+(DataInput!Q26-Z26))/2)*(A27-A26))/27+S26+T26,0),0)),0),0)*$X$5),1) -> 253.5 | AC26: 155 | AD26: =ROUNDDOWN((IF(AC27>0,IFERROR(IF(((((DataInput!Q26-AC26)+(DataInput!Q27-AC27))/2)*(A27-A26))/27+S26+T26>0,ROUNDDOWN(((((DataInput!Q26-AC26)+(DataInput!Q27-AC27))/2)*(A27-A26))/27+S26+T26,0),0),0),0)*$X$5),1) -> 418.6 | AE26: =DataInput!U26 -> 146 | AF26: =DataInput!S26 -> 70 | AG26: 98 | AH26: 48
A27: =IF(DataInput!A27<>"",DataInput!A27,"") -> 882350 | B27: =SUM(DataInput!C27,DataInput!Y27)+(DataInput!U27-DataInput!E27) -> 262 | C27: =SUM(DataInput!D27,DataInput!Z27) -> 127 | D27: =DataInput!U27 -> 135 | E27: =SUM(DataInput!F27,DataInput!AB27) -> 0 | F27: =SUM(DataInput!G27,DataInput!AC27) -> 0 | G27: =SUM(DataInput!H27,DataInput!AD27) -> 0 | H27: =DataInput!I27 -> 0 | I27: =SUM(DataInput!J27,DataInput!AF27) -> 0 | J27: =SUM(DataInput!K27,DataInput!AG27) -> 0 | K27: =SUM(DataInput!L27,DataInput!AH27) -> 0 | L27: =SUM(DataInput!M27,DataInput!AI27) -> 0 | M27: =SUM(DataInput!N27,DataInput!AJ27) -> 0 | N27: =SUM(DataInput!O27,DataInput!AK27) -> 0 | O27: =DataInput!P27 -> 0 | Q27: 127 | R27: =DataInput!R27 -> 366 | S27: =DataInput!Y27 -> 0 | T27: =IF(DataInput!U27-DataInput!E27>0,DataInput!U27-DataInput!E27,"") -> 78 | U27: =IF(DataInput!W27-DataInput!I27>0,DataInput!W27-DataInput!I27,"") ->  | W27: 444 | X27: 577.2 | Y27: -450.2 | Z27: 292 | AA27: 2130 | AB27: =ROUNDDOWN((IF(AA28>0,IFERROR(IF(AVERAGE(DataInput!Q27:Q28)>AVERAGE(AA28,AA27),ROUNDDOWN(((((AA27-Z27)+(AA28-Z28))/2)*(A28-A27))/27,0),IF(((((DataInput!Q28-Z28)+(DataInput!Q27-Z27))/2)*(A28-A27))/27+S27+T27>0,ROUNDDOWN(((((DataInput!Q28-Z28)+(DataInput!Q27-Z27))/2)*(A28-A27))/27+S27+T27,0),0)),0),0)*$X$5),1) -> 224.9 | AC27: 155 | AD27: =ROUNDDOWN((IF(AC28>0,IFERROR(IF(((((DataInput!Q27-AC27)+(DataInput!Q28-AC28))/2)*(A28-A27))/27+S27+T27>0,ROUNDDOWN(((((DataInput!Q27-AC27)+(DataInput!Q28-AC28))/2)*(A28-A27))/27+S27+T27,0),0),0),0)*$X$5),1) -> 390 | AE27: =DataInput!U27 -> 135 | AF27: =DataInput!S27 -> 63 | AG27: 88.2 | AH27: 46.8
A28: =IF(DataInput!A28<>"",DataInput!A28,"") -> 882375 | B28: =SUM(DataInput!C28,DataInput!Y28)+(DataInput!U28-DataInput!E28) -> 212 | C28: =SUM(DataInput!D28,DataInput!Z28) -> 87 | D28: =DataInput!U28 -> 125 | E28: =SUM(DataInput!F28,DataInput!AB28) -> 0 | F28: =SUM(DataInput!G28,DataInput!AC28) -> 0 | G28: =SUM(DataInput!H28,DataInput!AD28) -> 0 | H28: =DataInput!I28 -> 0 | I28: =SUM(DataInput!J28,DataInput!AF28) -> 0 | J28: =SUM(DataInput!K28,DataInput!AG28) -> 0 | K28: =SUM(DataInput!L28,DataInput!AH28) -> 0 | L28: =SUM(DataInput!M28,DataInput!AI28) -> 0 | M28: =SUM(DataInput!N28,DataInput!AJ28) -> 0 | N28: =SUM(DataInput!O28,DataInput!AK28) -> 0 | O28: =DataInput!P28 -> 0 | Q28: 87 | R28: =DataInput!R28 -> 346 | S28: =DataInput!Y28 -> 0 | T28: =IF(DataInput!U28-DataInput!E28>0,DataInput!U28-DataInput!E28,"") -> 76 | U28: =IF(DataInput!W28-DataInput!I28>0,DataInput!W28-DataInput!I28,"") ->  | W28: 422 | X28: 548.6 | Y28: -461.6 | Z28: 292 | AA28: 2130 | AB28: =ROUNDDOWN((IF(AA29>0,IFERROR(IF(AVERAGE(DataInput!Q28:Q29)>AVERAGE(AA29,AA28),ROUNDDOWN(((((AA28-Z28)+(AA29-Z29))/2)*(A29-A28))/27,0),IF(((((DataInput!Q29-Z29)+(DataInput!Q28-Z28))/2)*(A29-A28))/27+S28+T28>0,ROUNDDOWN(((((DataInput!Q29-Z29)+(DataInput!Q28-Z28))/2)*(A29-A28))/27+S28+T28,0),0)),0),0)*$X$5),1) -> 196.3 | AC28: 155 | AD28: =ROUNDDOWN((IF(AC29>0,IFERROR(IF(((((DataInput!Q28-AC28)+(DataInput!Q29-AC29))/2)*(A29-A28))/27+S28+T28>0,ROUNDDOWN(((((DataInput!Q28-AC28)+(DataInput!Q29-AC29))/2)*(A29-A28))/27+S28+T28,0),0),0),0)*$X$5),1) -> 361.4 | AE28: =DataInput!U28 -> 125 | AF28: =DataInput!S28 -> 56 | AG28: 78.4 | AH28: 46.6
A29: =IF(DataInput!A29<>"",DataInput!A29,"") -> 882400 | B29: =SUM(DataInput!C29,DataInput!Y29)+(DataInput!U29-DataInput!E29) -> 167 | C29: =SUM(DataInput!D29,DataInput!Z29) -> 52 | D29: =DataInput!U29 -> 115 | E29: =SUM(DataInput!F29,DataInput!AB29) -> 0 | F29: =SUM(DataInput!G29,DataInput!AC29) -> 0 | G29: =SUM(DataInput!H29,DataInput!AD29) -> 0 | H29: =DataInput!I29 -> 0 | I29: =SUM(DataInput!J29,DataInput!AF29) -> 0 | J29: =SUM(DataInput!K29,DataInput!AG29) -> 0 | K29: =SUM(DataInput!L29,DataInput!AH29) -> 0 | L29: =SUM(DataInput!M29,DataInput!AI29) -> 0 | M29: =SUM(DataInput!N29,DataInput!AJ29) -> 0 | N29: =SUM(DataInput!O29,DataInput!AK29) -> 0 | O29: =DataInput!P29 -> 0 | Q29: 52 | R29: =DataInput!R29 -> 329 | S29: =DataInput!Y29 -> 0 | T29: =IF(DataInput!U29-DataInput!E29>0,DataInput!U29-DataInput!E29,"") -> 75 | U29: =IF(DataInput!W29-DataInput!I29>0,DataInput!W29-DataInput!I29,"") ->  | W29: 404 | X29: 525.2 | Y29: -473.2 | Z29: 292 | AA29: 2130 | AB29: =ROUNDDOWN((IF(AA30>0,IFERROR(IF(AVERAGE(DataInput!Q29:Q30)>AVERAGE(AA30,AA29),ROUNDDOWN(((((AA29-Z29)+(AA30-Z30))/2)*(A30-A29))/27,0),IF(((((DataInput!Q30-Z30)+(DataInput!Q29-Z29))/2)*(A30-A29))/27+S29+T29>0,ROUNDDOWN(((((DataInput!Q30-Z30)+(DataInput!Q29-Z29))/2)*(A30-A29))/27+S29+T29,0),0)),0),0)*$X$5),1) -> 172.9 | AC29: 155 | AD29: =ROUNDDOWN((IF(AC30>0,IFERROR(IF(((((DataInput!Q29-AC29)+(DataInput!Q30-AC30))/2)*(A30-A29))/27+S29+T29>0,ROUNDDOWN(((((DataInput!Q29-AC29)+(DataInput!Q30-AC30))/2)*(A30-A29))/27+S29+T29,0),0),0),0)*$X$5),1) -> 338 | AE29: =DataInput!U29 -> 115 | AF29: =DataInput!S29 -> 49 | AG29: 68.6 | AH29: 46.4
A30: =IF(DataInput!A30<>"",DataInput!A30,"") -> 882425 | B30: =SUM(DataInput!C30,DataInput!Y30)+(DataInput!U30-DataInput!E30) -> 130 | C30: =SUM(DataInput!D30,DataInput!Z30) -> 26 | D30: =DataInput!U30 -> 105 | E30: =SUM(DataInput!F30,DataInput!AB30) -> 0 | F30: =SUM(DataInput!G30,DataInput!AC30) -> 0 | G30: =SUM(DataInput!H30,DataInput!AD30) -> 0 | H30: =DataInput!I30 -> 0 | I30: =SUM(DataInput!J30,DataInput!AF30) -> 0 | J30: =SUM(DataInput!K30,DataInput!AG30) -> 0 | K30: =SUM(DataInput!L30,DataInput!AH30) -> 0 | L30: =SUM(DataInput!M30,DataInput!AI30) -> 0 | M30: =SUM(DataInput!N30,DataInput!AJ30) -> 0 | N30: =SUM(DataInput!O30,DataInput!AK30) -> 0 | O30: =DataInput!P30 -> 0 | Q30: 26 | R30: =DataInput!R30 -> 297 | S30: =DataInput!Y30 -> 0 | T30: =IF(DataInput!U30-DataInput!E30>0,DataInput!U30-DataInput!E30,"") -> 72 | U30: =IF(DataInput!W30-DataInput!I30>0,DataInput!W30-DataInput!I30,"") ->  | W30: 369 | X30: 479.7 | Y30: -453.7 | Z30: 292 | AA30: 2130 | AB30: =ROUNDDOWN((IF(AA31>0,IFERROR(IF(AVERAGE(DataInput!Q30:Q31)>AVERAGE(AA31,AA30),ROUNDDOWN(((((AA30-Z30)+(AA31-Z31))/2)*(A31-A30))/27,0),IF(((((DataInput!Q31-Z31)+(DataInput!Q30-Z30))/2)*(A31-A30))/27+S30+T30>0,ROUNDDOWN(((((DataInput!Q31-Z31)+(DataInput!Q30-Z30))/2)*(A31-A30))/27+S30+T30,0),0)),0),0)*$X$5),1) -> 127.4 | AC30: 155 | AD30: =ROUNDDOWN((IF(AC31>0,IFERROR(IF(((((DataInput!Q30-AC30)+(DataInput!Q31-AC31))/2)*(A31-A30))/27+S30+T30>0,ROUNDDOWN(((((DataInput!Q30-AC30)+(DataInput!Q31-AC31))/2)*(A31-A30))/27+S30+T30,0),0),0),0)*$X$5),1) -> 292.5 | AE30: =DataInput!U30 -> 105 | AF30: =DataInput!S30 -> 43 | AG30: 60.2 | AH30: 44.8
A31: =IF(DataInput!A31<>"",DataInput!A31,"") -> 882450 | B31: =SUM(DataInput!C31,DataInput!Y31)+(DataInput!U31-DataInput!E31) -> 112 | C31: =SUM(DataInput!D31,DataInput!Z31) -> 14 | D31: =DataInput!U31 -> 97 | E31: =SUM(DataInput!F31,DataInput!AB31) -> 0 | F31: =SUM(DataInput!G31,DataInput!AC31) -> 0 | G31: =SUM(DataInput!H31,DataInput!AD31) -> 0 | H31: =DataInput!I31 -> 0 | I31: =SUM(DataInput!J31,DataInput!AF31) -> 0 | J31: =SUM(DataInput!K31,DataInput!AG31) -> 0 | K31: =SUM(DataInput!L31,DataInput!AH31) -> 0 | L31: =SUM(DataInput!M31,DataInput!AI31) -> 0 | M31: =SUM(DataInput!N31,DataInput!AJ31) -> 0 | N31: =SUM(DataInput!O31,DataInput!AK31) -> 0 | O31: =DataInput!P31 -> 0 | Q31: 14 | R31: =DataInput!R31 -> 233 | S31: =DataInput!Y31 -> 0 | T31: =IF(DataInput!U31-DataInput!E31>0,DataInput!U31-DataInput!E31,"") -> 68 | U31: =IF(DataInput!W31-DataInput!I31>0,DataInput!W31-DataInput!I31,"") ->  | W31: 301 | X31: 391.3 | Y31: -377.3 | Z31: 292 | AA31: 2130 | AB31: =ROUNDDOWN((IF(AA32>0,IFERROR(IF(AVERAGE(DataInput!Q31:Q32)>AVERAGE(AA32,AA31),ROUNDDOWN(((((AA31-Z31)+(AA32-Z32))/2)*(A32-A31))/27,0),IF(((((DataInput!Q32-Z32)+(DataInput!Q31-Z31))/2)*(A32-A31))/27+S31+T31>0,ROUNDDOWN(((((DataInput!Q32-Z32)+(DataInput!Q31-Z31))/2)*(A32-A31))/27+S31+T31,0),0)),0),0)*$X$5),1) -> 39 | AC31: 155 | AD31: =ROUNDDOWN((IF(AC32>0,IFERROR(IF(((((DataInput!Q31-AC31)+(DataInput!Q32-AC32))/2)*(A32-A31))/27+S31+T31>0,ROUNDDOWN(((((DataInput!Q31-AC31)+(DataInput!Q32-AC32))/2)*(A32-A31))/27+S31+T31,0),0),0),0)*$X$5),1) -> 204.1 | AE31: =DataInput!U31 -> 97 | AF31: =DataInput!S31 -> 37 | AG31: 51.8 | AH31: 45.2
A32: =IF(DataInput!A32<>"",DataInput!A32,"") -> 882475 | B32: =SUM(DataInput!C32,DataInput!Y32)+(DataInput!U32-DataInput!E32) -> 102 | C32: =SUM(DataInput!D32,DataInput!Z32) -> 13 | D32: =DataInput!U32 -> 89 | E32: =SUM(DataInput!F32,DataInput!AB32) -> 0 | F32: =SUM(DataInput!G32,DataInput!AC32) -> 0 | G32: =SUM(DataInput!H32,DataInput!AD32) -> 0 | H32: =DataInput!I32 -> 0 | I32: =SUM(DataInput!J32,DataInput!AF32) -> 0 | J32: =SUM(DataInput!K32,DataInput!AG32) -> 0 | K32: =SUM(DataInput!L32,DataInput!AH32) -> 0 | L32: =SUM(DataInput!M32,DataInput!AI32) -> 0 | M32: =SUM(DataInput!N32,DataInput!AJ32) -> 0 | N32: =SUM(DataInput!O32,DataInput!AK32) -> 0 | O32: =DataInput!P32 -> 0 | Q32: 13 | R32: =DataInput!R32 -> 150 | S32: =DataInput!Y32 -> 0 | T32: =IF(DataInput!U32-DataInput!E32>0,DataInput!U32-DataInput!E32,"") -> 60 | U32: =IF(DataInput!W32-DataInput!I32>0,DataInput!W32-DataInput!I32,"") ->  | W32: 210 | X32: 273 | Y32: -260 | Z32: 292 | AA32: 2130 | AB32: =ROUNDDOWN((IF(AA33>0,IFERROR(IF(AVERAGE(DataInput!Q32:Q33)>AVERAGE(AA33,AA32),ROUNDDOWN(((((AA32-Z32)+(AA33-Z33))/2)*(A33-A32))/27,0),IF(((((DataInput!Q33-Z33)+(DataInput!Q32-Z32))/2)*(A33-A32))/27+S32+T32>0,ROUNDDOWN(((((DataInput!Q33-Z33)+(DataInput!Q32-Z32))/2)*(A33-A32))/27+S32+T32,0),0)),0),0)*$X$5),1) -> 0 | AC32: 155 | AD32: =ROUNDDOWN((IF(AC33>0,IFERROR(IF(((((DataInput!Q32-AC32)+(DataInput!Q33-AC33))/2)*(A33-A32))/27+S32+T32>0,ROUNDDOWN(((((DataInput!Q32-AC32)+(DataInput!Q33-AC33))/2)*(A33-A32))/27+S32+T32,0),0),0),0)*$X$5),1) -> 85.8 | AE32: =DataInput!U32 -> 89 | AF32: =DataInput!S32 -> 32 | AG32: 44.8 | AH32: 44.2
A33: =IF(DataInput!A33<>"",DataInput!A33,"") -> 882500 | B33: =SUM(DataInput!C33,DataInput!Y33)+(DataInput!U33-DataInput!E33) -> 89 | C33: =SUM(DataInput!D33,DataInput!Z33) -> 11 | D33: =DataInput!U33 -> 78 | E33: =SUM(DataInput!F33,DataInput!AB33) -> 0 | F33: =SUM(DataInput!G33,DataInput!AC33) -> 0 | G33: =SUM(DataInput!H33,DataInput!AD33) -> 0 | H33: =DataInput!I33 -> 0 | I33: =SUM(DataInput!J33,DataInput!AF33) -> 0 | J33: =SUM(DataInput!K33,DataInput!AG33) -> 0 | K33: =SUM(DataInput!L33,DataInput!AH33) -> 0 | L33: =SUM(DataInput!M33,DataInput!AI33) -> 0 | M33: =SUM(DataInput!N33,DataInput!AJ33) -> 0 | N33: =SUM(DataInput!O33,DataInput!AK33) -> 0 | O33: =DataInput!P33 -> 0 | Q33: 11 | R33: =DataInput!R33 -> 74 | S33: =DataInput!Y33 -> 0 | T33: =IF(DataInput!U33-DataInput!E33>0,DataInput!U33-DataInput!E33,"") -> 52 | U33: =IF(DataInput!W33-DataInput!I33>0,DataInput!W33-DataInput!I33,"") ->  | W33: 126 | X33: 163.8 | Y33: -152.8 | Z33: 292 | AA33: 2130 | AB33: =ROUNDDOWN((IF(AA34>0,IFERROR(IF(AVERAGE(DataInput!Q33:Q34)>AVERAGE(AA34,AA33),ROUNDDOWN(((((AA33-Z33)+(AA34-Z34))/2)*(A34-A33))/27,0),IF(((((DataInput!Q34-Z34)+(DataInput!Q33-Z33))/2)*(A34-A33))/27+S33+T33>0,ROUNDDOWN(((((DataInput!Q34-Z34)+(DataInput!Q33-Z33))/2)*(A34-A33))/27+S33+T33,0),0)),0),0)*$X$5),1) -> 0 | AC33: 155 | AD33: =ROUNDDOWN((IF(AC34>0,IFERROR(IF(((((DataInput!Q33-AC33)+(DataInput!Q34-AC34))/2)*(A34-A33))/27+S33+T33>0,ROUNDDOWN(((((DataInput!Q33-AC33)+(DataInput!Q34-AC34))/2)*(A34-A33))/27+S33+T33,0),0),0),0)*$X$5),1) -> 0 | AE33: =DataInput!U33 -> 78 | AF33: =DataInput!S33 -> 24 | AG33: 33.6 | AH33: 44.4
A34: =IF(DataInput!A34<>"",DataInput!A34,"") -> 882525 | B34: =SUM(DataInput!C34,DataInput!Y34)+(DataInput!U34-DataInput!E34) -> 74 | C34: =SUM(DataInput!D34,DataInput!Z34) -> 7 | D34: =DataInput!U34 -> 66 | E34: =SUM(DataInput!F34,DataInput!AB34) -> 0 | F34: =SUM(DataInput!G34,DataInput!AC34) -> 0 | G34: =SUM(DataInput!H34,DataInput!AD34) -> 0 | H34: =DataInput!I34 -> 0 | I34: =SUM(DataInput!J34,DataInput!AF34) -> 0 | J34: =SUM(DataInput!K34,DataInput!AG34) -> 0 | K34: =SUM(DataInput!L34,DataInput!AH34) -> 0 | L34: =SUM(DataInput!M34,DataInput!AI34) -> 0 | M34: =SUM(DataInput!N34,DataInput!AJ34) -> 0 | N34: =SUM(DataInput!O34,DataInput!AK34) -> 0 | O34: =DataInput!P34 -> 0 | Q34: 7 | R34: =DataInput!R34 -> 20 | S34: =DataInput!Y34 -> 0 | T34: =IF(DataInput!U34-DataInput!E34>0,DataInput!U34-DataInput!E34,"") -> 42 | U34: =IF(DataInput!W34-DataInput!I34>0,DataInput!W34-DataInput!I34,"") ->  | W34: 62 | X34: 80.6 | Y34: -73.6 | Z34: 292 | AA34: 2130 | AB34: =ROUNDDOWN((IF(AA35>0,IFERROR(IF(AVERAGE(DataInput!Q34:Q35)>AVERAGE(AA35,AA34),ROUNDDOWN(((((AA34-Z34)+(AA35-Z35))/2)*(A35-A34))/27,0),IF(((((DataInput!Q35-Z35)+(DataInput!Q34-Z34))/2)*(A35-A34))/27+S34+T34>0,ROUNDDOWN(((((DataInput!Q35-Z35)+(DataInput!Q34-Z34))/2)*(A35-A34))/27+S34+T34,0),0)),0),0)*$X$5),1) -> 0 | AC34: 155 | AD34: =ROUNDDOWN((IF(AC35>0,IFERROR(IF(((((DataInput!Q34-AC34)+(DataInput!Q35-AC35))/2)*(A35-A34))/27+S34+T34>0,ROUNDDOWN(((((DataInput!Q34-AC34)+(DataInput!Q35-AC35))/2)*(A35-A34))/27+S34+T34,0),0),0),0)*$X$5),1) -> 0 | AE34: =DataInput!U34 -> 66 | AF34: =DataInput!S34 -> 15 | AG34: 21 | AH34: 45
A35: =IF(DataInput!A35<>"",DataInput!A35,"") -> 882550 | B35: =SUM(DataInput!C35,DataInput!Y35)+(DataInput!U35-DataInput!E35) -> 82 | C35: =SUM(DataInput!D35,DataInput!Z35) -> 13 | D35: =DataInput!U35 -> 69 | E35: =SUM(DataInput!F35,DataInput!AB35) -> 0 | F35: =SUM(DataInput!G35,DataInput!AC35) -> 0 | G35: =SUM(DataInput!H35,DataInput!AD35) -> 0 | H35: =DataInput!I35 -> 0 | I35: =SUM(DataInput!J35,DataInput!AF35) -> 0 | J35: =SUM(DataInput!K35,DataInput!AG35) -> 0 | K35: =SUM(DataInput!L35,DataInput!AH35) -> 0 | L35: =SUM(DataInput!M35,DataInput!AI35) -> 0 | M35: =SUM(DataInput!N35,DataInput!AJ35) -> 0 | N35: =SUM(DataInput!O35,DataInput!AK35) -> 0 | O35: =DataInput!P35 -> 0 | Q35: 13 | R35: =DataInput!R35 -> 0 | S35: =DataInput!Y35 -> 0 | T35: =IF(DataInput!U35-DataInput!E35>0,DataInput!U35-DataInput!E35,"") -> 19 | U35: =IF(DataInput!W35-DataInput!I35>0,DataInput!W35-DataInput!I35,"") ->  | W35: 19 | X35: 24.7 | Y35: -11.7 | Z35: 292 | AA35: 2130 | AB35: =ROUNDDOWN((IF(AA36>0,IFERROR(IF(AVERAGE(DataInput!Q35:Q36)>AVERAGE(AA36,AA35),ROUNDDOWN(((((AA35-Z35)+(AA36-Z36))/2)*(A36-A35))/27,0),IF(((((DataInput!Q36-Z36)+(DataInput!Q35-Z35))/2)*(A36-A35))/27+S35+T35>0,ROUNDDOWN(((((DataInput!Q36-Z36)+(DataInput!Q35-Z35))/2)*(A36-A35))/27+S35+T35,0),0)),0),0)*$X$5),1) -> 0 | AC35: 155 | AD35: =ROUNDDOWN((IF(AC36>0,IFERROR(IF(((((DataInput!Q35-AC35)+(DataInput!Q36-AC36))/2)*(A36-A35))/27+S35+T35>0,ROUNDDOWN(((((DataInput!Q35-AC35)+(DataInput!Q36-AC36))/2)*(A36-A35))/27+S35+T35,0),0),0),0)*$X$5),1) -> 0 | AE35: =DataInput!U35 -> 69 | AF35: =DataInput!S35 -> 12 | AG35: 16.8 | AH35: 52.2
A36: =IF(DataInput!A36<>"",DataInput!A36,"") -> 882575 | B36: =SUM(DataInput!C36,DataInput!Y36)+(DataInput!U36-DataInput!E36) -> 138 | C36: =SUM(DataInput!D36,DataInput!Z36) -> 43 | D36: =DataInput!U36 -> 96 | E36: =SUM(DataInput!F36,DataInput!AB36) -> 0 | F36: =SUM(DataInput!G36,DataInput!AC36) -> 0 | G36: =SUM(DataInput!H36,DataInput!AD36) -> 0 | H36: =DataInput!I36 -> 0 | I36: =SUM(DataInput!J36,DataInput!AF36) -> 0 | J36: =SUM(DataInput!K36,DataInput!AG36) -> 0 | K36: =SUM(DataInput!L36,DataInput!AH36) -> 0 | L36: =SUM(DataInput!M36,DataInput!AI36) -> 0 | M36: =SUM(DataInput!N36,DataInput!AJ36) -> 0 | N36: =SUM(DataInput!O36,DataInput!AK36) -> 0 | O36: =DataInput!P36 -> 0 | Q36: 43 | R36: =DataInput!R36 -> 0 | S36: =DataInput!Y36 -> 0 | T36: =IF(DataInput!U36-DataInput!E36>0,DataInput!U36-DataInput!E36,"") -> 1 | U36: =IF(DataInput!W36-DataInput!I36>0,DataInput!W36-DataInput!I36,"") ->  | W36: 1 | X36: 1.3 | Y36: 41.7 | Z36: 292 | AA36: 2130 | AB36: =ROUNDDOWN((IF(AA37>0,IFERROR(IF(AVERAGE(DataInput!Q36:Q37)>AVERAGE(AA37,AA36),ROUNDDOWN(((((AA36-Z36)+(AA37-Z37))/2)*(A37-A36))/27,0),IF(((((DataInput!Q37-Z37)+(DataInput!Q36-Z36))/2)*(A37-A36))/27+S36+T36>0,ROUNDDOWN(((((DataInput!Q37-Z37)+(DataInput!Q36-Z36))/2)*(A37-A36))/27+S36+T36,0),0)),0),0)*$X$5),1) -> 0 | AC36: 155 | AD36: =ROUNDDOWN((IF(AC37>0,IFERROR(IF(((((DataInput!Q36-AC36)+(DataInput!Q37-AC37))/2)*(A37-A36))/27+S36+T36>0,ROUNDDOWN(((((DataInput!Q36-AC36)+(DataInput!Q37-AC37))/2)*(A37-A36))/27+S36+T36,0),0),0),0)*$X$5),1) -> 0 | AE36: =DataInput!U36 -> 96 | AF36: =DataInput!S36 -> 7 | AG36: 9.8 | AH36: 86.2
A37: =IF(DataInput!A37<>"",DataInput!A37,"") -> 882600 | B37: =SUM(DataInput!C37,DataInput!Y37)+(DataInput!U37-DataInput!E37) -> 30 | C37: =SUM(DataInput!D37,DataInput!Z37) -> 30 | D37: =DataInput!U37 -> 0 | E37: =SUM(DataInput!F37,DataInput!AB37) -> 0 | F37: =SUM(DataInput!G37,DataInput!AC37) -> 0 | G37: =SUM(DataInput!H37,DataInput!AD37) -> 0 | H37: =DataInput!I37 -> 0 | I37: =SUM(DataInput!J37,DataInput!AF37) -> 0 | J37: =SUM(DataInput!K37,DataInput!AG37) -> 0 | K37: =SUM(DataInput!L37,DataInput!AH37) -> 0 | L37: =SUM(DataInput!M37,DataInput!AI37) -> 0 | M37: =SUM(DataInput!N37,DataInput!AJ37) -> 0 | N37: =SUM(DataInput!O37,DataInput!AK37) -> 0 | O37: =DataInput!P37 -> 0 | Q37: 30 | R37: =DataInput!R37 -> 0 | S37: =DataInput!Y37 -> 0 | T37: =IF(DataInput!U37-DataInput!E37>0,DataInput!U37-DataInput!E37,"") ->  | U37: =IF(DataInput!W37-DataInput!I37>0,DataInput!W37-DataInput!I37,"") ->  | W37: 0 | X37: 0 | Y37: 30 | Z37: 292 | AA37: 2130 | AB37: =ROUNDDOWN((IF(AA38>0,IFERROR(IF(AVERAGE(DataInput!Q37:Q38)>AVERAGE(AA38,AA37),ROUNDDOWN(((((AA37-Z37)+(AA38-Z38))/2)*(A38-A37))/27,0),IF(((((DataInput!Q38-Z38)+(DataInput!Q37-Z37))/2)*(A38-A37))/27+S37+T37>0,ROUNDDOWN(((((DataInput!Q38-Z38)+(DataInput!Q37-Z37))/2)*(A38-A37))/27+S37+T37,0),0)),0),0)*$X$5),1) -> 0 | AC37: 155 | AD37: =ROUNDDOWN((IF(AC38>0,IFERROR(IF(((((DataInput!Q37-AC37)+(DataInput!Q38-AC38))/2)*(A38-A37))/27+S37+T37>0,ROUNDDOWN(((((DataInput!Q37-AC37)+(DataInput!Q38-AC38))/2)*(A38-A37))/27+S37+T37,0),0),0),0)*$X$5),1) -> 0 | AE37: =DataInput!U37 -> 0 | AF37: =DataInput!S37 -> 0 | AG37: 0 | AH37: 0
A38: =IF(DataInput!A38<>"",DataInput!A38,"") -> 882605.5
A40: =IF(DataInput!A40<>"",DataInput!A40,"") -> STG1_Trail
A41: =IF(DataInput!A41<>"",DataInput!A41,"") -> 880150 | B41: =SUM(DataInput!C41,DataInput!Y41)+(DataInput!U41-DataInput!E41) -> 20 | C41: =SUM(DataInput!D41,DataInput!Z41) -> 10 | D41: =DataInput!U41 -> 10 | E41: =SUM(DataInput!F41,DataInput!AB41) -> 0 | F41: =SUM(DataInput!G41,DataInput!AC41) -> 0 | G41: =SUM(DataInput!H41,DataInput!AD41) -> 0 | H41: =DataInput!I41 -> 5 | I41: =SUM(DataInput!J41,DataInput!AF41) -> 0 | J41: =SUM(DataInput!K41,DataInput!AG41) -> 0 | K41: =SUM(DataInput!L41,DataInput!AH41) -> 0 | L41: =SUM(DataInput!M41,DataInput!AI41) -> 0 | M41: =SUM(DataInput!N41,DataInput!AJ41) -> 0 | N41: =SUM(DataInput!O41,DataInput!AK41) -> 0 | O41: =DataInput!P41 -> 0 | Q41: =SUM(C41,E41:G41,I41:L41,O41:P41) -> 10 | R41: =DataInput!R41 -> 0 | S41: =DataInput!Y41 -> 0 | T41: =IF(DataInput!U41-DataInput!E41>0,DataInput!U41-DataInput!E41,"") -> 4 | U41: =IF(DataInput!W41-DataInput!I41>0,DataInput!W41-DataInput!I41,"") ->  | W41: =SUM(R41:V41) -> 4 | X41: =ROUNDUP(($W41*$X$5),1) -> 5.2 | Y41: =ROUNDUP(SUM(Q41-X41),1) -> 4.8 | AB41: =ROUNDDOWN((IF(AA42>0,IFERROR(IF(AVERAGE(DataInput!Q41:Q42)>AVERAGE(AA42,AA41),ROUNDDOWN(((((AA41-Z41)+(AA42-Z42))/2)*(A42-A41))/27,0),IF(((((DataInput!Q42-Z42)+(DataInput!Q41-Z41))/2)*(A42-A41))/27+S41+T41>0,ROUNDDOWN(((((DataInput!Q42-Z42)+(DataInput!Q41-Z41))/2)*(A42-A41))/27+S41+T41,0),0)),0),0)*$X$5),1) -> 0 | AD41: =ROUNDDOWN((IF(AC42>0,IFERROR(IF(((((DataInput!Q41-AC41)+(DataInput!Q42-AC42))/2)*(A42-A41))/27+S41+T41>0,ROUNDDOWN(((((DataInput!Q41-AC41)+(DataInput!Q42-AC42))/2)*(A42-A41))/27+S41+T41,0),0),0),0)*$X$5),1) -> 0 | AE41: =DataInput!U41 -> 10 | AF41: =DataInput!S41 -> 3 | AG41: =ROUNDUP((AF41*$AG$5),1) -> 4.2 | AH41: =ROUNDUP((AE41-AG41),1) -> 5.8
A42: =IF(DataInput!A42<>"",DataInput!A42,"") -> 880175 | B42: =SUM(DataInput!C42,DataInput!Y42)+(DataInput!U42-DataInput!E42) -> 23 | C42: =SUM(DataInput!D42,DataInput!Z42) -> 9 | D42: =DataInput!U42 -> 14 | E42: =SUM(DataInput!F42,DataInput!AB42) -> 0 | F42: =SUM(DataInput!G42,DataInput!AC42) -> 0 | G42: =SUM(DataInput!H42,DataInput!AD42) -> 0 | H42: =DataInput!I42 -> 5 | I42: =SUM(DataInput!J42,DataInput!AF42) -> 0 | J42: =SUM(DataInput!K42,DataInput!AG42) -> 0 | K42: =SUM(DataInput!L42,DataInput!AH42) -> 0 | L42: =SUM(DataInput!M42,DataInput!AI42) -> 0 | M42: =SUM(DataInput!N42,DataInput!AJ42) -> 0 | N42: =SUM(DataInput!O42,DataInput!AK42) -> 0 | O42: =DataInput!P42 -> 0 | Q42: =SUM(C42,E42:G42,I42:L42,O42:P42) -> 9 | R42: =DataInput!R42 -> 0 | S42: =DataInput!Y42 -> 0 | T42: =IF(DataInput!U42-DataInput!E42>0,DataInput!U42-DataInput!E42,"") -> 4 | U42: =IF(DataInput!W42-DataInput!I42>0,DataInput!W42-DataInput!I42,"") -> 1 | W42: =SUM(R42:V42) -> 5 | X42: =ROUNDUP(($W42*$X$5),1) -> 6.5 | Y42: =ROUNDUP(SUM(Q42-X42),1) -> 2.5 | Z42: =Z41 -> 0 | AA42: =AA41 -> 0 | AB42: =ROUNDDOWN((IF(AA43>0,IFERROR(IF(AVERAGE(DataInput!Q42:Q43)>AVERAGE(AA43,AA42),ROUNDDOWN(((((AA42-Z42)+(AA43-Z43))/2)*(A43-A42))/27,0),IF(((((DataInput!Q43-Z43)+(DataInput!Q42-Z42))/2)*(A43-A42))/27+S42+T42>0,ROUNDDOWN(((((DataInput!Q43-Z43)+(DataInput!Q42-Z42))/2)*(A43-A42))/27+S42+T42,0),0)),0),0)*$X$5),1) -> 0 | AC42: =AC41 -> 0 | AD42: =ROUNDDOWN((IF(AC43>0,IFERROR(IF(((((DataInput!Q42-AC42)+(DataInput!Q43-AC43))/2)*(A43-A42))/27+S42+T42>0,ROUNDDOWN(((((DataInput!Q42-AC42)+(DataInput!Q43-AC43))/2)*(A43-A42))/27+S42+T42,0),0),0),0)*$X$5),1) -> 0 | AE42: =DataInput!U42 -> 14 | AF42: =DataInput!S42 -> 5 | AG42: =ROUNDUP((AF42*$AG$5),1) -> 7 | AH42: =ROUNDUP((AE42-AG42),1) -> 7
A43: =IF(DataInput!A43<>"",DataInput!A43,"") -> 880200 | B43: =SUM(DataInput!C43,DataInput!Y43)+(DataInput!U43-DataInput!E43) -> 32 | C43: =SUM(DataInput!D43,DataInput!Z43) -> 10 | D43: =DataInput!U43 -> 23 | E43: =SUM(DataInput!F43,DataInput!AB43) -> 0 | F43: =SUM(DataInput!G43,DataInput!AC43) -> 0 | G43: =SUM(DataInput!H43,DataInput!AD43) -> 0 | H43: =DataInput!I43 -> 4 | I43: =SUM(DataInput!J43,DataInput!AF43) -> 0 | J43: =SUM(DataInput!K43,DataInput!AG43) -> 0 | K43: =SUM(DataInput!L43,DataInput!AH43) -> 0 | L43: =SUM(DataInput!M43,DataInput!AI43) -> 0 | M43: =SUM(DataInput!N43,DataInput!AJ43) -> 0 | N43: =SUM(DataInput!O43,DataInput!AK43) -> 0 | O43: =DataInput!P43 -> 0 | Q43: 10 | R43: =DataInput!R43 -> 0 | S43: =DataInput!Y43 -> 0 | T43: =IF(DataInput!U43-DataInput!E43>0,DataInput!U43-DataInput!E43,"") -> 6 | U43: =IF(DataInput!W43-DataInput!I43>0,DataInput!W43-DataInput!I43,"") -> 2 | W43: 8 | X43: 10.4 | Y43: -0.4 | Z43: =Z42 -> 0 | AA43: =AA42 -> 0 | AB43: =ROUNDDOWN((IF(AA44>0,IFERROR(IF(AVERAGE(DataInput!Q43:Q44)>AVERAGE(AA44,AA43),ROUNDDOWN(((((AA43-Z43)+(AA44-Z44))/2)*(A44-A43))/27,0),IF(((((DataInput!Q44-Z44)+(DataInput!Q43-Z43))/2)*(A44-A43))/27+S43+T43>0,ROUNDDOWN(((((DataInput!Q44-Z44)+(DataInput!Q43-Z43))/2)*(A44-A43))/27+S43+T43,0),0)),0),0)*$X$5),1) -> 0 | AC43: =AC42 -> 0 | AD43: =ROUNDDOWN((IF(AC44>0,IFERROR(IF(((((DataInput!Q43-AC43)+(DataInput!Q44-AC44))/2)*(A44-A43))/27+S43+T43>0,ROUNDDOWN(((((DataInput!Q43-AC43)+(DataInput!Q44-AC44))/2)*(A44-A43))/27+S43+T43,0),0),0),0)*$X$5),1) -> 0 | AE43: =DataInput!U43 -> 23 | AF43: =DataInput!S43 -> 9 | AG43: 12.6 | AH43: 10.4
A44: =IF(DataInput!A44<>"",DataInput!A44,"") -> 880225 | B44: =SUM(DataInput!C44,DataInput!Y44)+(DataInput!U44-DataInput!E44) -> 43 | C44: =SUM(DataInput!D44,DataInput!Z44) -> 11 | D44: =DataInput!U44 -> 32 | E44: =SUM(DataInput!F44,DataInput!AB44) -> 0 | F44: =SUM(DataInput!G44,DataInput!AC44) -> 0 | G44: =SUM(DataInput!H44,DataInput!AD44) -> 0 | H44: =DataInput!I44 -> 2 | I44: =SUM(DataInput!J44,DataInput!AF44) -> 0 | J44: =SUM(DataInput!K44,DataInput!AG44) -> 0 | K44: =SUM(DataInput!L44,DataInput!AH44) -> 0 | L44: =SUM(DataInput!M44,DataInput!AI44) -> 0 | M44: =SUM(DataInput!N44,DataInput!AJ44) -> 0 | N44: =SUM(DataInput!O44,DataInput!AK44) -> 0 | O44: =DataInput!P44 -> 0 | Q44: 11 | R44: =DataInput!R44 -> 1 | S44: =DataInput!Y44 -> 0 | T44: =IF(DataInput!U44-DataInput!E44>0,DataInput!U44-DataInput!E44,"") -> 11 | U44: =IF(DataInput!W44-DataInput!I44>0,DataInput!W44-DataInput!I44,"") -> 6 | W44: 18 | X44: 23.4 | Y44: -12.4 | Z44: 0 | AA44: 0 | AB44: =ROUNDDOWN((IF(AA45>0,IFERROR(IF(AVERAGE(DataInput!Q44:Q45)>AVERAGE(AA45,AA44),ROUNDDOWN(((((AA44-Z44)+(AA45-Z45))/2)*(A45-A44))/27,0),IF(((((DataInput!Q45-Z45)+(DataInput!Q44-Z44))/2)*(A45-A44))/27+S44+T44>0,ROUNDDOWN(((((DataInput!Q45-Z45)+(DataInput!Q44-Z44))/2)*(A45-A44))/27+S44+T44,0),0)),0),0)*$X$5),1) -> 0 | AC44: 0 | AD44: =ROUNDDOWN((IF(AC45>0,IFERROR(IF(((((DataInput!Q44-AC44)+(DataInput!Q45-AC45))/2)*(A45-A44))/27+S44+T44>0,ROUNDDOWN(((((DataInput!Q44-AC44)+(DataInput!Q45-AC45))/2)*(A45-A44))/27+S44+T44,0),0),0),0)*$X$5),1) -> 0 | AE44: =DataInput!U44 -> 32 | AF44: =DataInput!S44 -> 11 | AG44: 15.4 | AH44: 16.6
A45: =IF(DataInput!A45<>"",DataInput!A45,"") -> 880250 | B45: =SUM(DataInput!C45,DataInput!Y45)+(DataInput!U45-DataInput!E45) -> 42 | C45: =SUM(DataInput!D45,DataInput!Z45) -> 9 | D45: =DataInput!U45 -> 33 | E45: =SUM(DataInput!F45,DataInput!AB45) -> 0 | F45: =SUM(DataInput!G45,DataInput!AC45) -> 0 | G45: =SUM(DataInput!H45,DataInput!AD45) -> 0 | H45: =DataInput!I45 -> 0 | I45: =SUM(DataInput!J45,DataInput!AF45) -> 0 | J45: =SUM(DataInput!K45,DataInput!AG45) -> 0 | K45: =SUM(DataInput!L45,DataInput!AH45) -> 0 | L45: =SUM(DataInput!M45,DataInput!AI45) -> 0 | M45: =SUM(DataInput!N45,DataInput!AJ45) -> 0 | N45: =SUM(DataInput!O45,DataInput!AK45) -> 0 | O45: =DataInput!P45 -> 0 | Q45: 9 | R45: =DataInput!R45 -> 1 | S45: =DataInput!Y45 -> 0 | T45: =IF(DataInput!U45-DataInput!E45>0,DataInput!U45-DataInput!E45,"") -> 10 | U45: =IF(DataInput!W45-DataInput!I45>0,DataInput!W45-DataInput!I45,"") ->  | W45: 11 | X45: 14.3 | Y45: -5.3 | Z45: 0 | AA45: 0 | AB45: =ROUNDDOWN((IF(AA46>0,IFERROR(IF(AVERAGE(DataInput!Q45:Q46)>AVERAGE(AA46,AA45),ROUNDDOWN(((((AA45-Z45)+(AA46-Z46))/2)*(A46-A45))/27,0),IF(((((DataInput!Q46-Z46)+(DataInput!Q45-Z45))/2)*(A46-A45))/27+S45+T45>0,ROUNDDOWN(((((DataInput!Q46-Z46)+(DataInput!Q45-Z45))/2)*(A46-A45))/27+S45+T45,0),0)),0),0)*$X$5),1) -> 0 | AC45: 0 | AD45: =ROUNDDOWN((IF(AC46>0,IFERROR(IF(((((DataInput!Q45-AC45)+(DataInput!Q46-AC46))/2)*(A46-A45))/27+S45+T45>0,ROUNDDOWN(((((DataInput!Q45-AC45)+(DataInput!Q46-AC46))/2)*(A46-A45))/27+S45+T45,0),0),0),0)*$X$5),1) -> 0 | AE45: =DataInput!U45 -> 33 | AF45: =DataInput!S45 -> 11 | AG45: 15.4 | AH45: 17.6
A46: =IF(DataInput!A46<>"",DataInput!A46,"") -> 880275 | B46: =SUM(DataInput!C46,DataInput!Y46)+(DataInput!U46-DataInput!E46) -> 44 | C46: =SUM(DataInput!D46,DataInput!Z46) -> 10 | D46: =DataInput!U46 -> 34 | E46: =SUM(DataInput!F46,DataInput!AB46) -> 0 | F46: =SUM(DataInput!G46,DataInput!AC46) -> 0 | G46: =SUM(DataInput!H46,DataInput!AD46) -> 0 | H46: =DataInput!I46 -> 0 | I46: =SUM(DataInput!J46,DataInput!AF46) -> 0 | J46: =SUM(DataInput!K46,DataInput!AG46) -> 0 | K46: =SUM(DataInput!L46,DataInput!AH46) -> 0 | L46: =SUM(DataInput!M46,DataInput!AI46) -> 0 | M46: =SUM(DataInput!N46,DataInput!AJ46) -> 0 | N46: =SUM(DataInput!O46,DataInput!AK46) -> 0 | O46: =DataInput!P46 -> 0 | Q46: 10 | R46: =DataInput!R46 -> 1 | S46: =DataInput!Y46 -> 0 | T46: =IF(DataInput!U46-DataInput!E46>0,DataInput!U46-DataInput!E46,"") -> 7 | U46: =IF(DataInput!W46-DataInput!I46>0,DataInput!W46-DataInput!I46,"") ->  | W46: 8 | X46: 10.4 | Y46: -0.4 | Z46: 0 | AA46: 0 | AB46: =ROUNDDOWN((IF(AA47>0,IFERROR(IF(AVERAGE(DataInput!Q46:Q47)>AVERAGE(AA47,AA46),ROUNDDOWN(((((AA46-Z46)+(AA47-Z47))/2)*(A47-A46))/27,0),IF(((((DataInput!Q47-Z47)+(DataInput!Q46-Z46))/2)*(A47-A46))/27+S46+T46>0,ROUNDDOWN(((((DataInput!Q47-Z47)+(DataInput!Q46-Z46))/2)*(A47-A46))/27+S46+T46,0),0)),0),0)*$X$5),1) -> 0 | AC46: 0 | AD46: =ROUNDDOWN((IF(AC47>0,IFERROR(IF(((((DataInput!Q46-AC46)+(DataInput!Q47-AC47))/2)*(A47-A46))/27+S46+T46>0,ROUNDDOWN(((((DataInput!Q46-AC46)+(DataInput!Q47-AC47))/2)*(A47-A46))/27+S46+T46,0),0),0),0)*$X$5),1) -> 0 | AE46: =DataInput!U46 -> 34 | AF46: =DataInput!S46 -> 12 | AG46: 16.8 | AH46: 17.2
A47: =IF(DataInput!A47<>"",DataInput!A47,"") -> 880300 | B47: =SUM(DataInput!C47,DataInput!Y47)+(DataInput!U47-DataInput!E47) -> 73 | C47: =SUM(DataInput!D47,DataInput!Z47) -> 25 | D47: =DataInput!U47 -> 48 | E47: =SUM(DataInput!F47,DataInput!AB47) -> 0 | F47: =SUM(DataInput!G47,DataInput!AC47) -> 0 | G47: =SUM(DataInput!H47,DataInput!AD47) -> 0 | H47: =DataInput!I47 -> 0 | I47: =SUM(DataInput!J47,DataInput!AF47) -> 0 | J47: =SUM(DataInput!K47,DataInput!AG47) -> 0 | K47: =SUM(DataInput!L47,DataInput!AH47) -> 0 | L47: =SUM(DataInput!M47,DataInput!AI47) -> 0 | M47: =SUM(DataInput!N47,DataInput!AJ47) -> 0 | N47: =SUM(DataInput!O47,DataInput!AK47) -> 0 | O47: =DataInput!P47 -> 0 | Q47: 25 | R47: =DataInput!R47 -> 1 | S47: =DataInput!Y47 -> 0 | T47: =IF(DataInput!U47-DataInput!E47>0,DataInput!U47-DataInput!E47,"") -> 34 | U47: =IF(DataInput!W47-DataInput!I47>0,DataInput!W47-DataInput!I47,"") ->  | W47: 35 | X47: 45.5 | Y47: -20.5 | Z47: 0 | AA47: 0 | AB47: =ROUNDDOWN((IF(AA48>0,IFERROR(IF(AVERAGE(DataInput!Q47:Q48)>AVERAGE(AA48,AA47),ROUNDDOWN(((((AA47-Z47)+(AA48-Z48))/2)*(A48-A47))/27,0),IF(((((DataInput!Q48-Z48)+(DataInput!Q47-Z47))/2)*(A48-A47))/27+S47+T47>0,ROUNDDOWN(((((DataInput!Q48-Z48)+(DataInput!Q47-Z47))/2)*(A48-A47))/27+S47+T47,0),0)),0),0)*$X$5),1) -> 0 | AC47: 0 | AD47: =ROUNDDOWN((IF(AC48>0,IFERROR(IF(((((DataInput!Q47-AC47)+(DataInput!Q48-AC48))/2)*(A48-A47))/27+S47+T47>0,ROUNDDOWN(((((DataInput!Q47-AC47)+(DataInput!Q48-AC48))/2)*(A48-A47))/27+S47+T47,0),0),0),0)*$X$5),1) -> 0 | AE47: =DataInput!U47 -> 48 | AF47: =DataInput!S47 -> 13 | AG47: 18.2 | AH47: 29.8
A48: =IF(DataInput!A48<>"",DataInput!A48,"") -> 880325 | B48: =SUM(DataInput!C48,DataInput!Y48)+(DataInput!U48-DataInput!E48) -> 32 | C48: =SUM(DataInput!D48,DataInput!Z48) -> 32 | D48: =DataInput!U48 -> 0 | E48: =SUM(DataInput!F48,DataInput!AB48) -> 0 | F48: =SUM(DataInput!G48,DataInput!AC48) -> 0 | G48: =SUM(DataInput!H48,DataInput!AD48) -> 0 | H48: =DataInput!I48 -> 0 | I48: =SUM(DataInput!J48,DataInput!AF48) -> 0 | J48: =SUM(DataInput!K48,DataInput!AG48) -> 0 | K48: =SUM(DataInput!L48,DataInput!AH48) -> 0 | L48: =SUM(DataInput!M48,DataInput!AI48) -> 0 | M48: =SUM(DataInput!N48,DataInput!AJ48) -> 0 | N48: =SUM(DataInput!O48,DataInput!AK48) -> 0 | O48: =DataInput!P48 -> 0 | Q48: 32 | R48: =DataInput!R48 -> 2 | S48: =DataInput!Y48 -> 0 | T48: =IF(DataInput!U48-DataInput!E48>0,DataInput!U48-DataInput!E48,"") ->  | U48: =IF(DataInput!W48-DataInput!I48>0,DataInput!W48-DataInput!I48,"") ->  | W48: 2 | X48: 2.6 | Y48: 29.4 | Z48: 0 | AA48: 0 | AB48: =ROUNDDOWN((IF(AA49>0,IFERROR(IF(AVERAGE(DataInput!Q48:Q49)>AVERAGE(AA49,AA48),ROUNDDOWN(((((AA48-Z48)+(AA49-Z49))/2)*(A49-A48))/27,0),IF(((((DataInput!Q49-Z49)+(DataInput!Q48-Z48))/2)*(A49-A48))/27+S48+T48>0,ROUNDDOWN(((((DataInput!Q49-Z49)+(DataInput!Q48-Z48))/2)*(A49-A48))/27+S48+T48,0),0)),0),0)*$X$5),1) -> 0 | AC48: 0 | AD48: =ROUNDDOWN((IF(AC49>0,IFERROR(IF(((((DataInput!Q48-AC48)+(DataInput!Q49-AC49))/2)*(A49-A48))/27+S48+T48>0,ROUNDDOWN(((((DataInput!Q48-AC48)+(DataInput!Q49-AC49))/2)*(A49-A48))/27+S48+T48,0),0),0),0)*$X$5),1) -> 0 | AE48: =DataInput!U48 -> 0 | AF48: =DataInput!S48 -> 13 | AG48: 18.2 | AH48: -18.2
A49: =IF(DataInput!A49<>"",DataInput!A49,"") -> 880350 | B49: =SUM(DataInput!C49,DataInput!Y49)+(DataInput!U49-DataInput!E49) -> 24 | C49: =SUM(DataInput!D49,DataInput!Z49) -> 24 | D49: =DataInput!U49 -> 0 | E49: =SUM(DataInput!F49,DataInput!AB49) -> 0 | F49: =SUM(DataInput!G49,DataInput!AC49) -> 0 | G49: =SUM(DataInput!H49,DataInput!AD49) -> 0 | H49: =DataInput!I49 -> 0 | I49: =SUM(DataInput!J49,DataInput!AF49) -> 0 | J49: =SUM(DataInput!K49,DataInput!AG49) -> 0 | K49: =SUM(DataInput!L49,DataInput!AH49) -> 0 | L49: =SUM(DataInput!M49,DataInput!AI49) -> 0 | M49: =SUM(DataInput!N49,DataInput!AJ49) -> 0 | N49: =SUM(DataInput!O49,DataInput!AK49) -> 0 | O49: =DataInput!P49 -> 0 | Q49: 24 | R49: =DataInput!R49 -> 6 | S49: =DataInput!Y49 -> 0 | T49: =IF(DataInput!U49-DataInput!E49>0,DataInput!U49-DataInput!E49,"") ->  | U49: =IF(DataInput!W49-DataInput!I49>0,DataInput!W49-DataInput!I49,"") ->  | W49: 6 | X49: 7.8 | Y49: 16.2 | Z49: 0 | AA49: 0 | AB49: =ROUNDDOWN((IF(AA50>0,IFERROR(IF(AVERAGE(DataInput!Q49:Q50)>AVERAGE(AA50,AA49),ROUNDDOWN(((((AA49-Z49)+(AA50-Z50))/2)*(A50-A49))/27,0),IF(((((DataInput!Q50-Z50)+(DataInput!Q49-Z49))/2)*(A50-A49))/27+S49+T49>0,ROUNDDOWN(((((DataInput!Q50-Z50)+(DataInput!Q49-Z49))/2)*(A50-A49))/27+S49+T49,0),0)),0),0)*$X$5),1) -> 0 | AC49: 0 | AD49: =ROUNDDOWN((IF(AC50>0,IFERROR(IF(((((DataInput!Q49-AC49)+(DataInput!Q50-AC50))/2)*(A50-A49))/27+S49+T49>0,ROUNDDOWN(((((DataInput!Q49-AC49)+(DataInput!Q50-AC50))/2)*(A50-A49))/27+S49+T49,0),0),0),0)*$X$5),1) -> 0 | AE49: =DataInput!U49 -> 0 | AF49: =DataInput!S49 -> 13 | AG49: 18.2 | AH49: -18.2
A50: =IF(DataInput!A50<>"",DataInput!A50,"") -> 880375 | B50: =SUM(DataInput!C50,DataInput!Y50)+(DataInput!U50-DataInput!E50) -> 11 | C50: =SUM(DataInput!D50,DataInput!Z50) -> 11 | D50: =DataInput!U50 -> 0 | E50: =SUM(DataInput!F50,DataInput!AB50) -> 0 | F50: =SUM(DataInput!G50,DataInput!AC50) -> 0 | G50: =SUM(DataInput!H50,DataInput!AD50) -> 0 | H50: =DataInput!I50 -> 0 | I50: =SUM(DataInput!J50,DataInput!AF50) -> 0 | J50: =SUM(DataInput!K50,DataInput!AG50) -> 0 | K50: =SUM(DataInput!L50,DataInput!AH50) -> 0 | L50: =SUM(DataInput!M50,DataInput!AI50) -> 0 | M50: =SUM(DataInput!N50,DataInput!AJ50) -> 0 | N50: =SUM(DataInput!O50,DataInput!AK50) -> 0 | O50: =DataInput!P50 -> 0 | Q50: 11 | R50: =DataInput!R50 -> 23 | S50: =DataInput!Y50 -> 0 | T50: =IF(DataInput!U50-DataInput!E50>0,DataInput!U50-DataInput!E50,"") ->  | U50: =IF(DataInput!W50-DataInput!I50>0,DataInput!W50-DataInput!I50,"") ->  | W50: 23 | X50: 29.9 | Y50: -18.9 | Z50: 0 | AA50: 0 | AB50: =ROUNDDOWN((IF(AA51>0,IFERROR(IF(AVERAGE(DataInput!Q50:Q51)>AVERAGE(AA51,AA50),ROUNDDOWN(((((AA50-Z50)+(AA51-Z51))/2)*(A51-A50))/27,0),IF(((((DataInput!Q51-Z51)+(DataInput!Q50-Z50))/2)*(A51-A50))/27+S50+T50>0,ROUNDDOWN(((((DataInput!Q51-Z51)+(DataInput!Q50-Z50))/2)*(A51-A50))/27+S50+T50,0),0)),0),0)*$X$5),1) -> 0 | AC50: 0 | AD50: =ROUNDDOWN((IF(AC51>0,IFERROR(IF(((((DataInput!Q50-AC50)+(DataInput!Q51-AC51))/2)*(A51-A50))/27+S50+T50>0,ROUNDDOWN(((((DataInput!Q50-AC50)+(DataInput!Q51-AC51))/2)*(A51-A50))/27+S50+T50,0),0),0),0)*$X$5),1) -> 0 | AE50: =DataInput!U50 -> 0 | AF50: =DataInput!S50 -> 11 | AG50: 15.4 | AH50: -15.4
A51: =IF(DataInput!A51<>"",DataInput!A51,"") -> 880400 | B51: =SUM(DataInput!C51,DataInput!Y51)+(DataInput!U51-DataInput!E51) -> 3 | C51: =SUM(DataInput!D51,DataInput!Z51) -> 3 | D51: =DataInput!U51 -> 0 | E51: =SUM(DataInput!F51,DataInput!AB51) -> 0 | F51: =SUM(DataInput!G51,DataInput!AC51) -> 0 | G51: =SUM(DataInput!H51,DataInput!AD51) -> 0 | H51: =DataInput!I51 -> 0 | I51: =SUM(DataInput!J51,DataInput!AF51) -> 0 | J51: =SUM(DataInput!K51,DataInput!AG51) -> 0 | K51: =SUM(DataInput!L51,DataInput!AH51) -> 0 | L51: =SUM(DataInput!M51,DataInput!AI51) -> 0 | M51: =SUM(DataInput!N51,DataInput!AJ51) -> 0 | N51: =SUM(DataInput!O51,DataInput!AK51) -> 0 | O51: =DataInput!P51 -> 0 | Q51: 3 | R51: =DataInput!R51 -> 8 | S51: =DataInput!Y51 -> 0 | T51: =IF(DataInput!U51-DataInput!E51>0,DataInput!U51-DataInput!E51,"") ->  | U51: =IF(DataInput!W51-DataInput!I51>0,DataInput!W51-DataInput!I51,"") ->  | W51: 8 | X51: 10.4 | Y51: -7.4 | Z51: 0 | AA51: 0 | AB51: =ROUNDDOWN((IF(AA52>0,IFERROR(IF(AVERAGE(DataInput!Q51:Q52)>AVERAGE(AA52,AA51),ROUNDDOWN(((((AA51-Z51)+(AA52-Z52))/2)*(A52-A51))/27,0),IF(((((DataInput!Q52-Z52)+(DataInput!Q51-Z51))/2)*(A52-A51))/27+S51+T51>0,ROUNDDOWN(((((DataInput!Q52-Z52)+(DataInput!Q51-Z51))/2)*(A52-A51))/27+S51+T51,0),0)),0),0)*$X$5),1) -> 0 | AC51: 0 | AD51: =ROUNDDOWN((IF(AC52>0,IFERROR(IF(((((DataInput!Q51-AC51)+(DataInput!Q52-AC52))/2)*(A52-A51))/27+S51+T51>0,ROUNDDOWN(((((DataInput!Q51-AC51)+(DataInput!Q52-AC52))/2)*(A52-A51))/27+S51+T51,0),0),0),0)*$X$5),1) -> 0 | AE51: =DataInput!U51 -> 0 | AF51: =DataInput!S51 -> 2 | AG51: 2.8 | AH51: -2.8
A52: =IF(DataInput!A52<>"",DataInput!A52,"") -> 880410 | B52: =SUM(DataInput!C52,DataInput!Y52)+(DataInput!U52-DataInput!E52) -> 71 | C52: =SUM(DataInput!D52,DataInput!Z52) -> 71 | D52: =DataInput!U52 -> 0 | E52: =SUM(DataInput!F52,DataInput!AB52) -> 0 | F52: =SUM(DataInput!G52,DataInput!AC52) -> 0 | G52: =SUM(DataInput!H52,DataInput!AD52) -> 0 | H52: =DataInput!I52 -> 0 | I52: =SUM(DataInput!J52,DataInput!AF52) -> 0 | J52: =SUM(DataInput!K52,DataInput!AG52) -> 0 | K52: =SUM(DataInput!L52,DataInput!AH52) -> 0 | L52: =SUM(DataInput!M52,DataInput!AI52) -> 0 | M52: =SUM(DataInput!N52,DataInput!AJ52) -> 0 | N52: =SUM(DataInput!O52,DataInput!AK52) -> 0 | O52: =DataInput!P52 -> 0 | Q52: 71 | R52: =DataInput!R52 -> 398 | S52: =DataInput!Y52 -> 0 | T52: =IF(DataInput!U52-DataInput!E52>0,DataInput!U52-DataInput!E52,"") ->  | U52: =IF(DataInput!W52-DataInput!I52>0,DataInput!W52-DataInput!I52,"") ->  | W52: 398 | X52: 517.4 | Y52: -446.4 | Z52: 0 | AA52: 0 | AB52: =ROUNDDOWN((IF(AA53>0,IFERROR(IF(AVERAGE(DataInput!Q52:Q53)>AVERAGE(AA53,AA52),ROUNDDOWN(((((AA52-Z52)+(AA53-Z53))/2)*(A53-A52))/27,0),IF(((((DataInput!Q53-Z53)+(DataInput!Q52-Z52))/2)*(A53-A52))/27+S52+T52>0,ROUNDDOWN(((((DataInput!Q53-Z53)+(DataInput!Q52-Z52))/2)*(A53-A52))/27+S52+T52,0),0)),0),0)*$X$5),1) -> 0 | AC52: 0 | AD52: =ROUNDDOWN((IF(AC53>0,IFERROR(IF(((((DataInput!Q52-AC52)+(DataInput!Q53-AC53))/2)*(A53-A52))/27+S52+T52>0,ROUNDDOWN(((((DataInput!Q52-AC52)+(DataInput!Q53-AC53))/2)*(A53-A52))/27+S52+T52,0),0),0),0)*$X$5),1) -> 0 | AE52: =DataInput!U52 -> 0 | AF52: =DataInput!S52 -> 90 | AG52: 126 | AH52: -126
A53: =IF(DataInput!A53<>"",DataInput!A53,"") -> 880625 | B53: =SUM(DataInput!C53,DataInput!Y53)+(DataInput!U53-DataInput!E53) -> 117 | C53: =SUM(DataInput!D53,DataInput!Z53) -> 116 | D53: =DataInput!U53 -> 0 | E53: =SUM(DataInput!F53,DataInput!AB53) -> 0 | F53: =SUM(DataInput!G53,DataInput!AC53) -> 0 | G53: =SUM(DataInput!H53,DataInput!AD53) -> 0 | H53: =DataInput!I53 -> 0 | I53: =SUM(DataInput!J53,DataInput!AF53) -> 0 | J53: =SUM(DataInput!K53,DataInput!AG53) -> 0 | K53: =SUM(DataInput!L53,DataInput!AH53) -> 0 | L53: =SUM(DataInput!M53,DataInput!AI53) -> 0 | M53: =SUM(DataInput!N53,DataInput!AJ53) -> 0 | N53: =SUM(DataInput!O53,DataInput!AK53) -> 0 | O53: =DataInput!P53 -> 0 | Q53: 116 | R53: =DataInput!R53 -> 46 | S53: =DataInput!Y53 -> 0 | T53: =IF(DataInput!U53-DataInput!E53>0,DataInput!U53-DataInput!E53,"") ->  | U53: =IF(DataInput!W53-DataInput!I53>0,DataInput!W53-DataInput!I53,"") ->  | W53: 46 | X53: 59.8 | Y53: 56.2 | Z53: 0 | AA53: 0 | AB53: =ROUNDDOWN((IF(AA54>0,IFERROR(IF(AVERAGE(DataInput!Q53:Q54)>AVERAGE(AA54,AA53),ROUNDDOWN(((((AA53-Z53)+(AA54-Z54))/2)*(A54-A53))/27,0),IF(((((DataInput!Q54-Z54)+(DataInput!Q53-Z53))/2)*(A54-A53))/27+S53+T53>0,ROUNDDOWN(((((DataInput!Q54-Z54)+(DataInput!Q53-Z53))/2)*(A54-A53))/27+S53+T53,0),0)),0),0)*$X$5),1) -> 0 | AC53: 0 | AD53: =ROUNDDOWN((IF(AC54>0,IFERROR(IF(((((DataInput!Q53-AC53)+(DataInput!Q54-AC54))/2)*(A54-A53))/27+S53+T53>0,ROUNDDOWN(((((DataInput!Q53-AC53)+(DataInput!Q54-AC54))/2)*(A54-A53))/27+S53+T53,0),0),0),0)*$X$5),1) -> 0 | AE53: =DataInput!U53 -> 0 | AF53: =DataInput!S53 -> 31 | AG53: 43.4 | AH53: -43.4
A54: =IF(DataInput!A54<>"",DataInput!A54,"") -> 880650 | B54: =SUM(DataInput!C54,DataInput!Y54)+(DataInput!U54-DataInput!E54) -> 279 | C54: =SUM(DataInput!D54,DataInput!Z54) -> 209 | D54: =DataInput!U54 -> 69 | E54: =SUM(DataInput!F54,DataInput!AB54) -> 0 | F54: =SUM(DataInput!G54,DataInput!AC54) -> 0 | G54: =SUM(DataInput!H54,DataInput!AD54) -> 0 | H54: =DataInput!I54 -> 0 | I54: =SUM(DataInput!J54,DataInput!AF54) -> 0 | J54: =SUM(DataInput!K54,DataInput!AG54) -> 0 | K54: =SUM(DataInput!L54,DataInput!AH54) -> 0 | L54: =SUM(DataInput!M54,DataInput!AI54) -> 0 | M54: =SUM(DataInput!N54,DataInput!AJ54) -> 0 | N54: =SUM(DataInput!O54,DataInput!AK54) -> 0 | O54: =DataInput!P54 -> 0 | Q54: 209 | R54: =DataInput!R54 -> 0 | S54: =DataInput!Y54 -> 0 | T54: =IF(DataInput!U54-DataInput!E54>0,DataInput!U54-DataInput!E54,"") ->  | U54: =IF(DataInput!W54-DataInput!I54>0,DataInput!W54-DataInput!I54,"") ->  | W54: 0 | X54: 0 | Y54: 209 | Z54: 0 | AA54: 0 | AB54: =ROUNDDOWN((IF(AA55>0,IFERROR(IF(AVERAGE(DataInput!Q54:Q55)>AVERAGE(AA55,AA54),ROUNDDOWN(((((AA54-Z54)+(AA55-Z55))/2)*(A55-A54))/27,0),IF(((((DataInput!Q55-Z55)+(DataInput!Q54-Z54))/2)*(A55-A54))/27+S54+T54>0,ROUNDDOWN(((((DataInput!Q55-Z55)+(DataInput!Q54-Z54))/2)*(A55-A54))/27+S54+T54,0),0)),0),0)*$X$5),1) -> 0 | AC54: 0 | AD54: =ROUNDDOWN((IF(AC55>0,IFERROR(IF(((((DataInput!Q54-AC54)+(DataInput!Q55-AC55))/2)*(A55-A54))/27+S54+T54>0,ROUNDDOWN(((((DataInput!Q54-AC54)+(DataInput!Q55-AC55))/2)*(A55-A54))/27+S54+T54,0),0),0),0)*$X$5),1) -> 0 | AE54: =DataInput!U54 -> 69 | AF54: =DataInput!S54 -> 41 | AG54: 57.4 | AH54: 11.6
A55: =IF(DataInput!A55<>"",DataInput!A55,"") -> 880675 | B55: =SUM(DataInput!C55,DataInput!Y55)+(DataInput!U55-DataInput!E55) -> 232 | C55: =SUM(DataInput!D55,DataInput!Z55) -> 158 | D55: =DataInput!U55 -> 74 | E55: =SUM(DataInput!F55,DataInput!AB55) -> 0 | F55: =SUM(DataInput!G55,DataInput!AC55) -> 0 | G55: =SUM(DataInput!H55,DataInput!AD55) -> 0 | H55: =DataInput!I55 -> 0 | I55: =SUM(DataInput!J55,DataInput!AF55) -> 0 | J55: =SUM(DataInput!K55,DataInput!AG55) -> 0 | K55: =SUM(DataInput!L55,DataInput!AH55) -> 0 | L55: =SUM(DataInput!M55,DataInput!AI55) -> 0 | M55: =SUM(DataInput!N55,DataInput!AJ55) -> 0 | N55: =SUM(DataInput!O55,DataInput!AK55) -> 0 | O55: =DataInput!P55 -> 0 | Q55: 158 | R55: =DataInput!R55 -> 0 | S55: =DataInput!Y55 -> 0 | T55: =IF(DataInput!U55-DataInput!E55>0,DataInput!U55-DataInput!E55,"") ->  | U55: =IF(DataInput!W55-DataInput!I55>0,DataInput!W55-DataInput!I55,"") ->  | W55: 0 | X55: 0 | Y55: 158 | Z55: 0 | AA55: 0 | AB55: =ROUNDDOWN((IF(AA56>0,IFERROR(IF(AVERAGE(DataInput!Q55:Q56)>AVERAGE(AA56,AA55),ROUNDDOWN(((((AA55-Z55)+(AA56-Z56))/2)*(A56-A55))/27,0),IF(((((DataInput!Q56-Z56)+(DataInput!Q55-Z55))/2)*(A56-A55))/27+S55+T55>0,ROUNDDOWN(((((DataInput!Q56-Z56)+(DataInput!Q55-Z55))/2)*(A56-A55))/27+S55+T55,0),0)),0),0)*$X$5),1) -> 0 | AC55: 0 | AD55: =ROUNDDOWN((IF(AC56>0,IFERROR(IF(((((DataInput!Q55-AC55)+(DataInput!Q56-AC56))/2)*(A56-A55))/27+S55+T55>0,ROUNDDOWN(((((DataInput!Q55-AC55)+(DataInput!Q56-AC56))/2)*(A56-A55))/27+S55+T55,0),0),0),0)*$X$5),1) -> 0 | AE55: =DataInput!U55 -> 74 | AF55: =DataInput!S55 -> 36 | AG55: 50.4 | AH55: 23.6
A56: =IF(DataInput!A56<>"",DataInput!A56,"") -> 880700 | B56: =SUM(DataInput!C56,DataInput!Y56)+(DataInput!U56-DataInput!E56) -> 163 | C56: =SUM(DataInput!D56,DataInput!Z56) -> 97 | D56: =DataInput!U56 -> 65 | E56: =SUM(DataInput!F56,DataInput!AB56) -> 0 | F56: =SUM(DataInput!G56,DataInput!AC56) -> 0 | G56: =SUM(DataInput!H56,DataInput!AD56) -> 0 | H56: =DataInput!I56 -> 0 | I56: =SUM(DataInput!J56,DataInput!AF56) -> 0 | J56: =SUM(DataInput!K56,DataInput!AG56) -> 0 | K56: =SUM(DataInput!L56,DataInput!AH56) -> 0 | L56: =SUM(DataInput!M56,DataInput!AI56) -> 0 | M56: =SUM(DataInput!N56,DataInput!AJ56) -> 0 | N56: =SUM(DataInput!O56,DataInput!AK56) -> 0 | O56: =DataInput!P56 -> 0 | Q56: 97 | R56: =DataInput!R56 -> 0 | S56: =DataInput!Y56 -> 0 | T56: =IF(DataInput!U56-DataInput!E56>0,DataInput!U56-DataInput!E56,"") -> 2 | U56: =IF(DataInput!W56-DataInput!I56>0,DataInput!W56-DataInput!I56,"") ->  | W56: 2 | X56: 2.6 | Y56: 94.4 | Z56: 0 | AA56: 0 | AB56: =ROUNDDOWN((IF(AA57>0,IFERROR(IF(AVERAGE(DataInput!Q56:Q57)>AVERAGE(AA57,AA56),ROUNDDOWN(((((AA56-Z56)+(AA57-Z57))/2)*(A57-A56))/27,0),IF(((((DataInput!Q57-Z57)+(DataInput!Q56-Z56))/2)*(A57-A56))/27+S56+T56>0,ROUNDDOWN(((((DataInput!Q57-Z57)+(DataInput!Q56-Z56))/2)*(A57-A56))/27+S56+T56,0),0)),0),0)*$X$5),1) -> 0 | AC56: 0 | AD56: =ROUNDDOWN((IF(AC57>0,IFERROR(IF(((((DataInput!Q56-AC56)+(DataInput!Q57-AC57))/2)*(A57-A56))/27+S56+T56>0,ROUNDDOWN(((((DataInput!Q56-AC56)+(DataInput!Q57-AC57))/2)*(A57-A56))/27+S56+T56,0),0),0),0)*$X$5),1) -> 0 | AE56: =DataInput!U56 -> 65 | AF56: =DataInput!S56 -> 30 | AG56: 42 | AH56: 23
A57: =IF(DataInput!A57<>"",DataInput!A57,"") -> 880725 | B57: =SUM(DataInput!C57,DataInput!Y57)+(DataInput!U57-DataInput!E57) -> 108 | C57: =SUM(DataInput!D57,DataInput!Z57) -> 51 | D57: =DataInput!U57 -> 57 | E57: =SUM(DataInput!F57,DataInput!AB57) -> 0 | F57: =SUM(DataInput!G57,DataInput!AC57) -> 0 | G57: =SUM(DataInput!H57,DataInput!AD57) -> 0 | H57: =DataInput!I57 -> 0 | I57: =SUM(DataInput!J57,DataInput!AF57) -> 0 | J57: =SUM(DataInput!K57,DataInput!AG57) -> 0 | K57: =SUM(DataInput!L57,DataInput!AH57) -> 0 | L57: =SUM(DataInput!M57,DataInput!AI57) -> 0 | M57: =SUM(DataInput!N57,DataInput!AJ57) -> 0 | N57: =SUM(DataInput!O57,DataInput!AK57) -> 0 | O57: =DataInput!P57 -> 0 | Q57: 51 | R57: =DataInput!R57 -> 0 | S57: =DataInput!Y57 -> 0 | T57: =IF(DataInput!U57-DataInput!E57>0,DataInput!U57-DataInput!E57,"") -> 5 | U57: =IF(DataInput!W57-DataInput!I57>0,DataInput!W57-DataInput!I57,"") ->  | W57: 5 | X57: 6.5 | Y57: 44.5 | Z57: 0 | AA57: 0 | AB57: =ROUNDDOWN((IF(AA58>0,IFERROR(IF(AVERAGE(DataInput!Q57:Q58)>AVERAGE(AA58,AA57),ROUNDDOWN(((((AA57-Z57)+(AA58-Z58))/2)*(A58-A57))/27,0),IF(((((DataInput!Q58-Z58)+(DataInput!Q57-Z57))/2)*(A58-A57))/27+S57+T57>0,ROUNDDOWN(((((DataInput!Q58-Z58)+(DataInput!Q57-Z57))/2)*(A58-A57))/27+S57+T57,0),0)),0),0)*$X$5),1) -> 0 | AC57: 0 | AD57: =ROUNDDOWN((IF(AC58>0,IFERROR(IF(((((DataInput!Q57-AC57)+(DataInput!Q58-AC58))/2)*(A58-A57))/27+S57+T57>0,ROUNDDOWN(((((DataInput!Q57-AC57)+(DataInput!Q58-AC58))/2)*(A58-A57))/27+S57+T57,0),0),0),0)*$X$5),1) -> 0 | AE57: =DataInput!U57 -> 57 | AF57: =DataInput!S57 -> 25 | AG57: 35 | AH57: 22
A58: =IF(DataInput!A58<>"",DataInput!A58,"") -> 880750 | B58: =SUM(DataInput!C58,DataInput!Y58)+(DataInput!U58-DataInput!E58) -> 81 | C58: =SUM(DataInput!D58,DataInput!Z58) -> 29 | D58: =DataInput!U58 -> 52 | E58: =SUM(DataInput!F58,DataInput!AB58) -> 0 | F58: =SUM(DataInput!G58,DataInput!AC58) -> 0 | G58: =SUM(DataInput!H58,DataInput!AD58) -> 0 | H58: =DataInput!I58 -> 0 | I58: =SUM(DataInput!J58,DataInput!AF58) -> 0 | J58: =SUM(DataInput!K58,DataInput!AG58) -> 0 | K58: =SUM(DataInput!L58,DataInput!AH58) -> 0 | L58: =SUM(DataInput!M58,DataInput!AI58) -> 0 | M58: =SUM(DataInput!N58,DataInput!AJ58) -> 0 | N58: =SUM(DataInput!O58,DataInput!AK58) -> 0 | O58: =DataInput!P58 -> 0 | Q58: 29 | R58: =DataInput!R58 -> 4 | S58: =DataInput!Y58 -> 0 | T58: =IF(DataInput!U58-DataInput!E58>0,DataInput!U58-DataInput!E58,"") -> 16 | U58: =IF(DataInput!W58-DataInput!I58>0,DataInput!W58-DataInput!I58,"") ->  | W58: 20 | X58: 26 | Y58: 3 | Z58: 0 | AA58: 0 | AB58: =ROUNDDOWN((IF(AA59>0,IFERROR(IF(AVERAGE(DataInput!Q58:Q59)>AVERAGE(AA59,AA58),ROUNDDOWN(((((AA58-Z58)+(AA59-Z59))/2)*(A59-A58))/27,0),IF(((((DataInput!Q59-Z59)+(DataInput!Q58-Z58))/2)*(A59-A58))/27+S58+T58>0,ROUNDDOWN(((((DataInput!Q59-Z59)+(DataInput!Q58-Z58))/2)*(A59-A58))/27+S58+T58,0),0)),0),0)*$X$5),1) -> 0 | AC58: 0 | AD58: =ROUNDDOWN((IF(AC59>0,IFERROR(IF(((((DataInput!Q58-AC58)+(DataInput!Q59-AC59))/2)*(A59-A58))/27+S58+T58>0,ROUNDDOWN(((((DataInput!Q58-AC58)+(DataInput!Q59-AC59))/2)*(A59-A58))/27+S58+T58,0),0),0),0)*$X$5),1) -> 0 | AE58: =DataInput!U58 -> 52 | AF58: =DataInput!S58 -> 22 | AG58: 30.8 | AH58: 21.2
A59: =IF(DataInput!A59<>"",DataInput!A59,"") -> 880775 | B59: =SUM(DataInput!C59,DataInput!Y59)+(DataInput!U59-DataInput!E59) -> 76 | C59: =SUM(DataInput!D59,DataInput!Z59) -> 21 | D59: =DataInput!U59 -> 55 | E59: =SUM(DataInput!F59,DataInput!AB59) -> 0 | F59: =SUM(DataInput!G59,DataInput!AC59) -> 0 | G59: =SUM(DataInput!H59,DataInput!AD59) -> 0 | H59: =DataInput!I59 -> 0 | I59: =SUM(DataInput!J59,DataInput!AF59) -> 0 | J59: =SUM(DataInput!K59,DataInput!AG59) -> 0 | K59: =SUM(DataInput!L59,DataInput!AH59) -> 0 | L59: =SUM(DataInput!M59,DataInput!AI59) -> 0 | M59: =SUM(DataInput!N59,DataInput!AJ59) -> 0 | N59: =SUM(DataInput!O59,DataInput!AK59) -> 0 | O59: =DataInput!P59 -> 0 | Q59: 21 | R59: =DataInput!R59 -> 12 | S59: =DataInput!Y59 -> 0 | T59: =IF(DataInput!U59-DataInput!E59>0,DataInput!U59-DataInput!E59,"") -> 31 | U59: =IF(DataInput!W59-DataInput!I59>0,DataInput!W59-DataInput!I59,"") ->  | W59: 43 | X59: 55.9 | Y59: -34.9 | Z59: 0 | AA59: 0 | AB59: =ROUNDDOWN((IF(AA60>0,IFERROR(IF(AVERAGE(DataInput!Q59:Q60)>AVERAGE(AA60,AA59),ROUNDDOWN(((((AA59-Z59)+(AA60-Z60))/2)*(A60-A59))/27,0),IF(((((DataInput!Q60-Z60)+(DataInput!Q59-Z59))/2)*(A60-A59))/27+S59+T59>0,ROUNDDOWN(((((DataInput!Q60-Z60)+(DataInput!Q59-Z59))/2)*(A60-A59))/27+S59+T59,0),0)),0),0)*$X$5),1) -> 0 | AC59: 0 | AD59: =ROUNDDOWN((IF(AC60>0,IFERROR(IF(((((DataInput!Q59-AC59)+(DataInput!Q60-AC60))/2)*(A60-A59))/27+S59+T59>0,ROUNDDOWN(((((DataInput!Q59-AC59)+(DataInput!Q60-AC60))/2)*(A60-A59))/27+S59+T59,0),0),0),0)*$X$5),1) -> 0 | AE59: =DataInput!U59 -> 55 | AF59: =DataInput!S59 -> 23 | AG59: 32.2 | AH59: 22.8
A60: =IF(DataInput!A60<>"",DataInput!A60,"") -> 880800 | B60: =SUM(DataInput!C60,DataInput!Y60)+(DataInput!U60-DataInput!E60) -> 63 | C60: =SUM(DataInput!D60,DataInput!Z60) -> 16 | D60: =DataInput!U60 -> 46 | E60: =SUM(DataInput!F60,DataInput!AB60) -> 0 | F60: =SUM(DataInput!G60,DataInput!AC60) -> 0 | G60: =SUM(DataInput!H60,DataInput!AD60) -> 0 | H60: =DataInput!I60 -> 0 | I60: =SUM(DataInput!J60,DataInput!AF60) -> 0 | J60: =SUM(DataInput!K60,DataInput!AG60) -> 0 | K60: =SUM(DataInput!L60,DataInput!AH60) -> 0 | L60: =SUM(DataInput!M60,DataInput!AI60) -> 0 | M60: =SUM(DataInput!N60,DataInput!AJ60) -> 0 | N60: =SUM(DataInput!O60,DataInput!AK60) -> 0 | O60: =DataInput!P60 -> 0 | Q60: 16 | R60: =DataInput!R60 -> 12 | S60: =DataInput!Y60 -> 0 | T60: =IF(DataInput!U60-DataInput!E60>0,DataInput!U60-DataInput!E60,"") -> 26 | U60: =IF(DataInput!W60-DataInput!I60>0,DataInput!W60-DataInput!I60,"") ->  | W60: 38 | X60: 49.4 | Y60: -33.4 | Z60: 0 | AA60: 0 | AB60: =ROUNDDOWN((IF(AA61>0,IFERROR(IF(AVERAGE(DataInput!Q60:Q61)>AVERAGE(AA61,AA60),ROUNDDOWN(((((AA60-Z60)+(AA61-Z61))/2)*(A61-A60))/27,0),IF(((((DataInput!Q61-Z61)+(DataInput!Q60-Z60))/2)*(A61-A60))/27+S60+T60>0,ROUNDDOWN(((((DataInput!Q61-Z61)+(DataInput!Q60-Z60))/2)*(A61-A60))/27+S60+T60,0),0)),0),0)*$X$5),1) -> 0 | AC60: 0 | AD60: =ROUNDDOWN((IF(AC61>0,IFERROR(IF(((((DataInput!Q60-AC60)+(DataInput!Q61-AC61))/2)*(A61-A60))/27+S60+T60>0,ROUNDDOWN(((((DataInput!Q60-AC60)+(DataInput!Q61-AC61))/2)*(A61-A60))/27+S60+T60,0),0),0),0)*$X$5),1) -> 0 | AE60: =DataInput!U60 -> 46 | AF60: =DataInput!S60 -> 19 | AG60: 26.6 | AH60: 19.4
A61: =IF(DataInput!A61<>"",DataInput!A61,"") -> 880825 | B61: =SUM(DataInput!C61,DataInput!Y61)+(DataInput!U61-DataInput!E61) -> 55 | C61: =SUM(DataInput!D61,DataInput!Z61) -> 14 | D61: =DataInput!U61 -> 41 | E61: =SUM(DataInput!F61,DataInput!AB61) -> 0 | F61: =SUM(DataInput!G61,DataInput!AC61) -> 0 | G61: =SUM(DataInput!H61,DataInput!AD61) -> 0 | H61: =DataInput!I61 -> 0 | I61: =SUM(DataInput!J61,DataInput!AF61) -> 0 | J61: =SUM(DataInput!K61,DataInput!AG61) -> 0 | K61: =SUM(DataInput!L61,DataInput!AH61) -> 0 | L61: =SUM(DataInput!M61,DataInput!AI61) -> 0 | M61: =SUM(DataInput!N61,DataInput!AJ61) -> 0 | N61: =SUM(DataInput!O61,DataInput!AK61) -> 0 | O61: =DataInput!P61 -> 0 | Q61: 14 | R61: =DataInput!R61 -> 13 | S61: =DataInput!Y61 -> 0 | T61: =IF(DataInput!U61-DataInput!E61>0,DataInput!U61-DataInput!E61,"") -> 23 | U61: =IF(DataInput!W61-DataInput!I61>0,DataInput!W61-DataInput!I61,"") ->  | W61: 36 | X61: 46.8 | Y61: -32.8 | Z61: 0 | AA61: 0 | AB61: =ROUNDDOWN((IF(AA62>0,IFERROR(IF(AVERAGE(DataInput!Q61:Q62)>AVERAGE(AA62,AA61),ROUNDDOWN(((((AA61-Z61)+(AA62-Z62))/2)*(A62-A61))/27,0),IF(((((DataInput!Q62-Z62)+(DataInput!Q61-Z61))/2)*(A62-A61))/27+S61+T61>0,ROUNDDOWN(((((DataInput!Q62-Z62)+(DataInput!Q61-Z61))/2)*(A62-A61))/27+S61+T61,0),0)),0),0)*$X$5),1) -> 0 | AC61: 0 | AD61: =ROUNDDOWN((IF(AC62>0,IFERROR(IF(((((DataInput!Q61-AC61)+(DataInput!Q62-AC62))/2)*(A62-A61))/27+S61+T61>0,ROUNDDOWN(((((DataInput!Q61-AC61)+(DataInput!Q62-AC62))/2)*(A62-A61))/27+S61+T61,0),0),0),0)*$X$5),1) -> 0 | AE61: =DataInput!U61 -> 41 | AF61: =DataInput!S61 -> 15 | AG61: 21 | AH61: 20
A62: =IF(DataInput!A62<>"",DataInput!A62,"") -> 880850 | B62: =SUM(DataInput!C62,DataInput!Y62)+(DataInput!U62-DataInput!E62) -> 67 | C62: =SUM(DataInput!D62,DataInput!Z62) -> 17 | D62: =DataInput!U62 -> 50 | E62: =SUM(DataInput!F62,DataInput!AB62) -> 0 | F62: =SUM(DataInput!G62,DataInput!AC62) -> 0 | G62: =SUM(DataInput!H62,DataInput!AD62) -> 0 | H62: =DataInput!I62 -> 0 | I62: =SUM(DataInput!J62,DataInput!AF62) -> 0 | J62: =SUM(DataInput!K62,DataInput!AG62) -> 0 | K62: =SUM(DataInput!L62,DataInput!AH62) -> 0 | L62: =SUM(DataInput!M62,DataInput!AI62) -> 0 | M62: =SUM(DataInput!N62,DataInput!AJ62) -> 0 | N62: =SUM(DataInput!O62,DataInput!AK62) -> 0 | O62: =DataInput!P62 -> 0 | Q62: 17 | R62: =DataInput!R62 -> 24 | S62: =DataInput!Y62 -> 0 | T62: =IF(DataInput!U62-DataInput!E62>0,DataInput!U62-DataInput!E62,"") -> 31 | U62: =IF(DataInput!W62-DataInput!I62>0,DataInput!W62-DataInput!I62,"") ->  | W62: 55 | X62: 71.5 | Y62: -54.5 | Z62: 0 | AA62: 0 | AB62: =ROUNDDOWN((IF(AA63>0,IFERROR(IF(AVERAGE(DataInput!Q62:Q63)>AVERAGE(AA63,AA62),ROUNDDOWN(((((AA62-Z62)+(AA63-Z63))/2)*(A63-A62))/27,0),IF(((((DataInput!Q63-Z63)+(DataInput!Q62-Z62))/2)*(A63-A62))/27+S62+T62>0,ROUNDDOWN(((((DataInput!Q63-Z63)+(DataInput!Q62-Z62))/2)*(A63-A62))/27+S62+T62,0),0)),0),0)*$X$5),1) -> 0 | AC62: 0 | AD62: =ROUNDDOWN((IF(AC63>0,IFERROR(IF(((((DataInput!Q62-AC62)+(DataInput!Q63-AC63))/2)*(A63-A62))/27+S62+T62>0,ROUNDDOWN(((((DataInput!Q62-AC62)+(DataInput!Q63-AC63))/2)*(A63-A62))/27+S62+T62,0),0),0),0)*$X$5),1) -> 0 | AE62: =DataInput!U62 -> 50 | AF62: =DataInput!S62 -> 20 | AG62: 28 | AH62: 22
A63: =IF(DataInput!A63<>"",DataInput!A63,"") -> 880875 | B63: =SUM(DataInput!C63,DataInput!Y63)+(DataInput!U63-DataInput!E63) -> 75 | C63: =SUM(DataInput!D63,DataInput!Z63) -> 20 | D63: =DataInput!U63 -> 55 | E63: =SUM(DataInput!F63,DataInput!AB63) -> 0 | F63: =SUM(DataInput!G63,DataInput!AC63) -> 0 | G63: =SUM(DataInput!H63,DataInput!AD63) -> 0 | H63: =DataInput!I63 -> 0 | I63: =SUM(DataInput!J63,DataInput!AF63) -> 0 | J63: =SUM(DataInput!K63,DataInput!AG63) -> 0 | K63: =SUM(DataInput!L63,DataInput!AH63) -> 0 | L63: =SUM(DataInput!M63,DataInput!AI63) -> 0 | M63: =SUM(DataInput!N63,DataInput!AJ63) -> 0 | N63: =SUM(DataInput!O63,DataInput!AK63) -> 0 | O63: =DataInput!P63 -> 0 | Q63: 20 | R63: =DataInput!R63 -> 29 | S63: =DataInput!Y63 -> 0 | T63: =IF(DataInput!U63-DataInput!E63>0,DataInput!U63-DataInput!E63,"") -> 35 | U63: =IF(DataInput!W63-DataInput!I63>0,DataInput!W63-DataInput!I63,"") ->  | W63: 64 | X63: 83.2 | Y63: -63.2 | Z63: 0 | AA63: 0 | AB63: =ROUNDDOWN((IF(AA64>0,IFERROR(IF(AVERAGE(DataInput!Q63:Q64)>AVERAGE(AA64,AA63),ROUNDDOWN(((((AA63-Z63)+(AA64-Z64))/2)*(A64-A63))/27,0),IF(((((DataInput!Q64-Z64)+(DataInput!Q63-Z63))/2)*(A64-A63))/27+S63+T63>0,ROUNDDOWN(((((DataInput!Q64-Z64)+(DataInput!Q63-Z63))/2)*(A64-A63))/27+S63+T63,0),0)),0),0)*$X$5),1) -> 0 | AC63: 0 | AD63: =ROUNDDOWN((IF(AC64>0,IFERROR(IF(((((DataInput!Q63-AC63)+(DataInput!Q64-AC64))/2)*(A64-A63))/27+S63+T63>0,ROUNDDOWN(((((DataInput!Q63-AC63)+(DataInput!Q64-AC64))/2)*(A64-A63))/27+S63+T63,0),0),0),0)*$X$5),1) -> 0 | AE63: =DataInput!U63 -> 55 | AF63: =DataInput!S63 -> 24 | AG63: 33.6 | AH63: 21.4
A64: =IF(DataInput!A64<>"",DataInput!A64,"") -> 880900 | B64: =SUM(DataInput!C64,DataInput!Y64)+(DataInput!U64-DataInput!E64) -> 77 | C64: =SUM(DataInput!D64,DataInput!Z64) -> 22 | D64: =DataInput!U64 -> 55 | E64: =SUM(DataInput!F64,DataInput!AB64) -> 0 | F64: =SUM(DataInput!G64,DataInput!AC64) -> 0 | G64: =SUM(DataInput!H64,DataInput!AD64) -> 0 | H64: =DataInput!I64 -> 0 | I64: =SUM(DataInput!J64,DataInput!AF64) -> 0 | J64: =SUM(DataInput!K64,DataInput!AG64) -> 0 | K64: =SUM(DataInput!L64,DataInput!AH64) -> 0 | L64: =SUM(DataInput!M64,DataInput!AI64) -> 0 | M64: =SUM(DataInput!N64,DataInput!AJ64) -> 0 | N64: =SUM(DataInput!O64,DataInput!AK64) -> 0 | O64: =DataInput!P64 -> 0 | Q64: 22 | R64: =DataInput!R64 -> 21 | S64: =DataInput!Y64 -> 0 | T64: =IF(DataInput!U64-DataInput!E64>0,DataInput!U64-DataInput!E64,"") -> 33 | U64: =IF(DataInput!W64-DataInput!I64>0,DataInput!W64-DataInput!I64,"") ->  | W64: 54 | X64: 70.2 | Y64: -48.2 | Z64: 0 | AA64: 0 | AB64: =ROUNDDOWN((IF(AA65>0,IFERROR(IF(AVERAGE(DataInput!Q64:Q65)>AVERAGE(AA65,AA64),ROUNDDOWN(((((AA64-Z64)+(AA65-Z65))/2)*(A65-A64))/27,0),IF(((((DataInput!Q65-Z65)+(DataInput!Q64-Z64))/2)*(A65-A64))/27+S64+T64>0,ROUNDDOWN(((((DataInput!Q65-Z65)+(DataInput!Q64-Z64))/2)*(A65-A64))/27+S64+T64,0),0)),0),0)*$X$5),1) -> 0 | AC64: 0 | AD64: =ROUNDDOWN((IF(AC65>0,IFERROR(IF(((((DataInput!Q64-AC64)+(DataInput!Q65-AC65))/2)*(A65-A64))/27+S64+T64>0,ROUNDDOWN(((((DataInput!Q64-AC64)+(DataInput!Q65-AC65))/2)*(A65-A64))/27+S64+T64,0),0),0),0)*$X$5),1) -> 0 | AE64: =DataInput!U64 -> 55 | AF64: =DataInput!S64 -> 25 | AG64: 35 | AH64: 20
A65: =IF(DataInput!A65<>"",DataInput!A65,"") -> 880925 | B65: =SUM(DataInput!C65,DataInput!Y65)+(DataInput!U65-DataInput!E65) -> 77 | C65: =SUM(DataInput!D65,DataInput!Z65) -> 31 | D65: =DataInput!U65 -> 45 | E65: =SUM(DataInput!F65,DataInput!AB65) -> 0 | F65: =SUM(DataInput!G65,DataInput!AC65) -> 0 | G65: =SUM(DataInput!H65,DataInput!AD65) -> 0 | H65: =DataInput!I65 -> 0 | I65: =SUM(DataInput!J65,DataInput!AF65) -> 0 | J65: =SUM(DataInput!K65,DataInput!AG65) -> 0 | K65: =SUM(DataInput!L65,DataInput!AH65) -> 0 | L65: =SUM(DataInput!M65,DataInput!AI65) -> 0 | M65: =SUM(DataInput!N65,DataInput!AJ65) -> 0 | N65: =SUM(DataInput!O65,DataInput!AK65) -> 0 | O65: =DataInput!P65 -> 0 | Q65: 31 | R65: =DataInput!R65 -> 11 | S65: =DataInput!Y65 -> 0 | T65: =IF(DataInput!U65-DataInput!E65>0,DataInput!U65-DataInput!E65,"") -> 28 | U65: =IF(DataInput!W65-DataInput!I65>0,DataInput!W65-DataInput!I65,"") ->  | W65: 39 | X65: 50.7 | Y65: -19.7 | Z65: 0 | AA65: 0 | AB65: =ROUNDDOWN((IF(AA66>0,IFERROR(IF(AVERAGE(DataInput!Q65:Q66)>AVERAGE(AA66,AA65),ROUNDDOWN(((((AA65-Z65)+(AA66-Z66))/2)*(A66-A65))/27,0),IF(((((DataInput!Q66-Z66)+(DataInput!Q65-Z65))/2)*(A66-A65))/27+S65+T65>0,ROUNDDOWN(((((DataInput!Q66-Z66)+(DataInput!Q65-Z65))/2)*(A66-A65))/27+S65+T65,0),0)),0),0)*$X$5),1) -> 0 | AC65: 0 | AD65: =ROUNDDOWN((IF(AC66>0,IFERROR(IF(((((DataInput!Q65-AC65)+(DataInput!Q66-AC66))/2)*(A66-A65))/27+S65+T65>0,ROUNDDOWN(((((DataInput!Q65-AC65)+(DataInput!Q66-AC66))/2)*(A66-A65))/27+S65+T65,0),0),0),0)*$X$5),1) -> 0 | AE65: =DataInput!U65 -> 45 | AF65: =DataInput!S65 -> 23 | AG65: 32.2 | AH65: 12.8
A66: =IF(DataInput!A66<>"",DataInput!A66,"") -> 880950 | B66: =SUM(DataInput!C66,DataInput!Y66)+(DataInput!U66-DataInput!E66) -> 78 | C66: =SUM(DataInput!D66,DataInput!Z66) -> 32 | D66: =DataInput!U66 -> 46 | E66: =SUM(DataInput!F66,DataInput!AB66) -> 0 | F66: =SUM(DataInput!G66,DataInput!AC66) -> 0 | G66: =SUM(DataInput!H66,DataInput!AD66) -> 0 | H66: =DataInput!I66 -> 0 | I66: =SUM(DataInput!J66,DataInput!AF66) -> 0 | J66: =SUM(DataInput!K66,DataInput!AG66) -> 0 | K66: =SUM(DataInput!L66,DataInput!AH66) -> 0 | L66: =SUM(DataInput!M66,DataInput!AI66) -> 0 | M66: =SUM(DataInput!N66,DataInput!AJ66) -> 0 | N66: =SUM(DataInput!O66,DataInput!AK66) -> 0 | O66: =DataInput!P66 -> 0 | Q66: 32 | R66: =DataInput!R66 -> 6 | S66: =DataInput!Y66 -> 0 | T66: =IF(DataInput!U66-DataInput!E66>0,DataInput!U66-DataInput!E66,"") -> 21 | U66: =IF(DataInput!W66-DataInput!I66>0,DataInput!W66-DataInput!I66,"") ->  | W66: 27 | X66: 35.1 | Y66: -3.1 | Z66: 0 | AA66: 0 | AB66: =ROUNDDOWN((IF(AA67>0,IFERROR(IF(AVERAGE(DataInput!Q66:Q67)>AVERAGE(AA67,AA66),ROUNDDOWN(((((AA66-Z66)+(AA67-Z67))/2)*(A67-A66))/27,0),IF(((((DataInput!Q67-Z67)+(DataInput!Q66-Z66))/2)*(A67-A66))/27+S66+T66>0,ROUNDDOWN(((((DataInput!Q67-Z67)+(DataInput!Q66-Z66))/2)*(A67-A66))/27+S66+T66,0),0)),0),0)*$X$5),1) -> 0 | AC66: 0 | AD66: =ROUNDDOWN((IF(AC67>0,IFERROR(IF(((((DataInput!Q66-AC66)+(DataInput!Q67-AC67))/2)*(A67-A66))/27+S66+T66>0,ROUNDDOWN(((((DataInput!Q66-AC66)+(DataInput!Q67-AC67))/2)*(A67-A66))/27+S66+T66,0),0),0),0)*$X$5),1) -> 0 | AE66: =DataInput!U66 -> 46 | AF66: =DataInput!S66 -> 22 | AG66: 30.8 | AH66: 15.2
A67: =IF(DataInput!A67<>"",DataInput!A67,"") -> 880975 | B67: =SUM(DataInput!C67,DataInput!Y67)+(DataInput!U67-DataInput!E67) -> 72 | C67: =SUM(DataInput!D67,DataInput!Z67) -> 43 | D67: =DataInput!U67 -> 29 | E67: =SUM(DataInput!F67,DataInput!AB67) -> 0 | F67: =SUM(DataInput!G67,DataInput!AC67) -> 0 | G67: =SUM(DataInput!H67,DataInput!AD67) -> 0 | H67: =DataInput!I67 -> 0 | I67: =SUM(DataInput!J67,DataInput!AF67) -> 0 | J67: =SUM(DataInput!K67,DataInput!AG67) -> 0 | K67: =SUM(DataInput!L67,DataInput!AH67) -> 0 | L67: =SUM(DataInput!M67,DataInput!AI67) -> 0 | M67: =SUM(DataInput!N67,DataInput!AJ67) -> 0 | N67: =SUM(DataInput!O67,DataInput!AK67) -> 0 | O67: =DataInput!P67 -> 0 | Q67: 43 | R67: =DataInput!R67 -> 2 | S67: =DataInput!Y67 -> 0 | T67: =IF(DataInput!U67-DataInput!E67>0,DataInput!U67-DataInput!E67,"") -> 7 | U67: =IF(DataInput!W67-DataInput!I67>0,DataInput!W67-DataInput!I67,"") ->  | W67: 9 | X67: 11.7 | Y67: 31.3 | Z67: 0 | AA67: 0 | AB67: =ROUNDDOWN((IF(AA68>0,IFERROR(IF(AVERAGE(DataInput!Q67:Q68)>AVERAGE(AA68,AA67),ROUNDDOWN(((((AA67-Z67)+(AA68-Z68))/2)*(A68-A67))/27,0),IF(((((DataInput!Q68-Z68)+(DataInput!Q67-Z67))/2)*(A68-A67))/27+S67+T67>0,ROUNDDOWN(((((DataInput!Q68-Z68)+(DataInput!Q67-Z67))/2)*(A68-A67))/27+S67+T67,0),0)),0),0)*$X$5),1) -> 0 | AC67: 0 | AD67: =ROUNDDOWN((IF(AC68>0,IFERROR(IF(((((DataInput!Q67-AC67)+(DataInput!Q68-AC68))/2)*(A68-A67))/27+S67+T67>0,ROUNDDOWN(((((DataInput!Q67-AC67)+(DataInput!Q68-AC68))/2)*(A68-A67))/27+S67+T67,0),0),0),0)*$X$5),1) -> 0 | AE67: =DataInput!U67 -> 29 | AF67: =DataInput!S67 -> 23 | AG67: 32.2 | AH67: -3.2
A68: =IF(DataInput!A68<>"",DataInput!A68,"") -> 881000 | B68: =SUM(DataInput!C68,DataInput!Y68)+(DataInput!U68-DataInput!E68) -> 67 | C68: =SUM(DataInput!D68,DataInput!Z68) -> 42 | D68: =DataInput!U68 -> 24 | E68: =SUM(DataInput!F68,DataInput!AB68) -> 0 | F68: =SUM(DataInput!G68,DataInput!AC68) -> 0 | G68: =SUM(DataInput!H68,DataInput!AD68) -> 0 | H68: =DataInput!I68 -> 0 | I68: =SUM(DataInput!J68,DataInput!AF68) -> 0 | J68: =SUM(DataInput!K68,DataInput!AG68) -> 0 | K68: =SUM(DataInput!L68,DataInput!AH68) -> 0 | L68: =SUM(DataInput!M68,DataInput!AI68) -> 0 | M68: =SUM(DataInput!N68,DataInput!AJ68) -> 0 | N68: =SUM(DataInput!O68,DataInput!AK68) -> 0 | O68: =DataInput!P68 -> 0 | Q68: 42 | R68: =DataInput!R68 -> 4 | S68: =DataInput!Y68 -> 0 | T68: =IF(DataInput!U68-DataInput!E68>0,DataInput!U68-DataInput!E68,"") -> 11 | U68: =IF(DataInput!W68-DataInput!I68>0,DataInput!W68-DataInput!I68,"") ->  | W68: 15 | X68: 19.5 | Y68: 22.5 | Z68: 0 | AA68: 0 | AB68: =ROUNDDOWN((IF(AA69>0,IFERROR(IF(AVERAGE(DataInput!Q68:Q69)>AVERAGE(AA69,AA68),ROUNDDOWN(((((AA68-Z68)+(AA69-Z69))/2)*(A69-A68))/27,0),IF(((((DataInput!Q69-Z69)+(DataInput!Q68-Z68))/2)*(A69-A68))/27+S68+T68>0,ROUNDDOWN(((((DataInput!Q69-Z69)+(DataInput!Q68-Z68))/2)*(A69-A68))/27+S68+T68,0),0)),0),0)*$X$5),1) -> 0 | AC68: 0 | AD68: =ROUNDDOWN((IF(AC69>0,IFERROR(IF(((((DataInput!Q68-AC68)+(DataInput!Q69-AC69))/2)*(A69-A68))/27+S68+T68>0,ROUNDDOWN(((((DataInput!Q68-AC68)+(DataInput!Q69-AC69))/2)*(A69-A68))/27+S68+T68,0),0),0),0)*$X$5),1) -> 0 | AE68: =DataInput!U68 -> 24 | AF68: =DataInput!S68 -> 21 | AG68: 29.4 | AH68: -5.4
A69: =IF(DataInput!A69<>"",DataInput!A69,"") -> 881025 | B69: =SUM(DataInput!C69,DataInput!Y69)+(DataInput!U69-DataInput!E69) -> 65 | C69: =SUM(DataInput!D69,DataInput!Z69) -> 23 | D69: =DataInput!U69 -> 42 | E69: =SUM(DataInput!F69,DataInput!AB69) -> 0 | F69: =SUM(DataInput!G69,DataInput!AC69) -> 0 | G69: =SUM(DataInput!H69,DataInput!AD69) -> 0 | H69: =DataInput!I69 -> 0 | I69: =SUM(DataInput!J69,DataInput!AF69) -> 0 | J69: =SUM(DataInput!K69,DataInput!AG69) -> 0 | K69: =SUM(DataInput!L69,DataInput!AH69) -> 0 | L69: =SUM(DataInput!M69,DataInput!AI69) -> 0 | M69: =SUM(DataInput!N69,DataInput!AJ69) -> 0 | N69: =SUM(DataInput!O69,DataInput!AK69) -> 0 | O69: =DataInput!P69 -> 0 | Q69: 23 | R69: =DataInput!R69 -> 7 | S69: =DataInput!Y69 -> 0 | T69: =IF(DataInput!U69-DataInput!E69>0,DataInput!U69-DataInput!E69,"") -> 24 | U69: =IF(DataInput!W69-DataInput!I69>0,DataInput!W69-DataInput!I69,"") ->  | W69: 31 | X69: 40.3 | Y69: -17.3 | Z69: 0 | AA69: 0 | AB69: =ROUNDDOWN((IF(AA70>0,IFERROR(IF(AVERAGE(DataInput!Q69:Q70)>AVERAGE(AA70,AA69),ROUNDDOWN(((((AA69-Z69)+(AA70-Z70))/2)*(A70-A69))/27,0),IF(((((DataInput!Q70-Z70)+(DataInput!Q69-Z69))/2)*(A70-A69))/27+S69+T69>0,ROUNDDOWN(((((DataInput!Q70-Z70)+(DataInput!Q69-Z69))/2)*(A70-A69))/27+S69+T69,0),0)),0),0)*$X$5),1) -> 0 | AC69: 0 | AD69: =ROUNDDOWN((IF(AC70>0,IFERROR(IF(((((DataInput!Q69-AC69)+(DataInput!Q70-AC70))/2)*(A70-A69))/27+S69+T69>0,ROUNDDOWN(((((DataInput!Q69-AC69)+(DataInput!Q70-AC70))/2)*(A70-A69))/27+S69+T69,0),0),0),0)*$X$5),1) -> 0 | AE69: =DataInput!U69 -> 42 | AF69: =DataInput!S69 -> 19 | AG69: 26.6 | AH69: 15.4
A70: =IF(DataInput!A70<>"",DataInput!A70,"") -> 881050 | B70: =SUM(DataInput!C70,DataInput!Y70)+(DataInput!U70-DataInput!E70) -> 63 | C70: =SUM(DataInput!D70,DataInput!Z70) -> 23 | D70: =DataInput!U70 -> 40 | E70: =SUM(DataInput!F70,DataInput!AB70) -> 0 | F70: =SUM(DataInput!G70,DataInput!AC70) -> 0 | G70: =SUM(DataInput!H70,DataInput!AD70) -> 0 | H70: =DataInput!I70 -> 0 | I70: =SUM(DataInput!J70,DataInput!AF70) -> 0 | J70: =SUM(DataInput!K70,DataInput!AG70) -> 0 | K70: =SUM(DataInput!L70,DataInput!AH70) -> 0 | L70: =SUM(DataInput!M70,DataInput!AI70) -> 0 | M70: =SUM(DataInput!N70,DataInput!AJ70) -> 0 | N70: =SUM(DataInput!O70,DataInput!AK70) -> 0 | O70: =DataInput!P70 -> 0 | Q70: 23 | R70: =DataInput!R70 -> 9 | S70: =DataInput!Y70 -> 0 | T70: =IF(DataInput!U70-DataInput!E70>0,DataInput!U70-DataInput!E70,"") -> 29 | U70: =IF(DataInput!W70-DataInput!I70>0,DataInput!W70-DataInput!I70,"") ->  | W70: 38 | X70: 49.4 | Y70: -26.4 | Z70: 0 | AA70: 0 | AB70: =ROUNDDOWN((IF(AA71>0,IFERROR(IF(AVERAGE(DataInput!Q70:Q71)>AVERAGE(AA71,AA70),ROUNDDOWN(((((AA70-Z70)+(AA71-Z71))/2)*(A71-A70))/27,0),IF(((((DataInput!Q71-Z71)+(DataInput!Q70-Z70))/2)*(A71-A70))/27+S70+T70>0,ROUNDDOWN(((((DataInput!Q71-Z71)+(DataInput!Q70-Z70))/2)*(A71-A70))/27+S70+T70,0),0)),0),0)*$X$5),1) -> 0 | AC70: 0 | AD70: =ROUNDDOWN((IF(AC71>0,IFERROR(IF(((((DataInput!Q70-AC70)+(DataInput!Q71-AC71))/2)*(A71-A70))/27+S70+T70>0,ROUNDDOWN(((((DataInput!Q70-AC70)+(DataInput!Q71-AC71))/2)*(A71-A70))/27+S70+T70,0),0),0),0)*$X$5),1) -> 0 | AE70: =DataInput!U70 -> 40 | AF70: =DataInput!S70 -> 20 | AG70: 28 | AH70: 12
A71: =IF(DataInput!A71<>"",DataInput!A71,"") -> 881075 | B71: =SUM(DataInput!C71,DataInput!Y71)+(DataInput!U71-DataInput!E71) -> 56 | C71: =SUM(DataInput!D71,DataInput!Z71) -> 16 | D71: =DataInput!U71 -> 40 | E71: =SUM(DataInput!F71,DataInput!AB71) -> 0 | F71: =SUM(DataInput!G71,DataInput!AC71) -> 0 | G71: =SUM(DataInput!H71,DataInput!AD71) -> 0 | H71: =DataInput!I71 -> 0 | I71: =SUM(DataInput!J71,DataInput!AF71) -> 0 | J71: =SUM(DataInput!K71,DataInput!AG71) -> 0 | K71: =SUM(DataInput!L71,DataInput!AH71) -> 0 | L71: =SUM(DataInput!M71,DataInput!AI71) -> 0 | M71: =SUM(DataInput!N71,DataInput!AJ71) -> 0 | N71: =SUM(DataInput!O71,DataInput!AK71) -> 0 | O71: =DataInput!P71 -> 0 | Q71: 16 | R71: =DataInput!R71 -> 17 | S71: =DataInput!Y71 -> 0 | T71: =IF(DataInput!U71-DataInput!E71>0,DataInput!U71-DataInput!E71,"") -> 30 | U71: =IF(DataInput!W71-DataInput!I71>0,DataInput!W71-DataInput!I71,"") ->  | W71: 47 | X71: 61.1 | Y71: -45.1 | Z71: 0 | AA71: 0 | AB71: =ROUNDDOWN((IF(AA72>0,IFERROR(IF(AVERAGE(DataInput!Q71:Q72)>AVERAGE(AA72,AA71),ROUNDDOWN(((((AA71-Z71)+(AA72-Z72))/2)*(A72-A71))/27,0),IF(((((DataInput!Q72-Z72)+(DataInput!Q71-Z71))/2)*(A72-A71))/27+S71+T71>0,ROUNDDOWN(((((DataInput!Q72-Z72)+(DataInput!Q71-Z71))/2)*(A72-A71))/27+S71+T71,0),0)),0),0)*$X$5),1) -> 0 | AC71: 0 | AD71: =ROUNDDOWN((IF(AC72>0,IFERROR(IF(((((DataInput!Q71-AC71)+(DataInput!Q72-AC72))/2)*(A72-A71))/27+S71+T71>0,ROUNDDOWN(((((DataInput!Q71-AC71)+(DataInput!Q72-AC72))/2)*(A72-A71))/27+S71+T71,0),0),0),0)*$X$5),1) -> 0 | AE71: =DataInput!U71 -> 40 | AF71: =DataInput!S71 -> 21 | AG71: 29.4 | AH71: 10.6
A72: =IF(DataInput!A72<>"",DataInput!A72,"") -> 881100 | B72: =SUM(DataInput!C72,DataInput!Y72)+(DataInput!U72-DataInput!E72) -> 42 | C72: =SUM(DataInput!D72,DataInput!Z72) -> 7 | D72: =DataInput!U72 -> 35 | E72: =SUM(DataInput!F72,DataInput!AB72) -> 0 | F72: =SUM(DataInput!G72,DataInput!AC72) -> 0 | G72: =SUM(DataInput!H72,DataInput!AD72) -> 0 | H72: =DataInput!I72 -> 0 | I72: =SUM(DataInput!J72,DataInput!AF72) -> 0 | J72: =SUM(DataInput!K72,DataInput!AG72) -> 0 | K72: =SUM(DataInput!L72,DataInput!AH72) -> 0 | L72: =SUM(DataInput!M72,DataInput!AI72) -> 0 | M72: =SUM(DataInput!N72,DataInput!AJ72) -> 0 | N72: =SUM(DataInput!O72,DataInput!AK72) -> 0 | O72: =DataInput!P72 -> 0 | Q72: 7 | R72: =DataInput!R72 -> 27 | S72: =DataInput!Y72 -> 0 | T72: =IF(DataInput!U72-DataInput!E72>0,DataInput!U72-DataInput!E72,"") -> 24 | U72: =IF(DataInput!W72-DataInput!I72>0,DataInput!W72-DataInput!I72,"") ->  | W72: 51 | X72: 66.3 | Y72: -59.3 | Z72: 0 | AA72: 0 | AB72: =ROUNDDOWN((IF(AA73>0,IFERROR(IF(AVERAGE(DataInput!Q72:Q73)>AVERAGE(AA73,AA72),ROUNDDOWN(((((AA72-Z72)+(AA73-Z73))/2)*(A73-A72))/27,0),IF(((((DataInput!Q73-Z73)+(DataInput!Q72-Z72))/2)*(A73-A72))/27+S72+T72>0,ROUNDDOWN(((((DataInput!Q73-Z73)+(DataInput!Q72-Z72))/2)*(A73-A72))/27+S72+T72,0),0)),0),0)*$X$5),1) -> 0 | AC72: 0 | AD72: =ROUNDDOWN((IF(AC73>0,IFERROR(IF(((((DataInput!Q72-AC72)+(DataInput!Q73-AC73))/2)*(A73-A72))/27+S72+T72>0,ROUNDDOWN(((((DataInput!Q72-AC72)+(DataInput!Q73-AC73))/2)*(A73-A72))/27+S72+T72,0),0),0),0)*$X$5),1) -> 0 | AE72: =DataInput!U72 -> 35 | AF72: =DataInput!S72 -> 19 | AG72: 26.6 | AH72: 8.4
A73: =IF(DataInput!A73<>"",DataInput!A73,"") -> 881125 | B73: =SUM(DataInput!C73,DataInput!Y73)+(DataInput!U73-DataInput!E73) -> 40 | C73: =SUM(DataInput!D73,DataInput!Z73) -> 7 | D73: =DataInput!U73 -> 33 | E73: =SUM(DataInput!F73,DataInput!AB73) -> 0 | F73: =SUM(DataInput!G73,DataInput!AC73) -> 0 | G73: =SUM(DataInput!H73,DataInput!AD73) -> 0 | H73: =DataInput!I73 -> 0 | I73: =SUM(DataInput!J73,DataInput!AF73) -> 0 | J73: =SUM(DataInput!K73,DataInput!AG73) -> 0 | K73: =SUM(DataInput!L73,DataInput!AH73) -> 0 | L73: =SUM(DataInput!M73,DataInput!AI73) -> 0 | M73: =SUM(DataInput!N73,DataInput!AJ73) -> 0 | N73: =SUM(DataInput!O73,DataInput!AK73) -> 0 | O73: =DataInput!P73 -> 0 | Q73: 7 | R73: =DataInput!R73 -> 17 | S73: =DataInput!Y73 -> 0 | T73: =IF(DataInput!U73-DataInput!E73>0,DataInput!U73-DataInput!E73,"") -> 20 | U73: =IF(DataInput!W73-DataInput!I73>0,DataInput!W73-DataInput!I73,"") ->  | W73: 37 | X73: 48.1 | Y73: -41.1 | Z73: 0 | AA73: 0 | AB73: =ROUNDDOWN((IF(AA74>0,IFERROR(IF(AVERAGE(DataInput!Q73:Q74)>AVERAGE(AA74,AA73),ROUNDDOWN(((((AA73-Z73)+(AA74-Z74))/2)*(A74-A73))/27,0),IF(((((DataInput!Q74-Z74)+(DataInput!Q73-Z73))/2)*(A74-A73))/27+S73+T73>0,ROUNDDOWN(((((DataInput!Q74-Z74)+(DataInput!Q73-Z73))/2)*(A74-A73))/27+S73+T73,0),0)),0),0)*$X$5),1) -> 0 | AC73: 0 | AD73: =ROUNDDOWN((IF(AC74>0,IFERROR(IF(((((DataInput!Q73-AC73)+(DataInput!Q74-AC74))/2)*(A74-A73))/27+S73+T73>0,ROUNDDOWN(((((DataInput!Q73-AC73)+(DataInput!Q74-AC74))/2)*(A74-A73))/27+S73+T73,0),0),0),0)*$X$5),1) -> 0 | AE73: =DataInput!U73 -> 33 | AF73: =DataInput!S73 -> 15 | AG73: 21 | AH73: 12
A74: =IF(DataInput!A74<>"",DataInput!A74,"") -> 881150 | B74: =SUM(DataInput!C74,DataInput!Y74)+(DataInput!U74-DataInput!E74) -> 41 | C74: =SUM(DataInput!D74,DataInput!Z74) -> 5 | D74: =DataInput!U74 -> 35 | E74: =SUM(DataInput!F74,DataInput!AB74) -> 0 | F74: =SUM(DataInput!G74,DataInput!AC74) -> 0 | G74: =SUM(DataInput!H74,DataInput!AD74) -> 0 | H74: =DataInput!I74 -> 0 | I74: =SUM(DataInput!J74,DataInput!AF74) -> 0 | J74: =SUM(DataInput!K74,DataInput!AG74) -> 0 | K74: =SUM(DataInput!L74,DataInput!AH74) -> 0 | L74: =SUM(DataInput!M74,DataInput!AI74) -> 0 | M74: =SUM(DataInput!N74,DataInput!AJ74) -> 0 | N74: =SUM(DataInput!O74,DataInput!AK74) -> 0 | O74: =DataInput!P74 -> 0 | Q74: 5 | R74: =DataInput!R74 -> 4 | S74: =DataInput!Y74 -> 0 | T74: =IF(DataInput!U74-DataInput!E74>0,DataInput!U74-DataInput!E74,"") -> 20 | U74: =IF(DataInput!W74-DataInput!I74>0,DataInput!W74-DataInput!I74,"") ->  | W74: 24 | X74: 31.2 | Y74: -26.2 | Z74: 0 | AA74: 0 | AB74: =ROUNDDOWN((IF(AA75>0,IFERROR(IF(AVERAGE(DataInput!Q74:Q75)>AVERAGE(AA75,AA74),ROUNDDOWN(((((AA74-Z74)+(AA75-Z75))/2)*(A75-A74))/27,0),IF(((((DataInput!Q75-Z75)+(DataInput!Q74-Z74))/2)*(A75-A74))/27+S74+T74>0,ROUNDDOWN(((((DataInput!Q75-Z75)+(DataInput!Q74-Z74))/2)*(A75-A74))/27+S74+T74,0),0)),0),0)*$X$5),1) -> 0 | AC74: 0 | AD74: =ROUNDDOWN((IF(AC75>0,IFERROR(IF(((((DataInput!Q74-AC74)+(DataInput!Q75-AC75))/2)*(A75-A74))/27+S74+T74>0,ROUNDDOWN(((((DataInput!Q74-AC74)+(DataInput!Q75-AC75))/2)*(A75-A74))/27+S74+T74,0),0),0),0)*$X$5),1) -> 0 | AE74: =DataInput!U74 -> 35 | AF74: =DataInput!S74 -> 13 | AG74: 18.2 | AH74: 16.8
A75: =IF(DataInput!A75<>"",DataInput!A75,"") -> 881175 | B75: =SUM(DataInput!C75,DataInput!Y75)+(DataInput!U75-DataInput!E75) -> 38 | C75: =SUM(DataInput!D75,DataInput!Z75) -> 2 | D75: =DataInput!U75 -> 36 | E75: =SUM(DataInput!F75,DataInput!AB75) -> 0 | F75: =SUM(DataInput!G75,DataInput!AC75) -> 0 | G75: =SUM(DataInput!H75,DataInput!AD75) -> 0 | H75: =DataInput!I75 -> 0 | I75: =SUM(DataInput!J75,DataInput!AF75) -> 0 | J75: =SUM(DataInput!K75,DataInput!AG75) -> 0 | K75: =SUM(DataInput!L75,DataInput!AH75) -> 0 | L75: =SUM(DataInput!M75,DataInput!AI75) -> 0 | M75: =SUM(DataInput!N75,DataInput!AJ75) -> 0 | N75: =SUM(DataInput!O75,DataInput!AK75) -> 0 | O75: =DataInput!P75 -> 0 | Q75: 2 | R75: =DataInput!R75 -> 8 | S75: =DataInput!Y75 -> 0 | T75: =IF(DataInput!U75-DataInput!E75>0,DataInput!U75-DataInput!E75,"") -> 23 | U75: =IF(DataInput!W75-DataInput!I75>0,DataInput!W75-DataInput!I75,"") ->  | W75: 31 | X75: 40.3 | Y75: -38.3 | Z75: 0 | AA75: 0 | AB75: =ROUNDDOWN((IF(AA76>0,IFERROR(IF(AVERAGE(DataInput!Q75:Q76)>AVERAGE(AA76,AA75),ROUNDDOWN(((((AA75-Z75)+(AA76-Z76))/2)*(A76-A75))/27,0),IF(((((DataInput!Q76-Z76)+(DataInput!Q75-Z75))/2)*(A76-A75))/27+S75+T75>0,ROUNDDOWN(((((DataInput!Q76-Z76)+(DataInput!Q75-Z75))/2)*(A76-A75))/27+S75+T75,0),0)),0),0)*$X$5),1) -> 0 | AC75: 0 | AD75: =ROUNDDOWN((IF(AC76>0,IFERROR(IF(((((DataInput!Q75-AC75)+(DataInput!Q76-AC76))/2)*(A76-A75))/27+S75+T75>0,ROUNDDOWN(((((DataInput!Q75-AC75)+(DataInput!Q76-AC76))/2)*(A76-A75))/27+S75+T75,0),0),0),0)*$X$5),1) -> 0 | AE75: =DataInput!U75 -> 36 | AF75: =DataInput!S75 -> 13 | AG75: 18.2 | AH75: 17.8
A76: =IF(DataInput!A76<>"",DataInput!A76,"") -> 881200 | B76: =SUM(DataInput!C76,DataInput!Y76)+(DataInput!U76-DataInput!E76) -> 35 | C76: =SUM(DataInput!D76,DataInput!Z76) -> 1 | D76: =DataInput!U76 -> 35 | E76: =SUM(DataInput!F76,DataInput!AB76) -> 0 | F76: =SUM(DataInput!G76,DataInput!AC76) -> 0 | G76: =SUM(DataInput!H76,DataInput!AD76) -> 0 | H76: =DataInput!I76 -> 0 | I76: =SUM(DataInput!J76,DataInput!AF76) -> 0 | J76: =SUM(DataInput!K76,DataInput!AG76) -> 0 | K76: =SUM(DataInput!L76,DataInput!AH76) -> 0 | L76: =SUM(DataInput!M76,DataInput!AI76) -> 0 | M76: =SUM(DataInput!N76,DataInput!AJ76) -> 0 | N76: =SUM(DataInput!O76,DataInput!AK76) -> 0 | O76: =DataInput!P76 -> 0 | Q76: 1 | R76: =DataInput!R76 -> 16 | S76: =DataInput!Y76 -> 0 | T76: =IF(DataInput!U76-DataInput!E76>0,DataInput!U76-DataInput!E76,"") -> 27 | U76: =IF(DataInput!W76-DataInput!I76>0,DataInput!W76-DataInput!I76,"") ->  | W76: 43 | X76: 55.9 | Y76: -54.9 | Z76: 0 | AA76: 0 | AB76: =ROUNDDOWN((IF(AA77>0,IFERROR(IF(AVERAGE(DataInput!Q76:Q77)>AVERAGE(AA77,AA76),ROUNDDOWN(((((AA76-Z76)+(AA77-Z77))/2)*(A77-A76))/27,0),IF(((((DataInput!Q77-Z77)+(DataInput!Q76-Z76))/2)*(A77-A76))/27+S76+T76>0,ROUNDDOWN(((((DataInput!Q77-Z77)+(DataInput!Q76-Z76))/2)*(A77-A76))/27+S76+T76,0),0)),0),0)*$X$5),1) -> 0 | AC76: 0 | AD76: =ROUNDDOWN((IF(AC77>0,IFERROR(IF(((((DataInput!Q76-AC76)+(DataInput!Q77-AC77))/2)*(A77-A76))/27+S76+T76>0,ROUNDDOWN(((((DataInput!Q76-AC76)+(DataInput!Q77-AC77))/2)*(A77-A76))/27+S76+T76,0),0),0),0)*$X$5),1) -> 0 | AE76: =DataInput!U76 -> 35 | AF76: =DataInput!S76 -> 13 | AG76: 18.2 | AH76: 16.8
A77: =IF(DataInput!A77<>"",DataInput!A77,"") -> 881225 | B77: =SUM(DataInput!C77,DataInput!Y77)+(DataInput!U77-DataInput!E77) -> 32 | C77: =SUM(DataInput!D77,DataInput!Z77) -> 0 | D77: =DataInput!U77 -> 32 | E77: =SUM(DataInput!F77,DataInput!AB77) -> 0 | F77: =SUM(DataInput!G77,DataInput!AC77) -> 0 | G77: =SUM(DataInput!H77,DataInput!AD77) -> 0 | H77: =DataInput!I77 -> 0 | I77: =SUM(DataInput!J77,DataInput!AF77) -> 0 | J77: =SUM(DataInput!K77,DataInput!AG77) -> 0 | K77: =SUM(DataInput!L77,DataInput!AH77) -> 0 | L77: =SUM(DataInput!M77,DataInput!AI77) -> 0 | M77: =SUM(DataInput!N77,DataInput!AJ77) -> 0 | N77: =SUM(DataInput!O77,DataInput!AK77) -> 0 | O77: =DataInput!P77 -> 0 | Q77: 0 | R77: =DataInput!R77 -> 25 | S77: =DataInput!Y77 -> 0 | T77: =IF(DataInput!U77-DataInput!E77>0,DataInput!U77-DataInput!E77,"") -> 29 | U77: =IF(DataInput!W77-DataInput!I77>0,DataInput!W77-DataInput!I77,"") ->  | W77: 54 | X77: 70.2 | Y77: -70.2 | Z77: 0 | AA77: 0 | AB77: =ROUNDDOWN((IF(AA78>0,IFERROR(IF(AVERAGE(DataInput!Q77:Q78)>AVERAGE(AA78,AA77),ROUNDDOWN(((((AA77-Z77)+(AA78-Z78))/2)*(A78-A77))/27,0),IF(((((DataInput!Q78-Z78)+(DataInput!Q77-Z77))/2)*(A78-A77))/27+S77+T77>0,ROUNDDOWN(((((DataInput!Q78-Z78)+(DataInput!Q77-Z77))/2)*(A78-A77))/27+S77+T77,0),0)),0),0)*$X$5),1) -> 0 | AC77: 0 | AD77: =ROUNDDOWN((IF(AC78>0,IFERROR(IF(((((DataInput!Q77-AC77)+(DataInput!Q78-AC78))/2)*(A78-A77))/27+S77+T77>0,ROUNDDOWN(((((DataInput!Q77-AC77)+(DataInput!Q78-AC78))/2)*(A78-A77))/27+S77+T77,0),0),0),0)*$X$5),1) -> 0 | AE77: =DataInput!U77 -> 32 | AF77: =DataInput!S77 -> 10 | AG77: 14 | AH77: 18
A78: =IF(DataInput!A78<>"",DataInput!A78,"") -> 881250 | B78: =SUM(DataInput!C78,DataInput!Y78)+(DataInput!U78-DataInput!E78) -> 29 | C78: =SUM(DataInput!D78,DataInput!Z78) -> 0 | D78: =DataInput!U78 -> 29 | E78: =SUM(DataInput!F78,DataInput!AB78) -> 0 | F78: =SUM(DataInput!G78,DataInput!AC78) -> 0 | G78: =SUM(DataInput!H78,DataInput!AD78) -> 0 | H78: =DataInput!I78 -> 0 | I78: =SUM(DataInput!J78,DataInput!AF78) -> 0 | J78: =SUM(DataInput!K78,DataInput!AG78) -> 0 | K78: =SUM(DataInput!L78,DataInput!AH78) -> 0 | L78: =SUM(DataInput!M78,DataInput!AI78) -> 0 | M78: =SUM(DataInput!N78,DataInput!AJ78) -> 0 | N78: =SUM(DataInput!O78,DataInput!AK78) -> 0 | O78: =DataInput!P78 -> 0 | Q78: 0 | R78: =DataInput!R78 -> 27 | S78: =DataInput!Y78 -> 0 | T78: =IF(DataInput!U78-DataInput!E78>0,DataInput!U78-DataInput!E78,"") -> 29 | U78: =IF(DataInput!W78-DataInput!I78>0,DataInput!W78-DataInput!I78,"") ->  | W78: 56 | X78: 72.8 | Y78: -72.8 | Z78: 0 | AA78: 0 | AB78: =ROUNDDOWN((IF(AA79>0,IFERROR(IF(AVERAGE(DataInput!Q78:Q79)>AVERAGE(AA79,AA78),ROUNDDOWN(((((AA78-Z78)+(AA79-Z79))/2)*(A79-A78))/27,0),IF(((((DataInput!Q79-Z79)+(DataInput!Q78-Z78))/2)*(A79-A78))/27+S78+T78>0,ROUNDDOWN(((((DataInput!Q79-Z79)+(DataInput!Q78-Z78))/2)*(A79-A78))/27+S78+T78,0),0)),0),0)*$X$5),1) -> 0 | AC78: 0 | AD78: =ROUNDDOWN((IF(AC79>0,IFERROR(IF(((((DataInput!Q78-AC78)+(DataInput!Q79-AC79))/2)*(A79-A78))/27+S78+T78>0,ROUNDDOWN(((((DataInput!Q78-AC78)+(DataInput!Q79-AC79))/2)*(A79-A78))/27+S78+T78,0),0),0),0)*$X$5),1) -> 0 | AE78: =DataInput!U78 -> 29 | AF78: =DataInput!S78 -> 9 | AG78: 12.6 | AH78: 16.4
A79: =IF(DataInput!A79<>"",DataInput!A79,"") -> 881275 | B79: =SUM(DataInput!C79,DataInput!Y79)+(DataInput!U79-DataInput!E79) -> 29 | C79: =SUM(DataInput!D79,DataInput!Z79) -> 0 | D79: =DataInput!U79 -> 29 | E79: =SUM(DataInput!F79,DataInput!AB79) -> 0 | F79: =SUM(DataInput!G79,DataInput!AC79) -> 0 | G79: =SUM(DataInput!H79,DataInput!AD79) -> 0 | H79: =DataInput!I79 -> 0 | I79: =SUM(DataInput!J79,DataInput!AF79) -> 0 | J79: =SUM(DataInput!K79,DataInput!AG79) -> 0 | K79: =SUM(DataInput!L79,DataInput!AH79) -> 0 | L79: =SUM(DataInput!M79,DataInput!AI79) -> 0 | M79: =SUM(DataInput!N79,DataInput!AJ79) -> 0 | N79: =SUM(DataInput!O79,DataInput!AK79) -> 0 | O79: =DataInput!P79 -> 0 | Q79: 0 | R79: =DataInput!R79 -> 23 | S79: =DataInput!Y79 -> 0 | T79: =IF(DataInput!U79-DataInput!E79>0,DataInput!U79-DataInput!E79,"") -> 27 | U79: =IF(DataInput!W79-DataInput!I79>0,DataInput!W79-DataInput!I79,"") ->  | W79: 50 | X79: 65 | Y79: -65 | Z79: 0 | AA79: 0 | AB79: =ROUNDDOWN((IF(AA80>0,IFERROR(IF(AVERAGE(DataInput!Q79:Q80)>AVERAGE(AA80,AA79),ROUNDDOWN(((((AA79-Z79)+(AA80-Z80))/2)*(A80-A79))/27,0),IF(((((DataInput!Q80-Z80)+(DataInput!Q79-Z79))/2)*(A80-A79))/27+S79+T79>0,ROUNDDOWN(((((DataInput!Q80-Z80)+(DataInput!Q79-Z79))/2)*(A80-A79))/27+S79+T79,0),0)),0),0)*$X$5),1) -> 0 | AC79: 0 | AD79: =ROUNDDOWN((IF(AC80>0,IFERROR(IF(((((DataInput!Q79-AC79)+(DataInput!Q80-AC80))/2)*(A80-A79))/27+S79+T79>0,ROUNDDOWN(((((DataInput!Q79-AC79)+(DataInput!Q80-AC80))/2)*(A80-A79))/27+S79+T79,0),0),0),0)*$X$5),1) -> 0 | AE79: =DataInput!U79 -> 29 | AF79: =DataInput!S79 -> 9 | AG79: 12.6 | AH79: 16.4
A80: =IF(DataInput!A80<>"",DataInput!A80,"") -> 881300 | B80: =SUM(DataInput!C80,DataInput!Y80)+(DataInput!U80-DataInput!E80) -> 29 | C80: =SUM(DataInput!D80,DataInput!Z80) -> 0 | D80: =DataInput!U80 -> 29 | E80: =SUM(DataInput!F80,DataInput!AB80) -> 0 | F80: =SUM(DataInput!G80,DataInput!AC80) -> 0 | G80: =SUM(DataInput!H80,DataInput!AD80) -> 0 | H80: =DataInput!I80 -> 0 | I80: =SUM(DataInput!J80,DataInput!AF80) -> 0 | J80: =SUM(DataInput!K80,DataInput!AG80) -> 0 | K80: =SUM(DataInput!L80,DataInput!AH80) -> 0 | L80: =SUM(DataInput!M80,DataInput!AI80) -> 0 | M80: =SUM(DataInput!N80,DataInput!AJ80) -> 0 | N80: =SUM(DataInput!O80,DataInput!AK80) -> 0 | O80: =DataInput!P80 -> 0 | Q80: 0 | R80: =DataInput!R80 -> 26 | S80: =DataInput!Y80 -> 0 | T80: =IF(DataInput!U80-DataInput!E80>0,DataInput!U80-DataInput!E80,"") -> 25 | U80: =IF(DataInput!W80-DataInput!I80>0,DataInput!W80-DataInput!I80,"") ->  | W80: 51 | X80: 66.3 | Y80: -66.3 | Z80: 0 | AA80: 0 | AB80: =ROUNDDOWN((IF(AA81>0,IFERROR(IF(AVERAGE(DataInput!Q80:Q81)>AVERAGE(AA81,AA80),ROUNDDOWN(((((AA80-Z80)+(AA81-Z81))/2)*(A81-A80))/27,0),IF(((((DataInput!Q81-Z81)+(DataInput!Q80-Z80))/2)*(A81-A80))/27+S80+T80>0,ROUNDDOWN(((((DataInput!Q81-Z81)+(DataInput!Q80-Z80))/2)*(A81-A80))/27+S80+T80,0),0)),0),0)*$X$5),1) -> 0 | AC80: 0 | AD80: =ROUNDDOWN((IF(AC81>0,IFERROR(IF(((((DataInput!Q80-AC80)+(DataInput!Q81-AC81))/2)*(A81-A80))/27+S80+T80>0,ROUNDDOWN(((((DataInput!Q80-AC80)+(DataInput!Q81-AC81))/2)*(A81-A80))/27+S80+T80,0),0),0),0)*$X$5),1) -> 0 | AE80: =DataInput!U80 -> 29 | AF80: =DataInput!S80 -> 9 | AG80: 12.6 | AH80: 16.4
A81: =IF(DataInput!A81<>"",DataInput!A81,"") -> 881325 | B81: =SUM(DataInput!C81,DataInput!Y81)+(DataInput!U81-DataInput!E81) -> 27 | C81: =SUM(DataInput!D81,DataInput!Z81) -> 0 | D81: =DataInput!U81 -> 26 | E81: =SUM(DataInput!F81,DataInput!AB81) -> 0 | F81: =SUM(DataInput!G81,DataInput!AC81) -> 0 | G81: =SUM(DataInput!H81,DataInput!AD81) -> 0 | H81: =DataInput!I81 -> 0 | I81: =SUM(DataInput!J81,DataInput!AF81) -> 0 | J81: =SUM(DataInput!K81,DataInput!AG81) -> 0 | K81: =SUM(DataInput!L81,DataInput!AH81) -> 0 | L81: =SUM(DataInput!M81,DataInput!AI81) -> 0 | M81: =SUM(DataInput!N81,DataInput!AJ81) -> 0 | N81: =SUM(DataInput!O81,DataInput!AK81) -> 0 | O81: =DataInput!P81 -> 0 | Q81: 0 | R81: =DataInput!R81 -> 34 | S81: =DataInput!Y81 -> 0 | T81: =IF(DataInput!U81-DataInput!E81>0,DataInput!U81-DataInput!E81,"") -> 23 | U81: =IF(DataInput!W81-DataInput!I81>0,DataInput!W81-DataInput!I81,"") -> 2 | W81: 59 | X81: 76.7 | Y81: -76.7 | Z81: 0 | AA81: 0 | AB81: =ROUNDDOWN((IF(AA82>0,IFERROR(IF(AVERAGE(DataInput!Q81:Q82)>AVERAGE(AA82,AA81),ROUNDDOWN(((((AA81-Z81)+(AA82-Z82))/2)*(A82-A81))/27,0),IF(((((DataInput!Q82-Z82)+(DataInput!Q81-Z81))/2)*(A82-A81))/27+S81+T81>0,ROUNDDOWN(((((DataInput!Q82-Z82)+(DataInput!Q81-Z81))/2)*(A82-A81))/27+S81+T81,0),0)),0),0)*$X$5),1) -> 0 | AC81: 0 | AD81: =ROUNDDOWN((IF(AC82>0,IFERROR(IF(((((DataInput!Q81-AC81)+(DataInput!Q82-AC82))/2)*(A82-A81))/27+S81+T81>0,ROUNDDOWN(((((DataInput!Q81-AC81)+(DataInput!Q82-AC82))/2)*(A82-A81))/27+S81+T81,0),0),0),0)*$X$5),1) -> 0 | AE81: =DataInput!U81 -> 26 | AF81: =DataInput!S81 -> 8 | AG81: 11.2 | AH81: 14.8
A82: =IF(DataInput!A82<>"",DataInput!A82,"") -> 881350 | B82: =SUM(DataInput!C82,DataInput!Y82)+(DataInput!U82-DataInput!E82) -> 21 | C82: =SUM(DataInput!D82,DataInput!Z82) -> 0 | D82: =DataInput!U82 -> 21 | E82: =SUM(DataInput!F82,DataInput!AB82) -> 0 | F82: =SUM(DataInput!G82,DataInput!AC82) -> 0 | G82: =SUM(DataInput!H82,DataInput!AD82) -> 0 | H82: =DataInput!I82 -> 0 | I82: =SUM(DataInput!J82,DataInput!AF82) -> 0 | J82: =SUM(DataInput!K82,DataInput!AG82) -> 0 | K82: =SUM(DataInput!L82,DataInput!AH82) -> 0 | L82: =SUM(DataInput!M82,DataInput!AI82) -> 0 | M82: =SUM(DataInput!N82,DataInput!AJ82) -> 0 | N82: =SUM(DataInput!O82,DataInput!AK82) -> 0 | O82: =DataInput!P82 -> 0 | Q82: 0 | R82: =DataInput!R82 -> 42 | S82: =DataInput!Y82 -> 0 | T82: =IF(DataInput!U82-DataInput!E82>0,DataInput!U82-DataInput!E82,"") -> 19 | U82: =IF(DataInput!W82-DataInput!I82>0,DataInput!W82-DataInput!I82,"") -> 3 | W82: 64 | X82: 83.2 | Y82: -83.2 | Z82: 0 | AA82: 0 | AB82: =ROUNDDOWN((IF(AA83>0,IFERROR(IF(AVERAGE(DataInput!Q82:Q83)>AVERAGE(AA83,AA82),ROUNDDOWN(((((AA82-Z82)+(AA83-Z83))/2)*(A83-A82))/27,0),IF(((((DataInput!Q83-Z83)+(DataInput!Q82-Z82))/2)*(A83-A82))/27+S82+T82>0,ROUNDDOWN(((((DataInput!Q83-Z83)+(DataInput!Q82-Z82))/2)*(A83-A82))/27+S82+T82,0),0)),0),0)*$X$5),1) -> 0 | AC82: 0 | AD82: =ROUNDDOWN((IF(AC83>0,IFERROR(IF(((((DataInput!Q82-AC82)+(DataInput!Q83-AC83))/2)*(A83-A82))/27+S82+T82>0,ROUNDDOWN(((((DataInput!Q82-AC82)+(DataInput!Q83-AC83))/2)*(A83-A82))/27+S82+T82,0),0),0),0)*$X$5),1) -> 0 | AE82: =DataInput!U82 -> 21 | AF82: =DataInput!S82 -> 7 | AG82: 9.8 | AH82: 11.2
A83: =IF(DataInput!A83<>"",DataInput!A83,"") -> 881375 | B83: =SUM(DataInput!C83,DataInput!Y83)+(DataInput!U83-DataInput!E83) -> 20 | C83: =SUM(DataInput!D83,DataInput!Z83) -> 1 | D83: =DataInput!U83 -> 20 | E83: =SUM(DataInput!F83,DataInput!AB83) -> 0 | F83: =SUM(DataInput!G83,DataInput!AC83) -> 0 | G83: =SUM(DataInput!H83,DataInput!AD83) -> 0 | H83: =DataInput!I83 -> 0 | I83: =SUM(DataInput!J83,DataInput!AF83) -> 0 | J83: =SUM(DataInput!K83,DataInput!AG83) -> 0 | K83: =SUM(DataInput!L83,DataInput!AH83) -> 0 | L83: =SUM(DataInput!M83,DataInput!AI83) -> 0 | M83: =SUM(DataInput!N83,DataInput!AJ83) -> 0 | N83: =SUM(DataInput!O83,DataInput!AK83) -> 0 | O83: =DataInput!P83 -> 0 | Q83: 1 | R83: =DataInput!R83 -> 48 | S83: =DataInput!Y83 -> 0 | T83: =IF(DataInput!U83-DataInput!E83>0,DataInput!U83-DataInput!E83,"") -> 17 | U83: =IF(DataInput!W83-DataInput!I83>0,DataInput!W83-DataInput!I83,"") -> 4 | W83: 69 | X83: 89.7 | Y83: -88.7 | Z83: 0 | AA83: 0 | AB83: =ROUNDDOWN((IF(AA84>0,IFERROR(IF(AVERAGE(DataInput!Q83:Q84)>AVERAGE(AA84,AA83),ROUNDDOWN(((((AA83-Z83)+(AA84-Z84))/2)*(A84-A83))/27,0),IF(((((DataInput!Q84-Z84)+(DataInput!Q83-Z83))/2)*(A84-A83))/27+S83+T83>0,ROUNDDOWN(((((DataInput!Q84-Z84)+(DataInput!Q83-Z83))/2)*(A84-A83))/27+S83+T83,0),0)),0),0)*$X$5),1) -> 0 | AC83: 0 | AD83: =ROUNDDOWN((IF(AC84>0,IFERROR(IF(((((DataInput!Q83-AC83)+(DataInput!Q84-AC84))/2)*(A84-A83))/27+S83+T83>0,ROUNDDOWN(((((DataInput!Q83-AC83)+(DataInput!Q84-AC84))/2)*(A84-A83))/27+S83+T83,0),0),0),0)*$X$5),1) -> 0 | AE83: =DataInput!U83 -> 20 | AF83: =DataInput!S83 -> 7 | AG83: 9.8 | AH83: 10.2
A84: =IF(DataInput!A84<>"",DataInput!A84,"") -> 881400
A86: =IF(DataInput!A86<>"",DataInput!A86,"") -> PARKING
A87: =IF(DataInput!A87<>"",DataInput!A87,"") -> 311 | B87: =SUM(DataInput!C87,DataInput!Y87)+(DataInput!U87-DataInput!E87) -> 1 | C87: =SUM(DataInput!D87,DataInput!Z87) -> 1 | D87: =DataInput!U87 -> 0 | E87: =SUM(DataInput!F87,DataInput!AB87) -> 0 | F87: =SUM(DataInput!G87,DataInput!AC87) -> 0 | G87: =SUM(DataInput!H87,DataInput!AD87) -> 0 | H87: =DataInput!I87 -> 0 | I87: =SUM(DataInput!J87,DataInput!AF87) -> 0 | J87: =SUM(DataInput!K87,DataInput!AG87) -> 0 | K87: =SUM(DataInput!L87,DataInput!AH87) -> 0 | L87: =SUM(DataInput!M87,DataInput!AI87) -> 0 | M87: =SUM(DataInput!N87,DataInput!AJ87) -> 0 | N87: =SUM(DataInput!O87,DataInput!AK87) -> 0 | O87: =DataInput!P87 -> 0 | Q87: =SUM(C87,E87:G87,I87:L87,O87:P87) -> 1 | R87: =DataInput!R87 -> 0 | S87: =DataInput!Y87 -> 0 | T87: =IF(DataInput!U87-DataInput!E87>0,DataInput!U87-DataInput!E87,"") ->  | U87: =IF(DataInput!W87-DataInput!I87>0,DataInput!W87-DataInput!I87,"") ->  | W87: =SUM(R87:V87) -> 0 | X87: =ROUNDUP(($W87*$X$5),1) -> 0 | Y87: =ROUNDUP(SUM(Q87-X87),1) -> 1 | AB87: =ROUNDDOWN((IF(AA88>0,IFERROR(IF(AVERAGE(DataInput!Q87:Q88)>AVERAGE(AA88,AA87),ROUNDDOWN(((((AA87-Z87)+(AA88-Z88))/2)*(A88-A87))/27,0),IF(((((DataInput!Q88-Z88)+(DataInput!Q87-Z87))/2)*(A88-A87))/27+S87+T87>0,ROUNDDOWN(((((DataInput!Q88-Z88)+(DataInput!Q87-Z87))/2)*(A88-A87))/27+S87+T87,0),0)),0),0)*$X$5),1) -> 0 | AD87: =ROUNDDOWN((IF(AC88>0,IFERROR(IF(((((DataInput!Q87-AC87)+(DataInput!Q88-AC88))/2)*(A88-A87))/27+S87+T87>0,ROUNDDOWN(((((DataInput!Q87-AC87)+(DataInput!Q88-AC88))/2)*(A88-A87))/27+S87+T87,0),0),0),0)*$X$5),1) -> 0 | AE87: =DataInput!U87 -> 0 | AF87: =DataInput!S87 -> 0 | AG87: =ROUNDUP((AF87*$AG$5),1) -> 0 | AH87: =ROUNDUP((AE87-AG87),1) -> 0
A88: =IF(DataInput!A88<>"",DataInput!A88,"") -> 313 | B88: =SUM(DataInput!C88,DataInput!Y88)+(DataInput!U88-DataInput!E88) -> 2 | C88: =SUM(DataInput!D88,DataInput!Z88) -> 1 | D88: =DataInput!U88 -> 2 | E88: =SUM(DataInput!F88,DataInput!AB88) -> 0 | F88: =SUM(DataInput!G88,DataInput!AC88) -> 0 | G88: =SUM(DataInput!H88,DataInput!AD88) -> 0 | H88: =DataInput!I88 -> 0 | I88: =SUM(DataInput!J88,DataInput!AF88) -> 0 | J88: =SUM(DataInput!K88,DataInput!AG88) -> 0 | K88: =SUM(DataInput!L88,DataInput!AH88) -> 0 | L88: =SUM(DataInput!M88,DataInput!AI88) -> 0 | M88: =SUM(DataInput!N88,DataInput!AJ88) -> 0 | N88: =SUM(DataInput!O88,DataInput!AK88) -> 0 | O88: =DataInput!P88 -> 0 | Q88: =SUM(C88,E88:G88,I88:L88,O88:P88) -> 1 | R88: =DataInput!R88 -> 0 | S88: =DataInput!Y88 -> 0 | T88: =IF(DataInput!U88-DataInput!E88>0,DataInput!U88-DataInput!E88,"") -> 1 | U88: =IF(DataInput!W88-DataInput!I88>0,DataInput!W88-DataInput!I88,"") ->  | W88: =SUM(R88:V88) -> 1 | X88: =ROUNDUP(($W88*$X$5),1) -> 1.3 | Y88: =ROUNDUP(SUM(Q88-X88),1) -> -0.3 | Z88: =Z87 -> 0 | AA88: =AA87 -> 0 | AB88: =ROUNDDOWN((IF(AA89>0,IFERROR(IF(AVERAGE(DataInput!Q88:Q89)>AVERAGE(AA89,AA88),ROUNDDOWN(((((AA88-Z88)+(AA89-Z89))/2)*(A89-A88))/27,0),IF(((((DataInput!Q89-Z89)+(DataInput!Q88-Z88))/2)*(A89-A88))/27+S88+T88>0,ROUNDDOWN(((((DataInput!Q89-Z89)+(DataInput!Q88-Z88))/2)*(A89-A88))/27+S88+T88,0),0)),0),0)*$X$5),1) -> 0 | AC88: =AC87 -> 0 | AD88: =ROUNDDOWN((IF(AC89>0,IFERROR(IF(((((DataInput!Q88-AC88)+(DataInput!Q89-AC89))/2)*(A89-A88))/27+S88+T88>0,ROUNDDOWN(((((DataInput!Q88-AC88)+(DataInput!Q89-AC89))/2)*(A89-A88))/27+S88+T88,0),0),0),0)*$X$5),1) -> 0 | AE88: =DataInput!U88 -> 2 | AF88: =DataInput!S88 -> 0 | AG88: =ROUNDUP((AF88*$AG$5),1) -> 0 | AH88: =ROUNDUP((AE88-AG88),1) -> 2
A89: =IF(DataInput!A89<>"",DataInput!A89,"") -> 315 | B89: =SUM(DataInput!C89,DataInput!Y89)+(DataInput!U89-DataInput!E89) -> 6 | C89: =SUM(DataInput!D89,DataInput!Z89) -> 1 | D89: =DataInput!U89 -> 5 | E89: =SUM(DataInput!F89,DataInput!AB89) -> 0 | F89: =SUM(DataInput!G89,DataInput!AC89) -> 0 | G89: =SUM(DataInput!H89,DataInput!AD89) -> 0 | H89: =DataInput!I89 -> 0 | I89: =SUM(DataInput!J89,DataInput!AF89) -> 0 | J89: =SUM(DataInput!K89,DataInput!AG89) -> 0 | K89: =SUM(DataInput!L89,DataInput!AH89) -> 0 | L89: =SUM(DataInput!M89,DataInput!AI89) -> 0 | M89: =SUM(DataInput!N89,DataInput!AJ89) -> 0 | N89: =SUM(DataInput!O89,DataInput!AK89) -> 0 | O89: =DataInput!P89 -> 0 | Q89: 1 | R89: =DataInput!R89 -> 0 | S89: =DataInput!Y89 -> 0 | T89: =IF(DataInput!U89-DataInput!E89>0,DataInput!U89-DataInput!E89,"") -> 3 | U89: =IF(DataInput!W89-DataInput!I89>0,DataInput!W89-DataInput!I89,"") ->  | W89: 3 | X89: 3.9 | Y89: -2.9 | Z89: =Z88 -> 0 | AA89: =AA88 -> 0 | AB89: =ROUNDDOWN((IF(AA90>0,IFERROR(IF(AVERAGE(DataInput!Q89:Q90)>AVERAGE(AA90,AA89),ROUNDDOWN(((((AA89-Z89)+(AA90-Z90))/2)*(A90-A89))/27,0),IF(((((DataInput!Q90-Z90)+(DataInput!Q89-Z89))/2)*(A90-A89))/27+S89+T89>0,ROUNDDOWN(((((DataInput!Q90-Z90)+(DataInput!Q89-Z89))/2)*(A90-A89))/27+S89+T89,0),0)),0),0)*$X$5),1) -> 0 | AC89: =AC88 -> 0 | AD89: =ROUNDDOWN((IF(AC90>0,IFERROR(IF(((((DataInput!Q89-AC89)+(DataInput!Q90-AC90))/2)*(A90-A89))/27+S89+T89>0,ROUNDDOWN(((((DataInput!Q89-AC89)+(DataInput!Q90-AC90))/2)*(A90-A89))/27+S89+T89,0),0),0),0)*$X$5),1) -> 0 | AE89: =DataInput!U89 -> 5 | AF89: =DataInput!S89 -> 1 | AG89: 1.4 | AH89: 3.6
A90: =IF(DataInput!A90<>"",DataInput!A90,"") -> 320 | B90: =SUM(DataInput!C90,DataInput!Y90)+(DataInput!U90-DataInput!E90) -> 8 | C90: =SUM(DataInput!D90,DataInput!Z90) -> 1 | D90: =DataInput!U90 -> 7 | E90: =SUM(DataInput!F90,DataInput!AB90) -> 0 | F90: =SUM(DataInput!G90,DataInput!AC90) -> 0 | G90: =SUM(DataInput!H90,DataInput!AD90) -> 0 | H90: =DataInput!I90 -> 0 | I90: =SUM(DataInput!J90,DataInput!AF90) -> 0 | J90: =SUM(DataInput!K90,DataInput!AG90) -> 0 | K90: =SUM(DataInput!L90,DataInput!AH90) -> 0 | L90: =SUM(DataInput!M90,DataInput!AI90) -> 0 | M90: =SUM(DataInput!N90,DataInput!AJ90) -> 0 | N90: =SUM(DataInput!O90,DataInput!AK90) -> 0 | O90: =DataInput!P90 -> 0 | Q90: 1 | R90: =DataInput!R90 -> 0 | S90: =DataInput!Y90 -> 0 | T90: =IF(DataInput!U90-DataInput!E90>0,DataInput!U90-DataInput!E90,"") -> 5 | U90: =IF(DataInput!W90-DataInput!I90>0,DataInput!W90-DataInput!I90,"") ->  | W90: 5 | X90: 6.5 | Y90: -5.5 | Z90: 0 | AA90: 0 | AB90: =ROUNDDOWN((IF(AA91>0,IFERROR(IF(AVERAGE(DataInput!Q90:Q91)>AVERAGE(AA91,AA90),ROUNDDOWN(((((AA90-Z90)+(AA91-Z91))/2)*(A91-A90))/27,0),IF(((((DataInput!Q91-Z91)+(DataInput!Q90-Z90))/2)*(A91-A90))/27+S90+T90>0,ROUNDDOWN(((((DataInput!Q91-Z91)+(DataInput!Q90-Z90))/2)*(A91-A90))/27+S90+T90,0),0)),0),0)*$X$5),1) -> 0 | AC90: 0 | AD90: =ROUNDDOWN((IF(AC91>0,IFERROR(IF(((((DataInput!Q90-AC90)+(DataInput!Q91-AC91))/2)*(A91-A90))/27+S90+T90>0,ROUNDDOWN(((((DataInput!Q90-AC90)+(DataInput!Q91-AC91))/2)*(A91-A90))/27+S90+T90,0),0),0),0)*$X$5),1) -> 0 | AE90: =DataInput!U90 -> 7 | AF90: =DataInput!S90 -> 3 | AG90: 4.2 | AH90: 2.8
A91: =IF(DataInput!A91<>"",DataInput!A91,"") -> 325 | B91: =SUM(DataInput!C91,DataInput!Y91)+(DataInput!U91-DataInput!E91) -> 10 | C91: =SUM(DataInput!D91,DataInput!Z91) -> 0 | D91: =DataInput!U91 -> 10 | E91: =SUM(DataInput!F91,DataInput!AB91) -> 0 | F91: =SUM(DataInput!G91,DataInput!AC91) -> 0 | G91: =SUM(DataInput!H91,DataInput!AD91) -> 0 | H91: =DataInput!I91 -> 0 | I91: =SUM(DataInput!J91,DataInput!AF91) -> 0 | J91: =SUM(DataInput!K91,DataInput!AG91) -> 0 | K91: =SUM(DataInput!L91,DataInput!AH91) -> 0 | L91: =SUM(DataInput!M91,DataInput!AI91) -> 0 | M91: =SUM(DataInput!N91,DataInput!AJ91) -> 0 | N91: =SUM(DataInput!O91,DataInput!AK91) -> 0 | O91: =DataInput!P91 -> 0 | Q91: 0 | R91: =DataInput!R91 -> 0 | S91: =DataInput!Y91 -> 0 | T91: =IF(DataInput!U91-DataInput!E91>0,DataInput!U91-DataInput!E91,"") -> 7 | U91: =IF(DataInput!W91-DataInput!I91>0,DataInput!W91-DataInput!I91,"") ->  | W91: 7 | X91: 9.1 | Y91: -9.1 | Z91: 0 | AA91: 0 | AB91: =ROUNDDOWN((IF(AA92>0,IFERROR(IF(AVERAGE(DataInput!Q91:Q92)>AVERAGE(AA92,AA91),ROUNDDOWN(((((AA91-Z91)+(AA92-Z92))/2)*(A92-A91))/27,0),IF(((((DataInput!Q92-Z92)+(DataInput!Q91-Z91))/2)*(A92-A91))/27+S91+T91>0,ROUNDDOWN(((((DataInput!Q92-Z92)+(DataInput!Q91-Z91))/2)*(A92-A91))/27+S91+T91,0),0)),0),0)*$X$5),1) -> 0 | AC91: 0 | AD91: =ROUNDDOWN((IF(AC92>0,IFERROR(IF(((((DataInput!Q91-AC91)+(DataInput!Q92-AC92))/2)*(A92-A91))/27+S91+T91>0,ROUNDDOWN(((((DataInput!Q91-AC91)+(DataInput!Q92-AC92))/2)*(A92-A91))/27+S91+T91,0),0),0),0)*$X$5),1) -> 0 | AE91: =DataInput!U91 -> 10 | AF91: =DataInput!S91 -> 5 | AG91: 7 | AH91: 3
A92: =IF(DataInput!A92<>"",DataInput!A92,"") -> 330 | B92: =SUM(DataInput!C92,DataInput!Y92)+(DataInput!U92-DataInput!E92) -> 11 | C92: =SUM(DataInput!D92,DataInput!Z92) -> 0 | D92: =DataInput!U92 -> 11 | E92: =SUM(DataInput!F92,DataInput!AB92) -> 0 | F92: =SUM(DataInput!G92,DataInput!AC92) -> 0 | G92: =SUM(DataInput!H92,DataInput!AD92) -> 0 | H92: =DataInput!I92 -> 0 | I92: =SUM(DataInput!J92,DataInput!AF92) -> 0 | J92: =SUM(DataInput!K92,DataInput!AG92) -> 0 | K92: =SUM(DataInput!L92,DataInput!AH92) -> 0 | L92: =SUM(DataInput!M92,DataInput!AI92) -> 0 | M92: =SUM(DataInput!N92,DataInput!AJ92) -> 0 | N92: =SUM(DataInput!O92,DataInput!AK92) -> 0 | O92: =DataInput!P92 -> 0 | Q92: 0 | R92: =DataInput!R92 -> 1 | S92: =DataInput!Y92 -> 0 | T92: =IF(DataInput!U92-DataInput!E92>0,DataInput!U92-DataInput!E92,"") -> 9 | U92: =IF(DataInput!W92-DataInput!I92>0,DataInput!W92-DataInput!I92,"") ->  | W92: 10 | X92: 13 | Y92: -13 | Z92: 0 | AA92: 0 | AB92: =ROUNDDOWN((IF(AA93>0,IFERROR(IF(AVERAGE(DataInput!Q92:Q93)>AVERAGE(AA93,AA92),ROUNDDOWN(((((AA92-Z92)+(AA93-Z93))/2)*(A93-A92))/27,0),IF(((((DataInput!Q93-Z93)+(DataInput!Q92-Z92))/2)*(A93-A92))/27+S92+T92>0,ROUNDDOWN(((((DataInput!Q93-Z93)+(DataInput!Q92-Z92))/2)*(A93-A92))/27+S92+T92,0),0)),0),0)*$X$5),1) -> 0 | AC92: 0 | AD92: =ROUNDDOWN((IF(AC93>0,IFERROR(IF(((((DataInput!Q92-AC92)+(DataInput!Q93-AC93))/2)*(A93-A92))/27+S92+T92>0,ROUNDDOWN(((((DataInput!Q92-AC92)+(DataInput!Q93-AC93))/2)*(A93-A92))/27+S92+T92,0),0),0),0)*$X$5),1) -> 0 | AE92: =DataInput!U92 -> 11 | AF92: =DataInput!S92 -> 5 | AG92: 7 | AH92: 4
A93: =IF(DataInput!A93<>"",DataInput!A93,"") -> 335 | B93: =SUM(DataInput!C93,DataInput!Y93)+(DataInput!U93-DataInput!E93) -> 12 | C93: =SUM(DataInput!D93,DataInput!Z93) -> 1 | D93: =DataInput!U93 -> 12 | E93: =SUM(DataInput!F93,DataInput!AB93) -> 0 | F93: =SUM(DataInput!G93,DataInput!AC93) -> 0 | G93: =SUM(DataInput!H93,DataInput!AD93) -> 0 | H93: =DataInput!I93 -> 0 | I93: =SUM(DataInput!J93,DataInput!AF93) -> 0 | J93: =SUM(DataInput!K93,DataInput!AG93) -> 0 | K93: =SUM(DataInput!L93,DataInput!AH93) -> 0 | L93: =SUM(DataInput!M93,DataInput!AI93) -> 0 | M93: =SUM(DataInput!N93,DataInput!AJ93) -> 0 | N93: =SUM(DataInput!O93,DataInput!AK93) -> 0 | O93: =DataInput!P93 -> 0 | Q93: 1 | R93: =DataInput!R93 -> 3 | S93: =DataInput!Y93 -> 0 | T93: =IF(DataInput!U93-DataInput!E93>0,DataInput!U93-DataInput!E93,"") -> 9 | U93: =IF(DataInput!W93-DataInput!I93>0,DataInput!W93-DataInput!I93,"") ->  | W93: 12 | X93: 15.6 | Y93: -14.6 | Z93: 0 | AA93: 0 | AB93: =ROUNDDOWN((IF(AA94>0,IFERROR(IF(AVERAGE(DataInput!Q93:Q94)>AVERAGE(AA94,AA93),ROUNDDOWN(((((AA93-Z93)+(AA94-Z94))/2)*(A94-A93))/27,0),IF(((((DataInput!Q94-Z94)+(DataInput!Q93-Z93))/2)*(A94-A93))/27+S93+T93>0,ROUNDDOWN(((((DataInput!Q94-Z94)+(DataInput!Q93-Z93))/2)*(A94-A93))/27+S93+T93,0),0)),0),0)*$X$5),1) -> 0 | AC93: 0 | AD93: =ROUNDDOWN((IF(AC94>0,IFERROR(IF(((((DataInput!Q93-AC93)+(DataInput!Q94-AC94))/2)*(A94-A93))/27+S93+T93>0,ROUNDDOWN(((((DataInput!Q93-AC93)+(DataInput!Q94-AC94))/2)*(A94-A93))/27+S93+T93,0),0),0),0)*$X$5),1) -> 0 | AE93: =DataInput!U93 -> 12 | AF93: =DataInput!S93 -> 4 | AG93: 5.6 | AH93: 6.4
A94: =IF(DataInput!A94<>"",DataInput!A94,"") -> 340 | B94: =SUM(DataInput!C94,DataInput!Y94)+(DataInput!U94-DataInput!E94) -> 16 | C94: =SUM(DataInput!D94,DataInput!Z94) -> 2 | D94: =DataInput!U94 -> 14 | E94: =SUM(DataInput!F94,DataInput!AB94) -> 0 | F94: =SUM(DataInput!G94,DataInput!AC94) -> 0 | G94: =SUM(DataInput!H94,DataInput!AD94) -> 0 | H94: =DataInput!I94 -> 0 | I94: =SUM(DataInput!J94,DataInput!AF94) -> 0 | J94: =SUM(DataInput!K94,DataInput!AG94) -> 0 | K94: =SUM(DataInput!L94,DataInput!AH94) -> 0 | L94: =SUM(DataInput!M94,DataInput!AI94) -> 0 | M94: =SUM(DataInput!N94,DataInput!AJ94) -> 0 | N94: =SUM(DataInput!O94,DataInput!AK94) -> 0 | O94: =DataInput!P94 -> 0 | Q94: 2 | R94: =DataInput!R94 -> 5 | S94: =DataInput!Y94 -> 0 | T94: =IF(DataInput!U94-DataInput!E94>0,DataInput!U94-DataInput!E94,"") -> 10 | U94: =IF(DataInput!W94-DataInput!I94>0,DataInput!W94-DataInput!I94,"") ->  | W94: 15 | X94: 19.5 | Y94: -17.5 | Z94: 0 | AA94: 0 | AB94: =ROUNDDOWN((IF(AA95>0,IFERROR(IF(AVERAGE(DataInput!Q94:Q95)>AVERAGE(AA95,AA94),ROUNDDOWN(((((AA94-Z94)+(AA95-Z95))/2)*(A95-A94))/27,0),IF(((((DataInput!Q95-Z95)+(DataInput!Q94-Z94))/2)*(A95-A94))/27+S94+T94>0,ROUNDDOWN(((((DataInput!Q95-Z95)+(DataInput!Q94-Z94))/2)*(A95-A94))/27+S94+T94,0),0)),0),0)*$X$5),1) -> 0 | AC94: 0 | AD94: =ROUNDDOWN((IF(AC95>0,IFERROR(IF(((((DataInput!Q94-AC94)+(DataInput!Q95-AC95))/2)*(A95-A94))/27+S94+T94>0,ROUNDDOWN(((((DataInput!Q94-AC94)+(DataInput!Q95-AC95))/2)*(A95-A94))/27+S94+T94,0),0),0),0)*$X$5),1) -> 0 | AE94: =DataInput!U94 -> 14 | AF94: =DataInput!S94 -> 3 | AG94: 4.2 | AH94: 9.8
A95: =IF(DataInput!A95<>"",DataInput!A95,"") -> 345 | B95: =SUM(DataInput!C95,DataInput!Y95)+(DataInput!U95-DataInput!E95) -> 21 | C95: =SUM(DataInput!D95,DataInput!Z95) -> 5 | D95: =DataInput!U95 -> 15 | E95: =SUM(DataInput!F95,DataInput!AB95) -> 0 | F95: =SUM(DataInput!G95,DataInput!AC95) -> 0 | G95: =SUM(DataInput!H95,DataInput!AD95) -> 0 | H95: =DataInput!I95 -> 0 | I95: =SUM(DataInput!J95,DataInput!AF95) -> 0 | J95: =SUM(DataInput!K95,DataInput!AG95) -> 0 | K95: =SUM(DataInput!L95,DataInput!AH95) -> 0 | L95: =SUM(DataInput!M95,DataInput!AI95) -> 0 | M95: =SUM(DataInput!N95,DataInput!AJ95) -> 0 | N95: =SUM(DataInput!O95,DataInput!AK95) -> 0 | O95: =DataInput!P95 -> 0 | Q95: 5 | R95: =DataInput!R95 -> 5 | S95: =DataInput!Y95 -> 0 | T95: =IF(DataInput!U95-DataInput!E95>0,DataInput!U95-DataInput!E95,"") -> 10 | U95: =IF(DataInput!W95-DataInput!I95>0,DataInput!W95-DataInput!I95,"") ->  | W95: 15 | X95: 19.5 | Y95: -14.5 | Z95: 0 | AA95: 0 | AB95: =ROUNDDOWN((IF(AA96>0,IFERROR(IF(AVERAGE(DataInput!Q95:Q96)>AVERAGE(AA96,AA95),ROUNDDOWN(((((AA95-Z95)+(AA96-Z96))/2)*(A96-A95))/27,0),IF(((((DataInput!Q96-Z96)+(DataInput!Q95-Z95))/2)*(A96-A95))/27+S95+T95>0,ROUNDDOWN(((((DataInput!Q96-Z96)+(DataInput!Q95-Z95))/2)*(A96-A95))/27+S95+T95,0),0)),0),0)*$X$5),1) -> 0 | AC95: 0 | AD95: =ROUNDDOWN((IF(AC96>0,IFERROR(IF(((((DataInput!Q95-AC95)+(DataInput!Q96-AC96))/2)*(A96-A95))/27+S95+T95>0,ROUNDDOWN(((((DataInput!Q95-AC95)+(DataInput!Q96-AC96))/2)*(A96-A95))/27+S95+T95,0),0),0),0)*$X$5),1) -> 0 | AE95: =DataInput!U95 -> 15 | AF95: =DataInput!S95 -> 3 | AG95: 4.2 | AH95: 10.8
A96: =IF(DataInput!A96<>"",DataInput!A96,"") -> 350 | B96: =SUM(DataInput!C96,DataInput!Y96)+(DataInput!U96-DataInput!E96) -> 24 | C96: =SUM(DataInput!D96,DataInput!Z96) -> 8 | D96: =DataInput!U96 -> 16 | E96: =SUM(DataInput!F96,DataInput!AB96) -> 0 | F96: =SUM(DataInput!G96,DataInput!AC96) -> 0 | G96: =SUM(DataInput!H96,DataInput!AD96) -> 0 | H96: =DataInput!I96 -> 0 | I96: =SUM(DataInput!J96,DataInput!AF96) -> 0 | J96: =SUM(DataInput!K96,DataInput!AG96) -> 0 | K96: =SUM(DataInput!L96,DataInput!AH96) -> 0 | L96: =SUM(DataInput!M96,DataInput!AI96) -> 0 | M96: =SUM(DataInput!N96,DataInput!AJ96) -> 0 | N96: =SUM(DataInput!O96,DataInput!AK96) -> 0 | O96: =DataInput!P96 -> 0 | Q96: 8 | R96: =DataInput!R96 -> 6 | S96: =DataInput!Y96 -> 0 | T96: =IF(DataInput!U96-DataInput!E96>0,DataInput!U96-DataInput!E96,"") -> 10 | U96: =IF(DataInput!W96-DataInput!I96>0,DataInput!W96-DataInput!I96,"") ->  | W96: 16 | X96: 20.8 | Y96: -12.8 | Z96: 0 | AA96: 0 | AB96: =ROUNDDOWN((IF(AA97>0,IFERROR(IF(AVERAGE(DataInput!Q96:Q97)>AVERAGE(AA97,AA96),ROUNDDOWN(((((AA96-Z96)+(AA97-Z97))/2)*(A97-A96))/27,0),IF(((((DataInput!Q97-Z97)+(DataInput!Q96-Z96))/2)*(A97-A96))/27+S96+T96>0,ROUNDDOWN(((((DataInput!Q97-Z97)+(DataInput!Q96-Z96))/2)*(A97-A96))/27+S96+T96,0),0)),0),0)*$X$5),1) -> 0 | AC96: 0 | AD96: =ROUNDDOWN((IF(AC97>0,IFERROR(IF(((((DataInput!Q96-AC96)+(DataInput!Q97-AC97))/2)*(A97-A96))/27+S96+T96>0,ROUNDDOWN(((((DataInput!Q96-AC96)+(DataInput!Q97-AC97))/2)*(A97-A96))/27+S96+T96,0),0),0),0)*$X$5),1) -> 0 | AE96: =DataInput!U96 -> 16 | AF96: =DataInput!S96 -> 4 | AG96: 5.6 | AH96: 10.4
A97: =IF(DataInput!A97<>"",DataInput!A97,"") -> 355 | B97: =SUM(DataInput!C97,DataInput!Y97)+(DataInput!U97-DataInput!E97) -> 26 | C97: =SUM(DataInput!D97,DataInput!Z97) -> 10 | D97: =DataInput!U97 -> 16 | E97: =SUM(DataInput!F97,DataInput!AB97) -> 0 | F97: =SUM(DataInput!G97,DataInput!AC97) -> 0 | G97: =SUM(DataInput!H97,DataInput!AD97) -> 0 | H97: =DataInput!I97 -> 0 | I97: =SUM(DataInput!J97,DataInput!AF97) -> 0 | J97: =SUM(DataInput!K97,DataInput!AG97) -> 0 | K97: =SUM(DataInput!L97,DataInput!AH97) -> 0 | L97: =SUM(DataInput!M97,DataInput!AI97) -> 0 | M97: =SUM(DataInput!N97,DataInput!AJ97) -> 0 | N97: =SUM(DataInput!O97,DataInput!AK97) -> 0 | O97: =DataInput!P97 -> 0 | Q97: 10 | R97: =DataInput!R97 -> 6 | S97: =DataInput!Y97 -> 0 | T97: =IF(DataInput!U97-DataInput!E97>0,DataInput!U97-DataInput!E97,"") -> 9 | U97: =IF(DataInput!W97-DataInput!I97>0,DataInput!W97-DataInput!I97,"") ->  | W97: 15 | X97: 19.5 | Y97: -9.5 | Z97: 0 | AA97: 0 | AB97: =ROUNDDOWN((IF(AA98>0,IFERROR(IF(AVERAGE(DataInput!Q97:Q98)>AVERAGE(AA98,AA97),ROUNDDOWN(((((AA97-Z97)+(AA98-Z98))/2)*(A98-A97))/27,0),IF(((((DataInput!Q98-Z98)+(DataInput!Q97-Z97))/2)*(A98-A97))/27+S97+T97>0,ROUNDDOWN(((((DataInput!Q98-Z98)+(DataInput!Q97-Z97))/2)*(A98-A97))/27+S97+T97,0),0)),0),0)*$X$5),1) -> 0 | AC97: 0 | AD97: =ROUNDDOWN((IF(AC98>0,IFERROR(IF(((((DataInput!Q97-AC97)+(DataInput!Q98-AC98))/2)*(A98-A97))/27+S97+T97>0,ROUNDDOWN(((((DataInput!Q97-AC97)+(DataInput!Q98-AC98))/2)*(A98-A97))/27+S97+T97,0),0),0),0)*$X$5),1) -> 0 | AE97: =DataInput!U97 -> 16 | AF97: =DataInput!S97 -> 4 | AG97: 5.6 | AH97: 10.4
A98: =IF(DataInput!A98<>"",DataInput!A98,"") -> 360 | B98: =SUM(DataInput!C98,DataInput!Y98)+(DataInput!U98-DataInput!E98) -> 28 | C98: =SUM(DataInput!D98,DataInput!Z98) -> 12 | D98: =DataInput!U98 -> 17 | E98: =SUM(DataInput!F98,DataInput!AB98) -> 0 | F98: =SUM(DataInput!G98,DataInput!AC98) -> 0 | G98: =SUM(DataInput!H98,DataInput!AD98) -> 0 | H98: =DataInput!I98 -> 0 | I98: =SUM(DataInput!J98,DataInput!AF98) -> 0 | J98: =SUM(DataInput!K98,DataInput!AG98) -> 0 | K98: =SUM(DataInput!L98,DataInput!AH98) -> 0 | L98: =SUM(DataInput!M98,DataInput!AI98) -> 0 | M98: =SUM(DataInput!N98,DataInput!AJ98) -> 0 | N98: =SUM(DataInput!O98,DataInput!AK98) -> 0 | O98: =DataInput!P98 -> 0 | Q98: 12 | R98: =DataInput!R98 -> 7 | S98: =DataInput!Y98 -> 0 | T98: =IF(DataInput!U98-DataInput!E98>0,DataInput!U98-DataInput!E98,"") -> 9 | U98: =IF(DataInput!W98-DataInput!I98>0,DataInput!W98-DataInput!I98,"") ->  | W98: 16 | X98: 20.8 | Y98: -8.8 | Z98: 0 | AA98: 0 | AB98: =ROUNDDOWN((IF(AA99>0,IFERROR(IF(AVERAGE(DataInput!Q98:Q99)>AVERAGE(AA99,AA98),ROUNDDOWN(((((AA98-Z98)+(AA99-Z99))/2)*(A99-A98))/27,0),IF(((((DataInput!Q99-Z99)+(DataInput!Q98-Z98))/2)*(A99-A98))/27+S98+T98>0,ROUNDDOWN(((((DataInput!Q99-Z99)+(DataInput!Q98-Z98))/2)*(A99-A98))/27+S98+T98,0),0)),0),0)*$X$5),1) -> 0 | AC98: 0 | AD98: =ROUNDDOWN((IF(AC99>0,IFERROR(IF(((((DataInput!Q98-AC98)+(DataInput!Q99-AC99))/2)*(A99-A98))/27+S98+T98>0,ROUNDDOWN(((((DataInput!Q98-AC98)+(DataInput!Q99-AC99))/2)*(A99-A98))/27+S98+T98,0),0),0),0)*$X$5),1) -> 0 | AE98: =DataInput!U98 -> 17 | AF98: =DataInput!S98 -> 4 | AG98: 5.6 | AH98: 11.4
A99: =IF(DataInput!A99<>"",DataInput!A99,"") -> 365 | B99: =SUM(DataInput!C99,DataInput!Y99)+(DataInput!U99-DataInput!E99) -> 32 | C99: =SUM(DataInput!D99,DataInput!Z99) -> 15 | D99: =DataInput!U99 -> 17 | E99: =SUM(DataInput!F99,DataInput!AB99) -> 0 | F99: =SUM(DataInput!G99,DataInput!AC99) -> 0 | G99: =SUM(DataInput!H99,DataInput!AD99) -> 0 | H99: =DataInput!I99 -> 0 | I99: =SUM(DataInput!J99,DataInput!AF99) -> 0 | J99: =SUM(DataInput!K99,DataInput!AG99) -> 0 | K99: =SUM(DataInput!L99,DataInput!AH99) -> 0 | L99: =SUM(DataInput!M99,DataInput!AI99) -> 0 | M99: =SUM(DataInput!N99,DataInput!AJ99) -> 0 | N99: =SUM(DataInput!O99,DataInput!AK99) -> 0 | O99: =DataInput!P99 -> 0 | Q99: 15 | R99: =DataInput!R99 -> 6 | S99: =DataInput!Y99 -> 0 | T99: =IF(DataInput!U99-DataInput!E99>0,DataInput!U99-DataInput!E99,"") -> 9 | U99: =IF(DataInput!W99-DataInput!I99>0,DataInput!W99-DataInput!I99,"") ->  | W99: 15 | X99: 19.5 | Y99: -4.5 | Z99: 0 | AA99: 0 | AB99: =ROUNDDOWN((IF(AA100>0,IFERROR(IF(AVERAGE(DataInput!Q99:Q100)>AVERAGE(AA100,AA99),ROUNDDOWN(((((AA99-Z99)+(AA100-Z100))/2)*(A100-A99))/27,0),IF(((((DataInput!Q100-Z100)+(DataInput!Q99-Z99))/2)*(A100-A99))/27+S99+T99>0,ROUNDDOWN(((((DataInput!Q100-Z100)+(DataInput!Q99-Z99))/2)*(A100-A99))/27+S99+T99,0),0)),0),0)*$X$5),1) -> 0 | AC99: 0 | AD99: =ROUNDDOWN((IF(AC100>0,IFERROR(IF(((((DataInput!Q99-AC99)+(DataInput!Q100-AC100))/2)*(A100-A99))/27+S99+T99>0,ROUNDDOWN(((((DataInput!Q99-AC99)+(DataInput!Q100-AC100))/2)*(A100-A99))/27+S99+T99,0),0),0),0)*$X$5),1) -> 0 | AE99: =DataInput!U99 -> 17 | AF99: =DataInput!S99 -> 6 | AG99: 8.4 | AH99: 8.6
A100: =IF(DataInput!A100<>"",DataInput!A100,"") -> 370 | B100: =SUM(DataInput!C100,DataInput!Y100)+(DataInput!U100-DataInput!E100) -> 26 | C100: =SUM(DataInput!D100,DataInput!Z100) -> 13 | D100: =DataInput!U100 -> 13 | E100: =SUM(DataInput!F100,DataInput!AB100) -> 0 | F100: =SUM(DataInput!G100,DataInput!AC100) -> 0 | G100: =SUM(DataInput!H100,DataInput!AD100) -> 0 | H100: =DataInput!I100 -> 0 | I100: =SUM(DataInput!J100,DataInput!AF100) -> 0 | J100: =SUM(DataInput!K100,DataInput!AG100) -> 0 | K100: =SUM(DataInput!L100,DataInput!AH100) -> 0 | L100: =SUM(DataInput!M100,DataInput!AI100) -> 0 | M100: =SUM(DataInput!N100,DataInput!AJ100) -> 0 | N100: =SUM(DataInput!O100,DataInput!AK100) -> 0 | O100: =DataInput!P100 -> 0 | Q100: 13 | R100: =DataInput!R100 -> 3 | S100: =DataInput!Y100 -> 0 | T100: =IF(DataInput!U100-DataInput!E100>0,DataInput!U100-DataInput!E100,"") -> 6 | U100: =IF(DataInput!W100-DataInput!I100>0,DataInput!W100-DataInput!I100,"") ->  | W100: 9 | X100: 11.7 | Y100: 1.3 | Z100: 0 | AA100: 0 | AB100: =ROUNDDOWN((IF(AA101>0,IFERROR(IF(AVERAGE(DataInput!Q100:Q101)>AVERAGE(AA101,AA100),ROUNDDOWN(((((AA100-Z100)+(AA101-Z101))/2)*(A101-A100))/27,0),IF(((((DataInput!Q101-Z101)+(DataInput!Q100-Z100))/2)*(A101-A100))/27+S100+T100>0,ROUNDDOWN(((((DataInput!Q101-Z101)+(DataInput!Q100-Z100))/2)*(A101-A100))/27+S100+T100,0),0)),0),0)*$X$5),1) -> 0 | AC100: 0 | AD100: =ROUNDDOWN((IF(AC101>0,IFERROR(IF(((((DataInput!Q100-AC100)+(DataInput!Q101-AC101))/2)*(A101-A100))/27+S100+T100>0,ROUNDDOWN(((((DataInput!Q100-AC100)+(DataInput!Q101-AC101))/2)*(A101-A100))/27+S100+T100,0),0),0),0)*$X$5),1) -> 0 | AE100: =DataInput!U100 -> 13 | AF100: =DataInput!S100 -> 6 | AG100: 8.4 | AH100: 4.6
A101: =IF(DataInput!A101<>"",DataInput!A101,"") -> 374 | B101: =SUM(DataInput!C101,DataInput!Y101)+(DataInput!U101-DataInput!E101) -> 6 | C101: =SUM(DataInput!D101,DataInput!Z101) -> 3 | D101: =DataInput!U101 -> 3 | E101: =SUM(DataInput!F101,DataInput!AB101) -> 0 | F101: =SUM(DataInput!G101,DataInput!AC101) -> 0 | G101: =SUM(DataInput!H101,DataInput!AD101) -> 0 | H101: =DataInput!I101 -> 0 | I101: =SUM(DataInput!J101,DataInput!AF101) -> 0 | J101: =SUM(DataInput!K101,DataInput!AG101) -> 0 | K101: =SUM(DataInput!L101,DataInput!AH101) -> 0 | L101: =SUM(DataInput!M101,DataInput!AI101) -> 0 | M101: =SUM(DataInput!N101,DataInput!AJ101) -> 0 | N101: =SUM(DataInput!O101,DataInput!AK101) -> 0 | O101: =DataInput!P101 -> 0 | Q101: 3 | R101: =DataInput!R101 -> 1 | S101: =DataInput!Y101 -> 0 | T101: =IF(DataInput!U101-DataInput!E101>0,DataInput!U101-DataInput!E101,"") -> 1 | U101: =IF(DataInput!W101-DataInput!I101>0,DataInput!W101-DataInput!I101,"") ->  | W101: 2 | X101: 2.6 | Y101: 0.4 | Z101: 0 | AA101: 0 | AB101: =ROUNDDOWN((IF(AA102>0,IFERROR(IF(AVERAGE(DataInput!Q101:Q102)>AVERAGE(AA102,AA101),ROUNDDOWN(((((AA101-Z101)+(AA102-Z102))/2)*(A102-A101))/27,0),IF(((((DataInput!Q102-Z102)+(DataInput!Q101-Z101))/2)*(A102-A101))/27+S101+T101>0,ROUNDDOWN(((((DataInput!Q102-Z102)+(DataInput!Q101-Z101))/2)*(A102-A101))/27+S101+T101,0),0)),0),0)*$X$5),1) -> 0 | AC101: 0 | AD101: =ROUNDDOWN((IF(AC102>0,IFERROR(IF(((((DataInput!Q101-AC101)+(DataInput!Q102-AC102))/2)*(A102-A101))/27+S101+T101>0,ROUNDDOWN(((((DataInput!Q101-AC101)+(DataInput!Q102-AC102))/2)*(A102-A101))/27+S101+T101,0),0),0),0)*$X$5),1) -> 0 | AE101: =DataInput!U101 -> 3 | AF101: =DataInput!S101 -> 1 | AG101: 1.4 | AH101: 1.6
A102: =IF(DataInput!A102<>"",DataInput!A102,"") -> 375 | B102: =SUM(DataInput!C102,DataInput!Y102)+(DataInput!U102-DataInput!E102) -> 24 | C102: =SUM(DataInput!D102,DataInput!Z102) -> 11 | D102: =DataInput!U102 -> 13 | E102: =SUM(DataInput!F102,DataInput!AB102) -> 0 | F102: =SUM(DataInput!G102,DataInput!AC102) -> 0 | G102: =SUM(DataInput!H102,DataInput!AD102) -> 0 | H102: =DataInput!I102 -> 0 | I102: =SUM(DataInput!J102,DataInput!AF102) -> 0 | J102: =SUM(DataInput!K102,DataInput!AG102) -> 0 | K102: =SUM(DataInput!L102,DataInput!AH102) -> 0 | L102: =SUM(DataInput!M102,DataInput!AI102) -> 0 | M102: =SUM(DataInput!N102,DataInput!AJ102) -> 0 | N102: =SUM(DataInput!O102,DataInput!AK102) -> 0 | O102: =DataInput!P102 -> 0 | Q102: 11 | R102: =DataInput!R102 -> 2 | S102: =DataInput!Y102 -> 0 | T102: =IF(DataInput!U102-DataInput!E102>0,DataInput!U102-DataInput!E102,"") -> 5 | U102: =IF(DataInput!W102-DataInput!I102>0,DataInput!W102-DataInput!I102,"") ->  | W102: 7 | X102: 9.1 | Y102: 1.9 | Z102: 0 | AA102: 0 | AB102: =ROUNDDOWN((IF(AA103>0,IFERROR(IF(AVERAGE(DataInput!Q102:Q103)>AVERAGE(AA103,AA102),ROUNDDOWN(((((AA102-Z102)+(AA103-Z103))/2)*(A103-A102))/27,0),IF(((((DataInput!Q103-Z103)+(DataInput!Q102-Z102))/2)*(A103-A102))/27+S102+T102>0,ROUNDDOWN(((((DataInput!Q103-Z103)+(DataInput!Q102-Z102))/2)*(A103-A102))/27+S102+T102,0),0)),0),0)*$X$5),1) -> 0 | AC102: 0 | AD102: =ROUNDDOWN((IF(AC103>0,IFERROR(IF(((((DataInput!Q102-AC102)+(DataInput!Q103-AC103))/2)*(A103-A102))/27+S102+T102>0,ROUNDDOWN(((((DataInput!Q102-AC102)+(DataInput!Q103-AC103))/2)*(A103-A102))/27+S102+T102,0),0),0),0)*$X$5),1) -> 0 | AE102: =DataInput!U102 -> 13 | AF102: =DataInput!S102 -> 6 | AG102: 8.4 | AH102: 4.6
A103: =IF(DataInput!A103<>"",DataInput!A103,"") -> 380 | B103: =SUM(DataInput!C103,DataInput!Y103)+(DataInput!U103-DataInput!E103) -> 15 | C103: =SUM(DataInput!D103,DataInput!Z103) -> 6 | D103: =DataInput!U103 -> 9 | E103: =SUM(DataInput!F103,DataInput!AB103) -> 0 | F103: =SUM(DataInput!G103,DataInput!AC103) -> 0 | G103: =SUM(DataInput!H103,DataInput!AD103) -> 0 | H103: =DataInput!I103 -> 0 | I103: =SUM(DataInput!J103,DataInput!AF103) -> 0 | J103: =SUM(DataInput!K103,DataInput!AG103) -> 0 | K103: =SUM(DataInput!L103,DataInput!AH103) -> 0 | L103: =SUM(DataInput!M103,DataInput!AI103) -> 0 | M103: =SUM(DataInput!N103,DataInput!AJ103) -> 0 | N103: =SUM(DataInput!O103,DataInput!AK103) -> 0 | O103: =DataInput!P103 -> 0 | Q103: 6 | R103: =DataInput!R103 -> 0 | S103: =DataInput!Y103 -> 0 | T103: =IF(DataInput!U103-DataInput!E103>0,DataInput!U103-DataInput!E103,"") -> 3 | U103: =IF(DataInput!W103-DataInput!I103>0,DataInput!W103-DataInput!I103,"") ->  | W103: 3 | X103: 3.9 | Y103: 2.1 | Z103: 0 | AA103: 0 | AB103: =ROUNDDOWN((IF(AA104>0,IFERROR(IF(AVERAGE(DataInput!Q103:Q104)>AVERAGE(AA104,AA103),ROUNDDOWN(((((AA103-Z103)+(AA104-Z104))/2)*(A104-A103))/27,0),IF(((((DataInput!Q104-Z104)+(DataInput!Q103-Z103))/2)*(A104-A103))/27+S103+T103>0,ROUNDDOWN(((((DataInput!Q104-Z104)+(DataInput!Q103-Z103))/2)*(A104-A103))/27+S103+T103,0),0)),0),0)*$X$5),1) -> 0 | AC103: 0 | AD103: =ROUNDDOWN((IF(AC104>0,IFERROR(IF(((((DataInput!Q103-AC103)+(DataInput!Q104-AC104))/2)*(A104-A103))/27+S103+T103>0,ROUNDDOWN(((((DataInput!Q103-AC103)+(DataInput!Q104-AC104))/2)*(A104-A103))/27+S103+T103,0),0),0),0)*$X$5),1) -> 0 | AE103: =DataInput!U103 -> 9 | AF103: =DataInput!S103 -> 5 | AG103: 7 | AH103: 2
A104: =IF(DataInput!A104<>"",DataInput!A104,"") -> 385 | B104: =SUM(DataInput!C104,DataInput!Y104)+(DataInput!U104-DataInput!E104) -> 2 | C104: =SUM(DataInput!D104,DataInput!Z104) -> 2 | D104: =DataInput!U104 -> 0 | E104: =SUM(DataInput!F104,DataInput!AB104) -> 0 | F104: =SUM(DataInput!G104,DataInput!AC104) -> 0 | G104: =SUM(DataInput!H104,DataInput!AD104) -> 0 | H104: =DataInput!I104 -> 0 | I104: =SUM(DataInput!J104,DataInput!AF104) -> 0 | J104: =SUM(DataInput!K104,DataInput!AG104) -> 0 | K104: =SUM(DataInput!L104,DataInput!AH104) -> 0 | L104: =SUM(DataInput!M104,DataInput!AI104) -> 0 | M104: =SUM(DataInput!N104,DataInput!AJ104) -> 0 | N104: =SUM(DataInput!O104,DataInput!AK104) -> 0 | O104: =DataInput!P104 -> 0 | Q104: 2 | R104: =DataInput!R104 -> 0 | S104: =DataInput!Y104 -> 0 | T104: =IF(DataInput!U104-DataInput!E104>0,DataInput!U104-DataInput!E104,"") ->  | U104: =IF(DataInput!W104-DataInput!I104>0,DataInput!W104-DataInput!I104,"") ->  | W104: 0 | X104: 0 | Y104: 2 | Z104: 0 | AA104: 0 | AB104: =ROUNDDOWN((IF(AA105>0,IFERROR(IF(AVERAGE(DataInput!Q104:Q105)>AVERAGE(AA105,AA104),ROUNDDOWN(((((AA104-Z104)+(AA105-Z105))/2)*(A105-A104))/27,0),IF(((((DataInput!Q105-Z105)+(DataInput!Q104-Z104))/2)*(A105-A104))/27+S104+T104>0,ROUNDDOWN(((((DataInput!Q105-Z105)+(DataInput!Q104-Z104))/2)*(A105-A104))/27+S104+T104,0),0)),0),0)*$X$5),1) -> 0 | AC104: 0 | AD104: =ROUNDDOWN((IF(AC105>0,IFERROR(IF(((((DataInput!Q104-AC104)+(DataInput!Q105-AC105))/2)*(A105-A104))/27+S104+T104>0,ROUNDDOWN(((((DataInput!Q104-AC104)+(DataInput!Q105-AC105))/2)*(A105-A104))/27+S104+T104,0),0),0),0)*$X$5),1) -> 0 | AE104: =DataInput!U104 -> 0 | AF104: =DataInput!S104 -> 2 | AG104: 2.8 | AH104: -2.8
A105: =IF(DataInput!A105<>"",DataInput!A105,"") -> 390
A107: =IF(DataInput!A107<>"",DataInput!A107,"") -> SIDEWALK
A108: =IF(DataInput!A108<>"",DataInput!A108,"") -> 830 | B108: =SUM(DataInput!C108,DataInput!Y108)+(DataInput!U108-DataInput!E108) -> 9 | C108: =SUM(DataInput!D108,DataInput!Z108) -> 0 | D108: =DataInput!U108 -> 9 | E108: =SUM(DataInput!F108,DataInput!AB108) -> 0 | F108: =SUM(DataInput!G108,DataInput!AC108) -> 0 | G108: =SUM(DataInput!H108,DataInput!AD108) -> 0 | H108: =DataInput!I108 -> 0 | I108: =SUM(DataInput!J108,DataInput!AF108) -> 0 | J108: =SUM(DataInput!K108,DataInput!AG108) -> 0 | K108: =SUM(DataInput!L108,DataInput!AH108) -> 0 | L108: =SUM(DataInput!M108,DataInput!AI108) -> 0 | M108: =SUM(DataInput!N108,DataInput!AJ108) -> 0 | N108: =SUM(DataInput!O108,DataInput!AK108) -> 0 | O108: =DataInput!P108 -> 0 | Q108: =SUM(C108,E108:G108,I108:L108,O108:P108) -> 0 | R108: =DataInput!R108 -> 7 | S108: =DataInput!Y108 -> 0 | T108: =IF(DataInput!U108-DataInput!E108>0,DataInput!U108-DataInput!E108,"") -> 9 | U108: =IF(DataInput!W108-DataInput!I108>0,DataInput!W108-DataInput!I108,"") ->  | W108: =SUM(R108:V108) -> 16 | X108: =ROUNDUP(($W108*$X$5),1) -> 20.8 | Y108: =ROUNDUP(SUM(Q108-X108),1) -> -20.8 | AB108: =ROUNDDOWN((IF(AA109>0,IFERROR(IF(AVERAGE(DataInput!Q108:Q109)>AVERAGE(AA109,AA108),ROUNDDOWN(((((AA108-Z108)+(AA109-Z109))/2)*(A109-A108))/27,0),IF(((((DataInput!Q109-Z109)+(DataInput!Q108-Z108))/2)*(A109-A108))/27+S108+T108>0,ROUNDDOWN(((((DataInput!Q109-Z109)+(DataInput!Q108-Z108))/2)*(A109-A108))/27+S108+T108,0),0)),0),0)*$X$5),1) -> 0 | AD108: =ROUNDDOWN((IF(AC109>0,IFERROR(IF(((((DataInput!Q108-AC108)+(DataInput!Q109-AC109))/2)*(A109-A108))/27+S108+T108>0,ROUNDDOWN(((((DataInput!Q108-AC108)+(DataInput!Q109-AC109))/2)*(A109-A108))/27+S108+T108,0),0),0),0)*$X$5),1) -> 0 | AE108: =DataInput!U108 -> 9 | AF108: =DataInput!S108 -> 0 | AG108: =ROUNDUP((AF108*$AG$5),1) -> 0 | AH108: =ROUNDUP((AE108-AG108),1) -> 9
A109: =IF(DataInput!A109<>"",DataInput!A109,"") -> 840 | B109: =SUM(DataInput!C109,DataInput!Y109)+(DataInput!U109-DataInput!E109) -> 15 | C109: =SUM(DataInput!D109,DataInput!Z109) -> 0 | D109: =DataInput!U109 -> 15 | E109: =SUM(DataInput!F109,DataInput!AB109) -> 0 | F109: =SUM(DataInput!G109,DataInput!AC109) -> 0 | G109: =SUM(DataInput!H109,DataInput!AD109) -> 0 | H109: =DataInput!I109 -> 0 | I109: =SUM(DataInput!J109,DataInput!AF109) -> 0 | J109: =SUM(DataInput!K109,DataInput!AG109) -> 0 | K109: =SUM(DataInput!L109,DataInput!AH109) -> 0 | L109: =SUM(DataInput!M109,DataInput!AI109) -> 0 | M109: =SUM(DataInput!N109,DataInput!AJ109) -> 0 | N109: =SUM(DataInput!O109,DataInput!AK109) -> 0 | O109: =DataInput!P109 -> 0 | Q109: =SUM(C109,E109:G109,I109:L109,O109:P109) -> 0 | R109: =DataInput!R109 -> 16 | S109: =DataInput!Y109 -> 0 | T109: =IF(DataInput!U109-DataInput!E109>0,DataInput!U109-DataInput!E109,"") -> 15 | U109: =IF(DataInput!W109-DataInput!I109>0,DataInput!W109-DataInput!I109,"") ->  | W109: =SUM(R109:V109) -> 31 | X109: =ROUNDUP(($W109*$X$5),1) -> 40.3 | Y109: =ROUNDUP(SUM(Q109-X109),1) -> -40.3 | Z109: =Z108 -> 0 | AA109: =AA108 -> 0 | AB109: =ROUNDDOWN((IF(AA110>0,IFERROR(IF(AVERAGE(DataInput!Q109:Q110)>AVERAGE(AA110,AA109),ROUNDDOWN(((((AA109-Z109)+(AA110-Z110))/2)*(A110-A109))/27,0),IF(((((DataInput!Q110-Z110)+(DataInput!Q109-Z109))/2)*(A110-A109))/27+S109+T109>0,ROUNDDOWN(((((DataInput!Q110-Z110)+(DataInput!Q109-Z109))/2)*(A110-A109))/27+S109+T109,0),0)),0),0)*$X$5),1) -> 0 | AC109: =AC108 -> 0 | AD109: =ROUNDDOWN((IF(AC110>0,IFERROR(IF(((((DataInput!Q109-AC109)+(DataInput!Q110-AC110))/2)*(A110-A109))/27+S109+T109>0,ROUNDDOWN(((((DataInput!Q109-AC109)+(DataInput!Q110-AC110))/2)*(A110-A109))/27+S109+T109,0),0),0),0)*$X$5),1) -> 0 | AE109: =DataInput!U109 -> 15 | AF109: =DataInput!S109 -> 3 | AG109: =ROUNDUP((AF109*$AG$5),1) -> 4.2 | AH109: =ROUNDUP((AE109-AG109),1) -> 10.8
A110: =IF(DataInput!A110<>"",DataInput!A110,"") -> 850 | B110: =SUM(DataInput!C110,DataInput!Y110)+(DataInput!U110-DataInput!E110) -> 18 | C110: =SUM(DataInput!D110,DataInput!Z110) -> 0 | D110: =DataInput!U110 -> 18 | E110: =SUM(DataInput!F110,DataInput!AB110) -> 0 | F110: =SUM(DataInput!G110,DataInput!AC110) -> 0 | G110: =SUM(DataInput!H110,DataInput!AD110) -> 0 | H110: =DataInput!I110 -> 0 | I110: =SUM(DataInput!J110,DataInput!AF110) -> 0 | J110: =SUM(DataInput!K110,DataInput!AG110) -> 0 | K110: =SUM(DataInput!L110,DataInput!AH110) -> 0 | L110: =SUM(DataInput!M110,DataInput!AI110) -> 0 | M110: =SUM(DataInput!N110,DataInput!AJ110) -> 0 | N110: =SUM(DataInput!O110,DataInput!AK110) -> 0 | O110: =DataInput!P110 -> 0 | Q110: 0 | R110: =DataInput!R110 -> 18 | S110: =DataInput!Y110 -> 0 | T110: =IF(DataInput!U110-DataInput!E110>0,DataInput!U110-DataInput!E110,"") -> 17 | U110: =IF(DataInput!W110-DataInput!I110>0,DataInput!W110-DataInput!I110,"") ->  | W110: 35 | X110: 45.5 | Y110: -45.5 | Z110: =Z109 -> 0 | AA110: =AA109 -> 0 | AB110: =ROUNDDOWN((IF(AA111>0,IFERROR(IF(AVERAGE(DataInput!Q110:Q111)>AVERAGE(AA111,AA110),ROUNDDOWN(((((AA110-Z110)+(AA111-Z111))/2)*(A111-A110))/27,0),IF(((((DataInput!Q111-Z111)+(DataInput!Q110-Z110))/2)*(A111-A110))/27+S110+T110>0,ROUNDDOWN(((((DataInput!Q111-Z111)+(DataInput!Q110-Z110))/2)*(A111-A110))/27+S110+T110,0),0)),0),0)*$X$5),1) -> 0 | AC110: =AC109 -> 0 | AD110: =ROUNDDOWN((IF(AC111>0,IFERROR(IF(((((DataInput!Q110-AC110)+(DataInput!Q111-AC111))/2)*(A111-A110))/27+S110+T110>0,ROUNDDOWN(((((DataInput!Q110-AC110)+(DataInput!Q111-AC111))/2)*(A111-A110))/27+S110+T110,0),0),0),0)*$X$5),1) -> 0 | AE110: =DataInput!U110 -> 18 | AF110: =DataInput!S110 -> 6 | AG110: 8.4 | AH110: 9.6
A111: =IF(DataInput!A111<>"",DataInput!A111,"") -> 860 | B111: =SUM(DataInput!C111,DataInput!Y111)+(DataInput!U111-DataInput!E111) -> 17 | C111: =SUM(DataInput!D111,DataInput!Z111) -> 0 | D111: =DataInput!U111 -> 17 | E111: =SUM(DataInput!F111,DataInput!AB111) -> 0 | F111: =SUM(DataInput!G111,DataInput!AC111) -> 0 | G111: =SUM(DataInput!H111,DataInput!AD111) -> 0 | H111: =DataInput!I111 -> 0 | I111: =SUM(DataInput!J111,DataInput!AF111) -> 0 | J111: =SUM(DataInput!K111,DataInput!AG111) -> 0 | K111: =SUM(DataInput!L111,DataInput!AH111) -> 0 | L111: =SUM(DataInput!M111,DataInput!AI111) -> 0 | M111: =SUM(DataInput!N111,DataInput!AJ111) -> 0 | N111: =SUM(DataInput!O111,DataInput!AK111) -> 0 | O111: =DataInput!P111 -> 0 | Q111: 0 | R111: =DataInput!R111 -> 15 | S111: =DataInput!Y111 -> 0 | T111: =IF(DataInput!U111-DataInput!E111>0,DataInput!U111-DataInput!E111,"") -> 16 | U111: =IF(DataInput!W111-DataInput!I111>0,DataInput!W111-DataInput!I111,"") ->  | W111: 31 | X111: 40.3 | Y111: -40.3 | Z111: 0 | AA111: 0 | AB111: =ROUNDDOWN((IF(AA112>0,IFERROR(IF(AVERAGE(DataInput!Q111:Q112)>AVERAGE(AA112,AA111),ROUNDDOWN(((((AA111-Z111)+(AA112-Z112))/2)*(A112-A111))/27,0),IF(((((DataInput!Q112-Z112)+(DataInput!Q111-Z111))/2)*(A112-A111))/27+S111+T111>0,ROUNDDOWN(((((DataInput!Q112-Z112)+(DataInput!Q111-Z111))/2)*(A112-A111))/27+S111+T111,0),0)),0),0)*$X$5),1) -> 0 | AC111: 0 | AD111: =ROUNDDOWN((IF(AC112>0,IFERROR(IF(((((DataInput!Q111-AC111)+(DataInput!Q112-AC112))/2)*(A112-A111))/27+S111+T111>0,ROUNDDOWN(((((DataInput!Q111-AC111)+(DataInput!Q112-AC112))/2)*(A112-A111))/27+S111+T111,0),0),0),0)*$X$5),1) -> 0 | AE111: =DataInput!U111 -> 17 | AF111: =DataInput!S111 -> 6 | AG111: 8.4 | AH111: 8.6
A112: =IF(DataInput!A112<>"",DataInput!A112,"") -> 870 | B112: =SUM(DataInput!C112,DataInput!Y112)+(DataInput!U112-DataInput!E112) -> 17 | C112: =SUM(DataInput!D112,DataInput!Z112) -> 0 | D112: =DataInput!U112 -> 17 | E112: =SUM(DataInput!F112,DataInput!AB112) -> 0 | F112: =SUM(DataInput!G112,DataInput!AC112) -> 0 | G112: =SUM(DataInput!H112,DataInput!AD112) -> 0 | H112: =DataInput!I112 -> 0 | I112: =SUM(DataInput!J112,DataInput!AF112) -> 0 | J112: =SUM(DataInput!K112,DataInput!AG112) -> 0 | K112: =SUM(DataInput!L112,DataInput!AH112) -> 0 | L112: =SUM(DataInput!M112,DataInput!AI112) -> 0 | M112: =SUM(DataInput!N112,DataInput!AJ112) -> 0 | N112: =SUM(DataInput!O112,DataInput!AK112) -> 0 | O112: =DataInput!P112 -> 0 | Q112: 0 | R112: =DataInput!R112 -> 11 | S112: =DataInput!Y112 -> 0 | T112: =IF(DataInput!U112-DataInput!E112>0,DataInput!U112-DataInput!E112,"") -> 16 | U112: =IF(DataInput!W112-DataInput!I112>0,DataInput!W112-DataInput!I112,"") ->  | W112: 27 | X112: 35.1 | Y112: -35.1 | Z112: 0 | AA112: 0 | AB112: =ROUNDDOWN((IF(AA113>0,IFERROR(IF(AVERAGE(DataInput!Q112:Q113)>AVERAGE(AA113,AA112),ROUNDDOWN(((((AA112-Z112)+(AA113-Z113))/2)*(A113-A112))/27,0),IF(((((DataInput!Q113-Z113)+(DataInput!Q112-Z112))/2)*(A113-A112))/27+S112+T112>0,ROUNDDOWN(((((DataInput!Q113-Z113)+(DataInput!Q112-Z112))/2)*(A113-A112))/27+S112+T112,0),0)),0),0)*$X$5),1) -> 0 | AC112: 0 | AD112: =ROUNDDOWN((IF(AC113>0,IFERROR(IF(((((DataInput!Q112-AC112)+(DataInput!Q113-AC113))/2)*(A113-A112))/27+S112+T112>0,ROUNDDOWN(((((DataInput!Q112-AC112)+(DataInput!Q113-AC113))/2)*(A113-A112))/27+S112+T112,0),0),0),0)*$X$5),1) -> 0 | AE112: =DataInput!U112 -> 17 | AF112: =DataInput!S112 -> 5 | AG112: 7 | AH112: 10
A113: =IF(DataInput!A113<>"",DataInput!A113,"") -> 880 | B113: =SUM(DataInput!C113,DataInput!Y113)+(DataInput!U113-DataInput!E113) -> 16 | C113: =SUM(DataInput!D113,DataInput!Z113) -> 0 | D113: =DataInput!U113 -> 16 | E113: =SUM(DataInput!F113,DataInput!AB113) -> 0 | F113: =SUM(DataInput!G113,DataInput!AC113) -> 0 | G113: =SUM(DataInput!H113,DataInput!AD113) -> 0 | H113: =DataInput!I113 -> 0 | I113: =SUM(DataInput!J113,DataInput!AF113) -> 0 | J113: =SUM(DataInput!K113,DataInput!AG113) -> 0 | K113: =SUM(DataInput!L113,DataInput!AH113) -> 0 | L113: =SUM(DataInput!M113,DataInput!AI113) -> 0 | M113: =SUM(DataInput!N113,DataInput!AJ113) -> 0 | N113: =SUM(DataInput!O113,DataInput!AK113) -> 0 | O113: =DataInput!P113 -> 0 | Q113: 0 | R113: =DataInput!R113 -> 9 | S113: =DataInput!Y113 -> 0 | T113: =IF(DataInput!U113-DataInput!E113>0,DataInput!U113-DataInput!E113,"") -> 15 | U113: =IF(DataInput!W113-DataInput!I113>0,DataInput!W113-DataInput!I113,"") ->  | W113: 24 | X113: 31.2 | Y113: -31.2 | Z113: 0 | AA113: 0 | AB113: =ROUNDDOWN((IF(AA114>0,IFERROR(IF(AVERAGE(DataInput!Q113:Q114)>AVERAGE(AA114,AA113),ROUNDDOWN(((((AA113-Z113)+(AA114-Z114))/2)*(A114-A113))/27,0),IF(((((DataInput!Q114-Z114)+(DataInput!Q113-Z113))/2)*(A114-A113))/27+S113+T113>0,ROUNDDOWN(((((DataInput!Q114-Z114)+(DataInput!Q113-Z113))/2)*(A114-A113))/27+S113+T113,0),0)),0),0)*$X$5),1) -> 0 | AC113: 0 | AD113: =ROUNDDOWN((IF(AC114>0,IFERROR(IF(((((DataInput!Q113-AC113)+(DataInput!Q114-AC114))/2)*(A114-A113))/27+S113+T113>0,ROUNDDOWN(((((DataInput!Q113-AC113)+(DataInput!Q114-AC114))/2)*(A114-A113))/27+S113+T113,0),0),0),0)*$X$5),1) -> 0 | AE113: =DataInput!U113 -> 16 | AF113: =DataInput!S113 -> 5 | AG113: 7 | AH113: 9
A114: =IF(DataInput!A114<>"",DataInput!A114,"") -> 890 | B114: =SUM(DataInput!C114,DataInput!Y114)+(DataInput!U114-DataInput!E114) -> 15 | C114: =SUM(DataInput!D114,DataInput!Z114) -> 0 | D114: =DataInput!U114 -> 15 | E114: =SUM(DataInput!F114,DataInput!AB114) -> 0 | F114: =SUM(DataInput!G114,DataInput!AC114) -> 0 | G114: =SUM(DataInput!H114,DataInput!AD114) -> 0 | H114: =DataInput!I114 -> 0 | I114: =SUM(DataInput!J114,DataInput!AF114) -> 0 | J114: =SUM(DataInput!K114,DataInput!AG114) -> 0 | K114: =SUM(DataInput!L114,DataInput!AH114) -> 0 | L114: =SUM(DataInput!M114,DataInput!AI114) -> 0 | M114: =SUM(DataInput!N114,DataInput!AJ114) -> 0 | N114: =SUM(DataInput!O114,DataInput!AK114) -> 0 | O114: =DataInput!P114 -> 0 | Q114: 0 | R114: =DataInput!R114 -> 7 | S114: =DataInput!Y114 -> 0 | T114: =IF(DataInput!U114-DataInput!E114>0,DataInput!U114-DataInput!E114,"") -> 14 | U114: =IF(DataInput!W114-DataInput!I114>0,DataInput!W114-DataInput!I114,"") ->  | W114: 21 | X114: 27.3 | Y114: -27.3 | Z114: 0 | AA114: 0 | AB114: =ROUNDDOWN((IF(AA115>0,IFERROR(IF(AVERAGE(DataInput!Q114:Q115)>AVERAGE(AA115,AA114),ROUNDDOWN(((((AA114-Z114)+(AA115-Z115))/2)*(A115-A114))/27,0),IF(((((DataInput!Q115-Z115)+(DataInput!Q114-Z114))/2)*(A115-A114))/27+S114+T114>0,ROUNDDOWN(((((DataInput!Q115-Z115)+(DataInput!Q114-Z114))/2)*(A115-A114))/27+S114+T114,0),0)),0),0)*$X$5),1) -> 0 | AC114: 0 | AD114: =ROUNDDOWN((IF(AC115>0,IFERROR(IF(((((DataInput!Q114-AC114)+(DataInput!Q115-AC115))/2)*(A115-A114))/27+S114+T114>0,ROUNDDOWN(((((DataInput!Q114-AC114)+(DataInput!Q115-AC115))/2)*(A115-A114))/27+S114+T114,0),0),0),0)*$X$5),1) -> 0 | AE114: =DataInput!U114 -> 15 | AF114: =DataInput!S114 -> 4 | AG114: 5.6 | AH114: 9.4
A115: =IF(DataInput!A115<>"",DataInput!A115,"") -> 900 | B115: =SUM(DataInput!C115,DataInput!Y115)+(DataInput!U115-DataInput!E115) -> 14 | C115: =SUM(DataInput!D115,DataInput!Z115) -> 0 | D115: =DataInput!U115 -> 14 | E115: =SUM(DataInput!F115,DataInput!AB115) -> 0 | F115: =SUM(DataInput!G115,DataInput!AC115) -> 0 | G115: =SUM(DataInput!H115,DataInput!AD115) -> 0 | H115: =DataInput!I115 -> 0 | I115: =SUM(DataInput!J115,DataInput!AF115) -> 0 | J115: =SUM(DataInput!K115,DataInput!AG115) -> 0 | K115: =SUM(DataInput!L115,DataInput!AH115) -> 0 | L115: =SUM(DataInput!M115,DataInput!AI115) -> 0 | M115: =SUM(DataInput!N115,DataInput!AJ115) -> 0 | N115: =SUM(DataInput!O115,DataInput!AK115) -> 0 | O115: =DataInput!P115 -> 0 | Q115: 0 | R115: =DataInput!R115 -> 6 | S115: =DataInput!Y115 -> 0 | T115: =IF(DataInput!U115-DataInput!E115>0,DataInput!U115-DataInput!E115,"") -> 12 | U115: =IF(DataInput!W115-DataInput!I115>0,DataInput!W115-DataInput!I115,"") ->  | W115: 18 | X115: 23.4 | Y115: -23.4 | Z115: 0 | AA115: 0 | AB115: =ROUNDDOWN((IF(AA116>0,IFERROR(IF(AVERAGE(DataInput!Q115:Q116)>AVERAGE(AA116,AA115),ROUNDDOWN(((((AA115-Z115)+(AA116-Z116))/2)*(A116-A115))/27,0),IF(((((DataInput!Q116-Z116)+(DataInput!Q115-Z115))/2)*(A116-A115))/27+S115+T115>0,ROUNDDOWN(((((DataInput!Q116-Z116)+(DataInput!Q115-Z115))/2)*(A116-A115))/27+S115+T115,0),0)),0),0)*$X$5),1) -> 0 | AC115: 0 | AD115: =ROUNDDOWN((IF(AC116>0,IFERROR(IF(((((DataInput!Q115-AC115)+(DataInput!Q116-AC116))/2)*(A116-A115))/27+S115+T115>0,ROUNDDOWN(((((DataInput!Q115-AC115)+(DataInput!Q116-AC116))/2)*(A116-A115))/27+S115+T115,0),0),0),0)*$X$5),1) -> 0 | AE115: =DataInput!U115 -> 14 | AF115: =DataInput!S115 -> 4 | AG115: 5.6 | AH115: 8.4
A116: =IF(DataInput!A116<>"",DataInput!A116,"") -> 910 | B116: =SUM(DataInput!C116,DataInput!Y116)+(DataInput!U116-DataInput!E116) -> 13 | C116: =SUM(DataInput!D116,DataInput!Z116) -> 0 | D116: =DataInput!U116 -> 13 | E116: =SUM(DataInput!F116,DataInput!AB116) -> 0 | F116: =SUM(DataInput!G116,DataInput!AC116) -> 0 | G116: =SUM(DataInput!H116,DataInput!AD116) -> 0 | H116: =DataInput!I116 -> 0 | I116: =SUM(DataInput!J116,DataInput!AF116) -> 0 | J116: =SUM(DataInput!K116,DataInput!AG116) -> 0 | K116: =SUM(DataInput!L116,DataInput!AH116) -> 0 | L116: =SUM(DataInput!M116,DataInput!AI116) -> 0 | M116: =SUM(DataInput!N116,DataInput!AJ116) -> 0 | N116: =SUM(DataInput!O116,DataInput!AK116) -> 0 | O116: =DataInput!P116 -> 0 | Q116: 0 | R116: =DataInput!R116 -> 4 | S116: =DataInput!Y116 -> 0 | T116: =IF(DataInput!U116-DataInput!E116>0,DataInput!U116-DataInput!E116,"") -> 11 | U116: =IF(DataInput!W116-DataInput!I116>0,DataInput!W116-DataInput!I116,"") ->  | W116: 15 | X116: 19.5 | Y116: -19.5 | Z116: 0 | AA116: 0 | AB116: =ROUNDDOWN((IF(AA117>0,IFERROR(IF(AVERAGE(DataInput!Q116:Q117)>AVERAGE(AA117,AA116),ROUNDDOWN(((((AA116-Z116)+(AA117-Z117))/2)*(A117-A116))/27,0),IF(((((DataInput!Q117-Z117)+(DataInput!Q116-Z116))/2)*(A117-A116))/27+S116+T116>0,ROUNDDOWN(((((DataInput!Q117-Z117)+(DataInput!Q116-Z116))/2)*(A117-A116))/27+S116+T116,0),0)),0),0)*$X$5),1) -> 0 | AC116: 0 | AD116: =ROUNDDOWN((IF(AC117>0,IFERROR(IF(((((DataInput!Q116-AC116)+(DataInput!Q117-AC117))/2)*(A117-A116))/27+S116+T116>0,ROUNDDOWN(((((DataInput!Q116-AC116)+(DataInput!Q117-AC117))/2)*(A117-A116))/27+S116+T116,0),0),0),0)*$X$5),1) -> 0 | AE116: =DataInput!U116 -> 13 | AF116: =DataInput!S116 -> 3 | AG116: 4.2 | AH116: 8.8
A117: =IF(DataInput!A117<>"",DataInput!A117,"") -> 920 | B117: =SUM(DataInput!C117,DataInput!Y117)+(DataInput!U117-DataInput!E117) -> 10 | C117: =SUM(DataInput!D117,DataInput!Z117) -> 0 | D117: =DataInput!U117 -> 10 | E117: =SUM(DataInput!F117,DataInput!AB117) -> 0 | F117: =SUM(DataInput!G117,DataInput!AC117) -> 0 | G117: =SUM(DataInput!H117,DataInput!AD117) -> 0 | H117: =DataInput!I117 -> 0 | I117: =SUM(DataInput!J117,DataInput!AF117) -> 0 | J117: =SUM(DataInput!K117,DataInput!AG117) -> 0 | K117: =SUM(DataInput!L117,DataInput!AH117) -> 0 | L117: =SUM(DataInput!M117,DataInput!AI117) -> 0 | M117: =SUM(DataInput!N117,DataInput!AJ117) -> 0 | N117: =SUM(DataInput!O117,DataInput!AK117) -> 0 | O117: =DataInput!P117 -> 0 | Q117: 0 | R117: =DataInput!R117 -> 3 | S117: =DataInput!Y117 -> 0 | T117: =IF(DataInput!U117-DataInput!E117>0,DataInput!U117-DataInput!E117,"") -> 8 | U117: =IF(DataInput!W117-DataInput!I117>0,DataInput!W117-DataInput!I117,"") ->  | W117: 11 | X117: 14.3 | Y117: -14.3 | Z117: 0 | AA117: 0 | AB117: =ROUNDDOWN((IF(AA118>0,IFERROR(IF(AVERAGE(DataInput!Q117:Q118)>AVERAGE(AA118,AA117),ROUNDDOWN(((((AA117-Z117)+(AA118-Z118))/2)*(A118-A117))/27,0),IF(((((DataInput!Q118-Z118)+(DataInput!Q117-Z117))/2)*(A118-A117))/27+S117+T117>0,ROUNDDOWN(((((DataInput!Q118-Z118)+(DataInput!Q117-Z117))/2)*(A118-A117))/27+S117+T117,0),0)),0),0)*$X$5),1) -> 0 | AC117: 0 | AD117: =ROUNDDOWN((IF(AC118>0,IFERROR(IF(((((DataInput!Q117-AC117)+(DataInput!Q118-AC118))/2)*(A118-A117))/27+S117+T117>0,ROUNDDOWN(((((DataInput!Q117-AC117)+(DataInput!Q118-AC118))/2)*(A118-A117))/27+S117+T117,0),0),0),0)*$X$5),1) -> 0 | AE117: =DataInput!U117 -> 10 | AF117: =DataInput!S117 -> 2 | AG117: 2.8 | AH117: 7.2
A118: =IF(DataInput!A118<>"",DataInput!A118,"") -> 930 | B118: =SUM(DataInput!C118,DataInput!Y118)+(DataInput!U118-DataInput!E118) -> 11 | C118: =SUM(DataInput!D118,DataInput!Z118) -> 4 | D118: =DataInput!U118 -> 8 | E118: =SUM(DataInput!F118,DataInput!AB118) -> 0 | F118: =SUM(DataInput!G118,DataInput!AC118) -> 0 | G118: =SUM(DataInput!H118,DataInput!AD118) -> 0 | H118: =DataInput!I118 -> 0 | I118: =SUM(DataInput!J118,DataInput!AF118) -> 0 | J118: =SUM(DataInput!K118,DataInput!AG118) -> 0 | K118: =SUM(DataInput!L118,DataInput!AH118) -> 0 | L118: =SUM(DataInput!M118,DataInput!AI118) -> 0 | M118: =SUM(DataInput!N118,DataInput!AJ118) -> 0 | N118: =SUM(DataInput!O118,DataInput!AK118) -> 0 | O118: =DataInput!P118 -> 0 | Q118: 4 | R118: =DataInput!R118 -> 3 | S118: =DataInput!Y118 -> 0 | T118: =IF(DataInput!U118-DataInput!E118>0,DataInput!U118-DataInput!E118,"") -> 5 | U118: =IF(DataInput!W118-DataInput!I118>0,DataInput!W118-DataInput!I118,"") ->  | W118: 8 | X118: 10.4 | Y118: -6.4 | Z118: 0 | AA118: 0 | AB118: =ROUNDDOWN((IF(AA119>0,IFERROR(IF(AVERAGE(DataInput!Q118:Q119)>AVERAGE(AA119,AA118),ROUNDDOWN(((((AA118-Z118)+(AA119-Z119))/2)*(A119-A118))/27,0),IF(((((DataInput!Q119-Z119)+(DataInput!Q118-Z118))/2)*(A119-A118))/27+S118+T118>0,ROUNDDOWN(((((DataInput!Q119-Z119)+(DataInput!Q118-Z118))/2)*(A119-A118))/27+S118+T118,0),0)),0),0)*$X$5),1) -> 0 | AC118: 0 | AD118: =ROUNDDOWN((IF(AC119>0,IFERROR(IF(((((DataInput!Q118-AC118)+(DataInput!Q119-AC119))/2)*(A119-A118))/27+S118+T118>0,ROUNDDOWN(((((DataInput!Q118-AC118)+(DataInput!Q119-AC119))/2)*(A119-A118))/27+S118+T118,0),0),0),0)*$X$5),1) -> 0 | AE118: =DataInput!U118 -> 8 | AF118: =DataInput!S118 -> 4 | AG118: 5.6 | AH118: 2.4
A119: =IF(DataInput!A119<>"",DataInput!A119,"") -> 940 | B119: =SUM(DataInput!C119,DataInput!Y119)+(DataInput!U119-DataInput!E119) -> 9 | C119: =SUM(DataInput!D119,DataInput!Z119) -> 8 | D119: =DataInput!U119 -> 0 | E119: =SUM(DataInput!F119,DataInput!AB119) -> 0 | F119: =SUM(DataInput!G119,DataInput!AC119) -> 0 | G119: =SUM(DataInput!H119,DataInput!AD119) -> 0 | H119: =DataInput!I119 -> 0 | I119: =SUM(DataInput!J119,DataInput!AF119) -> 0 | J119: =SUM(DataInput!K119,DataInput!AG119) -> 0 | K119: =SUM(DataInput!L119,DataInput!AH119) -> 0 | L119: =SUM(DataInput!M119,DataInput!AI119) -> 0 | M119: =SUM(DataInput!N119,DataInput!AJ119) -> 0 | N119: =SUM(DataInput!O119,DataInput!AK119) -> 0 | O119: =DataInput!P119 -> 0 | Q119: 8 | R119: =DataInput!R119 -> 1 | S119: =DataInput!Y119 -> 0 | T119: =IF(DataInput!U119-DataInput!E119>0,DataInput!U119-DataInput!E119,"") ->  | U119: =IF(DataInput!W119-DataInput!I119>0,DataInput!W119-DataInput!I119,"") ->  | W119: 1 | X119: 1.3 | Y119: 6.7 | Z119: 0 | AA119: 0 | AB119: =ROUNDDOWN((IF(AA120>0,IFERROR(IF(AVERAGE(DataInput!Q119:Q120)>AVERAGE(AA120,AA119),ROUNDDOWN(((((AA119-Z119)+(AA120-Z120))/2)*(A120-A119))/27,0),IF(((((DataInput!Q120-Z120)+(DataInput!Q119-Z119))/2)*(A120-A119))/27+S119+T119>0,ROUNDDOWN(((((DataInput!Q120-Z120)+(DataInput!Q119-Z119))/2)*(A120-A119))/27+S119+T119,0),0)),0),0)*$X$5),1) -> 0 | AC119: 0 | AD119: =ROUNDDOWN((IF(AC120>0,IFERROR(IF(((((DataInput!Q119-AC119)+(DataInput!Q120-AC120))/2)*(A120-A119))/27+S119+T119>0,ROUNDDOWN(((((DataInput!Q119-AC119)+(DataInput!Q120-AC120))/2)*(A120-A119))/27+S119+T119,0),0),0),0)*$X$5),1) -> 0 | AE119: =DataInput!U119 -> 0 | AF119: =DataInput!S119 -> 3 | AG119: 4.2 | AH119: -4.2
A120: =IF(DataInput!A120<>"",DataInput!A120,"") -> 948.8
A122: =IF(DataInput!A122<>"",DataInput!A122,"") -> STG1_US_63
A123: =IF(DataInput!A123<>"",DataInput!A123,"") -> 84155 | B123: =SUM(DataInput!C123,DataInput!Y123)+(DataInput!U123-DataInput!E123) -> 205 | C123: =SUM(DataInput!D123,DataInput!Z123) -> 138 | D123: =DataInput!U123 -> 67 | E123: =SUM(DataInput!F123,DataInput!AB123) -> 0 | F123: =SUM(DataInput!G123,DataInput!AC123) -> 0 | G123: =SUM(DataInput!H123,DataInput!AD123) -> 0 | H123: =DataInput!I123 -> 45 | I123: =SUM(DataInput!J123,DataInput!AF123) -> 0 | J123: =SUM(DataInput!K123,DataInput!AG123) -> 0 | K123: =SUM(DataInput!L123,DataInput!AH123) -> 0 | L123: =SUM(DataInput!M123,DataInput!AI123) -> 0 | M123: =SUM(DataInput!N123,DataInput!AJ123) -> 0 | N123: =SUM(DataInput!O123,DataInput!AK123) -> 0 | O123: =DataInput!P123 -> 0 | Q123: =SUM(C123,E123:G123,I123:L123,O123:P123) -> 138 | R123: =DataInput!R123 -> 0 | S123: =DataInput!Y123 -> 0 | T123: =IF(DataInput!U123-DataInput!E123>0,DataInput!U123-DataInput!E123,"") -> 11 | U123: =IF(DataInput!W123-DataInput!I123>0,DataInput!W123-DataInput!I123,"") ->  | W123: =SUM(R123:V123) -> 11 | X123: =ROUNDUP(($W123*$X$5),1) -> 14.3 | Y123: =ROUNDUP(SUM(Q123-X123),1) -> 123.7 | Z123: 450 | AA123: 3350 | AB123: =ROUNDDOWN((IF(AA124>0,IFERROR(IF(AVERAGE(DataInput!Q123:Q124)>AVERAGE(AA124,AA123),ROUNDDOWN(((((AA123-Z123)+(AA124-Z124))/2)*(A124-A123))/27,0),IF(((((DataInput!Q124-Z124)+(DataInput!Q123-Z123))/2)*(A124-A123))/27+S123+T123>0,ROUNDDOWN(((((DataInput!Q124-Z124)+(DataInput!Q123-Z123))/2)*(A124-A123))/27+S123+T123,0),0)),0),0)*$X$5),1) -> 0 | AC123: 176 | AD123: =ROUNDDOWN((IF(AC124>0,IFERROR(IF(((((DataInput!Q123-AC123)+(DataInput!Q124-AC124))/2)*(A124-A123))/27+S123+T123>0,ROUNDDOWN(((((DataInput!Q123-AC123)+(DataInput!Q124-AC124))/2)*(A124-A123))/27+S123+T123,0),0),0),0)*$X$5),1) -> 0 | AE123: =DataInput!U123 -> 67 | AF123: =DataInput!S123 -> 30 | AG123: =ROUNDUP((AF123*$AG$5),1) -> 42 | AH123: =ROUNDUP((AE123-AG123),1) -> 25
A124: =IF(DataInput!A124<>"",DataInput!A124,"") -> 84175 | B124: =SUM(DataInput!C124,DataInput!Y124)+(DataInput!U124-DataInput!E124) -> 263 | C124: =SUM(DataInput!D124,DataInput!Z124) -> 181 | D124: =DataInput!U124 -> 81 | E124: =SUM(DataInput!F124,DataInput!AB124) -> 0 | F124: =SUM(DataInput!G124,DataInput!AC124) -> 0 | G124: =SUM(DataInput!H124,DataInput!AD124) -> 0 | H124: =DataInput!I124 -> 56 | I124: =SUM(DataInput!J124,DataInput!AF124) -> 0 | J124: =SUM(DataInput!K124,DataInput!AG124) -> 0 | K124: =SUM(DataInput!L124,DataInput!AH124) -> 0 | L124: =SUM(DataInput!M124,DataInput!AI124) -> 0 | M124: =SUM(DataInput!N124,DataInput!AJ124) -> 0 | N124: =SUM(DataInput!O124,DataInput!AK124) -> 0 | O124: =DataInput!P124 -> 0 | Q124: =SUM(C124,E124:G124,I124:L124,O124:P124) -> 181 | R124: =DataInput!R124 -> 0 | S124: =DataInput!Y124 -> 0 | T124: =IF(DataInput!U124-DataInput!E124>0,DataInput!U124-DataInput!E124,"") -> 9 | U124: =IF(DataInput!W124-DataInput!I124>0,DataInput!W124-DataInput!I124,"") ->  | W124: =SUM(R124:V124) -> 9 | X124: =ROUNDUP(($W124*$X$5),1) -> 11.7 | Y124: =ROUNDUP(SUM(Q124-X124),1) -> 169.3 | Z124: =Z123 -> 450 | AA124: =AA123 -> 3350 | AB124: =ROUNDDOWN((IF(AA125>0,IFERROR(IF(AVERAGE(DataInput!Q124:Q125)>AVERAGE(AA125,AA124),ROUNDDOWN(((((AA124-Z124)+(AA125-Z125))/2)*(A125-A124))/27,0),IF(((((DataInput!Q125-Z125)+(DataInput!Q124-Z124))/2)*(A125-A124))/27+S124+T124>0,ROUNDDOWN(((((DataInput!Q125-Z125)+(DataInput!Q124-Z124))/2)*(A125-A124))/27+S124+T124,0),0)),0),0)*$X$5),1) -> 0 | AC124: =AC123 -> 176 | AD124: =ROUNDDOWN((IF(AC125>0,IFERROR(IF(((((DataInput!Q124-AC124)+(DataInput!Q125-AC125))/2)*(A125-A124))/27+S124+T124>0,ROUNDDOWN(((((DataInput!Q124-AC124)+(DataInput!Q125-AC125))/2)*(A125-A124))/27+S124+T124,0),0),0),0)*$X$5),1) -> 0 | AE124: =DataInput!U124 -> 81 | AF124: =DataInput!S124 -> 40 | AG124: =ROUNDUP((AF124*$AG$5),1) -> 56 | AH124: =ROUNDUP((AE124-AG124),1) -> 25
A125: =IF(DataInput!A125<>"",DataInput!A125,"") -> 84200 | B125: =SUM(DataInput!C125,DataInput!Y125)+(DataInput!U125-DataInput!E125) -> 260 | C125: =SUM(DataInput!D125,DataInput!Z125) -> 180 | D125: =DataInput!U125 -> 80 | E125: =SUM(DataInput!F125,DataInput!AB125) -> 0 | F125: =SUM(DataInput!G125,DataInput!AC125) -> 0 | G125: =SUM(DataInput!H125,DataInput!AD125) -> 0 | H125: =DataInput!I125 -> 56 | I125: =SUM(DataInput!J125,DataInput!AF125) -> 0 | J125: =SUM(DataInput!K125,DataInput!AG125) -> 0 | K125: =SUM(DataInput!L125,DataInput!AH125) -> 0 | L125: =SUM(DataInput!M125,DataInput!AI125) -> 0 | M125: =SUM(DataInput!N125,DataInput!AJ125) -> 0 | N125: =SUM(DataInput!O125,DataInput!AK125) -> 0 | O125: =DataInput!P125 -> 0 | Q125: 180 | R125: =DataInput!R125 -> 0 | S125: =DataInput!Y125 -> 0 | T125: =IF(DataInput!U125-DataInput!E125>0,DataInput!U125-DataInput!E125,"") -> 7 | U125: =IF(DataInput!W125-DataInput!I125>0,DataInput!W125-DataInput!I125,"") ->  | W125: 7 | X125: 9.1 | Y125: 170.9 | Z125: =Z124 -> 450 | AA125: =AA124 -> 3350 | AB125: =ROUNDDOWN((IF(AA126>0,IFERROR(IF(AVERAGE(DataInput!Q125:Q126)>AVERAGE(AA126,AA125),ROUNDDOWN(((((AA125-Z125)+(AA126-Z126))/2)*(A126-A125))/27,0),IF(((((DataInput!Q126-Z126)+(DataInput!Q125-Z125))/2)*(A126-A125))/27+S125+T125>0,ROUNDDOWN(((((DataInput!Q126-Z126)+(DataInput!Q125-Z125))/2)*(A126-A125))/27+S125+T125,0),0)),0),0)*$X$5),1) -> 0 | AC125: =AC124 -> 176 | AD125: =ROUNDDOWN((IF(AC126>0,IFERROR(IF(((((DataInput!Q125-AC125)+(DataInput!Q126-AC126))/2)*(A126-A125))/27+S125+T125>0,ROUNDDOWN(((((DataInput!Q125-AC125)+(DataInput!Q126-AC126))/2)*(A126-A125))/27+S125+T125,0),0),0),0)*$X$5),1) -> 0 | AE125: =DataInput!U125 -> 80 | AF125: =DataInput!S125 -> 42 | AG125: 58.8 | AH125: 21.2
A126: =IF(DataInput!A126<>"",DataInput!A126,"") -> 84225 | B126: =SUM(DataInput!C126,DataInput!Y126)+(DataInput!U126-DataInput!E126) -> 252 | C126: =SUM(DataInput!D126,DataInput!Z126) -> 170 | D126: =DataInput!U126 -> 81 | E126: =SUM(DataInput!F126,DataInput!AB126) -> 0 | F126: =SUM(DataInput!G126,DataInput!AC126) -> 0 | G126: =SUM(DataInput!H126,DataInput!AD126) -> 0 | H126: =DataInput!I126 -> 55 | I126: =SUM(DataInput!J126,DataInput!AF126) -> 0 | J126: =SUM(DataInput!K126,DataInput!AG126) -> 0 | K126: =SUM(DataInput!L126,DataInput!AH126) -> 0 | L126: =SUM(DataInput!M126,DataInput!AI126) -> 0 | M126: =SUM(DataInput!N126,DataInput!AJ126) -> 0 | N126: =SUM(DataInput!O126,DataInput!AK126) -> 0 | O126: =DataInput!P126 -> 0 | Q126: 170 | R126: =DataInput!R126 -> 0 | S126: =DataInput!Y126 -> 0 | T126: =IF(DataInput!U126-DataInput!E126>0,DataInput!U126-DataInput!E126,"") -> 9 | U126: =IF(DataInput!W126-DataInput!I126>0,DataInput!W126-DataInput!I126,"") ->  | W126: 9 | X126: 11.7 | Y126: 158.3 | Z126: 450 | AA126: 3350 | AB126: =ROUNDDOWN((IF(AA127>0,IFERROR(IF(AVERAGE(DataInput!Q126:Q127)>AVERAGE(AA127,AA126),ROUNDDOWN(((((AA126-Z126)+(AA127-Z127))/2)*(A127-A126))/27,0),IF(((((DataInput!Q127-Z127)+(DataInput!Q126-Z126))/2)*(A127-A126))/27+S126+T126>0,ROUNDDOWN(((((DataInput!Q127-Z127)+(DataInput!Q126-Z126))/2)*(A127-A126))/27+S126+T126,0),0)),0),0)*$X$5),1) -> 0 | AC126: 176 | AD126: =ROUNDDOWN((IF(AC127>0,IFERROR(IF(((((DataInput!Q126-AC126)+(DataInput!Q127-AC127))/2)*(A127-A126))/27+S126+T126>0,ROUNDDOWN(((((DataInput!Q126-AC126)+(DataInput!Q127-AC127))/2)*(A127-A126))/27+S126+T126,0),0),0),0)*$X$5),1) -> 0 | AE126: =DataInput!U126 -> 81 | AF126: =DataInput!S126 -> 44 | AG126: 61.6 | AH126: 19.4
A127: =IF(DataInput!A127<>"",DataInput!A127,"") -> 84250 | B127: =SUM(DataInput!C127,DataInput!Y127)+(DataInput!U127-DataInput!E127) -> 249 | C127: =SUM(DataInput!D127,DataInput!Z127) -> 166 | D127: =DataInput!U127 -> 83 | E127: =SUM(DataInput!F127,DataInput!AB127) -> 0 | F127: =SUM(DataInput!G127,DataInput!AC127) -> 0 | G127: =SUM(DataInput!H127,DataInput!AD127) -> 0 | H127: =DataInput!I127 -> 52 | I127: =SUM(DataInput!J127,DataInput!AF127) -> 0 | J127: =SUM(DataInput!K127,DataInput!AG127) -> 0 | K127: =SUM(DataInput!L127,DataInput!AH127) -> 0 | L127: =SUM(DataInput!M127,DataInput!AI127) -> 0 | M127: =SUM(DataInput!N127,DataInput!AJ127) -> 0 | N127: =SUM(DataInput!O127,DataInput!AK127) -> 0 | O127: =DataInput!P127 -> 0 | Q127: 166 | R127: =DataInput!R127 -> 0 | S127: =DataInput!Y127 -> 0 | T127: =IF(DataInput!U127-DataInput!E127>0,DataInput!U127-DataInput!E127,"") -> 14 | U127: =IF(DataInput!W127-DataInput!I127>0,DataInput!W127-DataInput!I127,"") ->  | W127: 14 | X127: 18.2 | Y127: 147.8 | Z127: 450 | AA127: 3350 | AB127: =ROUNDDOWN((IF(AA128>0,IFERROR(IF(AVERAGE(DataInput!Q127:Q128)>AVERAGE(AA128,AA127),ROUNDDOWN(((((AA127-Z127)+(AA128-Z128))/2)*(A128-A127))/27,0),IF(((((DataInput!Q128-Z128)+(DataInput!Q127-Z127))/2)*(A128-A127))/27+S127+T127>0,ROUNDDOWN(((((DataInput!Q128-Z128)+(DataInput!Q127-Z127))/2)*(A128-A127))/27+S127+T127,0),0)),0),0)*$X$5),1) -> 0 | AC127: 176 | AD127: =ROUNDDOWN((IF(AC128>0,IFERROR(IF(((((DataInput!Q127-AC127)+(DataInput!Q128-AC128))/2)*(A128-A127))/27+S127+T127>0,ROUNDDOWN(((((DataInput!Q127-AC127)+(DataInput!Q128-AC128))/2)*(A128-A127))/27+S127+T127,0),0),0),0)*$X$5),1) -> 0 | AE127: =DataInput!U127 -> 83 | AF127: =DataInput!S127 -> 44 | AG127: 61.6 | AH127: 21.4
A128: =IF(DataInput!A128<>"",DataInput!A128,"") -> 84275 | B128: =SUM(DataInput!C128,DataInput!Y128)+(DataInput!U128-DataInput!E128) -> 249 | C128: =SUM(DataInput!D128,DataInput!Z128) -> 164 | D128: =DataInput!U128 -> 85 | E128: =SUM(DataInput!F128,DataInput!AB128) -> 0 | F128: =SUM(DataInput!G128,DataInput!AC128) -> 0 | G128: =SUM(DataInput!H128,DataInput!AD128) -> 0 | H128: =DataInput!I128 -> 49 | I128: =SUM(DataInput!J128,DataInput!AF128) -> 0 | J128: =SUM(DataInput!K128,DataInput!AG128) -> 0 | K128: =SUM(DataInput!L128,DataInput!AH128) -> 0 | L128: =SUM(DataInput!M128,DataInput!AI128) -> 0 | M128: =SUM(DataInput!N128,DataInput!AJ128) -> 0 | N128: =SUM(DataInput!O128,DataInput!AK128) -> 0 | O128: =DataInput!P128 -> 0 | Q128: 164 | R128: =DataInput!R128 -> 0 | S128: =DataInput!Y128 -> 0 | T128: =IF(DataInput!U128-DataInput!E128>0,DataInput!U128-DataInput!E128,"") -> 21 | U128: =IF(DataInput!W128-DataInput!I128>0,DataInput!W128-DataInput!I128,"") ->  | W128: 21 | X128: 27.3 | Y128: 136.7 | Z128: 450 | AA128: 3350 | AB128: =ROUNDDOWN((IF(AA129>0,IFERROR(IF(AVERAGE(DataInput!Q128:Q129)>AVERAGE(AA129,AA128),ROUNDDOWN(((((AA128-Z128)+(AA129-Z129))/2)*(A129-A128))/27,0),IF(((((DataInput!Q129-Z129)+(DataInput!Q128-Z128))/2)*(A129-A128))/27+S128+T128>0,ROUNDDOWN(((((DataInput!Q129-Z129)+(DataInput!Q128-Z128))/2)*(A129-A128))/27+S128+T128,0),0)),0),0)*$X$5),1) -> 0 | AC128: 176 | AD128: =ROUNDDOWN((IF(AC129>0,IFERROR(IF(((((DataInput!Q128-AC128)+(DataInput!Q129-AC129))/2)*(A129-A128))/27+S128+T128>0,ROUNDDOWN(((((DataInput!Q128-AC128)+(DataInput!Q129-AC129))/2)*(A129-A128))/27+S128+T128,0),0),0),0)*$X$5),1) -> 0 | AE128: =DataInput!U128 -> 85 | AF128: =DataInput!S128 -> 44 | AG128: 61.6 | AH128: 23.4
A129: =IF(DataInput!A129<>"",DataInput!A129,"") -> 84300 | B129: =SUM(DataInput!C129,DataInput!Y129)+(DataInput!U129-DataInput!E129) -> 249 | C129: =SUM(DataInput!D129,DataInput!Z129) -> 162 | D129: =DataInput!U129 -> 87 | E129: =SUM(DataInput!F129,DataInput!AB129) -> 0 | F129: =SUM(DataInput!G129,DataInput!AC129) -> 0 | G129: =SUM(DataInput!H129,DataInput!AD129) -> 0 | H129: =DataInput!I129 -> 45 | I129: =SUM(DataInput!J129,DataInput!AF129) -> 0 | J129: =SUM(DataInput!K129,DataInput!AG129) -> 0 | K129: =SUM(DataInput!L129,DataInput!AH129) -> 0 | L129: =SUM(DataInput!M129,DataInput!AI129) -> 0 | M129: =SUM(DataInput!N129,DataInput!AJ129) -> 0 | N129: =SUM(DataInput!O129,DataInput!AK129) -> 0 | O129: =DataInput!P129 -> 0 | Q129: 162 | R129: =DataInput!R129 -> 1 | S129: =DataInput!Y129 -> 0 | T129: =IF(DataInput!U129-DataInput!E129>0,DataInput!U129-DataInput!E129,"") -> 28 | U129: =IF(DataInput!W129-DataInput!I129>0,DataInput!W129-DataInput!I129,"") ->  | W129: 29 | X129: 37.7 | Y129: 124.3 | Z129: 450 | AA129: 3350 | AB129: =ROUNDDOWN((IF(AA130>0,IFERROR(IF(AVERAGE(DataInput!Q129:Q130)>AVERAGE(AA130,AA129),ROUNDDOWN(((((AA129-Z129)+(AA130-Z130))/2)*(A130-A129))/27,0),IF(((((DataInput!Q130-Z130)+(DataInput!Q129-Z129))/2)*(A130-A129))/27+S129+T129>0,ROUNDDOWN(((((DataInput!Q130-Z130)+(DataInput!Q129-Z129))/2)*(A130-A129))/27+S129+T129,0),0)),0),0)*$X$5),1) -> 0 | AC129: 176 | AD129: =ROUNDDOWN((IF(AC130>0,IFERROR(IF(((((DataInput!Q129-AC129)+(DataInput!Q130-AC130))/2)*(A130-A129))/27+S129+T129>0,ROUNDDOWN(((((DataInput!Q129-AC129)+(DataInput!Q130-AC130))/2)*(A130-A129))/27+S129+T129,0),0),0),0)*$X$5),1) -> 0 | AE129: =DataInput!U129 -> 87 | AF129: =DataInput!S129 -> 44 | AG129: 61.6 | AH129: 25.4
A130: =IF(DataInput!A130<>"",DataInput!A130,"") -> 84325 | B130: =SUM(DataInput!C130,DataInput!Y130)+(DataInput!U130-DataInput!E130) -> 250 | C130: =SUM(DataInput!D130,DataInput!Z130) -> 160 | D130: =DataInput!U130 -> 90 | E130: =SUM(DataInput!F130,DataInput!AB130) -> 0 | F130: =SUM(DataInput!G130,DataInput!AC130) -> 0 | G130: =SUM(DataInput!H130,DataInput!AD130) -> 0 | H130: =DataInput!I130 -> 42 | I130: =SUM(DataInput!J130,DataInput!AF130) -> 0 | J130: =SUM(DataInput!K130,DataInput!AG130) -> 0 | K130: =SUM(DataInput!L130,DataInput!AH130) -> 0 | L130: =SUM(DataInput!M130,DataInput!AI130) -> 0 | M130: =SUM(DataInput!N130,DataInput!AJ130) -> 0 | N130: =SUM(DataInput!O130,DataInput!AK130) -> 0 | O130: =DataInput!P130 -> 0 | Q130: 160 | R130: =DataInput!R130 -> 5 | S130: =DataInput!Y130 -> 0 | T130: =IF(DataInput!U130-DataInput!E130>0,DataInput!U130-DataInput!E130,"") -> 35 | U130: =IF(DataInput!W130-DataInput!I130>0,DataInput!W130-DataInput!I130,"") ->  | W130: 40 | X130: 52 | Y130: 108 | Z130: 450 | AA130: 3350 | AB130: =ROUNDDOWN((IF(AA131>0,IFERROR(IF(AVERAGE(DataInput!Q130:Q131)>AVERAGE(AA131,AA130),ROUNDDOWN(((((AA130-Z130)+(AA131-Z131))/2)*(A131-A130))/27,0),IF(((((DataInput!Q131-Z131)+(DataInput!Q130-Z130))/2)*(A131-A130))/27+S130+T130>0,ROUNDDOWN(((((DataInput!Q131-Z131)+(DataInput!Q130-Z130))/2)*(A131-A130))/27+S130+T130,0),0)),0),0)*$X$5),1) -> 0 | AC130: 176 | AD130: =ROUNDDOWN((IF(AC131>0,IFERROR(IF(((((DataInput!Q130-AC130)+(DataInput!Q131-AC131))/2)*(A131-A130))/27+S130+T130>0,ROUNDDOWN(((((DataInput!Q130-AC130)+(DataInput!Q131-AC131))/2)*(A131-A130))/27+S130+T130,0),0),0),0)*$X$5),1) -> 0 | AE130: =DataInput!U130 -> 90 | AF130: =DataInput!S130 -> 45 | AG130: 63 | AH130: 27
A131: =IF(DataInput!A131<>"",DataInput!A131,"") -> 84350 | B131: =SUM(DataInput!C131,DataInput!Y131)+(DataInput!U131-DataInput!E131) -> 250 | C131: =SUM(DataInput!D131,DataInput!Z131) -> 159 | D131: =DataInput!U131 -> 90 | E131: =SUM(DataInput!F131,DataInput!AB131) -> 0 | F131: =SUM(DataInput!G131,DataInput!AC131) -> 0 | G131: =SUM(DataInput!H131,DataInput!AD131) -> 0 | H131: =DataInput!I131 -> 41 | I131: =SUM(DataInput!J131,DataInput!AF131) -> 0 | J131: =SUM(DataInput!K131,DataInput!AG131) -> 0 | K131: =SUM(DataInput!L131,DataInput!AH131) -> 0 | L131: =SUM(DataInput!M131,DataInput!AI131) -> 0 | M131: =SUM(DataInput!N131,DataInput!AJ131) -> 0 | N131: =SUM(DataInput!O131,DataInput!AK131) -> 0 | O131: =DataInput!P131 -> 0 | Q131: 159 | R131: =DataInput!R131 -> 10 | S131: =DataInput!Y131 -> 0 | T131: =IF(DataInput!U131-DataInput!E131>0,DataInput!U131-DataInput!E131,"") -> 38 | U131: =IF(DataInput!W131-DataInput!I131>0,DataInput!W131-DataInput!I131,"") ->  | W131: 48 | X131: 62.4 | Y131: 96.6 | Z131: 450 | AA131: 3350 | AB131: =ROUNDDOWN((IF(AA132>0,IFERROR(IF(AVERAGE(DataInput!Q131:Q132)>AVERAGE(AA132,AA131),ROUNDDOWN(((((AA131-Z131)+(AA132-Z132))/2)*(A132-A131))/27,0),IF(((((DataInput!Q132-Z132)+(DataInput!Q131-Z131))/2)*(A132-A131))/27+S131+T131>0,ROUNDDOWN(((((DataInput!Q132-Z132)+(DataInput!Q131-Z131))/2)*(A132-A131))/27+S131+T131,0),0)),0),0)*$X$5),1) -> 0 | AC131: 176 | AD131: =ROUNDDOWN((IF(AC132>0,IFERROR(IF(((((DataInput!Q131-AC131)+(DataInput!Q132-AC132))/2)*(A132-A131))/27+S131+T131>0,ROUNDDOWN(((((DataInput!Q131-AC131)+(DataInput!Q132-AC132))/2)*(A132-A131))/27+S131+T131,0),0),0),0)*$X$5),1) -> 0 | AE131: =DataInput!U131 -> 90 | AF131: =DataInput!S131 -> 45 | AG131: 63 | AH131: 27
A132: =IF(DataInput!A132<>"",DataInput!A132,"") -> 84375 | B132: =SUM(DataInput!C132,DataInput!Y132)+(DataInput!U132-DataInput!E132) -> 249 | C132: =SUM(DataInput!D132,DataInput!Z132) -> 153 | D132: =DataInput!U132 -> 91 | E132: =SUM(DataInput!F132,DataInput!AB132) -> 0 | F132: =SUM(DataInput!G132,DataInput!AC132) -> 4 | G132: =SUM(DataInput!H132,DataInput!AD132) -> 0 | H132: =DataInput!I132 -> 40 | I132: =SUM(DataInput!J132,DataInput!AF132) -> 0 | J132: =SUM(DataInput!K132,DataInput!AG132) -> 0 | K132: =SUM(DataInput!L132,DataInput!AH132) -> 0 | L132: =SUM(DataInput!M132,DataInput!AI132) -> 0 | M132: =SUM(DataInput!N132,DataInput!AJ132) -> 0 | N132: =SUM(DataInput!O132,DataInput!AK132) -> 0 | O132: =DataInput!P132 -> 0 | Q132: 157 | R132: =DataInput!R132 -> 15 | S132: =DataInput!Y132 -> 0 | T132: =IF(DataInput!U132-DataInput!E132>0,DataInput!U132-DataInput!E132,"") -> 40 | U132: =IF(DataInput!W132-DataInput!I132>0,DataInput!W132-DataInput!I132,"") -> 1 | W132: 56 | X132: 72.8 | Y132: 84.2 | Z132: 450 | AA132: 3350 | AB132: =ROUNDDOWN((IF(AA133>0,IFERROR(IF(AVERAGE(DataInput!Q132:Q133)>AVERAGE(AA133,AA132),ROUNDDOWN(((((AA132-Z132)+(AA133-Z133))/2)*(A133-A132))/27,0),IF(((((DataInput!Q133-Z133)+(DataInput!Q132-Z132))/2)*(A133-A132))/27+S132+T132>0,ROUNDDOWN(((((DataInput!Q133-Z133)+(DataInput!Q132-Z132))/2)*(A133-A132))/27+S132+T132,0),0)),0),0)*$X$5),1) -> 0 | AC132: 176 | AD132: =ROUNDDOWN((IF(AC133>0,IFERROR(IF(((((DataInput!Q132-AC132)+(DataInput!Q133-AC133))/2)*(A133-A132))/27+S132+T132>0,ROUNDDOWN(((((DataInput!Q132-AC132)+(DataInput!Q133-AC133))/2)*(A133-A132))/27+S132+T132,0),0),0),0)*$X$5),1) -> 0 | AE132: =DataInput!U132 -> 91 | AF132: =DataInput!S132 -> 45 | AG132: 63 | AH132: 28
A133: =IF(DataInput!A133<>"",DataInput!A133,"") -> 84400 | B133: =SUM(DataInput!C133,DataInput!Y133)+(DataInput!U133-DataInput!E133) -> 248 | C133: =SUM(DataInput!D133,DataInput!Z133) -> 147 | D133: =DataInput!U133 -> 93 | E133: =SUM(DataInput!F133,DataInput!AB133) -> 0 | F133: =SUM(DataInput!G133,DataInput!AC133) -> 8 | G133: =SUM(DataInput!H133,DataInput!AD133) -> 0 | H133: =DataInput!I133 -> 40 | I133: =SUM(DataInput!J133,DataInput!AF133) -> 0 | J133: =SUM(DataInput!K133,DataInput!AG133) -> 0 | K133: =SUM(DataInput!L133,DataInput!AH133) -> 0 | L133: =SUM(DataInput!M133,DataInput!AI133) -> 0 | M133: =SUM(DataInput!N133,DataInput!AJ133) -> 0 | N133: =SUM(DataInput!O133,DataInput!AK133) -> 0 | O133: =DataInput!P133 -> 0 | Q133: 155 | R133: =DataInput!R133 -> 18 | S133: =DataInput!Y133 -> 0 | T133: =IF(DataInput!U133-DataInput!E133>0,DataInput!U133-DataInput!E133,"") -> 41 | U133: =IF(DataInput!W133-DataInput!I133>0,DataInput!W133-DataInput!I133,"") ->  | W133: 59 | X133: 76.7 | Y133: 78.3 | Z133: 450 | AA133: 3350 | AB133: =ROUNDDOWN((IF(AA134>0,IFERROR(IF(AVERAGE(DataInput!Q133:Q134)>AVERAGE(AA134,AA133),ROUNDDOWN(((((AA133-Z133)+(AA134-Z134))/2)*(A134-A133))/27,0),IF(((((DataInput!Q134-Z134)+(DataInput!Q133-Z133))/2)*(A134-A133))/27+S133+T133>0,ROUNDDOWN(((((DataInput!Q134-Z134)+(DataInput!Q133-Z133))/2)*(A134-A133))/27+S133+T133,0),0)),0),0)*$X$5),1) -> 0 | AC133: 176 | AD133: =ROUNDDOWN((IF(AC134>0,IFERROR(IF(((((DataInput!Q133-AC133)+(DataInput!Q134-AC134))/2)*(A134-A133))/27+S133+T133>0,ROUNDDOWN(((((DataInput!Q133-AC133)+(DataInput!Q134-AC134))/2)*(A134-A133))/27+S133+T133,0),0),0),0)*$X$5),1) -> 0 | AE133: =DataInput!U133 -> 93 | AF133: =DataInput!S133 -> 45 | AG133: 63 | AH133: 30
A134: =IF(DataInput!A134<>"",DataInput!A134,"") -> 84425 | B134: =SUM(DataInput!C134,DataInput!Y134)+(DataInput!U134-DataInput!E134) -> 249 | C134: =SUM(DataInput!D134,DataInput!Z134) -> 147 | D134: =DataInput!U134 -> 94 | E134: =SUM(DataInput!F134,DataInput!AB134) -> 0 | F134: =SUM(DataInput!G134,DataInput!AC134) -> 9 | G134: =SUM(DataInput!H134,DataInput!AD134) -> 0 | H134: =DataInput!I134 -> 39 | I134: =SUM(DataInput!J134,DataInput!AF134) -> 0 | J134: =SUM(DataInput!K134,DataInput!AG134) -> 0 | K134: =SUM(DataInput!L134,DataInput!AH134) -> 0 | L134: =SUM(DataInput!M134,DataInput!AI134) -> 0 | M134: =SUM(DataInput!N134,DataInput!AJ134) -> 0 | N134: =SUM(DataInput!O134,DataInput!AK134) -> 0 | O134: =DataInput!P134 -> 0 | Q134: 156 | R134: =DataInput!R134 -> 21 | S134: =DataInput!Y134 -> 0 | T134: =IF(DataInput!U134-DataInput!E134>0,DataInput!U134-DataInput!E134,"") -> 43 | U134: =IF(DataInput!W134-DataInput!I134>0,DataInput!W134-DataInput!I134,"") ->  | W134: 64 | X134: 83.2 | Y134: 72.8 | Z134: 450 | AA134: 3350 | AB134: =ROUNDDOWN((IF(AA135>0,IFERROR(IF(AVERAGE(DataInput!Q134:Q135)>AVERAGE(AA135,AA134),ROUNDDOWN(((((AA134-Z134)+(AA135-Z135))/2)*(A135-A134))/27,0),IF(((((DataInput!Q135-Z135)+(DataInput!Q134-Z134))/2)*(A135-A134))/27+S134+T134>0,ROUNDDOWN(((((DataInput!Q135-Z135)+(DataInput!Q134-Z134))/2)*(A135-A134))/27+S134+T134,0),0)),0),0)*$X$5),1) -> 0 | AC134: 176 | AD134: =ROUNDDOWN((IF(AC135>0,IFERROR(IF(((((DataInput!Q134-AC134)+(DataInput!Q135-AC135))/2)*(A135-A134))/27+S134+T134>0,ROUNDDOWN(((((DataInput!Q134-AC134)+(DataInput!Q135-AC135))/2)*(A135-A134))/27+S134+T134,0),0),0),0)*$X$5),1) -> 0 | AE134: =DataInput!U134 -> 94 | AF134: =DataInput!S134 -> 45 | AG134: 63 | AH134: 31
A135: =IF(DataInput!A135<>"",DataInput!A135,"") -> 84450 | B135: =SUM(DataInput!C135,DataInput!Y135)+(DataInput!U135-DataInput!E135) -> 249 | C135: =SUM(DataInput!D135,DataInput!Z135) -> 146 | D135: =DataInput!U135 -> 94 | E135: =SUM(DataInput!F135,DataInput!AB135) -> 0 | F135: =SUM(DataInput!G135,DataInput!AC135) -> 9 | G135: =SUM(DataInput!H135,DataInput!AD135) -> 0 | H135: =DataInput!I135 -> 38 | I135: =SUM(DataInput!J135,DataInput!AF135) -> 0 | J135: =SUM(DataInput!K135,DataInput!AG135) -> 0 | K135: =SUM(DataInput!L135,DataInput!AH135) -> 0 | L135: =SUM(DataInput!M135,DataInput!AI135) -> 0 | M135: =SUM(DataInput!N135,DataInput!AJ135) -> 0 | N135: =SUM(DataInput!O135,DataInput!AK135) -> 0 | O135: =DataInput!P135 -> 0 | Q135: 155 | R135: =DataInput!R135 -> 23 | S135: =DataInput!Y135 -> 0 | T135: =IF(DataInput!U135-DataInput!E135>0,DataInput!U135-DataInput!E135,"") -> 43 | U135: =IF(DataInput!W135-DataInput!I135>0,DataInput!W135-DataInput!I135,"") ->  | W135: 66 | X135: 85.8 | Y135: 69.2 | Z135: 450 | AA135: 3350 | AB135: =ROUNDDOWN((IF(AA136>0,IFERROR(IF(AVERAGE(DataInput!Q135:Q136)>AVERAGE(AA136,AA135),ROUNDDOWN(((((AA135-Z135)+(AA136-Z136))/2)*(A136-A135))/27,0),IF(((((DataInput!Q136-Z136)+(DataInput!Q135-Z135))/2)*(A136-A135))/27+S135+T135>0,ROUNDDOWN(((((DataInput!Q136-Z136)+(DataInput!Q135-Z135))/2)*(A136-A135))/27+S135+T135,0),0)),0),0)*$X$5),1) -> 0 | AC135: 176 | AD135: =ROUNDDOWN((IF(AC136>0,IFERROR(IF(((((DataInput!Q135-AC135)+(DataInput!Q136-AC136))/2)*(A136-A135))/27+S135+T135>0,ROUNDDOWN(((((DataInput!Q135-AC135)+(DataInput!Q136-AC136))/2)*(A136-A135))/27+S135+T135,0),0),0),0)*$X$5),1) -> 0 | AE135: =DataInput!U135 -> 94 | AF135: =DataInput!S135 -> 44 | AG135: 61.6 | AH135: 32.4
A136: =IF(DataInput!A136<>"",DataInput!A136,"") -> 84475 | B136: =SUM(DataInput!C136,DataInput!Y136)+(DataInput!U136-DataInput!E136) -> 248 | C136: =SUM(DataInput!D136,DataInput!Z136) -> 145 | D136: =DataInput!U136 -> 94 | E136: =SUM(DataInput!F136,DataInput!AB136) -> 0 | F136: =SUM(DataInput!G136,DataInput!AC136) -> 9 | G136: =SUM(DataInput!H136,DataInput!AD136) -> 0 | H136: =DataInput!I136 -> 38 | I136: =SUM(DataInput!J136,DataInput!AF136) -> 0 | J136: =SUM(DataInput!K136,DataInput!AG136) -> 0 | K136: =SUM(DataInput!L136,DataInput!AH136) -> 0 | L136: =SUM(DataInput!M136,DataInput!AI136) -> 0 | M136: =SUM(DataInput!N136,DataInput!AJ136) -> 0 | N136: =SUM(DataInput!O136,DataInput!AK136) -> 0 | O136: =DataInput!P136 -> 0 | Q136: 154 | R136: =DataInput!R136 -> 23 | S136: =DataInput!Y136 -> 0 | T136: =IF(DataInput!U136-DataInput!E136>0,DataInput!U136-DataInput!E136,"") -> 41 | U136: =IF(DataInput!W136-DataInput!I136>0,DataInput!W136-DataInput!I136,"") ->  | W136: 64 | X136: 83.2 | Y136: 70.8 | Z136: 450 | AA136: 3350 | AB136: =ROUNDDOWN((IF(AA137>0,IFERROR(IF(AVERAGE(DataInput!Q136:Q137)>AVERAGE(AA137,AA136),ROUNDDOWN(((((AA136-Z136)+(AA137-Z137))/2)*(A137-A136))/27,0),IF(((((DataInput!Q137-Z137)+(DataInput!Q136-Z136))/2)*(A137-A136))/27+S136+T136>0,ROUNDDOWN(((((DataInput!Q137-Z137)+(DataInput!Q136-Z136))/2)*(A137-A136))/27+S136+T136,0),0)),0),0)*$X$5),1) -> 0 | AC136: 176 | AD136: =ROUNDDOWN((IF(AC137>0,IFERROR(IF(((((DataInput!Q136-AC136)+(DataInput!Q137-AC137))/2)*(A137-A136))/27+S136+T136>0,ROUNDDOWN(((((DataInput!Q136-AC136)+(DataInput!Q137-AC137))/2)*(A137-A136))/27+S136+T136,0),0),0),0)*$X$5),1) -> 0 | AE136: =DataInput!U136 -> 94 | AF136: =DataInput!S136 -> 44 | AG136: 61.6 | AH136: 32.4
A137: =IF(DataInput!A137<>"",DataInput!A137,"") -> 84500 | B137: =SUM(DataInput!C137,DataInput!Y137)+(DataInput!U137-DataInput!E137) -> 249 | C137: =SUM(DataInput!D137,DataInput!Z137) -> 145 | D137: =DataInput!U137 -> 95 | E137: =SUM(DataInput!F137,DataInput!AB137) -> 0 | F137: =SUM(DataInput!G137,DataInput!AC137) -> 9 | G137: =SUM(DataInput!H137,DataInput!AD137) -> 0 | H137: =DataInput!I137 -> 37 | I137: =SUM(DataInput!J137,DataInput!AF137) -> 0 | J137: =SUM(DataInput!K137,DataInput!AG137) -> 0 | K137: =SUM(DataInput!L137,DataInput!AH137) -> 0 | L137: =SUM(DataInput!M137,DataInput!AI137) -> 0 | M137: =SUM(DataInput!N137,DataInput!AJ137) -> 0 | N137: =SUM(DataInput!O137,DataInput!AK137) -> 0 | O137: =DataInput!P137 -> 0 | Q137: 154 | R137: =DataInput!R137 -> 24 | S137: =DataInput!Y137 -> 0 | T137: =IF(DataInput!U137-DataInput!E137>0,DataInput!U137-DataInput!E137,"") -> 42 | U137: =IF(DataInput!W137-DataInput!I137>0,DataInput!W137-DataInput!I137,"") ->  | W137: 66 | X137: 85.8 | Y137: 68.2 | Z137: 450 | AA137: 3350 | AB137: =ROUNDDOWN((IF(AA138>0,IFERROR(IF(AVERAGE(DataInput!Q137:Q138)>AVERAGE(AA138,AA137),ROUNDDOWN(((((AA137-Z137)+(AA138-Z138))/2)*(A138-A137))/27,0),IF(((((DataInput!Q138-Z138)+(DataInput!Q137-Z137))/2)*(A138-A137))/27+S137+T137>0,ROUNDDOWN(((((DataInput!Q138-Z138)+(DataInput!Q137-Z137))/2)*(A138-A137))/27+S137+T137,0),0)),0),0)*$X$5),1) -> 0 | AC137: 176 | AD137: =ROUNDDOWN((IF(AC138>0,IFERROR(IF(((((DataInput!Q137-AC137)+(DataInput!Q138-AC138))/2)*(A138-A137))/27+S137+T137>0,ROUNDDOWN(((((DataInput!Q137-AC137)+(DataInput!Q138-AC138))/2)*(A138-A137))/27+S137+T137,0),0),0),0)*$X$5),1) -> 0 | AE137: =DataInput!U137 -> 95 | AF137: =DataInput!S137 -> 44 | AG137: 61.6 | AH137: 33.4
A138: =IF(DataInput!A138<>"",DataInput!A138,"") -> 84525 | B138: =SUM(DataInput!C138,DataInput!Y138)+(DataInput!U138-DataInput!E138) -> 248 | C138: =SUM(DataInput!D138,DataInput!Z138) -> 145 | D138: =DataInput!U138 -> 95 | E138: =SUM(DataInput!F138,DataInput!AB138) -> 0 | F138: =SUM(DataInput!G138,DataInput!AC138) -> 9 | G138: =SUM(DataInput!H138,DataInput!AD138) -> 0 | H138: =DataInput!I138 -> 36 | I138: =SUM(DataInput!J138,DataInput!AF138) -> 0 | J138: =SUM(DataInput!K138,DataInput!AG138) -> 0 | K138: =SUM(DataInput!L138,DataInput!AH138) -> 0 | L138: =SUM(DataInput!M138,DataInput!AI138) -> 0 | M138: =SUM(DataInput!N138,DataInput!AJ138) -> 0 | N138: =SUM(DataInput!O138,DataInput!AK138) -> 0 | O138: =DataInput!P138 -> 0 | Q138: 154 | R138: =DataInput!R138 -> 25 | S138: =DataInput!Y138 -> 0 | T138: =IF(DataInput!U138-DataInput!E138>0,DataInput!U138-DataInput!E138,"") -> 47 | U138: =IF(DataInput!W138-DataInput!I138>0,DataInput!W138-DataInput!I138,"") ->  | W138: 72 | X138: 93.6 | Y138: 60.4 | Z138: 450 | AA138: 3350 | AB138: =ROUNDDOWN((IF(AA139>0,IFERROR(IF(AVERAGE(DataInput!Q138:Q139)>AVERAGE(AA139,AA138),ROUNDDOWN(((((AA138-Z138)+(AA139-Z139))/2)*(A139-A138))/27,0),IF(((((DataInput!Q139-Z139)+(DataInput!Q138-Z138))/2)*(A139-A138))/27+S138+T138>0,ROUNDDOWN(((((DataInput!Q139-Z139)+(DataInput!Q138-Z138))/2)*(A139-A138))/27+S138+T138,0),0)),0),0)*$X$5),1) -> 0 | AC138: 176 | AD138: =ROUNDDOWN((IF(AC139>0,IFERROR(IF(((((DataInput!Q138-AC138)+(DataInput!Q139-AC139))/2)*(A139-A138))/27+S138+T138>0,ROUNDDOWN(((((DataInput!Q138-AC138)+(DataInput!Q139-AC139))/2)*(A139-A138))/27+S138+T138,0),0),0),0)*$X$5),1) -> 0 | AE138: =DataInput!U138 -> 95 | AF138: =DataInput!S138 -> 43 | AG138: 60.2 | AH138: 34.8
A139: =IF(DataInput!A139<>"",DataInput!A139,"") -> 84550 | B139: =SUM(DataInput!C139,DataInput!Y139)+(DataInput!U139-DataInput!E139) -> 248 | C139: =SUM(DataInput!D139,DataInput!Z139) -> 149 | D139: =DataInput!U139 -> 95 | E139: =SUM(DataInput!F139,DataInput!AB139) -> 0 | F139: =SUM(DataInput!G139,DataInput!AC139) -> 4 | G139: =SUM(DataInput!H139,DataInput!AD139) -> 0 | H139: =DataInput!I139 -> 35 | I139: =SUM(DataInput!J139,DataInput!AF139) -> 0 | J139: =SUM(DataInput!K139,DataInput!AG139) -> 0 | K139: =SUM(DataInput!L139,DataInput!AH139) -> 0 | L139: =SUM(DataInput!M139,DataInput!AI139) -> 0 | M139: =SUM(DataInput!N139,DataInput!AJ139) -> 0 | N139: =SUM(DataInput!O139,DataInput!AK139) -> 0 | O139: =DataInput!P139 -> 0 | Q139: 153 | R139: =DataInput!R139 -> 27 | S139: =DataInput!Y139 -> 0 | T139: =IF(DataInput!U139-DataInput!E139>0,DataInput!U139-DataInput!E139,"") -> 55 | U139: =IF(DataInput!W139-DataInput!I139>0,DataInput!W139-DataInput!I139,"") ->  | W139: 82 | X139: 106.6 | Y139: 46.4 | Z139: 450 | AA139: 3350 | AB139: =ROUNDDOWN((IF(AA140>0,IFERROR(IF(AVERAGE(DataInput!Q139:Q140)>AVERAGE(AA140,AA139),ROUNDDOWN(((((AA139-Z139)+(AA140-Z140))/2)*(A140-A139))/27,0),IF(((((DataInput!Q140-Z140)+(DataInput!Q139-Z139))/2)*(A140-A139))/27+S139+T139>0,ROUNDDOWN(((((DataInput!Q140-Z140)+(DataInput!Q139-Z139))/2)*(A140-A139))/27+S139+T139,0),0)),0),0)*$X$5),1) -> 0 | AC139: 176 | AD139: =ROUNDDOWN((IF(AC140>0,IFERROR(IF(((((DataInput!Q139-AC139)+(DataInput!Q140-AC140))/2)*(A140-A139))/27+S139+T139>0,ROUNDDOWN(((((DataInput!Q139-AC139)+(DataInput!Q140-AC140))/2)*(A140-A139))/27+S139+T139,0),0),0),0)*$X$5),1) -> 0 | AE139: =DataInput!U139 -> 95 | AF139: =DataInput!S139 -> 43 | AG139: 60.2 | AH139: 34.8
A140: =IF(DataInput!A140<>"",DataInput!A140,"") -> 84575 | B140: =SUM(DataInput!C140,DataInput!Y140)+(DataInput!U140-DataInput!E140) -> 249 | C140: =SUM(DataInput!D140,DataInput!Z140) -> 153 | D140: =DataInput!U140 -> 96 | E140: =SUM(DataInput!F140,DataInput!AB140) -> 0 | F140: =SUM(DataInput!G140,DataInput!AC140) -> 0 | G140: =SUM(DataInput!H140,DataInput!AD140) -> 0 | H140: =DataInput!I140 -> 35 | I140: =SUM(DataInput!J140,DataInput!AF140) -> 0 | J140: =SUM(DataInput!K140,DataInput!AG140) -> 0 | K140: =SUM(DataInput!L140,DataInput!AH140) -> 0 | L140: =SUM(DataInput!M140,DataInput!AI140) -> 0 | M140: =SUM(DataInput!N140,DataInput!AJ140) -> 0 | N140: =SUM(DataInput!O140,DataInput!AK140) -> 0 | O140: =DataInput!P140 -> 0 | Q140: 153 | R140: =DataInput!R140 -> 31 | S140: =DataInput!Y140 -> 0 | T140: =IF(DataInput!U140-DataInput!E140>0,DataInput!U140-DataInput!E140,"") -> 60 | U140: =IF(DataInput!W140-DataInput!I140>0,DataInput!W140-DataInput!I140,"") ->  | W140: 91 | X140: 118.3 | Y140: 34.7 | Z140: 450 | AA140: 3350 | AB140: =ROUNDDOWN((IF(AA141>0,IFERROR(IF(AVERAGE(DataInput!Q140:Q141)>AVERAGE(AA141,AA140),ROUNDDOWN(((((AA140-Z140)+(AA141-Z141))/2)*(A141-A140))/27,0),IF(((((DataInput!Q141-Z141)+(DataInput!Q140-Z140))/2)*(A141-A140))/27+S140+T140>0,ROUNDDOWN(((((DataInput!Q141-Z141)+(DataInput!Q140-Z140))/2)*(A141-A140))/27+S140+T140,0),0)),0),0)*$X$5),1) -> 0 | AC140: 176 | AD140: =ROUNDDOWN((IF(AC141>0,IFERROR(IF(((((DataInput!Q140-AC140)+(DataInput!Q141-AC141))/2)*(A141-A140))/27+S140+T140>0,ROUNDDOWN(((((DataInput!Q140-AC140)+(DataInput!Q141-AC141))/2)*(A141-A140))/27+S140+T140,0),0),0),0)*$X$5),1) -> 0 | AE140: =DataInput!U140 -> 96 | AF140: =DataInput!S140 -> 42 | AG140: 58.8 | AH140: 37.2
A141: =IF(DataInput!A141<>"",DataInput!A141,"") -> 84600 | B141: =SUM(DataInput!C141,DataInput!Y141)+(DataInput!U141-DataInput!E141) -> 250 | C141: =SUM(DataInput!D141,DataInput!Z141) -> 154 | D141: =DataInput!U141 -> 97 | E141: =SUM(DataInput!F141,DataInput!AB141) -> 0 | F141: =SUM(DataInput!G141,DataInput!AC141) -> 0 | G141: =SUM(DataInput!H141,DataInput!AD141) -> 0 | H141: =DataInput!I141 -> 34 | I141: =SUM(DataInput!J141,DataInput!AF141) -> 0 | J141: =SUM(DataInput!K141,DataInput!AG141) -> 0 | K141: =SUM(DataInput!L141,DataInput!AH141) -> 0 | L141: =SUM(DataInput!M141,DataInput!AI141) -> 0 | M141: =SUM(DataInput!N141,DataInput!AJ141) -> 0 | N141: =SUM(DataInput!O141,DataInput!AK141) -> 0 | O141: =DataInput!P141 -> 0 | Q141: 154 | R141: =DataInput!R141 -> 37 | S141: =DataInput!Y141 -> 0 | T141: =IF(DataInput!U141-DataInput!E141>0,DataInput!U141-DataInput!E141,"") -> 63 | U141: =IF(DataInput!W141-DataInput!I141>0,DataInput!W141-DataInput!I141,"") ->  | W141: 100 | X141: 130 | Y141: 24 | Z141: 450 | AA141: 3350 | AB141: =ROUNDDOWN((IF(AA142>0,IFERROR(IF(AVERAGE(DataInput!Q141:Q142)>AVERAGE(AA142,AA141),ROUNDDOWN(((((AA141-Z141)+(AA142-Z142))/2)*(A142-A141))/27,0),IF(((((DataInput!Q142-Z142)+(DataInput!Q141-Z141))/2)*(A142-A141))/27+S141+T141>0,ROUNDDOWN(((((DataInput!Q142-Z142)+(DataInput!Q141-Z141))/2)*(A142-A141))/27+S141+T141,0),0)),0),0)*$X$5),1) -> 0 | AC141: 176 | AD141: =ROUNDDOWN((IF(AC142>0,IFERROR(IF(((((DataInput!Q141-AC141)+(DataInput!Q142-AC142))/2)*(A142-A141))/27+S141+T141>0,ROUNDDOWN(((((DataInput!Q141-AC141)+(DataInput!Q142-AC142))/2)*(A142-A141))/27+S141+T141,0),0),0),0)*$X$5),1) -> 0 | AE141: =DataInput!U141 -> 97 | AF141: =DataInput!S141 -> 42 | AG141: 58.8 | AH141: 38.2
A142: =IF(DataInput!A142<>"",DataInput!A142,"") -> 84625 | B142: =SUM(DataInput!C142,DataInput!Y142)+(DataInput!U142-DataInput!E142) -> 251 | C142: =SUM(DataInput!D142,DataInput!Z142) -> 154 | D142: =DataInput!U142 -> 97 | E142: =SUM(DataInput!F142,DataInput!AB142) -> 0 | F142: =SUM(DataInput!G142,DataInput!AC142) -> 0 | G142: =SUM(DataInput!H142,DataInput!AD142) -> 0 | H142: =DataInput!I142 -> 33 | I142: =SUM(DataInput!J142,DataInput!AF142) -> 0 | J142: =SUM(DataInput!K142,DataInput!AG142) -> 0 | K142: =SUM(DataInput!L142,DataInput!AH142) -> 0 | L142: =SUM(DataInput!M142,DataInput!AI142) -> 0 | M142: =SUM(DataInput!N142,DataInput!AJ142) -> 0 | N142: =SUM(DataInput!O142,DataInput!AK142) -> 0 | O142: =DataInput!P142 -> 0 | Q142: 154 | R142: =DataInput!R142 -> 41 | S142: =DataInput!Y142 -> 0 | T142: =IF(DataInput!U142-DataInput!E142>0,DataInput!U142-DataInput!E142,"") -> 65 | U142: =IF(DataInput!W142-DataInput!I142>0,DataInput!W142-DataInput!I142,"") ->  | W142: 106 | X142: 137.8 | Y142: 16.2 | Z142: 450 | AA142: 3350 | AB142: =ROUNDDOWN((IF(AA143>0,IFERROR(IF(AVERAGE(DataInput!Q142:Q143)>AVERAGE(AA143,AA142),ROUNDDOWN(((((AA142-Z142)+(AA143-Z143))/2)*(A143-A142))/27,0),IF(((((DataInput!Q143-Z143)+(DataInput!Q142-Z142))/2)*(A143-A142))/27+S142+T142>0,ROUNDDOWN(((((DataInput!Q143-Z143)+(DataInput!Q142-Z142))/2)*(A143-A142))/27+S142+T142,0),0)),0),0)*$X$5),1) -> 0 | AC142: 176 | AD142: =ROUNDDOWN((IF(AC143>0,IFERROR(IF(((((DataInput!Q142-AC142)+(DataInput!Q143-AC143))/2)*(A143-A142))/27+S142+T142>0,ROUNDDOWN(((((DataInput!Q142-AC142)+(DataInput!Q143-AC143))/2)*(A143-A142))/27+S142+T142,0),0),0),0)*$X$5),1) -> 0 | AE142: =DataInput!U142 -> 97 | AF142: =DataInput!S142 -> 42 | AG142: 58.8 | AH142: 38.2
A143: =IF(DataInput!A143<>"",DataInput!A143,"") -> 84650 | B143: =SUM(DataInput!C143,DataInput!Y143)+(DataInput!U143-DataInput!E143) -> 252 | C143: =SUM(DataInput!D143,DataInput!Z143) -> 154 | D143: =DataInput!U143 -> 98 | E143: =SUM(DataInput!F143,DataInput!AB143) -> 0 | F143: =SUM(DataInput!G143,DataInput!AC143) -> 0 | G143: =SUM(DataInput!H143,DataInput!AD143) -> 0 | H143: =DataInput!I143 -> 32 | I143: =SUM(DataInput!J143,DataInput!AF143) -> 0 | J143: =SUM(DataInput!K143,DataInput!AG143) -> 0 | K143: =SUM(DataInput!L143,DataInput!AH143) -> 0 | L143: =SUM(DataInput!M143,DataInput!AI143) -> 0 | M143: =SUM(DataInput!N143,DataInput!AJ143) -> 0 | N143: =SUM(DataInput!O143,DataInput!AK143) -> 0 | O143: =DataInput!P143 -> 0 | Q143: 154 | R143: =DataInput!R143 -> 44 | S143: =DataInput!Y143 -> 0 | T143: =IF(DataInput!U143-DataInput!E143>0,DataInput!U143-DataInput!E143,"") -> 66 | U143: =IF(DataInput!W143-DataInput!I143>0,DataInput!W143-DataInput!I143,"") ->  | W143: 110 | X143: 143 | Y143: 11 | Z143: 450 | AA143: 3350 | AB143: =ROUNDDOWN((IF(AA144>0,IFERROR(IF(AVERAGE(DataInput!Q143:Q144)>AVERAGE(AA144,AA143),ROUNDDOWN(((((AA143-Z143)+(AA144-Z144))/2)*(A144-A143))/27,0),IF(((((DataInput!Q144-Z144)+(DataInput!Q143-Z143))/2)*(A144-A143))/27+S143+T143>0,ROUNDDOWN(((((DataInput!Q144-Z144)+(DataInput!Q143-Z143))/2)*(A144-A143))/27+S143+T143,0),0)),0),0)*$X$5),1) -> 0 | AC143: 176 | AD143: =ROUNDDOWN((IF(AC144>0,IFERROR(IF(((((DataInput!Q143-AC143)+(DataInput!Q144-AC144))/2)*(A144-A143))/27+S143+T143>0,ROUNDDOWN(((((DataInput!Q143-AC143)+(DataInput!Q144-AC144))/2)*(A144-A143))/27+S143+T143,0),0),0),0)*$X$5),1) -> 0 | AE143: =DataInput!U143 -> 98 | AF143: =DataInput!S143 -> 42 | AG143: 58.8 | AH143: 39.2
A144: =IF(DataInput!A144<>"",DataInput!A144,"") -> 84675 | B144: =SUM(DataInput!C144,DataInput!Y144)+(DataInput!U144-DataInput!E144) -> 252 | C144: =SUM(DataInput!D144,DataInput!Z144) -> 154 | D144: =DataInput!U144 -> 98 | E144: =SUM(DataInput!F144,DataInput!AB144) -> 0 | F144: =SUM(DataInput!G144,DataInput!AC144) -> 0 | G144: =SUM(DataInput!H144,DataInput!AD144) -> 0 | H144: =DataInput!I144 -> 31 | I144: =SUM(DataInput!J144,DataInput!AF144) -> 0 | J144: =SUM(DataInput!K144,DataInput!AG144) -> 0 | K144: =SUM(DataInput!L144,DataInput!AH144) -> 0 | L144: =SUM(DataInput!M144,DataInput!AI144) -> 0 | M144: =SUM(DataInput!N144,DataInput!AJ144) -> 0 | N144: =SUM(DataInput!O144,DataInput!AK144) -> 0 | O144: =DataInput!P144 -> 0 | Q144: 154 | R144: =DataInput!R144 -> 50 | S144: =DataInput!Y144 -> 0 | T144: =IF(DataInput!U144-DataInput!E144>0,DataInput!U144-DataInput!E144,"") -> 65 | U144: =IF(DataInput!W144-DataInput!I144>0,DataInput!W144-DataInput!I144,"") ->  | W144: 115 | X144: 149.5 | Y144: 4.5 | Z144: 450 | AA144: 3350 | AB144: =ROUNDDOWN((IF(AA145>0,IFERROR(IF(AVERAGE(DataInput!Q144:Q145)>AVERAGE(AA145,AA144),ROUNDDOWN(((((AA144-Z144)+(AA145-Z145))/2)*(A145-A144))/27,0),IF(((((DataInput!Q145-Z145)+(DataInput!Q144-Z144))/2)*(A145-A144))/27+S144+T144>0,ROUNDDOWN(((((DataInput!Q145-Z145)+(DataInput!Q144-Z144))/2)*(A145-A144))/27+S144+T144,0),0)),0),0)*$X$5),1) -> 0 | AC144: 176 | AD144: =ROUNDDOWN((IF(AC145>0,IFERROR(IF(((((DataInput!Q144-AC144)+(DataInput!Q145-AC145))/2)*(A145-A144))/27+S144+T144>0,ROUNDDOWN(((((DataInput!Q144-AC144)+(DataInput!Q145-AC145))/2)*(A145-A144))/27+S144+T144,0),0),0),0)*$X$5),1) -> 0 | AE144: =DataInput!U144 -> 98 | AF144: =DataInput!S144 -> 41 | AG144: 57.4 | AH144: 40.6
A145: =IF(DataInput!A145<>"",DataInput!A145,"") -> 84700 | B145: =SUM(DataInput!C145,DataInput!Y145)+(DataInput!U145-DataInput!E145) -> 254 | C145: =SUM(DataInput!D145,DataInput!Z145) -> 155 | D145: =DataInput!U145 -> 99 | E145: =SUM(DataInput!F145,DataInput!AB145) -> 0 | F145: =SUM(DataInput!G145,DataInput!AC145) -> 0 | G145: =SUM(DataInput!H145,DataInput!AD145) -> 0 | H145: =DataInput!I145 -> 31 | I145: =SUM(DataInput!J145,DataInput!AF145) -> 0 | J145: =SUM(DataInput!K145,DataInput!AG145) -> 0 | K145: =SUM(DataInput!L145,DataInput!AH145) -> 0 | L145: =SUM(DataInput!M145,DataInput!AI145) -> 0 | M145: =SUM(DataInput!N145,DataInput!AJ145) -> 0 | N145: =SUM(DataInput!O145,DataInput!AK145) -> 0 | O145: =DataInput!P145 -> 0 | Q145: 155 | R145: =DataInput!R145 -> 54 | S145: =DataInput!Y145 -> 0 | T145: =IF(DataInput!U145-DataInput!E145>0,DataInput!U145-DataInput!E145,"") -> 65 | U145: =IF(DataInput!W145-DataInput!I145>0,DataInput!W145-DataInput!I145,"") ->  | W145: 119 | X145: 154.7 | Y145: 0.4 | Z145: 450 | AA145: 3350 | AB145: =ROUNDDOWN((IF(AA146>0,IFERROR(IF(AVERAGE(DataInput!Q145:Q146)>AVERAGE(AA146,AA145),ROUNDDOWN(((((AA145-Z145)+(AA146-Z146))/2)*(A146-A145))/27,0),IF(((((DataInput!Q146-Z146)+(DataInput!Q145-Z145))/2)*(A146-A145))/27+S145+T145>0,ROUNDDOWN(((((DataInput!Q146-Z146)+(DataInput!Q145-Z145))/2)*(A146-A145))/27+S145+T145,0),0)),0),0)*$X$5),1) -> 0 | AC145: 176 | AD145: =ROUNDDOWN((IF(AC146>0,IFERROR(IF(((((DataInput!Q145-AC145)+(DataInput!Q146-AC146))/2)*(A146-A145))/27+S145+T145>0,ROUNDDOWN(((((DataInput!Q145-AC145)+(DataInput!Q146-AC146))/2)*(A146-A145))/27+S145+T145,0),0),0),0)*$X$5),1) -> 0 | AE145: =DataInput!U145 -> 99 | AF145: =DataInput!S145 -> 41 | AG145: 57.4 | AH145: 41.6
A146: =IF(DataInput!A146<>"",DataInput!A146,"") -> 84725 | B146: =SUM(DataInput!C146,DataInput!Y146)+(DataInput!U146-DataInput!E146) -> 255 | C146: =SUM(DataInput!D146,DataInput!Z146) -> 156 | D146: =DataInput!U146 -> 99 | E146: =SUM(DataInput!F146,DataInput!AB146) -> 0 | F146: =SUM(DataInput!G146,DataInput!AC146) -> 0 | G146: =SUM(DataInput!H146,DataInput!AD146) -> 0 | H146: =DataInput!I146 -> 30 | I146: =SUM(DataInput!J146,DataInput!AF146) -> 0 | J146: =SUM(DataInput!K146,DataInput!AG146) -> 0 | K146: =SUM(DataInput!L146,DataInput!AH146) -> 0 | L146: =SUM(DataInput!M146,DataInput!AI146) -> 0 | M146: =SUM(DataInput!N146,DataInput!AJ146) -> 0 | N146: =SUM(DataInput!O146,DataInput!AK146) -> 0 | O146: =DataInput!P146 -> 0 | Q146: 156 | R146: =DataInput!R146 -> 56 | S146: =DataInput!Y146 -> 0 | T146: =IF(DataInput!U146-DataInput!E146>0,DataInput!U146-DataInput!E146,"") -> 64 | U146: =IF(DataInput!W146-DataInput!I146>0,DataInput!W146-DataInput!I146,"") ->  | W146: 120 | X146: 156 | Y146: 0 | Z146: 450 | AA146: 3350 | AB146: =ROUNDDOWN((IF(AA147>0,IFERROR(IF(AVERAGE(DataInput!Q146:Q147)>AVERAGE(AA147,AA146),ROUNDDOWN(((((AA146-Z146)+(AA147-Z147))/2)*(A147-A146))/27,0),IF(((((DataInput!Q147-Z147)+(DataInput!Q146-Z146))/2)*(A147-A146))/27+S146+T146>0,ROUNDDOWN(((((DataInput!Q147-Z147)+(DataInput!Q146-Z146))/2)*(A147-A146))/27+S146+T146,0),0)),0),0)*$X$5),1) -> 0 | AC146: 176 | AD146: =ROUNDDOWN((IF(AC147>0,IFERROR(IF(((((DataInput!Q146-AC146)+(DataInput!Q147-AC147))/2)*(A147-A146))/27+S146+T146>0,ROUNDDOWN(((((DataInput!Q146-AC146)+(DataInput!Q147-AC147))/2)*(A147-A146))/27+S146+T146,0),0),0),0)*$X$5),1) -> 0 | AE146: =DataInput!U146 -> 99 | AF146: =DataInput!S146 -> 40 | AG146: 56 | AH146: 43
A147: =IF(DataInput!A147<>"",DataInput!A147,"") -> 84750 | B147: =SUM(DataInput!C147,DataInput!Y147)+(DataInput!U147-DataInput!E147) -> 257 | C147: =SUM(DataInput!D147,DataInput!Z147) -> 157 | D147: =DataInput!U147 -> 100 | E147: =SUM(DataInput!F147,DataInput!AB147) -> 0 | F147: =SUM(DataInput!G147,DataInput!AC147) -> 0 | G147: =SUM(DataInput!H147,DataInput!AD147) -> 0 | H147: =DataInput!I147 -> 29 | I147: =SUM(DataInput!J147,DataInput!AF147) -> 0 | J147: =SUM(DataInput!K147,DataInput!AG147) -> 0 | K147: =SUM(DataInput!L147,DataInput!AH147) -> 0 | L147: =SUM(DataInput!M147,DataInput!AI147) -> 0 | M147: =SUM(DataInput!N147,DataInput!AJ147) -> 0 | N147: =SUM(DataInput!O147,DataInput!AK147) -> 0 | O147: =DataInput!P147 -> 0 | Q147: 157 | R147: =DataInput!R147 -> 59 | S147: =DataInput!Y147 -> 0 | T147: =IF(DataInput!U147-DataInput!E147>0,DataInput!U147-DataInput!E147,"") -> 63 | U147: =IF(DataInput!W147-DataInput!I147>0,DataInput!W147-DataInput!I147,"") ->  | W147: 122 | X147: 158.6 | Y147: -1.6 | Z147: 450 | AA147: 3350 | AB147: =ROUNDDOWN((IF(AA148>0,IFERROR(IF(AVERAGE(DataInput!Q147:Q148)>AVERAGE(AA148,AA147),ROUNDDOWN(((((AA147-Z147)+(AA148-Z148))/2)*(A148-A147))/27,0),IF(((((DataInput!Q148-Z148)+(DataInput!Q147-Z147))/2)*(A148-A147))/27+S147+T147>0,ROUNDDOWN(((((DataInput!Q148-Z148)+(DataInput!Q147-Z147))/2)*(A148-A147))/27+S147+T147,0),0)),0),0)*$X$5),1) -> 0 | AC147: 176 | AD147: =ROUNDDOWN((IF(AC148>0,IFERROR(IF(((((DataInput!Q147-AC147)+(DataInput!Q148-AC148))/2)*(A148-A147))/27+S147+T147>0,ROUNDDOWN(((((DataInput!Q147-AC147)+(DataInput!Q148-AC148))/2)*(A148-A147))/27+S147+T147,0),0),0),0)*$X$5),1) -> 0 | AE147: =DataInput!U147 -> 100 | AF147: =DataInput!S147 -> 40 | AG147: 56 | AH147: 44
A148: =IF(DataInput!A148<>"",DataInput!A148,"") -> 84775 | B148: =SUM(DataInput!C148,DataInput!Y148)+(DataInput!U148-DataInput!E148) -> 257 | C148: =SUM(DataInput!D148,DataInput!Z148) -> 156 | D148: =DataInput!U148 -> 101 | E148: =SUM(DataInput!F148,DataInput!AB148) -> 0 | F148: =SUM(DataInput!G148,DataInput!AC148) -> 0 | G148: =SUM(DataInput!H148,DataInput!AD148) -> 0 | H148: =DataInput!I148 -> 28 | I148: =SUM(DataInput!J148,DataInput!AF148) -> 0 | J148: =SUM(DataInput!K148,DataInput!AG148) -> 0 | K148: =SUM(DataInput!L148,DataInput!AH148) -> 0 | L148: =SUM(DataInput!M148,DataInput!AI148) -> 0 | M148: =SUM(DataInput!N148,DataInput!AJ148) -> 0 | N148: =SUM(DataInput!O148,DataInput!AK148) -> 0 | O148: =DataInput!P148 -> 0 | Q148: 156 | R148: =DataInput!R148 -> 63 | S148: =DataInput!Y148 -> 0 | T148: =IF(DataInput!U148-DataInput!E148>0,DataInput!U148-DataInput!E148,"") -> 62 | U148: =IF(DataInput!W148-DataInput!I148>0,DataInput!W148-DataInput!I148,"") ->  | W148: 125 | X148: 162.5 | Y148: -6.5 | Z148: 450 | AA148: 3350 | AB148: =ROUNDDOWN((IF(AA149>0,IFERROR(IF(AVERAGE(DataInput!Q148:Q149)>AVERAGE(AA149,AA148),ROUNDDOWN(((((AA148-Z148)+(AA149-Z149))/2)*(A149-A148))/27,0),IF(((((DataInput!Q149-Z149)+(DataInput!Q148-Z148))/2)*(A149-A148))/27+S148+T148>0,ROUNDDOWN(((((DataInput!Q149-Z149)+(DataInput!Q148-Z148))/2)*(A149-A148))/27+S148+T148,0),0)),0),0)*$X$5),1) -> 0 | AC148: 176 | AD148: =ROUNDDOWN((IF(AC149>0,IFERROR(IF(((((DataInput!Q148-AC148)+(DataInput!Q149-AC149))/2)*(A149-A148))/27+S148+T148>0,ROUNDDOWN(((((DataInput!Q148-AC148)+(DataInput!Q149-AC149))/2)*(A149-A148))/27+S148+T148,0),0),0),0)*$X$5),1) -> 0 | AE148: =DataInput!U148 -> 101 | AF148: =DataInput!S148 -> 40 | AG148: 56 | AH148: 45
A149: =IF(DataInput!A149<>"",DataInput!A149,"") -> 84800 | B149: =SUM(DataInput!C149,DataInput!Y149)+(DataInput!U149-DataInput!E149) -> 255 | C149: =SUM(DataInput!D149,DataInput!Z149) -> 153 | D149: =DataInput!U149 -> 102 | E149: =SUM(DataInput!F149,DataInput!AB149) -> 0 | F149: =SUM(DataInput!G149,DataInput!AC149) -> 0 | G149: =SUM(DataInput!H149,DataInput!AD149) -> 0 | H149: =DataInput!I149 -> 27 | I149: =SUM(DataInput!J149,DataInput!AF149) -> 0 | J149: =SUM(DataInput!K149,DataInput!AG149) -> 0 | K149: =SUM(DataInput!L149,DataInput!AH149) -> 0 | L149: =SUM(DataInput!M149,DataInput!AI149) -> 0 | M149: =SUM(DataInput!N149,DataInput!AJ149) -> 0 | N149: =SUM(DataInput!O149,DataInput!AK149) -> 0 | O149: =DataInput!P149 -> 0 | Q149: 153 | R149: =DataInput!R149 -> 72 | S149: =DataInput!Y149 -> 0 | T149: =IF(DataInput!U149-DataInput!E149>0,DataInput!U149-DataInput!E149,"") -> 62 | U149: =IF(DataInput!W149-DataInput!I149>0,DataInput!W149-DataInput!I149,"") ->  | W149: 134 | X149: 174.2 | Y149: -21.2 | Z149: 450 | AA149: 3350 | AB149: =ROUNDDOWN((IF(AA150>0,IFERROR(IF(AVERAGE(DataInput!Q149:Q150)>AVERAGE(AA150,AA149),ROUNDDOWN(((((AA149-Z149)+(AA150-Z150))/2)*(A150-A149))/27,0),IF(((((DataInput!Q150-Z150)+(DataInput!Q149-Z149))/2)*(A150-A149))/27+S149+T149>0,ROUNDDOWN(((((DataInput!Q150-Z150)+(DataInput!Q149-Z149))/2)*(A150-A149))/27+S149+T149,0),0)),0),0)*$X$5),1) -> 0 | AC149: 176 | AD149: =ROUNDDOWN((IF(AC150>0,IFERROR(IF(((((DataInput!Q149-AC149)+(DataInput!Q150-AC150))/2)*(A150-A149))/27+S149+T149>0,ROUNDDOWN(((((DataInput!Q149-AC149)+(DataInput!Q150-AC150))/2)*(A150-A149))/27+S149+T149,0),0),0),0)*$X$5),1) -> 0 | AE149: =DataInput!U149 -> 102 | AF149: =DataInput!S149 -> 40 | AG149: 56 | AH149: 46
A150: =IF(DataInput!A150<>"",DataInput!A150,"") -> 84825 | B150: =SUM(DataInput!C150,DataInput!Y150)+(DataInput!U150-DataInput!E150) -> 253 | C150: =SUM(DataInput!D150,DataInput!Z150) -> 150 | D150: =DataInput!U150 -> 103 | E150: =SUM(DataInput!F150,DataInput!AB150) -> 0 | F150: =SUM(DataInput!G150,DataInput!AC150) -> 0 | G150: =SUM(DataInput!H150,DataInput!AD150) -> 0 | H150: =DataInput!I150 -> 27 | I150: =SUM(DataInput!J150,DataInput!AF150) -> 0 | J150: =SUM(DataInput!K150,DataInput!AG150) -> 0 | K150: =SUM(DataInput!L150,DataInput!AH150) -> 0 | L150: =SUM(DataInput!M150,DataInput!AI150) -> 0 | M150: =SUM(DataInput!N150,DataInput!AJ150) -> 0 | N150: =SUM(DataInput!O150,DataInput!AK150) -> 0 | O150: =DataInput!P150 -> 0 | Q150: 150 | R150: =DataInput!R150 -> 81 | S150: =DataInput!Y150 -> 0 | T150: =IF(DataInput!U150-DataInput!E150>0,DataInput!U150-DataInput!E150,"") -> 63 | U150: =IF(DataInput!W150-DataInput!I150>0,DataInput!W150-DataInput!I150,"") ->  | W150: 144 | X150: 187.2 | Y150: -37.2 | Z150: 450 | AA150: 3350 | AB150: =ROUNDDOWN((IF(AA151>0,IFERROR(IF(AVERAGE(DataInput!Q150:Q151)>AVERAGE(AA151,AA150),ROUNDDOWN(((((AA150-Z150)+(AA151-Z151))/2)*(A151-A150))/27,0),IF(((((DataInput!Q151-Z151)+(DataInput!Q150-Z150))/2)*(A151-A150))/27+S150+T150>0,ROUNDDOWN(((((DataInput!Q151-Z151)+(DataInput!Q150-Z150))/2)*(A151-A150))/27+S150+T150,0),0)),0),0)*$X$5),1) -> 0 | AC150: 176 | AD150: =ROUNDDOWN((IF(AC151>0,IFERROR(IF(((((DataInput!Q150-AC150)+(DataInput!Q151-AC151))/2)*(A151-A150))/27+S150+T150>0,ROUNDDOWN(((((DataInput!Q150-AC150)+(DataInput!Q151-AC151))/2)*(A151-A150))/27+S150+T150,0),0),0),0)*$X$5),1) -> 0 | AE150: =DataInput!U150 -> 103 | AF150: =DataInput!S150 -> 40 | AG150: 56 | AH150: 47
A151: =IF(DataInput!A151<>"",DataInput!A151,"") -> 84850 | B151: =SUM(DataInput!C151,DataInput!Y151)+(DataInput!U151-DataInput!E151) -> 250 | C151: =SUM(DataInput!D151,DataInput!Z151) -> 145 | D151: =DataInput!U151 -> 105 | E151: =SUM(DataInput!F151,DataInput!AB151) -> 0 | F151: =SUM(DataInput!G151,DataInput!AC151) -> 0 | G151: =SUM(DataInput!H151,DataInput!AD151) -> 0 | H151: =DataInput!I151 -> 26 | I151: =SUM(DataInput!J151,DataInput!AF151) -> 0 | J151: =SUM(DataInput!K151,DataInput!AG151) -> 0 | K151: =SUM(DataInput!L151,DataInput!AH151) -> 0 | L151: =SUM(DataInput!M151,DataInput!AI151) -> 0 | M151: =SUM(DataInput!N151,DataInput!AJ151) -> 0 | N151: =SUM(DataInput!O151,DataInput!AK151) -> 0 | O151: =DataInput!P151 -> 0 | Q151: 145 | R151: =DataInput!R151 -> 89 | S151: =DataInput!Y151 -> 0 | T151: =IF(DataInput!U151-DataInput!E151>0,DataInput!U151-DataInput!E151,"") -> 65 | U151: =IF(DataInput!W151-DataInput!I151>0,DataInput!W151-DataInput!I151,"") ->  | W151: 154 | X151: 200.2 | Y151: -55.2 | Z151: 450 | AA151: 3350 | AB151: =ROUNDDOWN((IF(AA152>0,IFERROR(IF(AVERAGE(DataInput!Q151:Q152)>AVERAGE(AA152,AA151),ROUNDDOWN(((((AA151-Z151)+(AA152-Z152))/2)*(A152-A151))/27,0),IF(((((DataInput!Q152-Z152)+(DataInput!Q151-Z151))/2)*(A152-A151))/27+S151+T151>0,ROUNDDOWN(((((DataInput!Q152-Z152)+(DataInput!Q151-Z151))/2)*(A152-A151))/27+S151+T151,0),0)),0),0)*$X$5),1) -> 0 | AC151: 176 | AD151: =ROUNDDOWN((IF(AC152>0,IFERROR(IF(((((DataInput!Q151-AC151)+(DataInput!Q152-AC152))/2)*(A152-A151))/27+S151+T151>0,ROUNDDOWN(((((DataInput!Q151-AC151)+(DataInput!Q152-AC152))/2)*(A152-A151))/27+S151+T151,0),0),0),0)*$X$5),1) -> 0 | AE151: =DataInput!U151 -> 105 | AF151: =DataInput!S151 -> 40 | AG151: 56 | AH151: 49
A152: =IF(DataInput!A152<>"",DataInput!A152,"") -> 84875 | B152: =SUM(DataInput!C152,DataInput!Y152)+(DataInput!U152-DataInput!E152) -> 247 | C152: =SUM(DataInput!D152,DataInput!Z152) -> 140 | D152: =DataInput!U152 -> 107 | E152: =SUM(DataInput!F152,DataInput!AB152) -> 0 | F152: =SUM(DataInput!G152,DataInput!AC152) -> 0 | G152: =SUM(DataInput!H152,DataInput!AD152) -> 0 | H152: =DataInput!I152 -> 26 | I152: =SUM(DataInput!J152,DataInput!AF152) -> 0 | J152: =SUM(DataInput!K152,DataInput!AG152) -> 0 | K152: =SUM(DataInput!L152,DataInput!AH152) -> 0 | L152: =SUM(DataInput!M152,DataInput!AI152) -> 0 | M152: =SUM(DataInput!N152,DataInput!AJ152) -> 0 | N152: =SUM(DataInput!O152,DataInput!AK152) -> 0 | O152: =DataInput!P152 -> 0 | Q152: 140 | R152: =DataInput!R152 -> 101 | S152: =DataInput!Y152 -> 0 | T152: =IF(DataInput!U152-DataInput!E152>0,DataInput!U152-DataInput!E152,"") -> 69 | U152: =IF(DataInput!W152-DataInput!I152>0,DataInput!W152-DataInput!I152,"") ->  | W152: 170 | X152: 221 | Y152: -81 | Z152: 450 | AA152: 3350 | AB152: =ROUNDDOWN((IF(AA153>0,IFERROR(IF(AVERAGE(DataInput!Q152:Q153)>AVERAGE(AA153,AA152),ROUNDDOWN(((((AA152-Z152)+(AA153-Z153))/2)*(A153-A152))/27,0),IF(((((DataInput!Q153-Z153)+(DataInput!Q152-Z152))/2)*(A153-A152))/27+S152+T152>0,ROUNDDOWN(((((DataInput!Q153-Z153)+(DataInput!Q152-Z152))/2)*(A153-A152))/27+S152+T152,0),0)),0),0)*$X$5),1) -> 0 | AC152: 176 | AD152: =ROUNDDOWN((IF(AC153>0,IFERROR(IF(((((DataInput!Q152-AC152)+(DataInput!Q153-AC153))/2)*(A153-A152))/27+S152+T152>0,ROUNDDOWN(((((DataInput!Q152-AC152)+(DataInput!Q153-AC153))/2)*(A153-A152))/27+S152+T152,0),0),0),0)*$X$5),1) -> 7.8 | AE152: =DataInput!U152 -> 107 | AF152: =DataInput!S152 -> 40 | AG152: 56 | AH152: 51
A153: =IF(DataInput!A153<>"",DataInput!A153,"") -> 84900 | B153: =SUM(DataInput!C153,DataInput!Y153)+(DataInput!U153-DataInput!E153) -> 244 | C153: =SUM(DataInput!D153,DataInput!Z153) -> 136 | D153: =DataInput!U153 -> 108 | E153: =SUM(DataInput!F153,DataInput!AB153) -> 0 | F153: =SUM(DataInput!G153,DataInput!AC153) -> 0 | G153: =SUM(DataInput!H153,DataInput!AD153) -> 0 | H153: =DataInput!I153 -> 25 | I153: =SUM(DataInput!J153,DataInput!AF153) -> 0 | J153: =SUM(DataInput!K153,DataInput!AG153) -> 0 | K153: =SUM(DataInput!L153,DataInput!AH153) -> 0 | L153: =SUM(DataInput!M153,DataInput!AI153) -> 0 | M153: =SUM(DataInput!N153,DataInput!AJ153) -> 0 | N153: =SUM(DataInput!O153,DataInput!AK153) -> 0 | O153: =DataInput!P153 -> 0 | Q153: 136 | R153: =DataInput!R153 -> 113 | S153: =DataInput!Y153 -> 0 | T153: =IF(DataInput!U153-DataInput!E153>0,DataInput!U153-DataInput!E153,"") -> 73 | U153: =IF(DataInput!W153-DataInput!I153>0,DataInput!W153-DataInput!I153,"") ->  | W153: 186 | X153: 241.8 | Y153: -105.8 | Z153: 450 | AA153: 3350 | AB153: =ROUNDDOWN((IF(AA154>0,IFERROR(IF(AVERAGE(DataInput!Q153:Q154)>AVERAGE(AA154,AA153),ROUNDDOWN(((((AA153-Z153)+(AA154-Z154))/2)*(A154-A153))/27,0),IF(((((DataInput!Q154-Z154)+(DataInput!Q153-Z153))/2)*(A154-A153))/27+S153+T153>0,ROUNDDOWN(((((DataInput!Q154-Z154)+(DataInput!Q153-Z153))/2)*(A154-A153))/27+S153+T153,0),0)),0),0)*$X$5),1) -> 0 | AC153: 176 | AD153: =ROUNDDOWN((IF(AC154>0,IFERROR(IF(((((DataInput!Q153-AC153)+(DataInput!Q154-AC154))/2)*(A154-A153))/27+S153+T153>0,ROUNDDOWN(((((DataInput!Q153-AC153)+(DataInput!Q154-AC154))/2)*(A154-A153))/27+S153+T153,0),0),0),0)*$X$5),1) -> 29.9 | AE153: =DataInput!U153 -> 108 | AF153: =DataInput!S153 -> 40 | AG153: 56 | AH153: 52
A154: =IF(DataInput!A154<>"",DataInput!A154,"") -> 84925 | B154: =SUM(DataInput!C154,DataInput!Y154)+(DataInput!U154-DataInput!E154) -> 239 | C154: =SUM(DataInput!D154,DataInput!Z154) -> 130 | D154: =DataInput!U154 -> 108 | E154: =SUM(DataInput!F154,DataInput!AB154) -> 0 | F154: =SUM(DataInput!G154,DataInput!AC154) -> 0 | G154: =SUM(DataInput!H154,DataInput!AD154) -> 0 | H154: =DataInput!I154 -> 25 | I154: =SUM(DataInput!J154,DataInput!AF154) -> 0 | J154: =SUM(DataInput!K154,DataInput!AG154) -> 0 | K154: =SUM(DataInput!L154,DataInput!AH154) -> 0 | L154: =SUM(DataInput!M154,DataInput!AI154) -> 0 | M154: =SUM(DataInput!N154,DataInput!AJ154) -> 0 | N154: =SUM(DataInput!O154,DataInput!AK154) -> 0 | O154: =DataInput!P154 -> 0 | Q154: 130 | R154: =DataInput!R154 -> 119 | S154: =DataInput!Y154 -> 0 | T154: =IF(DataInput!U154-DataInput!E154>0,DataInput!U154-DataInput!E154,"") -> 76 | U154: =IF(DataInput!W154-DataInput!I154>0,DataInput!W154-DataInput!I154,"") ->  | W154: 195 | X154: 253.5 | Y154: -123.5 | Z154: 450 | AA154: 3350 | AB154: =ROUNDDOWN((IF(AA155>0,IFERROR(IF(AVERAGE(DataInput!Q154:Q155)>AVERAGE(AA155,AA154),ROUNDDOWN(((((AA154-Z154)+(AA155-Z155))/2)*(A155-A154))/27,0),IF(((((DataInput!Q155-Z155)+(DataInput!Q154-Z154))/2)*(A155-A154))/27+S154+T154>0,ROUNDDOWN(((((DataInput!Q155-Z155)+(DataInput!Q154-Z154))/2)*(A155-A154))/27+S154+T154,0),0)),0),0)*$X$5),1) -> 0 | AC154: 176 | AD154: =ROUNDDOWN((IF(AC155>0,IFERROR(IF(((((DataInput!Q154-AC154)+(DataInput!Q155-AC155))/2)*(A155-A154))/27+S154+T154>0,ROUNDDOWN(((((DataInput!Q154-AC154)+(DataInput!Q155-AC155))/2)*(A155-A154))/27+S154+T154,0),0),0),0)*$X$5),1) -> 41.6 | AE154: =DataInput!U154 -> 108 | AF154: =DataInput!S154 -> 41 | AG154: 57.4 | AH154: 50.6
A155: =IF(DataInput!A155<>"",DataInput!A155,"") -> 84950 | B155: =SUM(DataInput!C155,DataInput!Y155)+(DataInput!U155-DataInput!E155) -> 232 | C155: =SUM(DataInput!D155,DataInput!Z155) -> 123 | D155: =DataInput!U155 -> 108 | E155: =SUM(DataInput!F155,DataInput!AB155) -> 0 | F155: =SUM(DataInput!G155,DataInput!AC155) -> 0 | G155: =SUM(DataInput!H155,DataInput!AD155) -> 0 | H155: =DataInput!I155 -> 26 | I155: =SUM(DataInput!J155,DataInput!AF155) -> 0 | J155: =SUM(DataInput!K155,DataInput!AG155) -> 0 | K155: =SUM(DataInput!L155,DataInput!AH155) -> 0 | L155: =SUM(DataInput!M155,DataInput!AI155) -> 0 | M155: =SUM(DataInput!N155,DataInput!AJ155) -> 0 | N155: =SUM(DataInput!O155,DataInput!AK155) -> 0 | O155: =DataInput!P155 -> 0 | Q155: 123 | R155: =DataInput!R155 -> 120 | S155: =DataInput!Y155 -> 0 | T155: =IF(DataInput!U155-DataInput!E155>0,DataInput!U155-DataInput!E155,"") -> 80 | U155: =IF(DataInput!W155-DataInput!I155>0,DataInput!W155-DataInput!I155,"") ->  | W155: 200 | X155: 260 | Y155: -137 | Z155: 450 | AA155: 3350 | AB155: =ROUNDDOWN((IF(AA156>0,IFERROR(IF(AVERAGE(DataInput!Q155:Q156)>AVERAGE(AA156,AA155),ROUNDDOWN(((((AA155-Z155)+(AA156-Z156))/2)*(A156-A155))/27,0),IF(((((DataInput!Q156-Z156)+(DataInput!Q155-Z155))/2)*(A156-A155))/27+S155+T155>0,ROUNDDOWN(((((DataInput!Q156-Z156)+(DataInput!Q155-Z155))/2)*(A156-A155))/27+S155+T155,0),0)),0),0)*$X$5),1) -> 0 | AC155: 176 | AD155: =ROUNDDOWN((IF(AC156>0,IFERROR(IF(((((DataInput!Q155-AC155)+(DataInput!Q156-AC156))/2)*(A156-A155))/27+S155+T155>0,ROUNDDOWN(((((DataInput!Q155-AC155)+(DataInput!Q156-AC156))/2)*(A156-A155))/27+S155+T155,0),0),0),0)*$X$5),1) -> 48.1 | AE155: =DataInput!U155 -> 108 | AF155: =DataInput!S155 -> 40 | AG155: 56 | AH155: 52
A156: =IF(DataInput!A156<>"",DataInput!A156,"") -> 84975 | B156: =SUM(DataInput!C156,DataInput!Y156)+(DataInput!U156-DataInput!E156) -> 250 | C156: =SUM(DataInput!D156,DataInput!Z156) -> 118 | D156: =DataInput!U156 -> 132 | E156: =SUM(DataInput!F156,DataInput!AB156) -> 0 | F156: =SUM(DataInput!G156,DataInput!AC156) -> 0 | G156: =SUM(DataInput!H156,DataInput!AD156) -> 0 | H156: =DataInput!I156 -> 27 | I156: =SUM(DataInput!J156,DataInput!AF156) -> 0 | J156: =SUM(DataInput!K156,DataInput!AG156) -> 0 | K156: =SUM(DataInput!L156,DataInput!AH156) -> 0 | L156: =SUM(DataInput!M156,DataInput!AI156) -> 0 | M156: =SUM(DataInput!N156,DataInput!AJ156) -> 0 | N156: =SUM(DataInput!O156,DataInput!AK156) -> 0 | O156: =DataInput!P156 -> 0 | Q156: 118 | R156: =DataInput!R156 -> 119 | S156: =DataInput!Y156 -> 0 | T156: =IF(DataInput!U156-DataInput!E156>0,DataInput!U156-DataInput!E156,"") -> 90 | U156: =IF(DataInput!W156-DataInput!I156>0,DataInput!W156-DataInput!I156,"") ->  | W156: 209 | X156: 271.7 | Y156: -153.7 | Z156: 450 | AA156: 3350 | AB156: =ROUNDDOWN((IF(AA157>0,IFERROR(IF(AVERAGE(DataInput!Q156:Q157)>AVERAGE(AA157,AA156),ROUNDDOWN(((((AA156-Z156)+(AA157-Z157))/2)*(A157-A156))/27,0),IF(((((DataInput!Q157-Z157)+(DataInput!Q156-Z156))/2)*(A157-A156))/27+S156+T156>0,ROUNDDOWN(((((DataInput!Q157-Z157)+(DataInput!Q156-Z156))/2)*(A157-A156))/27+S156+T156,0),0)),0),0)*$X$5),1) -> 0 | AC156: 176 | AD156: =ROUNDDOWN((IF(AC157>0,IFERROR(IF(((((DataInput!Q156-AC156)+(DataInput!Q157-AC157))/2)*(A157-A156))/27+S156+T156>0,ROUNDDOWN(((((DataInput!Q156-AC156)+(DataInput!Q157-AC157))/2)*(A157-A156))/27+S156+T156,0),0),0),0)*$X$5),1) -> 59.8 | AE156: =DataInput!U156 -> 132 | AF156: =DataInput!S156 -> 57 | AG156: 79.8 | AH156: 52.2
A157: =IF(DataInput!A157<>"",DataInput!A157,"") -> 85000 | B157: =SUM(DataInput!C157,DataInput!Y157)+(DataInput!U157-DataInput!E157) -> 298 | C157: =SUM(DataInput!D157,DataInput!Z157) -> 141 | D157: =DataInput!U157 -> 157 | E157: =SUM(DataInput!F157,DataInput!AB157) -> 0 | F157: =SUM(DataInput!G157,DataInput!AC157) -> 0 | G157: =SUM(DataInput!H157,DataInput!AD157) -> 0 | H157: =DataInput!I157 -> 27 | I157: =SUM(DataInput!J157,DataInput!AF157) -> 0 | J157: =SUM(DataInput!K157,DataInput!AG157) -> 0 | K157: =SUM(DataInput!L157,DataInput!AH157) -> 0 | L157: =SUM(DataInput!M157,DataInput!AI157) -> 0 | M157: =SUM(DataInput!N157,DataInput!AJ157) -> 0 | N157: =SUM(DataInput!O157,DataInput!AK157) -> 0 | O157: =DataInput!P157 -> 0 | Q157: 141 | R157: =DataInput!R157 -> 104 | S157: =DataInput!Y157 -> 0 | T157: =IF(DataInput!U157-DataInput!E157>0,DataInput!U157-DataInput!E157,"") -> 96 | U157: =IF(DataInput!W157-DataInput!I157>0,DataInput!W157-DataInput!I157,"") ->  | W157: 200 | X157: 260 | Y157: -119 | Z157: 450 | AA157: 3350 | AB157: =ROUNDDOWN((IF(AA158>0,IFERROR(IF(AVERAGE(DataInput!Q157:Q158)>AVERAGE(AA158,AA157),ROUNDDOWN(((((AA157-Z157)+(AA158-Z158))/2)*(A158-A157))/27,0),IF(((((DataInput!Q158-Z158)+(DataInput!Q157-Z157))/2)*(A158-A157))/27+S157+T157>0,ROUNDDOWN(((((DataInput!Q158-Z158)+(DataInput!Q157-Z157))/2)*(A158-A157))/27+S157+T157,0),0)),0),0)*$X$5),1) -> 0 | AC157: 176 | AD157: =ROUNDDOWN((IF(AC158>0,IFERROR(IF(((((DataInput!Q157-AC157)+(DataInput!Q158-AC158))/2)*(A158-A157))/27+S157+T157>0,ROUNDDOWN(((((DataInput!Q157-AC157)+(DataInput!Q158-AC158))/2)*(A158-A157))/27+S157+T157,0),0),0),0)*$X$5),1) -> 48.1 | AE157: =DataInput!U157 -> 157 | AF157: =DataInput!S157 -> 73 | AG157: 102.2 | AH157: 54.8
A158: =IF(DataInput!A158<>"",DataInput!A158,"") -> 85025 | B158: =SUM(DataInput!C158,DataInput!Y158)+(DataInput!U158-DataInput!E158) -> 326 | C158: =SUM(DataInput!D158,DataInput!Z158) -> 170 | D158: =DataInput!U158 -> 156 | E158: =SUM(DataInput!F158,DataInput!AB158) -> 0 | F158: =SUM(DataInput!G158,DataInput!AC158) -> 0 | G158: =SUM(DataInput!H158,DataInput!AD158) -> 0 | H158: =DataInput!I158 -> 27 | I158: =SUM(DataInput!J158,DataInput!AF158) -> 0 | J158: =SUM(DataInput!K158,DataInput!AG158) -> 0 | K158: =SUM(DataInput!L158,DataInput!AH158) -> 0 | L158: =SUM(DataInput!M158,DataInput!AI158) -> 0 | M158: =SUM(DataInput!N158,DataInput!AJ158) -> 0 | N158: =SUM(DataInput!O158,DataInput!AK158) -> 0 | O158: =DataInput!P158 -> 0 | Q158: 170 | R158: =DataInput!R158 -> 88 | S158: =DataInput!Y158 -> 0 | T158: =IF(DataInput!U158-DataInput!E158>0,DataInput!U158-DataInput!E158,"") -> 92 | U158: =IF(DataInput!W158-DataInput!I158>0,DataInput!W158-DataInput!I158,"") ->  | W158: 180 | X158: 234 | Y158: -64 | Z158: 450 | AA158: 3350 | AB158: =ROUNDDOWN((IF(AA159>0,IFERROR(IF(AVERAGE(DataInput!Q158:Q159)>AVERAGE(AA159,AA158),ROUNDDOWN(((((AA158-Z158)+(AA159-Z159))/2)*(A159-A158))/27,0),IF(((((DataInput!Q159-Z159)+(DataInput!Q158-Z158))/2)*(A159-A158))/27+S158+T158>0,ROUNDDOWN(((((DataInput!Q159-Z159)+(DataInput!Q158-Z158))/2)*(A159-A158))/27+S158+T158,0),0)),0),0)*$X$5),1) -> 0 | AC158: 176 | AD158: =ROUNDDOWN((IF(AC159>0,IFERROR(IF(((((DataInput!Q158-AC158)+(DataInput!Q159-AC159))/2)*(A159-A158))/27+S158+T158>0,ROUNDDOWN(((((DataInput!Q158-AC158)+(DataInput!Q159-AC159))/2)*(A159-A158))/27+S158+T158,0),0),0),0)*$X$5),1) -> 20.8 | AE158: =DataInput!U158 -> 156 | AF158: =DataInput!S158 -> 72 | AG158: 100.8 | AH158: 55.2
A159: =IF(DataInput!A159<>"",DataInput!A159,"") -> 85050 | B159: =SUM(DataInput!C159,DataInput!Y159)+(DataInput!U159-DataInput!E159) -> 324 | C159: =SUM(DataInput!D159,DataInput!Z159) -> 170 | D159: =DataInput!U159 -> 155 | E159: =SUM(DataInput!F159,DataInput!AB159) -> 0 | F159: =SUM(DataInput!G159,DataInput!AC159) -> 0 | G159: =SUM(DataInput!H159,DataInput!AD159) -> 0 | H159: =DataInput!I159 -> 27 | I159: =SUM(DataInput!J159,DataInput!AF159) -> 0 | J159: =SUM(DataInput!K159,DataInput!AG159) -> 0 | K159: =SUM(DataInput!L159,DataInput!AH159) -> 0 | L159: =SUM(DataInput!M159,DataInput!AI159) -> 0 | M159: =SUM(DataInput!N159,DataInput!AJ159) -> 0 | N159: =SUM(DataInput!O159,DataInput!AK159) -> 0 | O159: =DataInput!P159 -> 0 | Q159: 170 | R159: =DataInput!R159 -> 85 | S159: =DataInput!Y159 -> 0 | T159: =IF(DataInput!U159-DataInput!E159>0,DataInput!U159-DataInput!E159,"") -> 92 | U159: =IF(DataInput!W159-DataInput!I159>0,DataInput!W159-DataInput!I159,"") ->  | W159: 177 | X159: 230.1 | Y159: -60.1 | Z159: 450 | AA159: 3350 | AB159: =ROUNDDOWN((IF(AA160>0,IFERROR(IF(AVERAGE(DataInput!Q159:Q160)>AVERAGE(AA160,AA159),ROUNDDOWN(((((AA159-Z159)+(AA160-Z160))/2)*(A160-A159))/27,0),IF(((((DataInput!Q160-Z160)+(DataInput!Q159-Z159))/2)*(A160-A159))/27+S159+T159>0,ROUNDDOWN(((((DataInput!Q160-Z160)+(DataInput!Q159-Z159))/2)*(A160-A159))/27+S159+T159,0),0)),0),0)*$X$5),1) -> 0 | AC159: 176 | AD159: =ROUNDDOWN((IF(AC160>0,IFERROR(IF(((((DataInput!Q159-AC159)+(DataInput!Q160-AC160))/2)*(A160-A159))/27+S159+T159>0,ROUNDDOWN(((((DataInput!Q159-AC159)+(DataInput!Q160-AC160))/2)*(A160-A159))/27+S159+T159,0),0),0),0)*$X$5),1) -> 16.9 | AE159: =DataInput!U159 -> 155 | AF159: =DataInput!S159 -> 71 | AG159: 99.4 | AH159: 55.6
A160: =IF(DataInput!A160<>"",DataInput!A160,"") -> 85075 | B160: =SUM(DataInput!C160,DataInput!Y160)+(DataInput!U160-DataInput!E160) -> 314 | C160: =SUM(DataInput!D160,DataInput!Z160) -> 161 | D160: =DataInput!U160 -> 153 | E160: =SUM(DataInput!F160,DataInput!AB160) -> 0 | F160: =SUM(DataInput!G160,DataInput!AC160) -> 0 | G160: =SUM(DataInput!H160,DataInput!AD160) -> 0 | H160: =DataInput!I160 -> 27 | I160: =SUM(DataInput!J160,DataInput!AF160) -> 0 | J160: =SUM(DataInput!K160,DataInput!AG160) -> 0 | K160: =SUM(DataInput!L160,DataInput!AH160) -> 0 | L160: =SUM(DataInput!M160,DataInput!AI160) -> 0 | M160: =SUM(DataInput!N160,DataInput!AJ160) -> 0 | N160: =SUM(DataInput!O160,DataInput!AK160) -> 0 | O160: =DataInput!P160 -> 0 | Q160: 161 | R160: =DataInput!R160 -> 83 | S160: =DataInput!Y160 -> 0 | T160: =IF(DataInput!U160-DataInput!E160>0,DataInput!U160-DataInput!E160,"") -> 94 | U160: =IF(DataInput!W160-DataInput!I160>0,DataInput!W160-DataInput!I160,"") ->  | W160: 177 | X160: 230.1 | Y160: -69.1 | Z160: 450 | AA160: 3350 | AB160: =ROUNDDOWN((IF(AA161>0,IFERROR(IF(AVERAGE(DataInput!Q160:Q161)>AVERAGE(AA161,AA160),ROUNDDOWN(((((AA160-Z160)+(AA161-Z161))/2)*(A161-A160))/27,0),IF(((((DataInput!Q161-Z161)+(DataInput!Q160-Z160))/2)*(A161-A160))/27+S160+T160>0,ROUNDDOWN(((((DataInput!Q161-Z161)+(DataInput!Q160-Z160))/2)*(A161-A160))/27+S160+T160,0),0)),0),0)*$X$5),1) -> 0 | AC160: 176 | AD160: =ROUNDDOWN((IF(AC161>0,IFERROR(IF(((((DataInput!Q160-AC160)+(DataInput!Q161-AC161))/2)*(A161-A160))/27+S160+T160>0,ROUNDDOWN(((((DataInput!Q160-AC160)+(DataInput!Q161-AC161))/2)*(A161-A160))/27+S160+T160,0),0),0),0)*$X$5),1) -> 16.9 | AE160: =DataInput!U160 -> 153 | AF160: =DataInput!S160 -> 69 | AG160: 96.6 | AH160: 56.4
A161: =IF(DataInput!A161<>"",DataInput!A161,"") -> 85100 | B161: =SUM(DataInput!C161,DataInput!Y161)+(DataInput!U161-DataInput!E161) -> 306 | C161: =SUM(DataInput!D161,DataInput!Z161) -> 154 | D161: =DataInput!U161 -> 152 | E161: =SUM(DataInput!F161,DataInput!AB161) -> 0 | F161: =SUM(DataInput!G161,DataInput!AC161) -> 0 | G161: =SUM(DataInput!H161,DataInput!AD161) -> 0 | H161: =DataInput!I161 -> 27 | I161: =SUM(DataInput!J161,DataInput!AF161) -> 0 | J161: =SUM(DataInput!K161,DataInput!AG161) -> 0 | K161: =SUM(DataInput!L161,DataInput!AH161) -> 0 | L161: =SUM(DataInput!M161,DataInput!AI161) -> 0 | M161: =SUM(DataInput!N161,DataInput!AJ161) -> 0 | N161: =SUM(DataInput!O161,DataInput!AK161) -> 0 | O161: =DataInput!P161 -> 0 | Q161: 154 | R161: =DataInput!R161 -> 77 | S161: =DataInput!Y161 -> 0 | T161: =IF(DataInput!U161-DataInput!E161>0,DataInput!U161-DataInput!E161,"") -> 94 | U161: =IF(DataInput!W161-DataInput!I161>0,DataInput!W161-DataInput!I161,"") ->  | W161: 171 | X161: 222.3 | Y161: -68.3 | Z161: 450 | AA161: 3350 | AB161: =ROUNDDOWN((IF(AA162>0,IFERROR(IF(AVERAGE(DataInput!Q161:Q162)>AVERAGE(AA162,AA161),ROUNDDOWN(((((AA161-Z161)+(AA162-Z162))/2)*(A162-A161))/27,0),IF(((((DataInput!Q162-Z162)+(DataInput!Q161-Z161))/2)*(A162-A161))/27+S161+T161>0,ROUNDDOWN(((((DataInput!Q162-Z162)+(DataInput!Q161-Z161))/2)*(A162-A161))/27+S161+T161,0),0)),0),0)*$X$5),1) -> 0 | AC161: 176 | AD161: =ROUNDDOWN((IF(AC162>0,IFERROR(IF(((((DataInput!Q161-AC161)+(DataInput!Q162-AC162))/2)*(A162-A161))/27+S161+T161>0,ROUNDDOWN(((((DataInput!Q161-AC161)+(DataInput!Q162-AC162))/2)*(A162-A161))/27+S161+T161,0),0),0),0)*$X$5),1) -> 10.4 | AE161: =DataInput!U161 -> 152 | AF161: =DataInput!S161 -> 68 | AG161: 95.2 | AH161: 56.8
A162: =IF(DataInput!A162<>"",DataInput!A162,"") -> 85125 | B162: =SUM(DataInput!C162,DataInput!Y162)+(DataInput!U162-DataInput!E162) -> 306 | C162: =SUM(DataInput!D162,DataInput!Z162) -> 156 | D162: =DataInput!U162 -> 151 | E162: =SUM(DataInput!F162,DataInput!AB162) -> 0 | F162: =SUM(DataInput!G162,DataInput!AC162) -> 0 | G162: =SUM(DataInput!H162,DataInput!AD162) -> 0 | H162: =DataInput!I162 -> 27 | I162: =SUM(DataInput!J162,DataInput!AF162) -> 0 | J162: =SUM(DataInput!K162,DataInput!AG162) -> 0 | K162: =SUM(DataInput!L162,DataInput!AH162) -> 0 | L162: =SUM(DataInput!M162,DataInput!AI162) -> 0 | M162: =SUM(DataInput!N162,DataInput!AJ162) -> 0 | N162: =SUM(DataInput!O162,DataInput!AK162) -> 0 | O162: =DataInput!P162 -> 0 | Q162: 156 | R162: =DataInput!R162 -> 70 | S162: =DataInput!Y162 -> 0 | T162: =IF(DataInput!U162-DataInput!E162>0,DataInput!U162-DataInput!E162,"") -> 90 | U162: =IF(DataInput!W162-DataInput!I162>0,DataInput!W162-DataInput!I162,"") ->  | W162: 160 | X162: 208 | Y162: -52 | Z162: 450 | AA162: 3350 | AB162: =ROUNDDOWN((IF(AA163>0,IFERROR(IF(AVERAGE(DataInput!Q162:Q163)>AVERAGE(AA163,AA162),ROUNDDOWN(((((AA162-Z162)+(AA163-Z163))/2)*(A163-A162))/27,0),IF(((((DataInput!Q163-Z163)+(DataInput!Q162-Z162))/2)*(A163-A162))/27+S162+T162>0,ROUNDDOWN(((((DataInput!Q163-Z163)+(DataInput!Q162-Z162))/2)*(A163-A162))/27+S162+T162,0),0)),0),0)*$X$5),1) -> 0 | AC162: 176 | AD162: =ROUNDDOWN((IF(AC163>0,IFERROR(IF(((((DataInput!Q162-AC162)+(DataInput!Q163-AC163))/2)*(A163-A162))/27+S162+T162>0,ROUNDDOWN(((((DataInput!Q162-AC162)+(DataInput!Q163-AC163))/2)*(A163-A162))/27+S162+T162,0),0),0),0)*$X$5),1) -> 0 | AE162: =DataInput!U162 -> 151 | AF162: =DataInput!S162 -> 67 | AG162: 93.8 | AH162: 57.2
A163: =IF(DataInput!A163<>"",DataInput!A163,"") -> 85150 | B163: =SUM(DataInput!C163,DataInput!Y163)+(DataInput!U163-DataInput!E163) -> 307 | C163: =SUM(DataInput!D163,DataInput!Z163) -> 157 | D163: =DataInput!U163 -> 150 | E163: =SUM(DataInput!F163,DataInput!AB163) -> 0 | F163: =SUM(DataInput!G163,DataInput!AC163) -> 0 | G163: =SUM(DataInput!H163,DataInput!AD163) -> 0 | H163: =DataInput!I163 -> 27 | I163: =SUM(DataInput!J163,DataInput!AF163) -> 0 | J163: =SUM(DataInput!K163,DataInput!AG163) -> 0 | K163: =SUM(DataInput!L163,DataInput!AH163) -> 0 | L163: =SUM(DataInput!M163,DataInput!AI163) -> 0 | M163: =SUM(DataInput!N163,DataInput!AJ163) -> 0 | N163: =SUM(DataInput!O163,DataInput!AK163) -> 0 | O163: =DataInput!P163 -> 0 | Q163: 157 | R163: =DataInput!R163 -> 63 | S163: =DataInput!Y163 -> 0 | T163: =IF(DataInput!U163-DataInput!E163>0,DataInput!U163-DataInput!E163,"") -> 87 | U163: =IF(DataInput!W163-DataInput!I163>0,DataInput!W163-DataInput!I163,"") ->  | W163: 150 | X163: 195 | Y163: -38 | Z163: 450 | AA163: 3350 | AB163: =ROUNDDOWN((IF(AA164>0,IFERROR(IF(AVERAGE(DataInput!Q163:Q164)>AVERAGE(AA164,AA163),ROUNDDOWN(((((AA163-Z163)+(AA164-Z164))/2)*(A164-A163))/27,0),IF(((((DataInput!Q164-Z164)+(DataInput!Q163-Z163))/2)*(A164-A163))/27+S163+T163>0,ROUNDDOWN(((((DataInput!Q164-Z164)+(DataInput!Q163-Z163))/2)*(A164-A163))/27+S163+T163,0),0)),0),0)*$X$5),1) -> 0 | AC163: 176 | AD163: =ROUNDDOWN((IF(AC164>0,IFERROR(IF(((((DataInput!Q163-AC163)+(DataInput!Q164-AC164))/2)*(A164-A163))/27+S163+T163>0,ROUNDDOWN(((((DataInput!Q163-AC163)+(DataInput!Q164-AC164))/2)*(A164-A163))/27+S163+T163,0),0),0),0)*$X$5),1) -> 0 | AE163: =DataInput!U163 -> 150 | AF163: =DataInput!S163 -> 66 | AG163: 92.4 | AH163: 57.6
A164: =IF(DataInput!A164<>"",DataInput!A164,"") -> 85175 | B164: =SUM(DataInput!C164,DataInput!Y164)+(DataInput!U164-DataInput!E164) -> 306 | C164: =SUM(DataInput!D164,DataInput!Z164) -> 157 | D164: =DataInput!U164 -> 149 | E164: =SUM(DataInput!F164,DataInput!AB164) -> 0 | F164: =SUM(DataInput!G164,DataInput!AC164) -> 0 | G164: =SUM(DataInput!H164,DataInput!AD164) -> 0 | H164: =DataInput!I164 -> 27 | I164: =SUM(DataInput!J164,DataInput!AF164) -> 0 | J164: =SUM(DataInput!K164,DataInput!AG164) -> 0 | K164: =SUM(DataInput!L164,DataInput!AH164) -> 0 | L164: =SUM(DataInput!M164,DataInput!AI164) -> 0 | M164: =SUM(DataInput!N164,DataInput!AJ164) -> 0 | N164: =SUM(DataInput!O164,DataInput!AK164) -> 0 | O164: =DataInput!P164 -> 0 | Q164: 157 | R164: =DataInput!R164 -> 59 | S164: =DataInput!Y164 -> 0 | T164: =IF(DataInput!U164-DataInput!E164>0,DataInput!U164-DataInput!E164,"") -> 85 | U164: =IF(DataInput!W164-DataInput!I164>0,DataInput!W164-DataInput!I164,"") ->  | W164: 144 | X164: 187.2 | Y164: -30.2 | Z164: 450 | AA164: 3350 | AB164: =ROUNDDOWN((IF(AA165>0,IFERROR(IF(AVERAGE(DataInput!Q164:Q165)>AVERAGE(AA165,AA164),ROUNDDOWN(((((AA164-Z164)+(AA165-Z165))/2)*(A165-A164))/27,0),IF(((((DataInput!Q165-Z165)+(DataInput!Q164-Z164))/2)*(A165-A164))/27+S164+T164>0,ROUNDDOWN(((((DataInput!Q165-Z165)+(DataInput!Q164-Z164))/2)*(A165-A164))/27+S164+T164,0),0)),0),0)*$X$5),1) -> 0 | AC164: 176 | AD164: =ROUNDDOWN((IF(AC165>0,IFERROR(IF(((((DataInput!Q164-AC164)+(DataInput!Q165-AC165))/2)*(A165-A164))/27+S164+T164>0,ROUNDDOWN(((((DataInput!Q164-AC164)+(DataInput!Q165-AC165))/2)*(A165-A164))/27+S164+T164,0),0),0),0)*$X$5),1) -> 0 | AE164: =DataInput!U164 -> 149 | AF164: =DataInput!S164 -> 65 | AG164: 91 | AH164: 58
A165: =IF(DataInput!A165<>"",DataInput!A165,"") -> 85200 | B165: =SUM(DataInput!C165,DataInput!Y165)+(DataInput!U165-DataInput!E165) -> 303 | C165: =SUM(DataInput!D165,DataInput!Z165) -> 156 | D165: =DataInput!U165 -> 147 | E165: =SUM(DataInput!F165,DataInput!AB165) -> 0 | F165: =SUM(DataInput!G165,DataInput!AC165) -> 0 | G165: =SUM(DataInput!H165,DataInput!AD165) -> 0 | H165: =DataInput!I165 -> 27 | I165: =SUM(DataInput!J165,DataInput!AF165) -> 0 | J165: =SUM(DataInput!K165,DataInput!AG165) -> 0 | K165: =SUM(DataInput!L165,DataInput!AH165) -> 0 | L165: =SUM(DataInput!M165,DataInput!AI165) -> 0 | M165: =SUM(DataInput!N165,DataInput!AJ165) -> 0 | N165: =SUM(DataInput!O165,DataInput!AK165) -> 0 | O165: =DataInput!P165 -> 0 | Q165: 156 | R165: =DataInput!R165 -> 54 | S165: =DataInput!Y165 -> 0 | T165: =IF(DataInput!U165-DataInput!E165>0,DataInput!U165-DataInput!E165,"") -> 81 | U165: =IF(DataInput!W165-DataInput!I165>0,DataInput!W165-DataInput!I165,"") ->  | W165: 135 | X165: 175.5 | Y165: -19.5 | Z165: 450 | AA165: 3350 | AB165: =ROUNDDOWN((IF(AA166>0,IFERROR(IF(AVERAGE(DataInput!Q165:Q166)>AVERAGE(AA166,AA165),ROUNDDOWN(((((AA165-Z165)+(AA166-Z166))/2)*(A166-A165))/27,0),IF(((((DataInput!Q166-Z166)+(DataInput!Q165-Z165))/2)*(A166-A165))/27+S165+T165>0,ROUNDDOWN(((((DataInput!Q166-Z166)+(DataInput!Q165-Z165))/2)*(A166-A165))/27+S165+T165,0),0)),0),0)*$X$5),1) -> 0 | AC165: 176 | AD165: =ROUNDDOWN((IF(AC166>0,IFERROR(IF(((((DataInput!Q165-AC165)+(DataInput!Q166-AC166))/2)*(A166-A165))/27+S165+T165>0,ROUNDDOWN(((((DataInput!Q165-AC165)+(DataInput!Q166-AC166))/2)*(A166-A165))/27+S165+T165,0),0),0),0)*$X$5),1) -> 0 | AE165: =DataInput!U165 -> 147 | AF165: =DataInput!S165 -> 64 | AG165: 89.6 | AH165: 57.4
A166: =IF(DataInput!A166<>"",DataInput!A166,"") -> 85225 | B166: =SUM(DataInput!C166,DataInput!Y166)+(DataInput!U166-DataInput!E166) -> 304 | C166: =SUM(DataInput!D166,DataInput!Z166) -> 157 | D166: =DataInput!U166 -> 146 | E166: =SUM(DataInput!F166,DataInput!AB166) -> 0 | F166: =SUM(DataInput!G166,DataInput!AC166) -> 0 | G166: =SUM(DataInput!H166,DataInput!AD166) -> 0 | H166: =DataInput!I166 -> 27 | I166: =SUM(DataInput!J166,DataInput!AF166) -> 0 | J166: =SUM(DataInput!K166,DataInput!AG166) -> 0 | K166: =SUM(DataInput!L166,DataInput!AH166) -> 0 | L166: =SUM(DataInput!M166,DataInput!AI166) -> 0 | M166: =SUM(DataInput!N166,DataInput!AJ166) -> 0 | N166: =SUM(DataInput!O166,DataInput!AK166) -> 0 | O166: =DataInput!P166 -> 0 | Q166: 157 | R166: =DataInput!R166 -> 48 | S166: =DataInput!Y166 -> 0 | T166: =IF(DataInput!U166-DataInput!E166>0,DataInput!U166-DataInput!E166,"") -> 75 | U166: =IF(DataInput!W166-DataInput!I166>0,DataInput!W166-DataInput!I166,"") ->  | W166: 123 | X166: 159.9 | Y166: -3 | Z166: 450 | AA166: 3350 | AB166: =ROUNDDOWN((IF(AA167>0,IFERROR(IF(AVERAGE(DataInput!Q166:Q167)>AVERAGE(AA167,AA166),ROUNDDOWN(((((AA166-Z166)+(AA167-Z167))/2)*(A167-A166))/27,0),IF(((((DataInput!Q167-Z167)+(DataInput!Q166-Z166))/2)*(A167-A166))/27+S166+T166>0,ROUNDDOWN(((((DataInput!Q167-Z167)+(DataInput!Q166-Z166))/2)*(A167-A166))/27+S166+T166,0),0)),0),0)*$X$5),1) -> 0 | AC166: 176 | AD166: =ROUNDDOWN((IF(AC167>0,IFERROR(IF(((((DataInput!Q166-AC166)+(DataInput!Q167-AC167))/2)*(A167-A166))/27+S166+T166>0,ROUNDDOWN(((((DataInput!Q166-AC166)+(DataInput!Q167-AC167))/2)*(A167-A166))/27+S166+T166,0),0),0),0)*$X$5),1) -> 0 | AE166: =DataInput!U166 -> 146 | AF166: =DataInput!S166 -> 62 | AG166: 86.8 | AH166: 59.2
A167: =IF(DataInput!A167<>"",DataInput!A167,"") -> 85250 | B167: =SUM(DataInput!C167,DataInput!Y167)+(DataInput!U167-DataInput!E167) -> 305 | C167: =SUM(DataInput!D167,DataInput!Z167) -> 160 | D167: =DataInput!U167 -> 145 | E167: =SUM(DataInput!F167,DataInput!AB167) -> 0 | F167: =SUM(DataInput!G167,DataInput!AC167) -> 0 | G167: =SUM(DataInput!H167,DataInput!AD167) -> 0 | H167: =DataInput!I167 -> 27 | I167: =SUM(DataInput!J167,DataInput!AF167) -> 0 | J167: =SUM(DataInput!K167,DataInput!AG167) -> 0 | K167: =SUM(DataInput!L167,DataInput!AH167) -> 0 | L167: =SUM(DataInput!M167,DataInput!AI167) -> 0 | M167: =SUM(DataInput!N167,DataInput!AJ167) -> 0 | N167: =SUM(DataInput!O167,DataInput!AK167) -> 0 | O167: =DataInput!P167 -> 0 | Q167: 160 | R167: =DataInput!R167 -> 40 | S167: =DataInput!Y167 -> 0 | T167: =IF(DataInput!U167-DataInput!E167>0,DataInput!U167-DataInput!E167,"") -> 70 | U167: =IF(DataInput!W167-DataInput!I167>0,DataInput!W167-DataInput!I167,"") ->  | W167: 110 | X167: 143 | Y167: 17 | Z167: 450 | AA167: 3350 | AB167: =ROUNDDOWN((IF(AA168>0,IFERROR(IF(AVERAGE(DataInput!Q167:Q168)>AVERAGE(AA168,AA167),ROUNDDOWN(((((AA167-Z167)+(AA168-Z168))/2)*(A168-A167))/27,0),IF(((((DataInput!Q168-Z168)+(DataInput!Q167-Z167))/2)*(A168-A167))/27+S167+T167>0,ROUNDDOWN(((((DataInput!Q168-Z168)+(DataInput!Q167-Z167))/2)*(A168-A167))/27+S167+T167,0),0)),0),0)*$X$5),1) -> 0 | AC167: 176 | AD167: =ROUNDDOWN((IF(AC168>0,IFERROR(IF(((((DataInput!Q167-AC167)+(DataInput!Q168-AC168))/2)*(A168-A167))/27+S167+T167>0,ROUNDDOWN(((((DataInput!Q167-AC167)+(DataInput!Q168-AC168))/2)*(A168-A167))/27+S167+T167,0),0),0),0)*$X$5),1) -> 0 | AE167: =DataInput!U167 -> 145 | AF167: =DataInput!S167 -> 61 | AG167: 85.4 | AH167: 59.6
A168: =IF(DataInput!A168<>"",DataInput!A168,"") -> 85275 | B168: =SUM(DataInput!C168,DataInput!Y168)+(DataInput!U168-DataInput!E168) -> 305 | C168: =SUM(DataInput!D168,DataInput!Z168) -> 162 | D168: =DataInput!U168 -> 144 | E168: =SUM(DataInput!F168,DataInput!AB168) -> 0 | F168: =SUM(DataInput!G168,DataInput!AC168) -> 0 | G168: =SUM(DataInput!H168,DataInput!AD168) -> 0 | H168: =DataInput!I168 -> 27 | I168: =SUM(DataInput!J168,DataInput!AF168) -> 0 | J168: =SUM(DataInput!K168,DataInput!AG168) -> 0 | K168: =SUM(DataInput!L168,DataInput!AH168) -> 0 | L168: =SUM(DataInput!M168,DataInput!AI168) -> 0 | M168: =SUM(DataInput!N168,DataInput!AJ168) -> 0 | N168: =SUM(DataInput!O168,DataInput!AK168) -> 0 | O168: =DataInput!P168 -> 0 | Q168: 162 | R168: =DataInput!R168 -> 35 | S168: =DataInput!Y168 -> 0 | T168: =IF(DataInput!U168-DataInput!E168>0,DataInput!U168-DataInput!E168,"") -> 67 | U168: =IF(DataInput!W168-DataInput!I168>0,DataInput!W168-DataInput!I168,"") ->  | W168: 102 | X168: 132.6 | Y168: 29.4 | Z168: 450 | AA168: 3350 | AB168: =ROUNDDOWN((IF(AA169>0,IFERROR(IF(AVERAGE(DataInput!Q168:Q169)>AVERAGE(AA169,AA168),ROUNDDOWN(((((AA168-Z168)+(AA169-Z169))/2)*(A169-A168))/27,0),IF(((((DataInput!Q169-Z169)+(DataInput!Q168-Z168))/2)*(A169-A168))/27+S168+T168>0,ROUNDDOWN(((((DataInput!Q169-Z169)+(DataInput!Q168-Z168))/2)*(A169-A168))/27+S168+T168,0),0)),0),0)*$X$5),1) -> 0 | AC168: 176 | AD168: =ROUNDDOWN((IF(AC169>0,IFERROR(IF(((((DataInput!Q168-AC168)+(DataInput!Q169-AC169))/2)*(A169-A168))/27+S168+T168>0,ROUNDDOWN(((((DataInput!Q168-AC168)+(DataInput!Q169-AC169))/2)*(A169-A168))/27+S168+T168,0),0),0),0)*$X$5),1) -> 0 | AE168: =DataInput!U168 -> 144 | AF168: =DataInput!S168 -> 60 | AG168: 84 | AH168: 60
